Workbook

Sheet Inputs
A1: Note: Input Values in English Units | C1: Enter input values only in grey cells | L1: Site Index calculator | P1: Estimate comparable SI
A2: Type of Simulation | E2: Select species to simulate | F2: loblolly | I2: TRUE | J2: =IF(I2=FALSE,0,1) -> 1 | L2: Estimate SI for each species | P2: Comparable SI (ft) | U2: a | V2: 24.96643 | W2: SLA=a + b*LOB;
A3: From Planting | F3: slash | I3: TRUE | J3: =IF(I3=FALSE,0,1) -> 1 | L3: Species | M3: Hdom (ft) | N3: Age | O3: SI (ft) | P3: Loblolly | Q3: Slash | R3: Longleaf | U3: b | V3: 0.649154 | W3: LOB=(SLA-a)/b;
A4: From Inventory Post Establishment | F4: longleaf | I4: FALSE | J4: 0 | L4: Loblolly | M4: 70 | N4: 25 | O4: =+IF(M4="","",IF(N4="","",('lob_Equations - Parameters'!$P$12+(0.5*(M4-'lob_Equations - Parameters'!$P$12+SQRT((M4-'lob_Equations - Parameters'!$P$12)^2+4*'lob_Equations - Parameters'!$Q$12*M4*N4^-'lob_Equations - Parameters'!$R$12))))/(1+('lob_Equations - Parameters'!$Q$12/(0.5*(M4-'lob_Equations - Parameters'!$P$12+SQRT((M4-'lob_Equations - Parameters'!$P$12)^2+4*'lob_Equations - Parameters'!$Q$12*M4*N4^-'lob_Equations - Parameters'!$R$12))))*(25^-'lob_Equations - Parameters'!$R$12)))) -> 70 | Q4: =IF(O4="","",$V$2+$V$3*O4) -> 70.40721 | R4: =IF(O4="","",$V$4+$V$5*O4) -> 68.74284 | S4: Loblolly pine: base age =25 y | T4: Dieguez Aranda et al. 2006 | U4: c | V4: 22.52275 | W4: LON=c + d*LOB2;
G5: =+IF($I$9=1,"Need To Select Species","") ->  | I5: 1 | L5: Slash | O5: =+IF(M5="","",IF(N5="","",$M$5/('slash_Equations - Parameters'!$B$12*(1-EXP('slash_Equations - Parameters'!$C$12*$N$5))^'slash_Equations - Parameters'!$D$12))) ->  | P5: =IF(O5="","",(O5-$V$2)/$V$3) ->  | R5: =IF(O5="","",$V$6+$V$7*O5) ->  | S5: Slash Pine: base age =25 y | T5: Pienaar et al. 1996 | U5: d | V5: 0.660287 | W5: LOB2=(LON-c)/d;
B6: loblolly | C6: slash | D6: longleaf | I6: =IF(B7>40,1,0) -> 0 | L6: Longleaf | O6: =+IF(M6="","",IF(N6="","",$M$6/((1-EXP('long_Equations - Parameters'!$E$15*$N$6))/(1-EXP('long_Equations - Parameters'!$E$15*50)))^'long_Equations - Parameters'!$F$15)) ->  | P6: =IF(O6="","",(O6-$V$4)/$V$5) ->  | Q6: =IF(O6="","",(O6-$V$6)/$V$7) ->  | S6: Longleaf pine: base age =50 y | T6: Gonzalez-Benecke et al. 2011 | U6: e | V6: -3.62188 | W6: LON2=e + f*SLA2;
A7: Rotation Age (yr.) | B7: 30 | C7: 30 | D7: 30 | E7: REQUIRED | I7: =IF(C7>45,1,0) -> 0 | M7: (Enter dominant height) | N7: (Enter age) | U7: f | V7: 1.028805 | W7: SLA2=(LON2-e)/f;
A8: Site Index (ft) | B8: 70 | C8: 70.4 | D8: 82 | E8: REQUIRED | I8: =IF(D7>110,1,0) -> 0
A9: For loblolly and slash: base age = 25 years | B9: =+IF($I$2=TRUE,"REQUIRED","") -> REQUIRED | C9: =+IF($I$3=TRUE,"REQUIRED","") -> REQUIRED | D9: =+IF($I$4=TRUE,"REQUIRED","") ->  | I9: =IF(AND(I2=FALSE,I3=FALSE,I4=FALSE),1,0) -> 0
A10: For longleaf: base age = 50 years | B10: =IF(B7>60,"Max Age=60 y","") ->  | C10: =IF(C7>60,"Max Age=60 y","") ->  | D10: =IF(D7>90,"Max Age=90 y","") ->  | I10: warning | J10: =+IF(B10<>"",1,0) + IF(C10<>"",1,0) + IF(D10<>"",1,0) -> 0
A11: Simulation From Planting | B11: loblolly | C11: slash | D11: longleaf | L11: Product Class Diameter (inch)
A12: TPA at Planting | B12: 620 | C12: 620 | D12: 600 | E12: =+IF($I$5=1,"REQUIRED","") -> REQUIRED | M12: DBH | N12: Dmin | AK12: Rainfall (mm/year)
A13: Survival at year 1 | B13: 0.95 | C13: 0.95 | D13: 0.95 | E13: =+IF($I$5=1,"REQUIRED","") -> REQUIRED | L13: Sawtimber | M13: 12 | N13: 8 | AK13: 1300
B14: =+IF(AND($I$5=1,$I$2=TRUE),"REQUIRED","") -> REQUIRED | C14: =+IF(AND($I$5=1,$I$3=TRUE),"REQUIRED","") -> REQUIRED | D14: =+IF(AND($I$5=1,$I$4=TRUE),"REQUIRED","") ->  | L14: CNS | M14: 8 | N14: 5
A15: Simulation From Inventory | L15: Pulpwood | M15: 5 | N15: 2
A16: INPUTS | B16: loblolly | C16: slash | D16: longleaf
A17: Age | B17: 1 | C17: 1 | D17: 10 | E17: =+IF($I$5=2,"REQUIRED","") -> 
A18: TPA | B18: 600 | C18: 600 | D18: 600 | E18: =+IF($I$5=2,"REQUIRED","") ->  | F18: =IF(B18<101,"Error, minimum TPA=101", "") -> 
A19: BA (ft2 / acre) | E19: =+IF($I$5=2,"OPTIONAL","") -> 
B20: =+IF(AND($I$5=2,$I$2=TRUE),"REQUIRED","") ->  | C20: =+IF(AND($I$5=2,$I$3=TRUE),"REQUIRED","") ->  | D20: =+IF(AND($I$5=2,$I$4=TRUE),"REQUIRED","") ->  | I20: =SUM(I6:I19) -> 0
A21: Simulate Thinning? | I21: TRUE
B22: loblolly | D22: slash | F22: longleaf
A23: Thinning at Fixed Age | B23: Age (years) | C23: % TPA Removal | D23: Age (years) | E23: % TPA Removal | F23: Age (years) | G23: % TPA Removal
A24: Th1 | B24: 12 | C24: 0.5 | D24: 13 | E24: 0.5 | F24: 15 | G24: 0.33
A25: Th2 | F25: 20 | G25: 0.33
A26: Th3 | B26: Not Available
A27: Th4
B28: =+IF(AND($I$21=TRUE,$I$2=TRUE),"REQUIRED","") -> REQUIRED | D28: =+IF(AND($I$21=TRUE,$I$3=TRUE),"REQUIRED","") -> REQUIRED | F28: =+IF(AND($I$21=TRUE,$I$4=TRUE),"REQUIRED","") -> 
B29: =+IF(AND($I$21=TRUE,$I$2=TRUE,$I$5=2,$B$24<=$B$17),"Error in Thinning age",IF(AND($I$21=TRUE,$I$2=TRUE,$B$25<>"",$I$5=2,$B$25<=$B$24),"Error in Thinning age","")) ->  | D29: =+IF(AND($I$21=TRUE,$I$3=TRUE,$I$5=2,$D$24<=$C$17),"Error in Thinning age",IF(AND($I$21=TRUE,$I$3=TRUE,$I$5=2,$D$25<>"",$D$25<=$D$24),"Error in Thinning age",IF(AND($I$21=TRUE,$I$3=TRUE,$I$5=2,$D$26<>"",$D$26<=$D$25),"Error in Thinning age",IF(AND($I$21=TRUE,$I$3=TRUE,$I$5=2,$D$27<>"",$D$27<=$D$26),"Error in Thinning age","")))) ->  | F29: =+IF(AND($I$21=TRUE,$I$4=TRUE,$I$5=2,$F$24<=$D$17),"Error in Thinning age",IF(AND($I$21=TRUE,$I$4=TRUE,$I$5=2,$F$25<>"",$F$25<=$F$24),"Error in Thinning age",IF(AND($I$21=TRUE,$I$4=TRUE,$I$5=2,$F$26<>"",$F$26<=$F$25),"Error in Thinning age",IF(AND($I$21=TRUE,$I$4=TRUE,$I$5=2,$F$27<>"",$F$27<=$F$26),"Error in Thinning age","")))) ->  | I29: Errors | J29: =+IF(B29<>"",1,0) + IF(D29<>"",1,0) + IF(F29<>"",1,0) -> 0

Sheet report_biomass (hidden)
D1: Loblolly Pine | E1: Slash Pine | F1: Longleaf Pine
B2: Initial Values
B3: Age | C3: (years) | D3: =IF(Inputs!J2=0,"",'lob_Report_G&Y'!D3) -> 1 | E3: =IF(Inputs!J3=0,"",'slash_Report_G&Y'!D3) -> 1 | F3: =IF(Inputs!J4=0,"",'long_Report_G&Y'!D3) -> 
B4: Stem Density | C4: (trees/acre) | D4: =IF(Inputs!$J$2=0,"",Inputs!B12*Inputs!B13) -> 589 | E4: =IF(Inputs!$J$3=0,"",Inputs!C12*Inputs!C13) -> 589 | F4: =IF(Inputs!$J$4=0,"",Inputs!D12*Inputs!D13) -> 
B5: Dq | C5: (inch) | D5: =IF(Inputs!J2=0,"",IF(D$3=1,0,'lob_Report_G&Y'!D5)) -> 0 | E5: =IF(Inputs!J3=0,"",IF(E$3=1,0,'slash_Report_G&Y'!D5)) -> 0 | F5: =IF(Inputs!J4=0,"",IF(F$3=1,0,'long_Report_G&Y'!D5)) -> 
B6: Hdom | C6: (ft) | D6: =IF(Inputs!J2=0,"",IF(D$3=1,0,'lob_Report_G&Y'!D6)) -> 0 | E6: =IF(Inputs!J3=0,"",IF(E$3=1,0,'slash_Report_G&Y'!D6)) -> 0 | F6: =IF(Inputs!J4=0,"",IF(F$3=1,0,'long_Report_G&Y'!D6)) -> 
B7: BA | C7: (ft2/acre) | D7: =IF(Inputs!J2=0,"",IF(D$3=1,0,'lob_Report_G&Y'!D7)) -> 0 | E7: =IF(Inputs!J3=0,"",IF(E$3=1,0,'slash_Report_G&Y'!D7)) -> 0 | F7: =IF(Inputs!J4=0,"",IF(F$3=1,0,'long_Report_G&Y'!D7)) -> 
B8: Site Index | C8: (ft) | D8: =IF(Inputs!J2=0,"",'lob_Report_G&Y'!D8) -> 70.00000224 | E8: =IF(Inputs!J3=0,"",'slash_Report_G&Y'!D8) -> 70.40007305 | F8: =IF(Inputs!J4=0,"",'long_Report_G&Y'!D8) -> 
B10: At Rotation Age
B11: Age | C11: (years) | D11: =IF(Inputs!J2=0,"",lob_Inputs!$B$6) -> 30 | E11: =IF(Inputs!J3=0,"",'slash_Report_G&Y'!D20) -> 30 | F11: =IF(Inputs!J4=0,"",'long_Report_G&Y'!D20) -> 
B12: Stem Density | C12: (trees/acre) | D12: =IF(Inputs!J2=0,"",VLOOKUP(lob_Inputs!$B$6,'lob_Summary_G&Y'!$B$3:$O$502,2,FALSE)) -> 216.9589507 | E12: =IF(Inputs!J3=0,"",'slash_Report_G&Y'!D21) -> 225.0130202 | F12: =IF(Inputs!J4=0,"",'long_Report_G&Y'!D21) -> 
B13: Stem IB | C13: (dry ton/acre) | D13: =IF(Inputs!J2=0,"",VLOOKUP(Inputs!$B$7,summary_biomass!$B$4:$N$503,2,FALSE)) -> 61.69674936 | E13: =IF(Inputs!J3=0,"",VLOOKUP(Inputs!$C$7,summary_biomass!$O$4:$AA$503,2,FALSE)) -> 48.13279064 | F13: =IF(Inputs!J4=0,"",VLOOKUP(Inputs!$C$7,summary_biomass!$AB$4:$AM$503,2,FALSE)) -> 
B14: Bark | C14: (dry ton/acre) | D14: =IF(Inputs!J2=0,"",VLOOKUP(Inputs!$B$7,summary_biomass!$B$4:$N$503,3,FALSE)) -> 7.026925973 | E14: =IF(Inputs!J3=0,"",VLOOKUP(Inputs!$C$7,summary_biomass!$O$4:$AA$503,3,FALSE)) -> 5.151175356 | F14: =IF(Inputs!J4=0,"",VLOOKUP(Inputs!$C$7,summary_biomass!$AB$4:$AM$503,3,FALSE)) -> 
B15: Foliage | C15: (dry ton/acre) | D15: =IF(Inputs!J2=0,"",VLOOKUP(Inputs!$B$7,summary_biomass!$B$4:$N$503,4,FALSE)) -> 2.757001046 | E15: =IF(Inputs!J3=0,"",VLOOKUP(Inputs!$C$7,summary_biomass!$O$4:$AA$503,4,FALSE)) -> 1.801732263 | F15: =IF(Inputs!J4=0,"",VLOOKUP(Inputs!$C$7,summary_biomass!$AB$4:$AM$503,4,FALSE)) -> 
B16: Branch | C16: (dry ton/acre) | D16: =IF(Inputs!J2=0,"",VLOOKUP(Inputs!$B$7,summary_biomass!$B$4:$N$503,5,FALSE)) -> 8.22558365 | E16: =IF(Inputs!J3=0,"",VLOOKUP(Inputs!$C$7,summary_biomass!$O$4:$AA$503,5,FALSE)) -> 5.700961541 | F16: =IF(Inputs!J4=0,"",VLOOKUP(Inputs!$C$7,summary_biomass!$AB$4:$AM$503,5,FALSE)) -> 
B17: Coarse Root | C17: (dry ton/acre) | D17: =IF(Inputs!J2=0,"",VLOOKUP(Inputs!$B$7,summary_biomass!$B$4:$N$503,6,FALSE)) -> 16.6764418 | E17: =IF(Inputs!J3=0,"",VLOOKUP(Inputs!$C$7,summary_biomass!$O$4:$AA$503,6,FALSE)) -> 13.41937449 | F17: =IF(Inputs!J4=0,"",VLOOKUP(Inputs!$C$7,summary_biomass!$AB$4:$AM$503,6,FALSE)) -> 
B18: Forest Floor - Needles | C18: (dry ton/acre) | D18: =IF(Inputs!J2=0,"",VLOOKUP(Inputs!$B$7,summary_biomass!$B$4:$N$503,8,FALSE)) -> 11.80223836 | E18: =IF(Inputs!J3=0,"",VLOOKUP(Inputs!$C$7,summary_biomass!$O$4:$AA$503,8,FALSE)) -> 11.66426205 | F18: =IF(Inputs!J4=0,"",VLOOKUP(Inputs!$C$7,summary_biomass!$AB$4:$AM$503,7,FALSE)) -> 
B19: Forest Floor - Branches | C19: (dry ton/acre) | D19: =IF(Inputs!J2=0,"",VLOOKUP(Inputs!$B$7,summary_biomass!$B$4:$N$503,9,FALSE)) -> 2.74155039 | E19: =IF(Inputs!J3=0,"",VLOOKUP(Inputs!$C$7,summary_biomass!$O$4:$AA$503,9,FALSE)) -> 3.552324693 | F19: =IF(Inputs!J4=0,"",VLOOKUP(Inputs!$C$7,summary_biomass!$AB$4:$AM$503,8,FALSE)) -> 
B20: Understory | C20: (dry ton/acre) | D20: =IF(Inputs!J2=0,"",VLOOKUP(Inputs!$B$7,summary_biomass!$B$4:$N$503,10,FALSE)) -> 0.5498331517 | E20: =IF(Inputs!J3=0,"",VLOOKUP(Inputs!$C$7,summary_biomass!$O$4:$AA$503,10,FALSE)) -> 0.8503879984 | F20: =IF(Inputs!J4=0,"",VLOOKUP(Inputs!$C$7,summary_biomass!$AB$4:$AM$503,9,FALSE)) -> 
B21: Snags | C21: (dry ton/acre) | D21: =IF(Inputs!J2=0,"",VLOOKUP(Inputs!$B$7,summary_biomass!$B$4:$N$503,11,FALSE)) -> 2.90868775 | E21: =IF(Inputs!J3=0,"",VLOOKUP(Inputs!$C$7,summary_biomass!$O$4:$AA$503,11,FALSE)) -> 1.67124419 | F21: =IF(Inputs!J4=0,"",VLOOKUP(Inputs!$C$7,summary_biomass!$AB$4:$AM$503,10,FALSE)) -> 
B22: Thinning Residues | C22: (dry ton/acre) | D22: =IF(Inputs!J2=0,"",VLOOKUP(Inputs!$B$7,summary_biomass!$B$4:$N$503,12 + VLOOKUP(Inputs!$B$7,summary_biomass!$B$4:$P$503,13,FALSE))) -> 0.2446351892 | E22: =IF(Inputs!J3=0,"",VLOOKUP(Inputs!$C$7,summary_biomass!$O$4:$AA$503,12,+ VLOOKUP(Inputs!$C$7,summary_biomass!$O$4:$AA$503,13,FALSE))) -> 0.1233758094 | F22: =IF(Inputs!J4=0,"",VLOOKUP(Inputs!$C$7,summary_biomass!$AB$4:$AM$503,11,+ VLOOKUP(Inputs!$C$7,summary_biomass!$AB$4:$AM$503,12,FALSE))) -> 
B26: =+CONCATENATE("<>",D11) -> <>30
D27: loblolly | F27: slash | H27: lonlgleaf
B28: 1 | D28: ='lob_Report_G&Y'!D37 -> ft3/acre | E28: ='lob_Report_G&Y'!E37 -> ton/acre | F28: ='slash_Report_G&Y'!D37 -> ft3/acre | G28: ='slash_Report_G&Y'!E37 -> ton/acre | H28: ='long_Report_G&Y'!D37 -> ft3/acre | I28: ='long_Report_G&Y'!E37 -> ton/acre
D29: ='lob_Report_G&Y'!D38 -> vol | E29: ='lob_Report_G&Y'!E38 -> green ton | F29: ='slash_Report_G&Y'!D38 -> vol | G29: ='slash_Report_G&Y'!E38 -> green ton | H29: ='long_Report_G&Y'!D38 -> vol | I29: ='long_Report_G&Y'!E38 -> green ton
C30: Total-OB | D30: ='lob_Report_G&Y'!D39 -> 5234.470987 | E30: ='lob_Report_G&Y'!E39 -> 172.8424961 | F30: ='slash_Report_G&Y'!D39 -> 3585.321723 | G30: ='slash_Report_G&Y'!E39 -> 116.9340523 | H30: ='long_Report_G&Y'!D39 -> 2291.25103 | I30: ='long_Report_G&Y'!E39 -> 67.02084617
C31: ST-OB | D31: ='lob_Report_G&Y'!D40 -> 1931.175386 | E31: ='lob_Report_G&Y'!E40 -> 63.51524285 | F31: ='slash_Report_G&Y'!D40 -> 669.8942284 | G31: ='slash_Report_G&Y'!E40 -> 21.84837312 | H31: ='long_Report_G&Y'!D40 -> 8.411700719e-06 | I31: ='long_Report_G&Y'!E40 -> 1.286912434e-07
... 9 more rows

Sheet G&Y report (hidden)
D1: Loblolly Pine | E1: Slash Pine | F1: Longleaf Pine
B2: Initial Values
B3: Age | C3: (years) | D3: =IF(Inputs!J2=0,"",'lob_Report_G&Y'!D3) -> 1 | E3: =IF(Inputs!J3=0,"",'slash_Report_G&Y'!D3) -> 1 | F3: =IF(Inputs!J4=0,"",'long_Report_G&Y'!D3) -> 
B4: Stem Density | C4: (trees / acre) | D4: =IF(Inputs!$J$2=0,"",'lob_Report_G&Y'!$D$4) -> 589 | E4: =IF(Inputs!$J$3=0,"",'slash_Report_G&Y'!$D$4) -> 589 | F4: =IF(Inputs!$J$4=0,"",'long_Report_G&Y'!$D$4) -> 
B5: Dq | C5: (inch) | D5: =IF(Inputs!J2=0,"",IF(D$3=1,0,'lob_Report_G&Y'!D5)) -> 0 | E5: =IF(Inputs!J3=0,"",IF(E$3=1,0,'slash_Report_G&Y'!D5)) -> 0 | F5: =IF(Inputs!J4=0,"",IF(F$3=1,0,'long_Report_G&Y'!D5)) -> 
B6: Hdom | C6: (ft) | D6: =IF(Inputs!J2=0,"",IF(D$3=1,0,'lob_Report_G&Y'!D6)) -> 0 | E6: =IF(Inputs!J3=0,"",IF(E$3=1,0,'slash_Report_G&Y'!D6)) -> 0 | F6: =IF(Inputs!J4=0,"",IF(F$3=1,0,'long_Report_G&Y'!D6)) -> 
B7: BA | C7: (ft2 / acre) | D7: =IF(Inputs!J2=0,"",IF(D$3=1,0,'lob_Report_G&Y'!D7)) -> 0 | E7: =IF(Inputs!J3=0,"",IF(E$3=1,0,'slash_Report_G&Y'!D7)) -> 0 | F7: =IF(Inputs!J4=0,"",IF(F$3=1,0,'long_Report_G&Y'!D7)) -> 
B8: Site Index | C8: (ft) | D8: =IF(Inputs!J2=0,"",'lob_Report_G&Y'!D8) -> 70.00000224 | E8: =IF(Inputs!J3=0,"",'slash_Report_G&Y'!D8) -> 70.40007305 | F8: =IF(Inputs!J4=0,"",'long_Report_G&Y'!D8) -> 
B10: At Rotation Age
B11: Age | C11: (years) | D11: =IF(Inputs!J2=0,"",lob_Inputs!$B$6) -> 30 | E11: =IF(Inputs!J3=0,"",'slash_Report_G&Y'!D20) -> 30 | F11: =IF(Inputs!J4=0,"",'long_Report_G&Y'!D20) -> 
B12: Stem Density | C12: (trees / acre) | D12: =IF(Inputs!J2=0,"",VLOOKUP(lob_Inputs!$B$6,'lob_Summary_G&Y'!$B$3:$O$502,2,FALSE)) -> 216.9589507 | E12: =IF(Inputs!J3=0,"",'slash_Report_G&Y'!D21) -> 225.0130202 | F12: =IF(Inputs!J4=0,"",'long_Report_G&Y'!D21) -> 
B13: Dq | C13: (inch) | D13: =IF(Inputs!J2=0,"",VLOOKUP(lob_Inputs!$B$6,'lob_Summary_G&Y'!$B$3:$O$502,5,FALSE)) -> 11.32104298 | E13: =IF(Inputs!J3=0,"",'slash_Report_G&Y'!D22) -> 9.448607381 | F13: =IF(Inputs!J4=0,"",'long_Report_G&Y'!D22) -> 
B14: Hdom | C14: (ft) | D14: =IF(Inputs!J2=0,"",VLOOKUP(lob_Inputs!$B$6,'lob_Summary_G&Y'!$B$3:$O$502,3,FALSE)) -> 78.5252262 | E14: =IF(Inputs!J3=0,"",'slash_Report_G&Y'!D23) -> 76.37268241 | F14: =IF(Inputs!J4=0,"",'long_Report_G&Y'!D23) -> 
B15: BA | C15: (ft2 / acre) | D15: =IF(Inputs!J2=0,"",VLOOKUP(lob_Inputs!$B$6,'lob_Summary_G&Y'!$B$3:$O$502,4,FALSE)) -> 151.6623705 | E15: =IF(Inputs!J3=0,"",'slash_Report_G&Y'!D24) -> 109.5646976 | F15: =IF(Inputs!J4=0,"",'long_Report_G&Y'!D24) -> 
B16: =+IF($B$38=1,"Total Merchantable OB",IF($B$38=2,"Total Merchantable IB",IF($B$38=3,"Total Merchantable OB","Total Merchantable IB"))) -> Total Merchantable OB | C16: =+IF($B$38<3,"(ft3 / acre)","(green tons / acre)") -> (ft3 / acre) | D16: =IF(Inputs!J2=0,"",IF($B$38=1,D29,IF($B$38=2,D33,IF($B$38=3,E29,E33)))) -> 5234.470987 | E16: =IF(Inputs!J3=0,"",IF($B$38=1,F29,IF($B$38=2,F33,IF($B$38=3,G29,G33)))) -> 3585.321723 | F16: =IF(Inputs!J4=0,"",IF($B$38=1,H29,IF($B$38=2,H33,IF($B$38=3,I29,I33)))) -> 
B17: =+IF($B$38=1,"Sawtimber OB",IF($B$38=2,"Sawtimber IB",IF($B$38=3,"Sawtimber OB","Sawtimber IB"))) -> Sawtimber OB | C17: =+IF($B$38<3,"(ft3 / acre)","(green tons / acre)") -> (ft3 / acre) | D17: =IF(Inputs!J2=0,"",IF($B$38=1,D30,IF($B$38=2,D34,IF($B$38=3,E30,E34)))) -> 1931.175386 | E17: =IF(Inputs!J3=0,"",IF($B$38=1,F30,IF($B$38=2,F34,IF($B$38=3,G30,G34)))) -> 669.8942284 | F17: =IF(Inputs!J4=0,"",IF($B$38=1,H30,IF($B$38=2,H34,IF($B$38=3,I30,I34)))) -> 
B18: =+IF($B$38=1,"Chip-and-Saw OB",IF($B$38=2,"Chip-and-Saw IB",IF($B$38=3,"Chip-and-Saw OB","Chip-and-Saw IB"))) -> Chip-and-Saw OB | C18: =+IF($B$38<3,"(ft3 / acre)","(green tons / acre)") -> (ft3 / acre) | D18: =IF(Inputs!J2=0,"",IF($B$38=1,D31,IF($B$38=2,D35,IF($B$38=3,E31,E35)))) -> 2798.060912 | E18: =IF(Inputs!J3=0,"",IF($B$38=1,F31,IF($B$38=2,F35,IF($B$38=3,G31,G35)))) -> 2344.64589 | F18: =IF(Inputs!J4=0,"",IF($B$38=1,H31,IF($B$38=2,H35,IF($B$38=3,I31,I35)))) -> 
B19: =+IF($B$38=1,"Pulpwood OB",IF($B$38=2,"Pulpwood IB",IF($B$38=3,"Pulpwood OB","Pulpwood IB"))) -> Pulpwood OB | C19: =+IF($B$38<3,"(ft3 / acre)","(green tons / acre)") -> (ft3 / acre) | D19: =IF(Inputs!J2=0,"",IF($B$38=1,D32,IF($B$38=2,D36,IF($B$38=3,E32,E36)))) -> 505.2346893 | E19: =IF(Inputs!J3=0,"",IF($B$38=1,F32,IF($B$38=2,F36,IF($B$38=3,G32,G36)))) -> 570.7816047 | F19: =IF(Inputs!J4=0,"",IF($B$38=1,H32,IF($B$38=2,H36,IF($B$38=3,I32,I36)))) -> 
B21: Output
B25: =+CONCATENATE("<>",D11) -> <>30
D26: loblolly | F26: slash | H26: lonlgleaf
B27: 1 | D27: ='lob_Report_G&Y'!D37 -> ft3/acre | E27: ='lob_Report_G&Y'!E37 -> ton/acre | F27: ='slash_Report_G&Y'!D37 -> ft3/acre | G27: ='slash_Report_G&Y'!E37 -> ton/acre | H27: ='long_Report_G&Y'!D37 -> ft3/acre | I27: ='long_Report_G&Y'!E37 -> ton/acre
D28: ='lob_Report_G&Y'!D38 -> vol | E28: ='lob_Report_G&Y'!E38 -> green ton | F28: ='slash_Report_G&Y'!D38 -> vol | G28: ='slash_Report_G&Y'!E38 -> green ton | H28: ='long_Report_G&Y'!D38 -> vol | I28: ='long_Report_G&Y'!E38 -> green ton
C29: Total-OB | D29: ='lob_Report_G&Y'!D39 -> 5234.470987 | E29: ='lob_Report_G&Y'!E39 -> 172.8424961 | F29: ='slash_Report_G&Y'!D39 -> 3585.321723 | G29: ='slash_Report_G&Y'!E39 -> 116.9340523 | H29: ='long_Report_G&Y'!D39 -> 2291.25103 | I29: ='long_Report_G&Y'!E39 -> 67.02084617
C30: ST-OB | D30: ='lob_Report_G&Y'!D40 -> 1931.175386 | E30: ='lob_Report_G&Y'!E40 -> 63.51524285 | F30: ='slash_Report_G&Y'!D40 -> 669.8942284 | G30: ='slash_Report_G&Y'!E40 -> 21.84837312 | H30: ='long_Report_G&Y'!D40 -> 8.411700719e-06 | I30: ='long_Report_G&Y'!E40 -> 1.286912434e-07
C31: CNS-OB | D31: ='lob_Report_G&Y'!D41 -> 2798.060912 | E31: ='lob_Report_G&Y'!E41 -> 92.12989226 | F31: ='slash_Report_G&Y'!D41 -> 2344.64589 | G31: ='slash_Report_G&Y'!E41 -> 76.46983072 | H31: ='long_Report_G&Y'!D41 -> 1251.017168 | I31: ='long_Report_G&Y'!E41 -> 36.88518238
C32: PW-OB | D32: ='lob_Report_G&Y'!D42 -> 505.2346893 | E32: ='lob_Report_G&Y'!E42 -> 17.19736097 | F32: ='slash_Report_G&Y'!D42 -> 570.7816047 | G32: ='slash_Report_G&Y'!E42 -> 18.6158485 | H32: ='long_Report_G&Y'!D42 -> 1040.233853 | I32: ='long_Report_G&Y'!E42 -> 30.13566365
C33: Total-IB | D33: ='lob_Report_G&Y'!D43 -> 4470.744004 | E33: ='lob_Report_G&Y'!E43 -> 155.5582465 | F33: ='slash_Report_G&Y'!D43 -> 3024.616198 | G33: ='slash_Report_G&Y'!E43 -> 105.2406471 | H33: ='long_Report_G&Y'!D43 -> 1733.561207 | I33: ='long_Report_G&Y'!E43 -> 60.31876155
C34: ST-IB | D34: ='lob_Report_G&Y'!D44 -> 1642.885272 | E34: ='lob_Report_G&Y'!E44 -> 57.16371856 | F34: ='slash_Report_G&Y'!D44 -> 565.1300191 | G34: ='slash_Report_G&Y'!E44 -> 19.66353581 | H34: ='long_Report_G&Y'!D44 -> 3.328727702e-06 | I34: ='long_Report_G&Y'!E44 -> 1.158221191e-07
C35: CNS-IB | D35: ='lob_Report_G&Y'!D45 -> 2383.031793 | E35: ='lob_Report_G&Y'!E45 -> 82.91690303 | F35: ='slash_Report_G&Y'!D45 -> 1977.968642 | G35: ='slash_Report_G&Y'!E45 -> 68.82284765 | H35: ='long_Report_G&Y'!D45 -> 954.0721275 | I35: ='long_Report_G&Y'!E45 -> 33.19666414
C36: PW-IB | D36: ='lob_Report_G&Y'!D46 -> 444.8269388 | E36: ='lob_Report_G&Y'!E46 -> 15.47762487 | F36: ='slash_Report_G&Y'!D46 -> 481.5175374 | G36: ='slash_Report_G&Y'!E46 -> 16.75426365 | H36: ='long_Report_G&Y'!D46 -> 779.4890761 | I36: ='long_Report_G&Y'!E46 -> 27.12209729
B38: 1 | D38: min | E38: =IF(D3=1,0,MIN(D3:F3)) -> 0
D39: max | E39: =MAX(D11:F11) -> 30

Sheet summary (hidden)
B1: Loblolly | P1: Slash | AD1: Longleaf | BK1: min | BL1: =MIN(AD4,P4,B4) -> 1
B2: ='lob_Summary_G&Y'!B1 -> Age | C2: ='lob_Summary_G&Y'!C1 -> TPA | D2: ='lob_Summary_G&Y'!D1 -> Hdom | E2: ='lob_Summary_G&Y'!E1 -> BA | F2: ='lob_Summary_G&Y'!F1 -> Dq | G2: ='lob_Summary_G&Y'!G1 -> SDI | H2: ='lob_Summary_G&Y'!H1 -> TOT-VOB | I2: ='lob_Summary_G&Y'!I1 -> VOB-ST | J2: ='lob_Summary_G&Y'!J1 -> VOB-CNS | K2: ='lob_Summary_G&Y'!K1 -> VOB-PW | L2: ='lob_Summary_G&Y'!L1 -> TOT-VIB | M2: ='lob_Summary_G&Y'!M1 -> VIB-ST | N2: ='lob_Summary_G&Y'!N1 -> VIB-CNS | O2: ='lob_Summary_G&Y'!O1 -> VIB-PW | P2: ='slash_Summary_G&Y'!B1 -> Age | Q2: ='slash_Summary_G&Y'!C1 -> TPA | R2: ='slash_Summary_G&Y'!D1 -> Hdom | S2: ='slash_Summary_G&Y'!E1 -> BA | T2: ='slash_Summary_G&Y'!F1 -> Dq | U2: ='slash_Summary_G&Y'!G1 -> SDI | V2: ='slash_Summary_G&Y'!H1 -> TOT-VOB | W2: ='slash_Summary_G&Y'!I1 -> VOB-ST | X2: ='slash_Summary_G&Y'!J1 -> VOB-CNS | Y2: ='slash_Summary_G&Y'!K1 -> VOB-PW | Z2: ='slash_Summary_G&Y'!L1 -> TOT-VIB | AA2: ='slash_Summary_G&Y'!M1 -> VIB-ST | AB2: ='slash_Summary_G&Y'!N1 -> VIB-CNS | AC2: ='slash_Summary_G&Y'!O1 -> VIB-PW | AD2: ='long_Summary_G&Y'!B1 -> Age | AE2: ='long_Summary_G&Y'!C1 -> TPA | AF2: ='long_Summary_G&Y'!D1 -> Hdom | AG2: ='long_Summary_G&Y'!E1 -> BA | AH2: ='long_Summary_G&Y'!F1 -> Dq | AI2: ='long_Summary_G&Y'!G1 -> SDI | AJ2: ='long_Summary_G&Y'!H1 -> TOT-VOB | AK2: ='long_Summary_G&Y'!I1 -> VOB-ST | AL2: ='long_Summary_G&Y'!J1 -> VOB-CNS | AM2: ='long_Summary_G&Y'!K1 -> VOB-PW | AN2: ='long_Summary_G&Y'!L1 -> TOT-VIB | AO2: ='long_Summary_G&Y'!M1 -> VIB-ST | AP2: ='long_Summary_G&Y'!N1 -> VIB-CNS | AQ2: ='long_Summary_G&Y'!O1 -> VIB-PW | BK2: max | BL2: =MAX(B4:B103,P4:P103,AD4:AD103) -> 30
B3: yrs. | C3: trees/acre | D3: ft | E3: ft2/acre | F3: inch | G3: trees/acre | H3: ft3/acre | P3: yrs. | Q3: trees/acre | R3: ft | S3: ft2/acre | T3: inch | U3: trees/acre | V3: ft3/acre | AD3: yrs. | AE3: trees/acre | AF3: ft | AG3: ft2/acre | AH3: inch | AI3: trees/acre | AJ3: ft3/acre | BK3: Age | BL3: TPA_l | BM3: TPA_s | BN3: TPAll | BO3: Hdom_l | BP3: Hdom_s | BQ3: Hdom_ll | BR3: BA_l | BS3: BA_s | BT3: BA_ll | BU3: VIB_l | BV3: VIB_s | BW3: VIB_ll
B4: =IF('G&Y report'!$D$3="","",'lob_Summary_G&Y'!B3) -> 1 | C4: =IF('G&Y report'!$D$3="","",'lob_Summary_G&Y'!C3) -> 577.22 | D4: =IF('G&Y report'!$D$3="","",'lob_Summary_G&Y'!D3) -> 3.276759399 | E4: =IF('G&Y report'!$D$3="","",'lob_Summary_G&Y'!E3) -> 0 | F4: =IF('G&Y report'!$D$3="","",'lob_Summary_G&Y'!F3) -> 0 | G4: =IF('G&Y report'!$D$3="","",'lob_Summary_G&Y'!G3) -> 0 | H4: =IF('G&Y report'!$D$3="","",'lob_Summary_G&Y'!H3) -> 0 | I4: =IF('G&Y report'!$D$3="","",'lob_Summary_G&Y'!I3) -> 0 | J4: =IF('G&Y report'!$D$3="","",'lob_Summary_G&Y'!J3) -> 0 | K4: =IF('G&Y report'!$D$3="","",'lob_Summary_G&Y'!K3) -> 0 | L4: =IF('G&Y report'!$D$3="","",'lob_Summary_G&Y'!L3) -> 0 | M4: =IF('G&Y report'!$D$3="","",'lob_Summary_G&Y'!M3) -> 0 | N4: =IF('G&Y report'!$D$3="","",'lob_Summary_G&Y'!N3) -> 0 | O4: =IF('G&Y report'!$D$3="","",'lob_Summary_G&Y'!O3) -> 0 | P4: =IF('G&Y report'!$E$3="","",IF('slash_Summary_G&Y'!$B$3="","",IF('slash_Summary_G&Y'!$B$3=0,'slash_Summary_G&Y'!B4,'slash_Summary_G&Y'!B3))) + 0 -> 1 | Q4: =IF('G&Y report'!$E$3="","",IF('slash_Summary_G&Y'!$B$3=0,'slash_Summary_G&Y'!C4,'slash_Summary_G&Y'!C3)) -> 589 | R4: =IF('G&Y report'!$E$3="","",IF('slash_Summary_G&Y'!$B$3=0,'slash_Summary_G&Y'!D4,'slash_Summary_G&Y'!D3)) -> 0.8114831144 | S4: =IF('G&Y report'!$E$3="","",IF('slash_Summary_G&Y'!$B$3=0,'slash_Summary_G&Y'!E4,'slash_Summary_G&Y'!E3)) -> 0 | T4: =IF('G&Y report'!$E$3="","",IF('slash_Summary_G&Y'!$B$3=0,'slash_Summary_G&Y'!F4,'slash_Summary_G&Y'!F3)) -> 0 | U4: =IF('G&Y report'!$E$3="","",IF('slash_Summary_G&Y'!$B$3=0,'slash_Summary_G&Y'!G4,'slash_Summary_G&Y'!G3)) -> 0 | V4: =IF('G&Y report'!$E$3="","",IF('slash_Summary_G&Y'!$B$3=0,'slash_Summary_G&Y'!H4,'slash_Summary_G&Y'!H3)) -> 0 | W4: =IF('G&Y report'!$E$3="","",IF('slash_Summary_G&Y'!$B$3=0,'slash_Summary_G&Y'!I4,'slash_Summary_G&Y'!I3)) -> 0 | X4: =IF('G&Y report'!$E$3="","",IF('slash_Summary_G&Y'!$B$3=0,'slash_Summary_G&Y'!J4,'slash_Summary_G&Y'!J3)) -> 0 | Y4: =IF('G&Y report'!$E$3="","",IF('slash_Summary_G&Y'!$B$3=0,'slash_Summary_G&Y'!K4,'slash_Summary_G&Y'!K3)) -> 0 | Z4: =IF('G&Y report'!$E$3="","",IF('slash_Summary_G&Y'!$B$3=0,'slash_Summary_G&Y'!L4,'slash_Summary_G&Y'!L3)) -> 0 | AA4: =IF('G&Y report'!$E$3="","",IF('slash_Summary_G&Y'!$B$3=0,'slash_Summary_G&Y'!M4,'slash_Summary_G&Y'!M3)) -> 0 | AB4: =IF('G&Y report'!$E$3="","",IF('slash_Summary_G&Y'!$B$3=0,'slash_Summary_G&Y'!N4,'slash_Summary_G&Y'!N3)) -> 0 | AC4: =IF('G&Y report'!$E$3="","",IF('slash_Summary_G&Y'!$B$3=0,'slash_Summary_G&Y'!O4,'slash_Summary_G&Y'!O3)) -> 0 | AD4: =IF('G&Y report'!$F$3="","",IF('long_Summary_G&Y'!$B$3=0,'long_Summary_G&Y'!B4,'long_Summary_G&Y'!B3)) ->  | AE4: =IF('G&Y report'!$F$3="","",IF('long_Summary_G&Y'!$B$3=0,'long_Summary_G&Y'!C4,'long_Summary_G&Y'!C3)) ->  | AF4: =IF('G&Y report'!$F$3="","",IF('long_Summary_G&Y'!$B$3=0,'long_Summary_G&Y'!D4,'long_Summary_G&Y'!D3)) ->  | AG4: =IF('G&Y report'!$F$3="","",IF('long_Summary_G&Y'!$B$3=0,'long_Summary_G&Y'!E4,'long_Summary_G&Y'!E3)) ->  | AH4: =IF('G&Y report'!$F$3="","",IF('long_Summary_G&Y'!$B$3=0,'long_Summary_G&Y'!F4,'long_Summary_G&Y'!F3)) ->  | AI4: =IF('G&Y report'!$F$3="","",IF('long_Summary_G&Y'!$B$3=0,'long_Summary_G&Y'!G4,'long_Summary_G&Y'!G3)) ->  | AJ4: =IF('G&Y report'!$F$3="","",IF('long_Summary_G&Y'!$B$3=0,'long_Summary_G&Y'!H4,'long_Summary_G&Y'!H3)) ->  | AK4: =IF('G&Y report'!$F$3="","",IF('long_Summary_G&Y'!$B$3=0,'long_Summary_G&Y'!I4,'long_Summary_G&Y'!I3)) ->  | AL4: =IF('G&Y report'!$F$3="","",IF('long_Summary_G&Y'!$B$3=0,'long_Summary_G&Y'!J4,'long_Summary_G&Y'!J3)) ->  | AM4: =IF('G&Y report'!$F$3="","",IF('long_Summary_G&Y'!$B$3=0,'long_Summary_G&Y'!K4,'long_Summary_G&Y'!K3)) ->  | AN4: =IF('G&Y report'!$F$3="","",IF('long_Summary_G&Y'!$B$3=0,'long_Summary_G&Y'!L4,'long_Summary_G&Y'!L3)) ->  | AO4: =IF('G&Y report'!$F$3="","",IF('long_Summary_G&Y'!$B$3=0,'long_Summary_G&Y'!M4,'long_Summary_G&Y'!M3)) ->  | AP4: =IF('G&Y report'!$F$3="","",IF('long_Summary_G&Y'!$B$3=0,'long_Summary_G&Y'!N4,'long_Summary_G&Y'!N3)) ->  | AQ4: =IF('G&Y report'!$F$3="","",IF('long_Summary_G&Y'!$B$3=0,'long_Summary_G&Y'!O4,'long_Summary_G&Y'!O3)) ->  | BK4: =BL1 -> 1 | BL4: =VLOOKUP(BK4,$B$4:$C$101,2,FALSE) -> 577.22 | BM4: =VLOOKUP(BK4,$P$4:$Q$101,2,FALSE) -> 589 | BN4: =VLOOKUP(BK4,$AD$4:$AE$101,2,FALSE) ->  | BO4: =VLOOKUP(BK4,$B$4:$D$101,3,FALSE) -> 3.276759399 | BP4: =VLOOKUP(BK4,$P$4:$R$101,3,FALSE) -> 0.8114831144 | BQ4: =VLOOKUP(BK4,$AD$4:$AF$101,3,FALSE) ->  | BR4: =VLOOKUP(BK4,$B$4:$E$101,4,FALSE) -> 0 | BS4: =VLOOKUP(BK4,$P$4:$S$101,4,FALSE) -> 0 | BT4: =VLOOKUP(BK4,$AD$4:$AG$101,4,FALSE) ->  | BU4: =VLOOKUP(BK4,$B$4:$L$101,11,FALSE) -> 0 | BV4: =VLOOKUP(BK4,$P$4:$Z$101,11,FALSE) -> 0 | BW4: =VLOOKUP(BK4,$AD$4:$AN$101,11,FALSE) -> 
B5: =IF('G&Y report'!$D$3="","",'lob_Summary_G&Y'!B4) -> 2 | C5: =IF('G&Y report'!$D$3="","",'lob_Summary_G&Y'!C4) -> 574.3339 | D5: =IF('G&Y report'!$D$3="","",'lob_Summary_G&Y'!D4) -> 6.906586182 | E5: =IF('G&Y report'!$D$3="","",'lob_Summary_G&Y'!E4) -> 0.02026188651 | F5: =IF('G&Y report'!$D$3="","",'lob_Summary_G&Y'!F4) -> 0.0804255462 | G5: =IF('G&Y report'!$D$3="","",'lob_Summary_G&Y'!G4) -> 0.2496444134 | H5: =IF('G&Y report'!$D$3="","",'lob_Summary_G&Y'!H4) -> 8.237926554e-14 | I5: =IF('G&Y report'!$D$3="","",'lob_Summary_G&Y'!I4) -> 0 | J5: =IF('G&Y report'!$D$3="","",'lob_Summary_G&Y'!J4) -> 0 | K5: =IF('G&Y report'!$D$3="","",'lob_Summary_G&Y'!K4) -> 0 | L5: =IF('G&Y report'!$D$3="","",'lob_Summary_G&Y'!L4) -> 5.877600645e-14 | M5: =IF('G&Y report'!$D$3="","",'lob_Summary_G&Y'!M4) -> 0 | N5: =IF('G&Y report'!$D$3="","",'lob_Summary_G&Y'!N4) -> 0 | O5: =IF('G&Y report'!$D$3="","",'lob_Summary_G&Y'!O4) -> 0 | P5: =IF('G&Y report'!$E$3="","",IF('slash_Summary_G&Y'!$B$3="","",IF('slash_Summary_G&Y'!$B$3=0,'slash_Summary_G&Y'!B5,'slash_Summary_G&Y'!B4))) -> 2 | Q5: =IF('G&Y report'!$E$3="","",IF('slash_Summary_G&Y'!$B$3=0,'slash_Summary_G&Y'!C5,'slash_Summary_G&Y'!C4)) -> 585.2920454 | R5: =IF('G&Y report'!$E$3="","",IF('slash_Summary_G&Y'!$B$3=0,'slash_Summary_G&Y'!D5,'slash_Summary_G&Y'!D4)) -> 2.655174004 | S5: =IF('G&Y report'!$E$3="","",IF('slash_Summary_G&Y'!$B$3=0,'slash_Summary_G&Y'!E5,'slash_Summary_G&Y'!E4)) -> 0.4199230061 | T5: =IF('G&Y report'!$E$3="","",IF('slash_Summary_G&Y'!$B$3=0,'slash_Summary_G&Y'!F5,'slash_Summary_G&Y'!F4)) -> 0.3626893715 | U5: =IF('G&Y report'!$E$3="","",IF('slash_Summary_G&Y'!$B$3=0,'slash_Summary_G&Y'!G5,'slash_Summary_G&Y'!G4)) -> 2.853816352 | V5: =IF('G&Y report'!$E$3="","",IF('slash_Summary_G&Y'!$B$3=0,'slash_Summary_G&Y'!H5,'slash_Summary_G&Y'!H4)) -> 0.6940790176 | W5: =IF('G&Y report'!$E$3="","",IF('slash_Summary_G&Y'!$B$3=0,'slash_Summary_G&Y'!I5,'slash_Summary_G&Y'!I4)) -> 0 | X5: =IF('G&Y report'!$E$3="","",IF('slash_Summary_G&Y'!$B$3=0,'slash_Summary_G&Y'!J5,'slash_Summary_G&Y'!J4)) -> 0 | Y5: =IF('G&Y report'!$E$3="","",IF('slash_Summary_G&Y'!$B$3=0,'slash_Summary_G&Y'!K5,'slash_Summary_G&Y'!K4)) -> 0 | Z5: =IF('G&Y report'!$E$3="","",IF('slash_Summary_G&Y'!$B$3=0,'slash_Summary_G&Y'!L5,'slash_Summary_G&Y'!L4)) -> 0.3213375095 | AA5: =IF('G&Y report'!$E$3="","",IF('slash_Summary_G&Y'!$B$3=0,'slash_Summary_G&Y'!M5,'slash_Summary_G&Y'!M4)) -> 0 | AB5: =IF('G&Y report'!$E$3="","",IF('slash_Summary_G&Y'!$B$3=0,'slash_Summary_G&Y'!N5,'slash_Summary_G&Y'!N4)) -> 0 | AC5: =IF('G&Y report'!$E$3="","",IF('slash_Summary_G&Y'!$B$3=0,'slash_Summary_G&Y'!O5,'slash_Summary_G&Y'!O4)) -> 0 | AD5: =IF('G&Y report'!$F$3="","",IF('long_Summary_G&Y'!$B$3=0,'long_Summary_G&Y'!B5,'long_Summary_G&Y'!B4)) ->  | AE5: =IF('G&Y report'!$F$3="","",IF('long_Summary_G&Y'!$B$3=0,'long_Summary_G&Y'!C5,'long_Summary_G&Y'!C4)) ->  | AF5: =IF('G&Y report'!$F$3="","",IF('long_Summary_G&Y'!$B$3=0,'long_Summary_G&Y'!D5,'long_Summary_G&Y'!D4)) ->  | AG5: =IF('G&Y report'!$F$3="","",IF('long_Summary_G&Y'!$B$3=0,'long_Summary_G&Y'!E5,'long_Summary_G&Y'!E4)) ->  | AH5: =IF('G&Y report'!$F$3="","",IF('long_Summary_G&Y'!$B$3=0,'long_Summary_G&Y'!F5,'long_Summary_G&Y'!F4)) ->  | AI5: =IF('G&Y report'!$F$3="","",IF('long_Summary_G&Y'!$B$3=0,'long_Summary_G&Y'!G5,'long_Summary_G&Y'!G4)) ->  | AJ5: =IF('G&Y report'!$F$3="","",IF('long_Summary_G&Y'!$B$3=0,'long_Summary_G&Y'!H5,'long_Summary_G&Y'!H4)) ->  | AK5: =IF('G&Y report'!$F$3="","",IF('long_Summary_G&Y'!$B$3=0,'long_Summary_G&Y'!I5,'long_Summary_G&Y'!I4)) ->  | AL5: =IF('G&Y report'!$F$3="","",IF('long_Summary_G&Y'!$B$3=0,'long_Summary_G&Y'!J5,'long_Summary_G&Y'!J4)) ->  | AM5: =IF('G&Y report'!$F$3="","",IF('long_Summary_G&Y'!$B$3=0,'long_Summary_G&Y'!K5,'long_Summary_G&Y'!K4)) ->  | AN5: =IF('G&Y report'!$F$3="","",IF('long_Summary_G&Y'!$B$3=0,'long_Summary_G&Y'!L5,'long_Summary_G&Y'!L4)) ->  | AO5: =IF('G&Y report'!$F$3="","",IF('long_Summary_G&Y'!$B$3=0,'long_Summary_G&Y'!M5,'long_Summary_G&Y'!M4)) ->  | AP5: =IF('G&Y report'!$F$3="","",IF('long_Summary_G&Y'!$B$3=0,'long_Summary_G&Y'!N5,'long_Summary_G&Y'!N4)) ->  | AQ5: =IF('G&Y report'!$F$3="","",IF('long_Summary_G&Y'!$B$3=0,'long_Summary_G&Y'!O5,'long_Summary_G&Y'!O4)) ->  | BK5: =BK4+1 -> 2 | BL5: 574.3339 | BM5: =VLOOKUP(BK5,$P$4:$Q$101,2,FALSE) -> 585.2920454 | BN5: =VLOOKUP(BK5,$AD$4:$AE$101,2,FALSE) ->  | BO5: =VLOOKUP(BK5,$B$4:$D$101,3,FALSE) -> 6.906586182 | BP5: =VLOOKUP(BK5,$P$4:$R$101,3,FALSE) -> 2.655174004 | BQ5: =VLOOKUP(BK5,$AD$4:$AF$101,3,FALSE) ->  | BR5: =VLOOKUP(BK5,$B$4:$E$101,4,FALSE) -> 0.02026188651 | BS5: =VLOOKUP(BK5,$P$4:$S$101,4,FALSE) -> 0.4199230061 | BT5: =VLOOKUP(BK5,$AD$4:$AG$101,4,FALSE) ->  | BU5: =VLOOKUP(BK5,$B$4:$L$101,11,FALSE) -> 5.877600645e-14 | BV5: =VLOOKUP(BK5,$P$4:$Z$101,11,FALSE) -> 0.3213375095 | BW5: =VLOOKUP(BK5,$AD$4:$AN$101,11,FALSE) -> 
B6: =IF('G&Y report'!$D$3="","",'lob_Summary_G&Y'!B5) -> 3 | C6: =IF('G&Y report'!$D$3="","",'lob_Summary_G&Y'!C5) -> 571.8560865 | D6: =IF('G&Y report'!$D$3="","",'lob_Summary_G&Y'!D5) -> 10.57916767 | E6: =IF('G&Y report'!$D$3="","",'lob_Summary_G&Y'!E5) -> 0.9757084997 | F6: =IF('G&Y report'!$D$3="","",'lob_Summary_G&Y'!F5) -> 0.559310504 | G6: =IF('G&Y report'!$D$3="","",'lob_Summary_G&Y'!G5) -> 5.588172112 | H6: =IF('G&Y report'!$D$3="","",'lob_Summary_G&Y'!H5) -> 0.0002372055004 | I6: =IF('G&Y report'!$D$3="","",'lob_Summary_G&Y'!I5) -> 0 | J6: =IF('G&Y report'!$D$3="","",'lob_Summary_G&Y'!J5) -> 0 | K6: =IF('G&Y report'!$D$3="","",'lob_Summary_G&Y'!K5) -> 0 | L6: =IF('G&Y report'!$D$3="","",'lob_Summary_G&Y'!L5) -> 0.0001610812771 | M6: =IF('G&Y report'!$D$3="","",'lob_Summary_G&Y'!M5) -> 0 | N6: =IF('G&Y report'!$D$3="","",'lob_Summary_G&Y'!N5) -> 0 | O6: =IF('G&Y report'!$D$3="","",'lob_Summary_G&Y'!O5) -> 0 | P6: =IF('G&Y report'!$E$3="","",IF('slash_Summary_G&Y'!$B$3="","",IF('slash_Summary_G&Y'!$B$3=0,'slash_Summary_G&Y'!B6,'slash_Summary_G&Y'!B5))) -> 3 | Q6: =IF('G&Y report'!$E$3="","",IF('slash_Summary_G&Y'!$B$3=0,'slash_Summary_G&Y'!C6,'slash_Summary_G&Y'!C5)) -> 580.8878324 | R6: =IF('G&Y report'!$E$3="","",IF('slash_Summary_G&Y'!$B$3=0,'slash_Summary_G&Y'!D6,'slash_Summary_G&Y'!D5)) -> 5.174505329 | S6: =IF('G&Y report'!$E$3="","",IF('slash_Summary_G&Y'!$B$3=0,'slash_Summary_G&Y'!E6,'slash_Summary_G&Y'!E5)) -> 2.573643639 | T6: =IF('G&Y report'!$E$3="","",IF('slash_Summary_G&Y'!$B$3=0,'slash_Summary_G&Y'!F6,'slash_Summary_G&Y'!F5)) -> 0.9012896245 | U6: =IF('G&Y report'!$E$3="","",IF('slash_Summary_G&Y'!$B$3=0,'slash_Summary_G&Y'!G6,'slash_Summary_G&Y'!G5)) -> 12.20814267 | V6: =IF('G&Y report'!$E$3="","",IF('slash_Summary_G&Y'!$B$3=0,'slash_Summary_G&Y'!H6,'slash_Summary_G&Y'!H5)) -> 7.928511378 | W6: =IF('G&Y report'!$E$3="","",IF('slash_Summary_G&Y'!$B$3=0,'slash_Summary_G&Y'!I6,'slash_Summary_G&Y'!I5)) -> 0 | X6: =IF('G&Y report'!$E$3="","",IF('slash_Summary_G&Y'!$B$3=0,'slash_Summary_G&Y'!J6,'slash_Summary_G&Y'!J5)) -> 0 | Y6: =IF('G&Y report'!$E$3="","",IF('slash_Summary_G&Y'!$B$3=0,'slash_Summary_G&Y'!K6,'slash_Summary_G&Y'!K5)) -> 0 | Z6: =IF('G&Y report'!$E$3="","",IF('slash_Summary_G&Y'!$B$3=0,'slash_Summary_G&Y'!L6,'slash_Summary_G&Y'!L5)) -> 4.121409391 | AA6: =IF('G&Y report'!$E$3="","",IF('slash_Summary_G&Y'!$B$3=0,'slash_Summary_G&Y'!M6,'slash_Summary_G&Y'!M5)) -> 0 | AB6: =IF('G&Y report'!$E$3="","",IF('slash_Summary_G&Y'!$B$3=0,'slash_Summary_G&Y'!N6,'slash_Summary_G&Y'!N5)) -> 0 | AC6: =IF('G&Y report'!$E$3="","",IF('slash_Summary_G&Y'!$B$3=0,'slash_Summary_G&Y'!O6,'slash_Summary_G&Y'!O5)) -> 0 | AD6: =IF('G&Y report'!$F$3="","",IF('long_Summary_G&Y'!$B$3=0,'long_Summary_G&Y'!B6,'long_Summary_G&Y'!B5)) ->  | AE6: =IF('G&Y report'!$F$3="","",IF('long_Summary_G&Y'!$B$3=0,'long_Summary_G&Y'!C6,'long_Summary_G&Y'!C5)) ->  | AF6: =IF('G&Y report'!$F$3="","",IF('long_Summary_G&Y'!$B$3=0,'long_Summary_G&Y'!D6,'long_Summary_G&Y'!D5)) ->  | AG6: =IF('G&Y report'!$F$3="","",IF('long_Summary_G&Y'!$B$3=0,'long_Summary_G&Y'!E6,'long_Summary_G&Y'!E5)) ->  | AH6: =IF('G&Y report'!$F$3="","",IF('long_Summary_G&Y'!$B$3=0,'long_Summary_G&Y'!F6,'long_Summary_G&Y'!F5)) ->  | AI6: =IF('G&Y report'!$F$3="","",IF('long_Summary_G&Y'!$B$3=0,'long_Summary_G&Y'!G6,'long_Summary_G&Y'!G5)) ->  | AJ6: =IF('G&Y report'!$F$3="","",IF('long_Summary_G&Y'!$B$3=0,'long_Summary_G&Y'!H6,'long_Summary_G&Y'!H5)) ->  | AK6: =IF('G&Y report'!$F$3="","",IF('long_Summary_G&Y'!$B$3=0,'long_Summary_G&Y'!I6,'long_Summary_G&Y'!I5)) ->  | AL6: =IF('G&Y report'!$F$3="","",IF('long_Summary_G&Y'!$B$3=0,'long_Summary_G&Y'!J6,'long_Summary_G&Y'!J5)) ->  | AM6: =IF('G&Y report'!$F$3="","",IF('long_Summary_G&Y'!$B$3=0,'long_Summary_G&Y'!K6,'long_Summary_G&Y'!K5)) ->  | AN6: =IF('G&Y report'!$F$3="","",IF('long_Summary_G&Y'!$B$3=0,'long_Summary_G&Y'!L6,'long_Summary_G&Y'!L5)) ->  | AO6: =IF('G&Y report'!$F$3="","",IF('long_Summary_G&Y'!$B$3=0,'long_Summary_G&Y'!M6,'long_Summary_G&Y'!M5)) ->  | AP6: =IF('G&Y report'!$F$3="","",IF('long_Summary_G&Y'!$B$3=0,'long_Summary_G&Y'!N6,'long_Summary_G&Y'!N5)) ->  | AQ6: =IF('G&Y report'!$F$3="","",IF('long_Summary_G&Y'!$B$3=0,'long_Summary_G&Y'!O6,'long_Summary_G&Y'!O5)) ->  | BK6: =BK5+1 -> 3 | BL6: 571.8560865 | BM6: 580.8878324 | BO6: 10.57916767 | BP6: 5.174505329 | BR6: 0.9757084997 | BS6: 2.573643639 | BU6: 0.0001610812771 | BV6: 4.121409391
B7: =IF('G&Y report'!$D$3="","",'lob_Summary_G&Y'!B6) -> 4 | C7: =IF('G&Y report'!$D$3="","",'lob_Summary_G&Y'!C6) -> 568.4534931 | D7: =IF('G&Y report'!$D$3="","",'lob_Summary_G&Y'!D6) -> 14.21932708 | E7: =IF('G&Y report'!$D$3="","",'lob_Summary_G&Y'!E6) -> 5.546381182 | F7: =IF('G&Y report'!$D$3="","",'lob_Summary_G&Y'!F6) -> 1.337499697 | G7: =IF('G&Y report'!$D$3="","",'lob_Summary_G&Y'!G6) -> 22.5110792 | H7: =IF('G&Y report'!$D$3="","",'lob_Summary_G&Y'!H6) -> 0.3335315493 | I7: =IF('G&Y report'!$D$3="","",'lob_Summary_G&Y'!I6) -> 0 | J7: =IF('G&Y report'!$D$3="","",'lob_Summary_G&Y'!J6) -> 0 | K7: =IF('G&Y report'!$D$3="","",'lob_Summary_G&Y'!K6) -> 0 | L7: =IF('G&Y report'!$D$3="","",'lob_Summary_G&Y'!L6) -> 0.2298543167 | M7: =IF('G&Y report'!$D$3="","",'lob_Summary_G&Y'!M6) -> 0 | N7: =IF('G&Y report'!$D$3="","",'lob_Summary_G&Y'!N6) -> 0 | O7: =IF('G&Y report'!$D$3="","",'lob_Summary_G&Y'!O6) -> 0 | P7: =IF('G&Y report'!$E$3="","",IF('slash_Summary_G&Y'!$B$3="","",IF('slash_Summary_G&Y'!$B$3=0,'slash_Summary_G&Y'!B7,'slash_Summary_G&Y'!B6))) -> 4 | Q7: =IF('G&Y report'!$E$3="","",IF('slash_Summary_G&Y'!$B$3=0,'slash_Summary_G&Y'!C7,'slash_Summary_G&Y'!C6)) -> 575.9773482 | R7: =IF('G&Y report'!$E$3="","",IF('slash_Summary_G&Y'!$B$3=0,'slash_Summary_G&Y'!D7,'slash_Summary_G&Y'!D6)) -> 8.160502414 | S7: =IF('G&Y report'!$E$3="","",IF('slash_Summary_G&Y'!$B$3=0,'slash_Summary_G&Y'!E7,'slash_Summary_G&Y'!E6)) -> 6.763781896 | T7: =IF('G&Y report'!$E$3="","",IF('slash_Summary_G&Y'!$B$3=0,'slash_Summary_G&Y'!F7,'slash_Summary_G&Y'!F6)) -> 1.46733204 | U7: =IF('G&Y report'!$E$3="","",IF('slash_Summary_G&Y'!$B$3=0,'slash_Summary_G&Y'!G7,'slash_Summary_G&Y'!G6)) -> 26.46570622 | V7: =IF('G&Y report'!$E$3="","",IF('slash_Summary_G&Y'!$B$3=0,'slash_Summary_G&Y'!H7,'slash_Summary_G&Y'!H6)) -> 31.57795523 | W7: =IF('G&Y report'!$E$3="","",IF('slash_Summary_G&Y'!$B$3=0,'slash_Summary_G&Y'!I7,'slash_Summary_G&Y'!I6)) -> 0 | X7: =IF('G&Y report'!$E$3="","",IF('slash_Summary_G&Y'!$B$3=0,'slash_Summary_G&Y'!J7,'slash_Summary_G&Y'!J6)) -> 0 | Y7: =IF('G&Y report'!$E$3="","",IF('slash_Summary_G&Y'!$B$3=0,'slash_Summary_G&Y'!K7,'slash_Summary_G&Y'!K6)) -> 3.439675207e-155 | Z7: =IF('G&Y report'!$E$3="","",IF('slash_Summary_G&Y'!$B$3=0,'slash_Summary_G&Y'!L7,'slash_Summary_G&Y'!L6)) -> 17.81425264 | AA7: =IF('G&Y report'!$E$3="","",IF('slash_Summary_G&Y'!$B$3=0,'slash_Summary_G&Y'!M7,'slash_Summary_G&Y'!M6)) -> 0 | AB7: =IF('G&Y report'!$E$3="","",IF('slash_Summary_G&Y'!$B$3=0,'slash_Summary_G&Y'!N7,'slash_Summary_G&Y'!N6)) -> 0 | AC7: =IF('G&Y report'!$E$3="","",IF('slash_Summary_G&Y'!$B$3=0,'slash_Summary_G&Y'!O7,'slash_Summary_G&Y'!O6)) -> 1.940443664e-155 | AD7: =IF('G&Y report'!$F$3="","",IF('long_Summary_G&Y'!$B$3=0,'long_Summary_G&Y'!B7,'long_Summary_G&Y'!B6)) ->  | AE7: =IF('G&Y report'!$F$3="","",IF('long_Summary_G&Y'!$B$3=0,'long_Summary_G&Y'!C7,'long_Summary_G&Y'!C6)) ->  | AF7: =IF('G&Y report'!$F$3="","",IF('long_Summary_G&Y'!$B$3=0,'long_Summary_G&Y'!D7,'long_Summary_G&Y'!D6)) ->  | AG7: =IF('G&Y report'!$F$3="","",IF('long_Summary_G&Y'!$B$3=0,'long_Summary_G&Y'!E7,'long_Summary_G&Y'!E6)) ->  | AH7: =IF('G&Y report'!$F$3="","",IF('long_Summary_G&Y'!$B$3=0,'long_Summary_G&Y'!F7,'long_Summary_G&Y'!F6)) ->  | AI7: =IF('G&Y report'!$F$3="","",IF('long_Summary_G&Y'!$B$3=0,'long_Summary_G&Y'!G7,'long_Summary_G&Y'!G6)) ->  | AJ7: =IF('G&Y report'!$F$3="","",IF('long_Summary_G&Y'!$B$3=0,'long_Summary_G&Y'!H7,'long_Summary_G&Y'!H6)) ->  | AK7: =IF('G&Y report'!$F$3="","",IF('long_Summary_G&Y'!$B$3=0,'long_Summary_G&Y'!I7,'long_Summary_G&Y'!I6)) ->  | AL7: =IF('G&Y report'!$F$3="","",IF('long_Summary_G&Y'!$B$3=0,'long_Summary_G&Y'!J7,'long_Summary_G&Y'!J6)) ->  | AM7: =IF('G&Y report'!$F$3="","",IF('long_Summary_G&Y'!$B$3=0,'long_Summary_G&Y'!K7,'long_Summary_G&Y'!K6)) ->  | AN7: =IF('G&Y report'!$F$3="","",IF('long_Summary_G&Y'!$B$3=0,'long_Summary_G&Y'!L7,'long_Summary_G&Y'!L6)) ->  | AO7: =IF('G&Y report'!$F$3="","",IF('long_Summary_G&Y'!$B$3=0,'long_Summary_G&Y'!M7,'long_Summary_G&Y'!M6)) ->  | AP7: =IF('G&Y report'!$F$3="","",IF('long_Summary_G&Y'!$B$3=0,'long_Summary_G&Y'!N7,'long_Summary_G&Y'!N6)) ->  | AQ7: =IF('G&Y report'!$F$3="","",IF('long_Summary_G&Y'!$B$3=0,'long_Summary_G&Y'!O7,'long_Summary_G&Y'!O6)) ->  | BK7: 4 | BL7: 568.4534931 | BM7: 575.9773482 | BO7: 14.21932708 | BP7: 8.160502414 | BR7: 5.546381182 | BS7: 6.763781896 | BU7: 0.2298543167 | BV7: 17.81425264
B8: =IF('G&Y report'!$D$3="","",'lob_Summary_G&Y'!B7) -> 5 | C8: =IF('G&Y report'!$D$3="","",'lob_Summary_G&Y'!C7) -> 564.1681636 | D8: =IF('G&Y report'!$D$3="","",'lob_Summary_G&Y'!D7) -> 17.79250018 | E8: =IF('G&Y report'!$D$3="","",'lob_Summary_G&Y'!E7) -> 14.50232932 | F8: =IF('G&Y report'!$D$3="","",'lob_Summary_G&Y'!F7) -> 2.170955389 | G8: =IF('G&Y report'!$D$3="","",'lob_Summary_G&Y'!G7) -> 48.61085595 | H8: =IF('G&Y report'!$D$3="","",'lob_Summary_G&Y'!H7) -> 9.057876279 | I8: =IF('G&Y report'!$D$3="","",'lob_Summary_G&Y'!I7) -> 0 | J8: =IF('G&Y report'!$D$3="","",'lob_Summary_G&Y'!J7) -> 0 | K8: =IF('G&Y report'!$D$3="","",'lob_Summary_G&Y'!K7) -> 5.255795998e-20 | L8: =IF('G&Y report'!$D$3="","",'lob_Summary_G&Y'!L7) -> 6.38108026 | M8: =IF('G&Y report'!$D$3="","",'lob_Summary_G&Y'!M7) -> 0 | N8: =IF('G&Y report'!$D$3="","",'lob_Summary_G&Y'!N7) -> 0 | O8: =IF('G&Y report'!$D$3="","",'lob_Summary_G&Y'!O7) -> 2.511714372e-22 | P8: =IF('G&Y report'!$E$3="","",IF('slash_Summary_G&Y'!$B$3="","",IF('slash_Summary_G&Y'!$B$3=0,'slash_Summary_G&Y'!B8,'slash_Summary_G&Y'!B7))) -> 5 | Q8: =IF('G&Y report'!$E$3="","",IF('slash_Summary_G&Y'!$B$3=0,'slash_Summary_G&Y'!C8,'slash_Summary_G&Y'!C7)) -> 570.6677964 | R8: =IF('G&Y report'!$E$3="","",IF('slash_Summary_G&Y'!$B$3=0,'slash_Summary_G&Y'!D8,'slash_Summary_G&Y'!D7)) -> 11.46441335 | S8: =IF('G&Y report'!$E$3="","",IF('slash_Summary_G&Y'!$B$3=0,'slash_Summary_G&Y'!E8,'slash_Summary_G&Y'!E7)) -> 12.6059402 | T8: =IF('G&Y report'!$E$3="","",IF('slash_Summary_G&Y'!$B$3=0,'slash_Summary_G&Y'!F8,'slash_Summary_G&Y'!F7)) -> 2.012483109 | U8: =IF('G&Y report'!$E$3="","",IF('slash_Summary_G&Y'!$B$3=0,'slash_Summary_G&Y'!G8,'slash_Summary_G&Y'!G7)) -> 43.53851549 | V8: =IF('G&Y report'!$E$3="","",IF('slash_Summary_G&Y'!$B$3=0,'slash_Summary_G&Y'!H8,'slash_Summary_G&Y'!H7)) -> 79.81129556 | W8: =IF('G&Y report'!$E$3="","",IF('slash_Summary_G&Y'!$B$3=0,'slash_Summary_G&Y'!I8,'slash_Summary_G&Y'!I7)) -> 0 | X8: =IF('G&Y report'!$E$3="","",IF('slash_Summary_G&Y'!$B$3=0,'slash_Summary_G&Y'!J8,'slash_Summary_G&Y'!J7)) -> 0 | Y8: =IF('G&Y report'!$E$3="","",IF('slash_Summary_G&Y'!$B$3=0,'slash_Summary_G&Y'!K8,'slash_Summary_G&Y'!K7)) -> 1.501212523e-24 | Z8: =IF('G&Y report'!$E$3="","",IF('slash_Summary_G&Y'!$B$3=0,'slash_Summary_G&Y'!L8,'slash_Summary_G&Y'!L7)) -> 47.87838992 | AA8: =IF('G&Y report'!$E$3="","",IF('slash_Summary_G&Y'!$B$3=0,'slash_Summary_G&Y'!M8,'slash_Summary_G&Y'!M7)) -> 0 | AB8: =IF('G&Y report'!$E$3="","",IF('slash_Summary_G&Y'!$B$3=0,'slash_Summary_G&Y'!N8,'slash_Summary_G&Y'!N7)) -> 0 | AC8: =IF('G&Y report'!$E$3="","",IF('slash_Summary_G&Y'!$B$3=0,'slash_Summary_G&Y'!O8,'slash_Summary_G&Y'!O7)) -> 9.005697505e-25 | AD8: =IF('G&Y report'!$F$3="","",IF('long_Summary_G&Y'!$B$3=0,'long_Summary_G&Y'!B8,'long_Summary_G&Y'!B7)) ->  | AE8: =IF('G&Y report'!$F$3="","",IF('long_Summary_G&Y'!$B$3=0,'long_Summary_G&Y'!C8,'long_Summary_G&Y'!C7)) ->  | AF8: =IF('G&Y report'!$F$3="","",IF('long_Summary_G&Y'!$B$3=0,'long_Summary_G&Y'!D8,'long_Summary_G&Y'!D7)) ->  | AG8: =IF('G&Y report'!$F$3="","",IF('long_Summary_G&Y'!$B$3=0,'long_Summary_G&Y'!E8,'long_Summary_G&Y'!E7)) ->  | AH8: =IF('G&Y report'!$F$3="","",IF('long_Summary_G&Y'!$B$3=0,'long_Summary_G&Y'!F8,'long_Summary_G&Y'!F7)) ->  | AI8: =IF('G&Y report'!$F$3="","",IF('long_Summary_G&Y'!$B$3=0,'long_Summary_G&Y'!G8,'long_Summary_G&Y'!G7)) ->  | AJ8: =IF('G&Y report'!$F$3="","",IF('long_Summary_G&Y'!$B$3=0,'long_Summary_G&Y'!H8,'long_Summary_G&Y'!H7)) ->  | AK8: =IF('G&Y report'!$F$3="","",IF('long_Summary_G&Y'!$B$3=0,'long_Summary_G&Y'!I8,'long_Summary_G&Y'!I7)) ->  | AL8: =IF('G&Y report'!$F$3="","",IF('long_Summary_G&Y'!$B$3=0,'long_Summary_G&Y'!J8,'long_Summary_G&Y'!J7)) ->  | AM8: =IF('G&Y report'!$F$3="","",IF('long_Summary_G&Y'!$B$3=0,'long_Summary_G&Y'!K8,'long_Summary_G&Y'!K7)) ->  | AN8: =IF('G&Y report'!$F$3="","",IF('long_Summary_G&Y'!$B$3=0,'long_Summary_G&Y'!L8,'long_Summary_G&Y'!L7)) ->  | AO8: =IF('G&Y report'!$F$3="","",IF('long_Summary_G&Y'!$B$3=0,'long_Summary_G&Y'!M8,'long_Summary_G&Y'!M7)) ->  | AP8: =IF('G&Y report'!$F$3="","",IF('long_Summary_G&Y'!$B$3=0,'long_Summary_G&Y'!N8,'long_Summary_G&Y'!N7)) ->  | AQ8: =IF('G&Y report'!$F$3="","",IF('long_Summary_G&Y'!$B$3=0,'long_Summary_G&Y'!O8,'long_Summary_G&Y'!O7)) ->  | BK8: 5 | BL8: 564.1681636 | BM8: 570.6677964 | BO8: 17.79250018 | BP8: 11.46441335 | BR8: 14.50232932 | BS8: 12.6059402 | BU8: 6.38108026 | BV8: 47.87838992
B9: =IF('G&Y report'!$D$3="","",'lob_Summary_G&Y'!B8) -> 6 | C9: =IF('G&Y report'!$D$3="","",'lob_Summary_G&Y'!C8) -> 559.0483711 | D9: =IF('G&Y report'!$D$3="","",'lob_Summary_G&Y'!D8) -> 21.28050791 | E9: =IF('G&Y report'!$D$3="","",'lob_Summary_G&Y'!E8) -> 26.43264925 | F9: =IF('G&Y report'!$D$3="","",'lob_Summary_G&Y'!F8) -> 2.94429932 | G9: =IF('G&Y report'!$D$3="","",'lob_Summary_G&Y'!G8) -> 78.55348012 | H9: =IF('G&Y report'!$D$3="","",'lob_Summary_G&Y'!H8) -> 54.97285494 | I9: =IF('G&Y report'!$D$3="","",'lob_Summary_G&Y'!I8) -> 0 | J9: =IF('G&Y report'!$D$3="","",'lob_Summary_G&Y'!J8) -> 7.705963858e-64 | K9: =IF('G&Y report'!$D$3="","",'lob_Summary_G&Y'!K8) -> 0.02721148679 | L9: =IF('G&Y report'!$D$3="","",'lob_Summary_G&Y'!L8) -> 39.53732372 | M9: =IF('G&Y report'!$D$3="","",'lob_Summary_G&Y'!M8) -> 0 | N9: =IF('G&Y report'!$D$3="","",'lob_Summary_G&Y'!N8) -> 2.115246932e-62 | O9: =IF('G&Y report'!$D$3="","",'lob_Summary_G&Y'!O8) -> 0.008228983556 | P9: =IF('G&Y report'!$E$3="","",IF('slash_Summary_G&Y'!$B$3="","",IF('slash_Summary_G&Y'!$B$3=0,'slash_Summary_G&Y'!B9,'slash_Summary_G&Y'!B8))) -> 6 | Q9: =IF('G&Y report'!$E$3="","",IF('slash_Summary_G&Y'!$B$3=0,'slash_Summary_G&Y'!C9,'slash_Summary_G&Y'!C8)) -> 565.0310894 | R9: =IF('G&Y report'!$E$3="","",IF('slash_Summary_G&Y'!$B$3=0,'slash_Summary_G&Y'!D9,'slash_Summary_G&Y'!D8)) -> 14.97455512 | S9: =IF('G&Y report'!$E$3="","",IF('slash_Summary_G&Y'!$B$3=0,'slash_Summary_G&Y'!E9,'slash_Summary_G&Y'!E8)) -> 19.65485722 | T9: =IF('G&Y report'!$E$3="","",IF('slash_Summary_G&Y'!$B$3=0,'slash_Summary_G&Y'!F9,'slash_Summary_G&Y'!F8)) -> 2.525428515 | U9: =IF('G&Y report'!$E$3="","",IF('slash_Summary_G&Y'!$B$3=0,'slash_Summary_G&Y'!G9,'slash_Summary_G&Y'!G8)) -> 62.06119696 | V9: =IF('G&Y report'!$E$3="","",IF('slash_Summary_G&Y'!$B$3=0,'slash_Summary_G&Y'!H9,'slash_Summary_G&Y'!H8)) -> 157.6050342 | W9: =IF('G&Y report'!$E$3="","",IF('slash_Summary_G&Y'!$B$3=0,'slash_Summary_G&Y'!I9,'slash_Summary_G&Y'!I8)) -> 0 | X9: =IF('G&Y report'!$E$3="","",IF('slash_Summary_G&Y'!$B$3=0,'slash_Summary_G&Y'!J9,'slash_Summary_G&Y'!J8)) -> 3.906513825e-104 | Y9: =IF('G&Y report'!$E$3="","",IF('slash_Summary_G&Y'!$B$3=0,'slash_Summary_G&Y'!K9,'slash_Summary_G&Y'!K8)) -> 1.370583998e-05 | Z9: =IF('G&Y report'!$E$3="","",IF('slash_Summary_G&Y'!$B$3=0,'slash_Summary_G&Y'!L9,'slash_Summary_G&Y'!L8)) -> 99.22801931 | AA9: =IF('G&Y report'!$E$3="","",IF('slash_Summary_G&Y'!$B$3=0,'slash_Summary_G&Y'!M9,'slash_Summary_G&Y'!M8)) -> 0 | AB9: =IF('G&Y report'!$E$3="","",IF('slash_Summary_G&Y'!$B$3=0,'slash_Summary_G&Y'!N9,'slash_Summary_G&Y'!N8)) -> 2.459538372e-104 | AC9: =IF('G&Y report'!$E$3="","",IF('slash_Summary_G&Y'!$B$3=0,'slash_Summary_G&Y'!O9,'slash_Summary_G&Y'!O8)) -> 8.629187263e-06 | AD9: =IF('G&Y report'!$F$3="","",IF('long_Summary_G&Y'!$B$3=0,'long_Summary_G&Y'!B9,'long_Summary_G&Y'!B8)) ->  | AE9: =IF('G&Y report'!$F$3="","",IF('long_Summary_G&Y'!$B$3=0,'long_Summary_G&Y'!C9,'long_Summary_G&Y'!C8)) ->  | AF9: =IF('G&Y report'!$F$3="","",IF('long_Summary_G&Y'!$B$3=0,'long_Summary_G&Y'!D9,'long_Summary_G&Y'!D8)) ->  | AG9: =IF('G&Y report'!$F$3="","",IF('long_Summary_G&Y'!$B$3=0,'long_Summary_G&Y'!E9,'long_Summary_G&Y'!E8)) ->  | AH9: =IF('G&Y report'!$F$3="","",IF('long_Summary_G&Y'!$B$3=0,'long_Summary_G&Y'!F9,'long_Summary_G&Y'!F8)) ->  | AI9: =IF('G&Y report'!$F$3="","",IF('long_Summary_G&Y'!$B$3=0,'long_Summary_G&Y'!G9,'long_Summary_G&Y'!G8)) ->  | AJ9: =IF('G&Y report'!$F$3="","",IF('long_Summary_G&Y'!$B$3=0,'long_Summary_G&Y'!H9,'long_Summary_G&Y'!H8)) ->  | AK9: =IF('G&Y report'!$F$3="","",IF('long_Summary_G&Y'!$B$3=0,'long_Summary_G&Y'!I9,'long_Summary_G&Y'!I8)) ->  | AL9: =IF('G&Y report'!$F$3="","",IF('long_Summary_G&Y'!$B$3=0,'long_Summary_G&Y'!J9,'long_Summary_G&Y'!J8)) ->  | AM9: =IF('G&Y report'!$F$3="","",IF('long_Summary_G&Y'!$B$3=0,'long_Summary_G&Y'!K9,'long_Summary_G&Y'!K8)) ->  | AN9: =IF('G&Y report'!$F$3="","",IF('long_Summary_G&Y'!$B$3=0,'long_Summary_G&Y'!L9,'long_Summary_G&Y'!L8)) ->  | AO9: =IF('G&Y report'!$F$3="","",IF('long_Summary_G&Y'!$B$3=0,'long_Summary_G&Y'!M9,'long_Summary_G&Y'!M8)) ->  | AP9: =IF('G&Y report'!$F$3="","",IF('long_Summary_G&Y'!$B$3=0,'long_Summary_G&Y'!N9,'long_Summary_G&Y'!N8)) ->  | AQ9: =IF('G&Y report'!$F$3="","",IF('long_Summary_G&Y'!$B$3=0,'long_Summary_G&Y'!O9,'long_Summary_G&Y'!O8)) ->  | BK9: 6 | BL9: 559.0483711 | BM9: 565.0310894 | BO9: 21.28050791 | BP9: 14.97455512 | BR9: 26.43264925 | BS9: 19.65485722 | BU9: 39.53732372 | BV9: 99.22801931
B10: =IF('G&Y report'!$D$3="","",'lob_Summary_G&Y'!B9) -> 7 | C10: =IF('G&Y report'!$D$3="","",'lob_Summary_G&Y'!C9) -> 553.1481664 | D10: =IF('G&Y report'!$D$3="","",'lob_Summary_G&Y'!D9) -> 24.67353493 | E10: =IF('G&Y report'!$D$3="","",'lob_Summary_G&Y'!E9) -> 39.66597972 | F10: =IF('G&Y report'!$D$3="","",'lob_Summary_G&Y'!F9) -> 3.625973782 | G10: =IF('G&Y report'!$D$3="","",'lob_Summary_G&Y'!G9) -> 108.5720544 | H10: =IF('G&Y report'!$D$3="","",'lob_Summary_G&Y'!H9) -> 166.6617896 | I10: =IF('G&Y report'!$D$3="","",'lob_Summary_G&Y'!I9) -> 1.13076701e-209 | J10: =IF('G&Y report'!$D$3="","",'lob_Summary_G&Y'!J9) -> 1.033474992e-17 | K10: =IF('G&Y report'!$D$3="","",'lob_Summary_G&Y'!K9) -> 18.03431317 | L10: =IF('G&Y report'!$D$3="","",'lob_Summary_G&Y'!L9) -> 122.0602079 | M10: =IF('G&Y report'!$D$3="","",'lob_Summary_G&Y'!M9) -> 1.454117475e-203 | N10: =IF('G&Y report'!$D$3="","",'lob_Summary_G&Y'!N9) -> 1.676303281e-17 | O10: =IF('G&Y report'!$D$3="","",'lob_Summary_G&Y'!O9) -> 10.14856061 | P10: =IF('G&Y report'!$E$3="","",IF('slash_Summary_G&Y'!$B$3="","",IF('slash_Summary_G&Y'!$B$3=0,'slash_Summary_G&Y'!B10,'slash_Summary_G&Y'!B9))) -> 7 | Q10: =IF('G&Y report'!$E$3="","",IF('slash_Summary_G&Y'!$B$3=0,'slash_Summary_G&Y'!C10,'slash_Summary_G&Y'!C9)) -> 559.1201694 | R10: =IF('G&Y report'!$E$3="","",IF('slash_Summary_G&Y'!$B$3=0,'slash_Summary_G&Y'!D10,'slash_Summary_G&Y'!D9)) -> 18.60518016 | S10: =IF('G&Y report'!$E$3="","",IF('slash_Summary_G&Y'!$B$3=0,'slash_Summary_G&Y'!E10,'slash_Summary_G&Y'!E9)) -> 27.53483346 | T10: =IF('G&Y report'!$E$3="","",IF('slash_Summary_G&Y'!$B$3=0,'slash_Summary_G&Y'!F10,'slash_Summary_G&Y'!F9)) -> 3.004864915 | U10: =IF('G&Y report'!$E$3="","",IF('slash_Summary_G&Y'!$B$3=0,'slash_Summary_G&Y'!G10,'slash_Summary_G&Y'!G9)) -> 81.1734881 | V10: =IF('G&Y report'!$E$3="","",IF('slash_Summary_G&Y'!$B$3=0,'slash_Summary_G&Y'!H10,'slash_Summary_G&Y'!H9)) -> 267.0620791 | W10: =IF('G&Y report'!$E$3="","",IF('slash_Summary_G&Y'!$B$3=0,'slash_Summary_G&Y'!I10,'slash_Summary_G&Y'!I9)) -> 0 | X10: =IF('G&Y report'!$E$3="","",IF('slash_Summary_G&Y'!$B$3=0,'slash_Summary_G&Y'!J10,'slash_Summary_G&Y'!J9)) -> 7.24559744e-38 | Y10: =IF('G&Y report'!$E$3="","",IF('slash_Summary_G&Y'!$B$3=0,'slash_Summary_G&Y'!K10,'slash_Summary_G&Y'!K9)) -> 0.6276926234 | Z10: =IF('G&Y report'!$E$3="","",IF('slash_Summary_G&Y'!$B$3=0,'slash_Summary_G&Y'!L10,'slash_Summary_G&Y'!L9)) -> 174.8725591 | AA10: =IF('G&Y report'!$E$3="","",IF('slash_Summary_G&Y'!$B$3=0,'slash_Summary_G&Y'!M10,'slash_Summary_G&Y'!M9)) -> 0 | AB10: =IF('G&Y report'!$E$3="","",IF('slash_Summary_G&Y'!$B$3=0,'slash_Summary_G&Y'!N10,'slash_Summary_G&Y'!N9)) -> 4.744425605e-38 | AC10: =IF('G&Y report'!$E$3="","",IF('slash_Summary_G&Y'!$B$3=0,'slash_Summary_G&Y'!O10,'slash_Summary_G&Y'!O9)) -> 0.4110138577 | AD10: =IF('G&Y report'!$F$3="","",IF('long_Summary_G&Y'!$B$3=0,'long_Summary_G&Y'!B10,'long_Summary_G&Y'!B9)) ->  | AE10: =IF('G&Y report'!$F$3="","",IF('long_Summary_G&Y'!$B$3=0,'long_Summary_G&Y'!C10,'long_Summary_G&Y'!C9)) ->  | AF10: =IF('G&Y report'!$F$3="","",IF('long_Summary_G&Y'!$B$3=0,'long_Summary_G&Y'!D10,'long_Summary_G&Y'!D9)) ->  | AG10: =IF('G&Y report'!$F$3="","",IF('long_Summary_G&Y'!$B$3=0,'long_Summary_G&Y'!E10,'long_Summary_G&Y'!E9)) ->  | AH10: =IF('G&Y report'!$F$3="","",IF('long_Summary_G&Y'!$B$3=0,'long_Summary_G&Y'!F10,'long_Summary_G&Y'!F9)) ->  | AI10: =IF('G&Y report'!$F$3="","",IF('long_Summary_G&Y'!$B$3=0,'long_Summary_G&Y'!G10,'long_Summary_G&Y'!G9)) ->  | AJ10: =IF('G&Y report'!$F$3="","",IF('long_Summary_G&Y'!$B$3=0,'long_Summary_G&Y'!H10,'long_Summary_G&Y'!H9)) ->  | AK10: =IF('G&Y report'!$F$3="","",IF('long_Summary_G&Y'!$B$3=0,'long_Summary_G&Y'!I10,'long_Summary_G&Y'!I9)) ->  | AL10: =IF('G&Y report'!$F$3="","",IF('long_Summary_G&Y'!$B$3=0,'long_Summary_G&Y'!J10,'long_Summary_G&Y'!J9)) ->  | AM10: =IF('G&Y report'!$F$3="","",IF('long_Summary_G&Y'!$B$3=0,'long_Summary_G&Y'!K10,'long_Summary_G&Y'!K9)) ->  | AN10: =IF('G&Y report'!$F$3="","",IF('long_Summary_G&Y'!$B$3=0,'long_Summary_G&Y'!L10,'long_Summary_G&Y'!L9)) ->  | AO10: =IF('G&Y report'!$F$3="","",IF('long_Summary_G&Y'!$B$3=0,'long_Summary_G&Y'!M10,'long_Summary_G&Y'!M9)) ->  | AP10: =IF('G&Y report'!$F$3="","",IF('long_Summary_G&Y'!$B$3=0,'long_Summary_G&Y'!N10,'long_Summary_G&Y'!N9)) ->  | AQ10: =IF('G&Y report'!$F$3="","",IF('long_Summary_G&Y'!$B$3=0,'long_Summary_G&Y'!O10,'long_Summary_G&Y'!O9)) ->  | BK10: 7 | BL10: 553.1481664 | BM10: 559.1201694 | BO10: 24.67353493 | BP10: 18.60518016 | BR10: 39.66597972 | BS10: 27.53483346 | BU10: 122.0602079 | BV10: 174.8725591
B11: =IF('G&Y report'!$D$3="","",'lob_Summary_G&Y'!B10) -> 8 | C11: =IF('G&Y report'!$D$3="","",'lob_Summary_G&Y'!C10) -> 546.5265332 | D11: =IF('G&Y report'!$D$3="","",'lob_Summary_G&Y'!D10) -> 27.96657893 | E11: =IF('G&Y report'!$D$3="","",'lob_Summary_G&Y'!E10) -> 53.02091112 | F11: =IF('G&Y report'!$D$3="","",'lob_Summary_G&Y'!F10) -> 4.217492053 | G11: =IF('G&Y report'!$D$3="","",'lob_Summary_G&Y'!G10) -> 136.7172642 | H11: =IF('G&Y report'!$D$3="","",'lob_Summary_G&Y'!H10) -> 349.9056295 | I11: =IF('G&Y report'!$D$3="","",'lob_Summary_G&Y'!I10) -> 2.560524773e-85 | J11: =IF('G&Y report'!$D$3="","",'lob_Summary_G&Y'!J10) -> 3.316585309e-06 | K11: =IF('G&Y report'!$D$3="","",'lob_Summary_G&Y'!K10) -> 139.9415634 | L11: =IF('G&Y report'!$D$3="","",'lob_Summary_G&Y'!L10) -> 260.3234249 | M11: =IF('G&Y report'!$D$3="","",'lob_Summary_G&Y'!M10) -> 3.219496476e-83 | N11: =IF('G&Y report'!$D$3="","",'lob_Summary_G&Y'!N10) -> 3.109573339e-06 | O11: =IF('G&Y report'!$D$3="","",'lob_Summary_G&Y'!O10) -> 93.1027233 | P11: =IF('G&Y report'!$E$3="","",IF('slash_Summary_G&Y'!$B$3="","",IF('slash_Summary_G&Y'!$B$3=0,'slash_Summary_G&Y'!B11,'slash_Summary_G&Y'!B10))) -> 8 | Q11: =IF('G&Y report'!$E$3="","",IF('slash_Summary_G&Y'!$B$3=0,'slash_Summary_G&Y'!C11,'slash_Summary_G&Y'!C10)) -> 552.9763623 | R11: =IF('G&Y report'!$E$3="","",IF('slash_Summary_G&Y'!$B$3=0,'slash_Summary_G&Y'!D11,'slash_Summary_G&Y'!D10)) -> 22.2898374 | S11: =IF('G&Y report'!$E$3="","",IF('slash_Summary_G&Y'!$B$3=0,'slash_Summary_G&Y'!E11,'slash_Summary_G&Y'!E10)) -> 35.94611127 | T11: =IF('G&Y report'!$E$3="","",IF('slash_Summary_G&Y'!$B$3=0,'slash_Summary_G&Y'!F11,'slash_Summary_G&Y'!F10)) -> 3.452303583 | U11: =IF('G&Y report'!$E$3="","",IF('slash_Summary_G&Y'!$B$3=0,'slash_Summary_G&Y'!G11,'slash_Summary_G&Y'!G10)) -> 100.3162937 | V11: =IF('G&Y report'!$E$3="","",IF('slash_Summary_G&Y'!$B$3=0,'slash_Summary_G&Y'!H11,'slash_Summary_G&Y'!H10)) -> 408.0351077 | W11: =IF('G&Y report'!$E$3="","",IF('slash_Summary_G&Y'!$B$3=0,'slash_Summary_G&Y'!I11,'slash_Summary_G&Y'!I10)) -> 1.439017905e-178 | X11: =IF('G&Y report'!$E$3="","",IF('slash_Summary_G&Y'!$B$3=0,'slash_Summary_G&Y'!J11,'slash_Summary_G&Y'!J10)) -> 3.070655575e-16 | Y11: =IF('G&Y report'!$E$3="","",IF('slash_Summary_G&Y'!$B$3=0,'slash_Summary_G&Y'!K11,'slash_Summary_G&Y'!K10)) -> 25.96720134 | Z11: =IF('G&Y report'!$E$3="","",IF('slash_Summary_G&Y'!$B$3=0,'slash_Summary_G&Y'!L11,'slash_Summary_G&Y'!L10)) -> 276.0436731 | AA11: =IF('G&Y report'!$E$3="","",IF('slash_Summary_G&Y'!$B$3=0,'slash_Summary_G&Y'!M11,'slash_Summary_G&Y'!M10)) -> 9.735235539e-179 | AB11: =IF('G&Y report'!$E$3="","",IF('slash_Summary_G&Y'!$B$3=0,'slash_Summary_G&Y'!N11,'slash_Summary_G&Y'!N10)) -> 2.077358119e-16 | AC11: =IF('G&Y report'!$E$3="","",IF('slash_Summary_G&Y'!$B$3=0,'slash_Summary_G&Y'!O11,'slash_Summary_G&Y'!O10)) -> 17.56731591 | AD11: =IF('G&Y report'!$F$3="","",IF('long_Summary_G&Y'!$B$3=0,'long_Summary_G&Y'!B11,'long_Summary_G&Y'!B10)) ->  | AE11: =IF('G&Y report'!$F$3="","",IF('long_Summary_G&Y'!$B$3=0,'long_Summary_G&Y'!C11,'long_Summary_G&Y'!C10)) ->  | AF11: =IF('G&Y report'!$F$3="","",IF('long_Summary_G&Y'!$B$3=0,'long_Summary_G&Y'!D11,'long_Summary_G&Y'!D10)) ->  | AG11: =IF('G&Y report'!$F$3="","",IF('long_Summary_G&Y'!$B$3=0,'long_Summary_G&Y'!E11,'long_Summary_G&Y'!E10)) ->  | AH11: =IF('G&Y report'!$F$3="","",IF('long_Summary_G&Y'!$B$3=0,'long_Summary_G&Y'!F11,'long_Summary_G&Y'!F10)) ->  | AI11: =IF('G&Y report'!$F$3="","",IF('long_Summary_G&Y'!$B$3=0,'long_Summary_G&Y'!G11,'long_Summary_G&Y'!G10)) ->  | AJ11: =IF('G&Y report'!$F$3="","",IF('long_Summary_G&Y'!$B$3=0,'long_Summary_G&Y'!H11,'long_Summary_G&Y'!H10)) ->  | AK11: =IF('G&Y report'!$F$3="","",IF('long_Summary_G&Y'!$B$3=0,'long_Summary_G&Y'!I11,'long_Summary_G&Y'!I10)) ->  | AL11: =IF('G&Y report'!$F$3="","",IF('long_Summary_G&Y'!$B$3=0,'long_Summary_G&Y'!J11,'long_Summary_G&Y'!J10)) ->  | AM11: =IF('G&Y report'!$F$3="","",IF('long_Summary_G&Y'!$B$3=0,'long_Summary_G&Y'!K11,'long_Summary_G&Y'!K10)) ->  | AN11: =IF('G&Y report'!$F$3="","",IF('long_Summary_G&Y'!$B$3=0,'long_Summary_G&Y'!L11,'long_Summary_G&Y'!L10)) ->  | AO11: =IF('G&Y report'!$F$3="","",IF('long_Summary_G&Y'!$B$3=0,'long_Summary_G&Y'!M11,'long_Summary_G&Y'!M10)) ->  | AP11: =IF('G&Y report'!$F$3="","",IF('long_Summary_G&Y'!$B$3=0,'long_Summary_G&Y'!N11,'long_Summary_G&Y'!N10)) ->  | AQ11: =IF('G&Y report'!$F$3="","",IF('long_Summary_G&Y'!$B$3=0,'long_Summary_G&Y'!O11,'long_Summary_G&Y'!O10)) ->  | BK11: 8 | BL11: 546.5265332 | BM11: 552.9763623 | BO11: 27.96657893 | BP11: 22.2898374 | BR11: 53.02091112 | BS11: 35.94611127 | BU11: 260.3234249 | BV11: 276.0436731
B12: =IF('G&Y report'!$D$3="","",'lob_Summary_G&Y'!B11) -> 9 | C12: =IF('G&Y report'!$D$3="","",'lob_Summary_G&Y'!C11) -> 539.2463586 | D12: =IF('G&Y report'!$D$3="","",'lob_Summary_G&Y'!D11) -> 31.15760532 | E12: =IF('G&Y report'!$D$3="","",'lob_Summary_G&Y'!E11) -> 65.81541513 | F12: =IF('G&Y report'!$D$3="","",'lob_Summary_G&Y'!F11) -> 4.730494123 | G12: =IF('G&Y report'!$D$3="","",'lob_Summary_G&Y'!G11) -> 162.1855528 | H12: =IF('G&Y report'!$D$3="","",'lob_Summary_G&Y'!H11) -> 592.9677609 | I12: =IF('G&Y report'!$D$3="","",'lob_Summary_G&Y'!I11) -> 1.126356937e-42 | J12: =IF('G&Y report'!$D$3="","",'lob_Summary_G&Y'!J11) -> 0.04050609039 | K12: =IF('G&Y report'!$D$3="","",'lob_Summary_G&Y'!K11) -> 370.6409971 | L12: =IF('G&Y report'!$D$3="","",'lob_Summary_G&Y'!L11) -> 447.2247069 | M12: =IF('G&Y report'!$D$3="","",'lob_Summary_G&Y'!M11) -> 8.400826552e-42 | N12: =IF('G&Y report'!$D$3="","",'lob_Summary_G&Y'!N11) -> 0.0329233489 | O12: =IF('G&Y report'!$D$3="","",'lob_Summary_G&Y'!O11) -> 263.6323551 | P12: =IF('G&Y report'!$E$3="","",IF('slash_Summary_G&Y'!$B$3="","",IF('slash_Summary_G&Y'!$B$3=0,'slash_Summary_G&Y'!B12,'slash_Summary_G&Y'!B11))) -> 9 | Q12: =IF('G&Y report'!$E$3="","",IF('slash_Summary_G&Y'!$B$3=0,'slash_Summary_G&Y'!C12,'slash_Summary_G&Y'!C11)) -> 546.633245 | R12: =IF('G&Y report'!$E$3="","",IF('slash_Summary_G&Y'!$B$3=0,'slash_Summary_G&Y'!D12,'slash_Summary_G&Y'!D11)) -> 25.97692936 | S12: =IF('G&Y report'!$E$3="","",IF('slash_Summary_G&Y'!$B$3=0,'slash_Summary_G&Y'!E12,'slash_Summary_G&Y'!E11)) -> 44.65200607 | T12: =IF('G&Y report'!$E$3="","",IF('slash_Summary_G&Y'!$B$3=0,'slash_Summary_G&Y'!F12,'slash_Summary_G&Y'!F11)) -> 3.869980462 | U12: =IF('G&Y report'!$E$3="","",IF('slash_Summary_G&Y'!$B$3=0,'slash_Summary_G&Y'!G12,'slash_Summary_G&Y'!G11)) -> 119.115594 | V12: =IF('G&Y report'!$E$3="","",IF('slash_Summary_G&Y'!$B$3=0,'slash_Summary_G&Y'!H12,'slash_Summary_G&Y'!H11)) -> 578.7308439 | W12: =IF('G&Y report'!$E$3="","",IF('slash_Summary_G&Y'!$B$3=0,'slash_Summary_G&Y'!I12,'slash_Summary_G&Y'!I11)) -> 1.071289371e-92 | X12: =IF('G&Y report'!$E$3="","",IF('slash_Summary_G&Y'!$B$3=0,'slash_Summary_G&Y'!J12,'slash_Summary_G&Y'!J11)) -> 1.59578029e-07 | Y12: =IF('G&Y report'!$E$3="","",IF('slash_Summary_G&Y'!$B$3=0,'slash_Summary_G&Y'!K12,'slash_Summary_G&Y'!K11)) -> 136.6795784 | Z12: =IF('G&Y report'!$E$3="","",IF('slash_Summary_G&Y'!$B$3=0,'slash_Summary_G&Y'!L12,'slash_Summary_G&Y'!L11)) -> 402.4835402 | AA12: =IF('G&Y report'!$E$3="","",IF('slash_Summary_G&Y'!$B$3=0,'slash_Summary_G&Y'!M12,'slash_Summary_G&Y'!M11)) -> 7.450377722e-93 | AB12: =IF('G&Y report'!$E$3="","",IF('slash_Summary_G&Y'!$B$3=0,'slash_Summary_G&Y'!N12,'slash_Summary_G&Y'!N11)) -> 1.109799672e-07 | AC12: =IF('G&Y report'!$E$3="","",IF('slash_Summary_G&Y'!$B$3=0,'slash_Summary_G&Y'!O12,'slash_Summary_G&Y'!O11)) -> 95.05503494 | AD12: =IF('G&Y report'!$F$3="","",IF('long_Summary_G&Y'!$B$3=0,'long_Summary_G&Y'!B12,'long_Summary_G&Y'!B11)) ->  | AE12: =IF('G&Y report'!$F$3="","",IF('long_Summary_G&Y'!$B$3=0,'long_Summary_G&Y'!C12,'long_Summary_G&Y'!C11)) ->  | AF12: =IF('G&Y report'!$F$3="","",IF('long_Summary_G&Y'!$B$3=0,'long_Summary_G&Y'!D12,'long_Summary_G&Y'!D11)) ->  | AG12: =IF('G&Y report'!$F$3="","",IF('long_Summary_G&Y'!$B$3=0,'long_Summary_G&Y'!E12,'long_Summary_G&Y'!E11)) ->  | AH12: =IF('G&Y report'!$F$3="","",IF('long_Summary_G&Y'!$B$3=0,'long_Summary_G&Y'!F12,'long_Summary_G&Y'!F11)) ->  | AI12: =IF('G&Y report'!$F$3="","",IF('long_Summary_G&Y'!$B$3=0,'long_Summary_G&Y'!G12,'long_Summary_G&Y'!G11)) ->  | AJ12: =IF('G&Y report'!$F$3="","",IF('long_Summary_G&Y'!$B$3=0,'long_Summary_G&Y'!H12,'long_Summary_G&Y'!H11)) ->  | AK12: =IF('G&Y report'!$F$3="","",IF('long_Summary_G&Y'!$B$3=0,'long_Summary_G&Y'!I12,'long_Summary_G&Y'!I11)) ->  | AL12: =IF('G&Y report'!$F$3="","",IF('long_Summary_G&Y'!$B$3=0,'long_Summary_G&Y'!J12,'long_Summary_G&Y'!J11)) ->  | AM12: =IF('G&Y report'!$F$3="","",IF('long_Summary_G&Y'!$B$3=0,'long_Summary_G&Y'!K12,'long_Summary_G&Y'!K11)) ->  | AN12: =IF('G&Y report'!$F$3="","",IF('long_Summary_G&Y'!$B$3=0,'long_Summary_G&Y'!L12,'long_Summary_G&Y'!L11)) ->  | AO12: =IF('G&Y report'!$F$3="","",IF('long_Summary_G&Y'!$B$3=0,'long_Summary_G&Y'!M12,'long_Summary_G&Y'!M11)) ->  | AP12: =IF('G&Y report'!$F$3="","",IF('long_Summary_G&Y'!$B$3=0,'long_Summary_G&Y'!N12,'long_Summary_G&Y'!N11)) ->  | AQ12: =IF('G&Y report'!$F$3="","",IF('long_Summary_G&Y'!$B$3=0,'long_Summary_G&Y'!O12,'long_Summary_G&Y'!O11)) ->  | BK12: 9 | BL12: 539.2463586 | BM12: 546.633245 | BO12: 31.15760532 | BP12: 25.97692936 | BR12: 65.81541513 | BS12: 44.65200607 | BU12: 447.2247069 | BV12: 402.4835402
B13: =IF('G&Y report'!$D$3="","",'lob_Summary_G&Y'!B12) -> 10 | C13: =IF('G&Y report'!$D$3="","",'lob_Summary_G&Y'!C12) -> 531.3733228 | D13: =IF('G&Y report'!$D$3="","",'lob_Summary_G&Y'!D12) -> 34.24648547 | E13: =IF('G&Y report'!$D$3="","",'lob_Summary_G&Y'!E12) -> 77.71014951 | F13: =IF('G&Y report'!$D$3="","",'lob_Summary_G&Y'!F12) -> 5.178158074 | G13: =IF('G&Y report'!$D$3="","",'lob_Summary_G&Y'!G12) -> 184.7783608 | H13: =IF('G&Y report'!$D$3="","",'lob_Summary_G&Y'!H12) -> 878.5082823 | I13: =IF('G&Y report'!$D$3="","",'lob_Summary_G&Y'!I12) -> 2.42697413e-24 | J13: =IF('G&Y report'!$D$3="","",'lob_Summary_G&Y'!J12) -> 2.777963724 | K13: =IF('G&Y report'!$D$3="","",'lob_Summary_G&Y'!K12) -> 662.0527521 | L13: =IF('G&Y report'!$D$3="","",'lob_Summary_G&Y'!L12) -> 670.5619819 | M13: =IF('G&Y report'!$D$3="","",'lob_Summary_G&Y'!M12) -> 6.084935103e-24 | N13: =IF('G&Y report'!$D$3="","",'lob_Summary_G&Y'!N12) -> 2.165890238 | O13: =IF('G&Y report'!$D$3="","",'lob_Summary_G&Y'!O12) -> 487.6630872 | P13: =IF('G&Y report'!$E$3="","",IF('slash_Summary_G&Y'!$B$3="","",IF('slash_Summary_G&Y'!$B$3=0,'slash_Summary_G&Y'!B13,'slash_Summary_G&Y'!B12))) -> 10 | Q13: =IF('G&Y report'!$E$3="","",IF('slash_Summary_G&Y'!$B$3=0,'slash_Summary_G&Y'!C13,'slash_Summary_G&Y'!C12)) -> 540.1189 | R13: =IF('G&Y report'!$E$3="","",IF('slash_Summary_G&Y'!$B$3=0,'slash_Summary_G&Y'!D13,'slash_Summary_G&Y'!D12)) -> 29.62652658 | S13: =IF('G&Y report'!$E$3="","",IF('slash_Summary_G&Y'!$B$3=0,'slash_Summary_G&Y'!E13,'slash_Summary_G&Y'!E12)) -> 53.46611982 | T13: =IF('G&Y report'!$E$3="","",IF('slash_Summary_G&Y'!$B$3=0,'slash_Summary_G&Y'!F13,'slash_Summary_G&Y'!F12)) -> 4.260209454 | U13: =IF('G&Y report'!$E$3="","",IF('slash_Summary_G&Y'!$B$3=0,'slash_Summary_G&Y'!G13,'slash_Summary_G&Y'!G12)) -> 137.3175519 | V13: =IF('G&Y report'!$E$3="","",IF('slash_Summary_G&Y'!$B$3=0,'slash_Summary_G&Y'!H13,'slash_Summary_G&Y'!H12)) -> 776.2293422 | W13: =IF('G&Y report'!$E$3="","",IF('slash_Summary_G&Y'!$B$3=0,'slash_Summary_G&Y'!I13,'slash_Summary_G&Y'!I12)) -> 5.155684486e-53 | X13: =IF('G&Y report'!$E$3="","",IF('slash_Summary_G&Y'!$B$3=0,'slash_Summary_G&Y'!J13,'slash_Summary_G&Y'!J12)) -> 0.001974693505 | Y13: =IF('G&Y report'!$E$3="","",IF('slash_Summary_G&Y'!$B$3=0,'slash_Summary_G&Y'!K13,'slash_Summary_G&Y'!K12)) -> 335.4620845 | Z13: =IF('G&Y report'!$E$3="","",IF('slash_Summary_G&Y'!$B$3=0,'slash_Summary_G&Y'!L13,'slash_Summary_G&Y'!L12)) -> 552.7753195 | AA13: =IF('G&Y report'!$E$3="","",IF('slash_Summary_G&Y'!$B$3=0,'slash_Summary_G&Y'!M13,'slash_Summary_G&Y'!M12)) -> 3.671511735e-53 | AB13: =IF('G&Y report'!$E$3="","",IF('slash_Summary_G&Y'!$B$3=0,'slash_Summary_G&Y'!N13,'slash_Summary_G&Y'!N12)) -> 0.001406236242 | AC13: =IF('G&Y report'!$E$3="","",IF('slash_Summary_G&Y'!$B$3=0,'slash_Summary_G&Y'!O13,'slash_Summary_G&Y'!O12)) -> 238.8922331 | AD13: =IF('G&Y report'!$F$3="","",IF('long_Summary_G&Y'!$B$3=0,'long_Summary_G&Y'!B13,'long_Summary_G&Y'!B12)) ->  | AE13: =IF('G&Y report'!$F$3="","",IF('long_Summary_G&Y'!$B$3=0,'long_Summary_G&Y'!C13,'long_Summary_G&Y'!C12)) ->  | AF13: =IF('G&Y report'!$F$3="","",IF('long_Summary_G&Y'!$B$3=0,'long_Summary_G&Y'!D13,'long_Summary_G&Y'!D12)) ->  | AG13: =IF('G&Y report'!$F$3="","",IF('long_Summary_G&Y'!$B$3=0,'long_Summary_G&Y'!E13,'long_Summary_G&Y'!E12)) ->  | AH13: =IF('G&Y report'!$F$3="","",IF('long_Summary_G&Y'!$B$3=0,'long_Summary_G&Y'!F13,'long_Summary_G&Y'!F12)) ->  | AI13: =IF('G&Y report'!$F$3="","",IF('long_Summary_G&Y'!$B$3=0,'long_Summary_G&Y'!G13,'long_Summary_G&Y'!G12)) ->  | AJ13: =IF('G&Y report'!$F$3="","",IF('long_Summary_G&Y'!$B$3=0,'long_Summary_G&Y'!H13,'long_Summary_G&Y'!H12)) ->  | AK13: =IF('G&Y report'!$F$3="","",IF('long_Summary_G&Y'!$B$3=0,'long_Summary_G&Y'!I13,'long_Summary_G&Y'!I12)) ->  | AL13: =IF('G&Y report'!$F$3="","",IF('long_Summary_G&Y'!$B$3=0,'long_Summary_G&Y'!J13,'long_Summary_G&Y'!J12)) ->  | AM13: =IF('G&Y report'!$F$3="","",IF('long_Summary_G&Y'!$B$3=0,'long_Summary_G&Y'!K13,'long_Summary_G&Y'!K12)) ->  | AN13: =IF('G&Y report'!$F$3="","",IF('long_Summary_G&Y'!$B$3=0,'long_Summary_G&Y'!L13,'long_Summary_G&Y'!L12)) ->  | AO13: =IF('G&Y report'!$F$3="","",IF('long_Summary_G&Y'!$B$3=0,'long_Summary_G&Y'!M13,'long_Summary_G&Y'!M12)) ->  | AP13: =IF('G&Y report'!$F$3="","",IF('long_Summary_G&Y'!$B$3=0,'long_Summary_G&Y'!N13,'long_Summary_G&Y'!N12)) ->  | AQ13: =IF('G&Y report'!$F$3="","",IF('long_Summary_G&Y'!$B$3=0,'long_Summary_G&Y'!O13,'long_Summary_G&Y'!O12)) ->  | BK13: 10 | BL13: 531.3733228 | BM13: 540.1189 | BO13: 34.24648547 | BP13: 29.62652658 | BR13: 77.71014951 | BS13: 53.46611982 | BU13: 670.5619819 | BV13: 552.7753195
B14: =IF('G&Y report'!$D$3="","",'lob_Summary_G&Y'!B13) -> 11 | C14: =IF('G&Y report'!$D$3="","",'lob_Summary_G&Y'!C13) -> 522.974775 | D14: =IF('G&Y report'!$D$3="","",'lob_Summary_G&Y'!D13) -> 37.23434197 | E14: =IF('G&Y report'!$D$3="","",'lob_Summary_G&Y'!E13) -> 88.57076372 | F14: =IF('G&Y report'!$D$3="","",'lob_Summary_G&Y'!F13) -> 5.572385189 | G14: =IF('G&Y report'!$D$3="","",'lob_Summary_G&Y'!G13) -> 204.5863971 | H14: =IF('G&Y report'!$D$3="","",'lob_Summary_G&Y'!H13) -> 1190.348411 | I14: =IF('G&Y report'!$D$3="","",'lob_Summary_G&Y'!I13) -> 4.108385432e-15 | J14: =IF('G&Y report'!$D$3="","",'lob_Summary_G&Y'!J13) -> 26.07046385 | K14: =IF('G&Y report'!$D$3="","",'lob_Summary_G&Y'!K13) -> 965.1609393 | L14: =IF('G&Y report'!$D$3="","",'lob_Summary_G&Y'!L13) -> 918.2537853 | M14: =IF('G&Y report'!$D$3="","",'lob_Summary_G&Y'!M13) -> 6.288115242e-15 | N14: =IF('G&Y report'!$D$3="","",'lob_Summary_G&Y'!N13) -> 20.11746871 | O14: =IF('G&Y report'!$D$3="","",'lob_Summary_G&Y'!O13) -> 726.7271816 | P14: =IF('G&Y report'!$E$3="","",IF('slash_Summary_G&Y'!$B$3="","",IF('slash_Summary_G&Y'!$B$3=0,'slash_Summary_G&Y'!B14,'slash_Summary_G&Y'!B13))) -> 11 | Q14: =IF('G&Y report'!$E$3="","",IF('slash_Summary_G&Y'!$B$3=0,'slash_Summary_G&Y'!C14,'slash_Summary_G&Y'!C13)) -> 533.4573291 | R14: =IF('G&Y report'!$E$3="","",IF('slash_Summary_G&Y'!$B$3=0,'slash_Summary_G&Y'!D14,'slash_Summary_G&Y'!D13)) -> 33.20798047 | S14: =IF('G&Y report'!$E$3="","",IF('slash_Summary_G&Y'!$B$3=0,'slash_Summary_G&Y'!E14,'slash_Summary_G&Y'!E13)) -> 62.24220471 | T14: =IF('G&Y report'!$E$3="","",IF('slash_Summary_G&Y'!$B$3=0,'slash_Summary_G&Y'!F14,'slash_Summary_G&Y'!F13)) -> 4.62518327 | U14: =IF('G&Y report'!$E$3="","",IF('slash_Summary_G&Y'!$B$3=0,'slash_Summary_G&Y'!G14,'slash_Summary_G&Y'!G13)) -> 154.7503517 | V14: =IF('G&Y report'!$E$3="","",IF('slash_Summary_G&Y'!$B$3=0,'slash_Summary_G&Y'!H14,'slash_Summary_G&Y'!H13)) -> 996.9083132 | W14: =IF('G&Y report'!$E$3="","",IF('slash_Summary_G&Y'!$B$3=0,'slash_Summary_G&Y'!I14,'slash_Summary_G&Y'!I13)) -> 1.600303318e-32 | X14: =IF('G&Y report'!$E$3="","",IF('slash_Summary_G&Y'!$B$3=0,'slash_Summary_G&Y'!J14,'slash_Summary_G&Y'!J13)) -> 0.2846079871 | Y14: =IF('G&Y report'!$E$3="","",IF('slash_Summary_G&Y'!$B$3=0,'slash_Summary_G&Y'!K14,'slash_Summary_G&Y'!K13)) -> 587.6886878 | Z14: =IF('G&Y report'!$E$3="","",IF('slash_Summary_G&Y'!$B$3=0,'slash_Summary_G&Y'!L14,'slash_Summary_G&Y'!L13)) -> 724.6626457 | AA14: =IF('G&Y report'!$E$3="","",IF('slash_Summary_G&Y'!$B$3=0,'slash_Summary_G&Y'!M14,'slash_Summary_G&Y'!M13)) -> 1.163276523e-32 | AB14: =IF('G&Y report'!$E$3="","",IF('slash_Summary_G&Y'!$B$3=0,'slash_Summary_G&Y'!N14,'slash_Summary_G&Y'!N13)) -> 0.2068843987 | AC14: =IF('G&Y report'!$E$3="","",IF('slash_Summary_G&Y'!$B$3=0,'slash_Summary_G&Y'!O14,'slash_Summary_G&Y'!O13)) -> 427.196798 | AD14: =IF('G&Y report'!$F$3="","",IF('long_Summary_G&Y'!$B$3=0,'long_Summary_G&Y'!B14,'long_Summary_G&Y'!B13)) ->  | AE14: =IF('G&Y report'!$F$3="","",IF('long_Summary_G&Y'!$B$3=0,'long_Summary_G&Y'!C14,'long_Summary_G&Y'!C13)) ->  | AF14: =IF('G&Y report'!$F$3="","",IF('long_Summary_G&Y'!$B$3=0,'long_Summary_G&Y'!D14,'long_Summary_G&Y'!D13)) ->  | AG14: =IF('G&Y report'!$F$3="","",IF('long_Summary_G&Y'!$B$3=0,'long_Summary_G&Y'!E14,'long_Summary_G&Y'!E13)) ->  | AH14: =IF('G&Y report'!$F$3="","",IF('long_Summary_G&Y'!$B$3=0,'long_Summary_G&Y'!F14,'long_Summary_G&Y'!F13)) ->  | AI14: =IF('G&Y report'!$F$3="","",IF('long_Summary_G&Y'!$B$3=0,'long_Summary_G&Y'!G14,'long_Summary_G&Y'!G13)) ->  | AJ14: =IF('G&Y report'!$F$3="","",IF('long_Summary_G&Y'!$B$3=0,'long_Summary_G&Y'!H14,'long_Summary_G&Y'!H13)) ->  | AK14: =IF('G&Y report'!$F$3="","",IF('long_Summary_G&Y'!$B$3=0,'long_Summary_G&Y'!I14,'long_Summary_G&Y'!I13)) ->  | AL14: =IF('G&Y report'!$F$3="","",IF('long_Summary_G&Y'!$B$3=0,'long_Summary_G&Y'!J14,'long_Summary_G&Y'!J13)) ->  | AM14: =IF('G&Y report'!$F$3="","",IF('long_Summary_G&Y'!$B$3=0,'long_Summary_G&Y'!K14,'long_Summary_G&Y'!K13)) ->  | AN14: =IF('G&Y report'!$F$3="","",IF('long_Summary_G&Y'!$B$3=0,'long_Summary_G&Y'!L14,'long_Summary_G&Y'!L13)) ->  | AO14: =IF('G&Y report'!$F$3="","",IF('long_Summary_G&Y'!$B$3=0,'long_Summary_G&Y'!M14,'long_Summary_G&Y'!M13)) ->  | AP14: =IF('G&Y report'!$F$3="","",IF('long_Summary_G&Y'!$B$3=0,'long_Summary_G&Y'!N14,'long_Summary_G&Y'!N13)) ->  | AQ14: =IF('G&Y report'!$F$3="","",IF('long_Summary_G&Y'!$B$3=0,'long_Summary_G&Y'!O14,'long_Summary_G&Y'!O13)) ->  | BK14: 11 | BL14: 522.974775 | BM14: 533.4573291 | BO14: 37.23434197 | BP14: 33.20798047 | BR14: 88.57076372 | BS14: 62.24220471 | BU14: 918.2537853 | BV14: 724.6626457
B15: =IF('G&Y report'!$D$3="","",'lob_Summary_G&Y'!B14) -> 12 | C15: =IF('G&Y report'!$D$3="","",'lob_Summary_G&Y'!C14) -> 257.0593223 | D15: =IF('G&Y report'!$D$3="","",'lob_Summary_G&Y'!D14) -> 40.12312456 | E15: =IF('G&Y report'!$D$3="","",'lob_Summary_G&Y'!E14) -> 39.04147603 | F15: =IF('G&Y report'!$D$3="","",'lob_Summary_G&Y'!F14) -> 5.276947101 | G15: =IF('G&Y report'!$D$3="","",'lob_Summary_G&Y'!G14) -> 92.1420047 | H15: =IF('G&Y report'!$D$3="","",'lob_Summary_G&Y'!H14) -> 551.0758921 | I15: =IF('G&Y report'!$D$3="","",'lob_Summary_G&Y'!I14) -> 1.663241805e-29 | J15: =IF('G&Y report'!$D$3="","",'lob_Summary_G&Y'!J14) -> 0.6589132443 | K15: =IF('G&Y report'!$D$3="","",'lob_Summary_G&Y'!K14) -> 395.0170162 | L15: =IF('G&Y report'!$D$3="","",'lob_Summary_G&Y'!L14) -> 427.7276112 | M15: =IF('G&Y report'!$D$3="","",'lob_Summary_G&Y'!M14) -> 1.377291526e-28 | N15: =IF('G&Y report'!$D$3="","",'lob_Summary_G&Y'!N14) -> 0.5762457633 | O15: =IF('G&Y report'!$D$3="","",'lob_Summary_G&Y'!O14) -> 295.250884 | P15: =IF('G&Y report'!$E$3="","",IF('slash_Summary_G&Y'!$B$3="","",IF('slash_Summary_G&Y'!$B$3=0,'slash_Summary_G&Y'!B15,'slash_Summary_G&Y'!B14))) -> 12 | Q15: =IF('G&Y report'!$E$3="","",IF('slash_Summary_G&Y'!$B$3=0,'slash_Summary_G&Y'!C15,'slash_Summary_G&Y'!C14)) -> 526.6693919 | R15: =IF('G&Y report'!$E$3="","",IF('slash_Summary_G&Y'!$B$3=0,'slash_Summary_G&Y'!D15,'slash_Summary_G&Y'!D14)) -> 36.69808149 | S15: =IF('G&Y report'!$E$3="","",IF('slash_Summary_G&Y'!$B$3=0,'slash_Summary_G&Y'!E15,'slash_Summary_G&Y'!E14)) -> 70.86635458 | T15: =IF('G&Y report'!$E$3="","",IF('slash_Summary_G&Y'!$B$3=0,'slash_Summary_G&Y'!F15,'slash_Summary_G&Y'!F14)) -> 4.966921681 | U15: =IF('G&Y report'!$E$3="","",IF('slash_Summary_G&Y'!$B$3=0,'slash_Summary_G&Y'!G15,'slash_Summary_G&Y'!G14)) -> 171.3003362 | V15: =IF('G&Y report'!$E$3="","",IF('slash_Summary_G&Y'!$B$3=0,'slash_Summary_G&Y'!H15,'slash_Summary_G&Y'!H14)) -> 1236.777813 | W15: =IF('G&Y report'!$E$3="","",IF('slash_Summary_G&Y'!$B$3=0,'slash_Summary_G&Y'!I15,'slash_Summary_G&Y'!I14)) -> 5.476644346e-21 | X15: =IF('G&Y report'!$E$3="","",IF('slash_Summary_G&Y'!$B$3=0,'slash_Summary_G&Y'!J15,'slash_Summary_G&Y'!J14)) -> 5.039257654 | Y15: =IF('G&Y report'!$E$3="","",IF('slash_Summary_G&Y'!$B$3=0,'slash_Summary_G&Y'!K15,'slash_Summary_G&Y'!K14)) -> 863.2977024 | Z15: =IF('G&Y report'!$E$3="","",IF('slash_Summary_G&Y'!$B$3=0,'slash_Summary_G&Y'!L15,'slash_Summary_G&Y'!L14)) -> 915.333745 | AA15: =IF('G&Y report'!$E$3="","",IF('slash_Summary_G&Y'!$B$3=0,'slash_Summary_G&Y'!M15,'slash_Summary_G&Y'!M14)) -> 4.053240063e-21 | AB15: =IF('G&Y report'!$E$3="","",IF('slash_Summary_G&Y'!$B$3=0,'slash_Summary_G&Y'!N15,'slash_Summary_G&Y'!N14)) -> 3.729532122 | AC15: =IF('G&Y report'!$E$3="","",IF('slash_Summary_G&Y'!$B$3=0,'slash_Summary_G&Y'!O15,'slash_Summary_G&Y'!O14)) -> 638.9227805 | AD15: =IF('G&Y report'!$F$3="","",IF('long_Summary_G&Y'!$B$3=0,'long_Summary_G&Y'!B15,'long_Summary_G&Y'!B14)) ->  | AE15: =IF('G&Y report'!$F$3="","",IF('long_Summary_G&Y'!$B$3=0,'long_Summary_G&Y'!C15,'long_Summary_G&Y'!C14)) ->  | AF15: =IF('G&Y report'!$F$3="","",IF('long_Summary_G&Y'!$B$3=0,'long_Summary_G&Y'!D15,'long_Summary_G&Y'!D14)) ->  | AG15: =IF('G&Y report'!$F$3="","",IF('long_Summary_G&Y'!$B$3=0,'long_Summary_G&Y'!E15,'long_Summary_G&Y'!E14)) ->  | AH15: =IF('G&Y report'!$F$3="","",IF('long_Summary_G&Y'!$B$3=0,'long_Summary_G&Y'!F15,'long_Summary_G&Y'!F14)) ->  | AI15: =IF('G&Y report'!$F$3="","",IF('long_Summary_G&Y'!$B$3=0,'long_Summary_G&Y'!G15,'long_Summary_G&Y'!G14)) ->  | AJ15: =IF('G&Y report'!$F$3="","",IF('long_Summary_G&Y'!$B$3=0,'long_Summary_G&Y'!H15,'long_Summary_G&Y'!H14)) ->  | AK15: =IF('G&Y report'!$F$3="","",IF('long_Summary_G&Y'!$B$3=0,'long_Summary_G&Y'!I15,'long_Summary_G&Y'!I14)) ->  | AL15: =IF('G&Y report'!$F$3="","",IF('long_Summary_G&Y'!$B$3=0,'long_Summary_G&Y'!J15,'long_Summary_G&Y'!J14)) ->  | AM15: =IF('G&Y report'!$F$3="","",IF('long_Summary_G&Y'!$B$3=0,'long_Summary_G&Y'!K15,'long_Summary_G&Y'!K14)) ->  | AN15: =IF('G&Y report'!$F$3="","",IF('long_Summary_G&Y'!$B$3=0,'long_Summary_G&Y'!L15,'long_Summary_G&Y'!L14)) ->  | AO15: =IF('G&Y report'!$F$3="","",IF('long_Summary_G&Y'!$B$3=0,'long_Summary_G&Y'!M15,'long_Summary_G&Y'!M14)) ->  | AP15: =IF('G&Y report'!$F$3="","",IF('long_Summary_G&Y'!$B$3=0,'long_Summary_G&Y'!N15,'long_Summary_G&Y'!N14)) ->  | AQ15: =IF('G&Y report'!$F$3="","",IF('long_Summary_G&Y'!$B$3=0,'long_Summary_G&Y'!O15,'long_Summary_G&Y'!O14)) ->  | BK15: 12 | BL15: 257.0593223 | BM15: 526.6693919 | BO15: 40.12312456 | BP15: 36.69808149 | BR15: 39.04147603 | BS15: 70.86635458 | BU15: 427.7276112 | BV15: 915.333745
B16: =IF('G&Y report'!$D$3="","",'lob_Summary_G&Y'!B15) -> 13 | C16: =IF('G&Y report'!$D$3="","",'lob_Summary_G&Y'!C15) -> 255.3396245 | D16: =IF('G&Y report'!$D$3="","",'lob_Summary_G&Y'!D15) -> 42.91532579 | E16: =IF('G&Y report'!$D$3="","",'lob_Summary_G&Y'!E15) -> 49.29328029 | F16: =IF('G&Y report'!$D$3="","",'lob_Summary_G&Y'!F15) -> 5.949371075 | G16: =IF('G&Y report'!$D$3="","",'lob_Summary_G&Y'!G15) -> 110.9543319 | H16: =IF('G&Y report'!$D$3="","",'lob_Summary_G&Y'!H15) -> 815.474859 | I16: =IF('G&Y report'!$D$3="","",'lob_Summary_G&Y'!I15) -> 1.639781153e-13 | J16: =IF('G&Y report'!$D$3="","",'lob_Summary_G&Y'!J15) -> 27.28987412 | K16: =IF('G&Y report'!$D$3="","",'lob_Summary_G&Y'!K15) -> 664.3279172 | L16: =IF('G&Y report'!$D$3="","",'lob_Summary_G&Y'!L15) -> 639.8019157 | M16: =IF('G&Y report'!$D$3="","",'lob_Summary_G&Y'!M15) -> 3.590824804e-13 | N16: =IF('G&Y report'!$D$3="","",'lob_Summary_G&Y'!N15) -> 22.27195138 | O16: =IF('G&Y report'!$D$3="","",'lob_Summary_G&Y'!O15) -> 510.0403796 | P16: =IF('G&Y report'!$E$3="","",IF('slash_Summary_G&Y'!$B$3="","",IF('slash_Summary_G&Y'!$B$3=0,'slash_Summary_G&Y'!B16,'slash_Summary_G&Y'!B15))) -> 13 | Q16: =IF('G&Y report'!$E$3="","",IF('slash_Summary_G&Y'!$B$3=0,'slash_Summary_G&Y'!C16,'slash_Summary_G&Y'!C15)) -> 259.8867286 | R16: =IF('G&Y report'!$E$3="","",IF('slash_Summary_G&Y'!$B$3=0,'slash_Summary_G&Y'!D16,'slash_Summary_G&Y'!D15)) -> 40.07960896 | S16: =IF('G&Y report'!$E$3="","",IF('slash_Summary_G&Y'!$B$3=0,'slash_Summary_G&Y'!E16,'slash_Summary_G&Y'!E15)) -> 45.34287218 | T16: =IF('G&Y report'!$E$3="","",IF('slash_Summary_G&Y'!$B$3=0,'slash_Summary_G&Y'!F16,'slash_Summary_G&Y'!F15)) -> 5.655861519 | U16: =IF('G&Y report'!$E$3="","",IF('slash_Summary_G&Y'!$B$3=0,'slash_Summary_G&Y'!G16,'slash_Summary_G&Y'!G15)) -> 104.1225089 | V16: =IF('G&Y report'!$E$3="","",IF('slash_Summary_G&Y'!$B$3=0,'slash_Summary_G&Y'!H16,'slash_Summary_G&Y'!H15)) -> 851.9366729 | W16: =IF('G&Y report'!$E$3="","",IF('slash_Summary_G&Y'!$B$3=0,'slash_Summary_G&Y'!I16,'slash_Summary_G&Y'!I15)) -> 5.158055973e-10 | X16: =IF('G&Y report'!$E$3="","",IF('slash_Summary_G&Y'!$B$3=0,'slash_Summary_G&Y'!J16,'slash_Summary_G&Y'!J15)) -> 47.01563771 | Y16: =IF('G&Y report'!$E$3="","",IF('slash_Summary_G&Y'!$B$3=0,'slash_Summary_G&Y'!K16,'slash_Summary_G&Y'!K15)) -> 661.3565311 | Z16: =IF('G&Y report'!$E$3="","",IF('slash_Summary_G&Y'!$B$3=0,'slash_Summary_G&Y'!L16,'slash_Summary_G&Y'!L15)) -> 639.3538265 | AA16: =IF('G&Y report'!$E$3="","",IF('slash_Summary_G&Y'!$B$3=0,'slash_Summary_G&Y'!M16,'slash_Summary_G&Y'!M15)) -> 3.870971786e-10 | AB16: =IF('G&Y report'!$E$3="","",IF('slash_Summary_G&Y'!$B$3=0,'slash_Summary_G&Y'!N16,'slash_Summary_G&Y'!N15)) -> 35.28387594 | AC16: =IF('G&Y report'!$E$3="","",IF('slash_Summary_G&Y'!$B$3=0,'slash_Summary_G&Y'!O16,'slash_Summary_G&Y'!O15)) -> 496.3289436 | AD16: =IF('G&Y report'!$F$3="","",IF('long_Summary_G&Y'!$B$3=0,'long_Summary_G&Y'!B16,'long_Summary_G&Y'!B15)) ->  | AE16: =IF('G&Y report'!$F$3="","",IF('long_Summary_G&Y'!$B$3=0,'long_Summary_G&Y'!C16,'long_Summary_G&Y'!C15)) ->  | AF16: =IF('G&Y report'!$F$3="","",IF('long_Summary_G&Y'!$B$3=0,'long_Summary_G&Y'!D16,'long_Summary_G&Y'!D15)) ->  | AG16: =IF('G&Y report'!$F$3="","",IF('long_Summary_G&Y'!$B$3=0,'long_Summary_G&Y'!E16,'long_Summary_G&Y'!E15)) ->  | AH16: =IF('G&Y report'!$F$3="","",IF('long_Summary_G&Y'!$B$3=0,'long_Summary_G&Y'!F16,'long_Summary_G&Y'!F15)) ->  | AI16: =IF('G&Y report'!$F$3="","",IF('long_Summary_G&Y'!$B$3=0,'long_Summary_G&Y'!G16,'long_Summary_G&Y'!G15)) ->  | AJ16: =IF('G&Y report'!$F$3="","",IF('long_Summary_G&Y'!$B$3=0,'long_Summary_G&Y'!H16,'long_Summary_G&Y'!H15)) ->  | AK16: =IF('G&Y report'!$F$3="","",IF('long_Summary_G&Y'!$B$3=0,'long_Summary_G&Y'!I16,'long_Summary_G&Y'!I15)) ->  | AL16: =IF('G&Y report'!$F$3="","",IF('long_Summary_G&Y'!$B$3=0,'long_Summary_G&Y'!J16,'long_Summary_G&Y'!J15)) ->  | AM16: =IF('G&Y report'!$F$3="","",IF('long_Summary_G&Y'!$B$3=0,'long_Summary_G&Y'!K16,'long_Summary_G&Y'!K15)) ->  | AN16: =IF('G&Y report'!$F$3="","",IF('long_Summary_G&Y'!$B$3=0,'long_Summary_G&Y'!L16,'long_Summary_G&Y'!L15)) ->  | AO16: =IF('G&Y report'!$F$3="","",IF('long_Summary_G&Y'!$B$3=0,'long_Summary_G&Y'!M16,'long_Summary_G&Y'!M15)) ->  | AP16: =IF('G&Y report'!$F$3="","",IF('long_Summary_G&Y'!$B$3=0,'long_Summary_G&Y'!N16,'long_Summary_G&Y'!N15)) ->  | AQ16: =IF('G&Y report'!$F$3="","",IF('long_Summary_G&Y'!$B$3=0,'long_Summary_G&Y'!O16,'long_Summary_G&Y'!O15)) ->  | BK16: 13 | BL16: 255.3396245 | BM16: 259.8867286 | BO16: 42.91532579 | BP16: 40.07960896 | BR16: 49.29328029 | BS16: 45.34287218 | BU16: 639.8019157 | BV16: 639.3538265
B17: =IF('G&Y report'!$D$3="","",'lob_Summary_G&Y'!B16) -> 14 | C17: =IF('G&Y report'!$D$3="","",'lob_Summary_G&Y'!C16) -> 253.5224394 | D17: =IF('G&Y report'!$D$3="","",'lob_Summary_G&Y'!D16) -> 45.6137853 | E17: =IF('G&Y report'!$D$3="","",'lob_Summary_G&Y'!E16) -> 59.39931206 | F17: =IF('G&Y report'!$D$3="","",'lob_Summary_G&Y'!F16) -> 6.554186732 | G17: =IF('G&Y report'!$D$3="","",'lob_Summary_G&Y'!G16) -> 128.6853464 | H17: =IF('G&Y report'!$D$3="","",'lob_Summary_G&Y'!H16) -> 1109.525735 | I17: =IF('G&Y report'!$D$3="","",'lob_Summary_G&Y'!I16) -> 1.164048872e-06 | J17: =IF('G&Y report'!$D$3="","",'lob_Summary_G&Y'!J16) -> 154.9048377 | K17: =IF('G&Y report'!$D$3="","",'lob_Summary_G&Y'!K16) -> 854.9681591 | L17: =IF('G&Y report'!$D$3="","",'lob_Summary_G&Y'!L16) -> 878.8122202 | M17: =IF('G&Y report'!$D$3="","",'lob_Summary_G&Y'!M16) -> 1.533467842e-06 | N17: =IF('G&Y report'!$D$3="","",'lob_Summary_G&Y'!N16) -> 124.1517189 | O17: =IF('G&Y report'!$D$3="","",'lob_Summary_G&Y'!O16) -> 666.7817868 | P17: =IF('G&Y report'!$E$3="","",IF('slash_Summary_G&Y'!$B$3="","",IF('slash_Summary_G&Y'!$B$3=0,'slash_Summary_G&Y'!B17,'slash_Summary_G&Y'!B16))) -> 14 | Q17: =IF('G&Y report'!$E$3="","",IF('slash_Summary_G&Y'!$B$3=0,'slash_Summary_G&Y'!C17,'slash_Summary_G&Y'!C16)) -> 258.0061318 | R17: =IF('G&Y report'!$E$3="","",IF('slash_Summary_G&Y'!$B$3=0,'slash_Summary_G&Y'!D17,'slash_Summary_G&Y'!D16)) -> 43.34017299 | S17: =IF('G&Y report'!$E$3="","",IF('slash_Summary_G&Y'!$B$3=0,'slash_Summary_G&Y'!E17,'slash_Summary_G&Y'!E16)) -> 51.33044622 | T17: =IF('G&Y report'!$E$3="","",IF('slash_Summary_G&Y'!$B$3=0,'slash_Summary_G&Y'!F17,'slash_Summary_G&Y'!F16)) -> 6.03960883 | U17: =IF('G&Y report'!$E$3="","",IF('slash_Summary_G&Y'!$B$3=0,'slash_Summary_G&Y'!G17,'slash_Summary_G&Y'!G16)) -> 114.8548053 | V17: =IF('G&Y report'!$E$3="","",IF('slash_Summary_G&Y'!$B$3=0,'slash_Summary_G&Y'!H17,'slash_Summary_G&Y'!H16)) -> 1033.817749 | W17: =IF('G&Y report'!$E$3="","",IF('slash_Summary_G&Y'!$B$3=0,'slash_Summary_G&Y'!I17,'slash_Summary_G&Y'!I16)) -> 3.446839727e-06 | X17: =IF('G&Y report'!$E$3="","",IF('slash_Summary_G&Y'!$B$3=0,'slash_Summary_G&Y'!J17,'slash_Summary_G&Y'!J16)) -> 137.0216347 | Y17: =IF('G&Y report'!$E$3="","",IF('slash_Summary_G&Y'!$B$3=0,'slash_Summary_G&Y'!K17,'slash_Summary_G&Y'!K16)) -> 772.8211312 | Z17: =IF('G&Y report'!$E$3="","",IF('slash_Summary_G&Y'!$B$3=0,'slash_Summary_G&Y'!L17,'slash_Summary_G&Y'!L16)) -> 786.9937335 | AA17: =IF('G&Y report'!$E$3="","",IF('slash_Summary_G&Y'!$B$3=0,'slash_Summary_G&Y'!M17,'slash_Summary_G&Y'!M16)) -> 2.62390665e-06 | AB17: =IF('G&Y report'!$E$3="","",IF('slash_Summary_G&Y'!$B$3=0,'slash_Summary_G&Y'!N17,'slash_Summary_G&Y'!N16)) -> 104.3077157 | AC17: =IF('G&Y report'!$E$3="","",IF('slash_Summary_G&Y'!$B$3=0,'slash_Summary_G&Y'!O17,'slash_Summary_G&Y'!O16)) -> 588.3100654 | AD17: =IF('G&Y report'!$F$3="","",IF('long_Summary_G&Y'!$B$3=0,'long_Summary_G&Y'!B17,'long_Summary_G&Y'!B16)) ->  | AE17: =IF('G&Y report'!$F$3="","",IF('long_Summary_G&Y'!$B$3=0,'long_Summary_G&Y'!C17,'long_Summary_G&Y'!C16)) ->  | AF17: =IF('G&Y report'!$F$3="","",IF('long_Summary_G&Y'!$B$3=0,'long_Summary_G&Y'!D17,'long_Summary_G&Y'!D16)) ->  | AG17: =IF('G&Y report'!$F$3="","",IF('long_Summary_G&Y'!$B$3=0,'long_Summary_G&Y'!E17,'long_Summary_G&Y'!E16)) ->  | AH17: =IF('G&Y report'!$F$3="","",IF('long_Summary_G&Y'!$B$3=0,'long_Summary_G&Y'!F17,'long_Summary_G&Y'!F16)) ->  | AI17: =IF('G&Y report'!$F$3="","",IF('long_Summary_G&Y'!$B$3=0,'long_Summary_G&Y'!G17,'long_Summary_G&Y'!G16)) ->  | AJ17: =IF('G&Y report'!$F$3="","",IF('long_Summary_G&Y'!$B$3=0,'long_Summary_G&Y'!H17,'long_Summary_G&Y'!H16)) ->  | AK17: =IF('G&Y report'!$F$3="","",IF('long_Summary_G&Y'!$B$3=0,'long_Summary_G&Y'!I17,'long_Summary_G&Y'!I16)) ->  | AL17: =IF('G&Y report'!$F$3="","",IF('long_Summary_G&Y'!$B$3=0,'long_Summary_G&Y'!J17,'long_Summary_G&Y'!J16)) ->  | AM17: =IF('G&Y report'!$F$3="","",IF('long_Summary_G&Y'!$B$3=0,'long_Summary_G&Y'!K17,'long_Summary_G&Y'!K16)) ->  | AN17: =IF('G&Y report'!$F$3="","",IF('long_Summary_G&Y'!$B$3=0,'long_Summary_G&Y'!L17,'long_Summary_G&Y'!L16)) ->  | AO17: =IF('G&Y report'!$F$3="","",IF('long_Summary_G&Y'!$B$3=0,'long_Summary_G&Y'!M17,'long_Summary_G&Y'!M16)) ->  | AP17: =IF('G&Y report'!$F$3="","",IF('long_Summary_G&Y'!$B$3=0,'long_Summary_G&Y'!N17,'long_Summary_G&Y'!N16)) ->  | AQ17: =IF('G&Y report'!$F$3="","",IF('long_Summary_G&Y'!$B$3=0,'long_Summary_G&Y'!O17,'long_Summary_G&Y'!O16)) ->  | BK17: 14 | BL17: 253.5224394 | BM17: 258.0061318 | BO17: 45.6137853 | BP17: 43.34017299 | BR17: 59.39931206 | BS17: 51.33044622 | BU17: 878.8122202 | BV17: 786.9937335
B18: =IF('G&Y report'!$D$3="","",'lob_Summary_G&Y'!B17) -> 15 | C18: =IF('G&Y report'!$D$3="","",'lob_Summary_G&Y'!C17) -> 251.6149976 | D18: =IF('G&Y report'!$D$3="","",'lob_Summary_G&Y'!D17) -> 48.22155287 | E18: =IF('G&Y report'!$D$3="","",'lob_Summary_G&Y'!E17) -> 69.17228736 | F18: =IF('G&Y report'!$D$3="","",'lob_Summary_G&Y'!F17) -> 7.09960378 | G18: =IF('G&Y report'!$D$3="","",'lob_Summary_G&Y'!G17) -> 145.2002197 | H18: =IF('G&Y report'!$D$3="","",'lob_Summary_G&Y'!H17) -> 1421.995784 | I18: =IF('G&Y report'!$D$3="","",'lob_Summary_G&Y'!I17) -> 0.002960947314 | J18: =IF('G&Y report'!$D$3="","",'lob_Summary_G&Y'!J17) -> 402.9334716 | K18: =IF('G&Y report'!$D$3="","",'lob_Summary_G&Y'!K17) -> 936.9603925 | L18: =IF('G&Y report'!$D$3="","",'lob_Summary_G&Y'!L17) -> 1135.874746 | M18: =IF('G&Y report'!$D$3="","",'lob_Summary_G&Y'!M17) -> 0.003120044745 | N18: =IF('G&Y report'!$D$3="","",'lob_Summary_G&Y'!N17) -> 322.2167168 | O18: =IF('G&Y report'!$D$3="","",'lob_Summary_G&Y'!O17) -> 740.3240822 | P18: =IF('G&Y report'!$E$3="","",IF('slash_Summary_G&Y'!$B$3="","",IF('slash_Summary_G&Y'!$B$3=0,'slash_Summary_G&Y'!B18,'slash_Summary_G&Y'!B17))) -> 15 | Q18: =IF('G&Y report'!$E$3="","",IF('slash_Summary_G&Y'!$B$3=0,'slash_Summary_G&Y'!C18,'slash_Summary_G&Y'!C17)) -> 256.0927039 | R18: =IF('G&Y report'!$E$3="","",IF('slash_Summary_G&Y'!$B$3=0,'slash_Summary_G&Y'!D18,'slash_Summary_G&Y'!D17)) -> 46.47128033 | S18: =IF('G&Y report'!$E$3="","",IF('slash_Summary_G&Y'!$B$3=0,'slash_Summary_G&Y'!E18,'slash_Summary_G&Y'!E17)) -> 57.14481675 | T18: =IF('G&Y report'!$E$3="","",IF('slash_Summary_G&Y'!$B$3=0,'slash_Summary_G&Y'!F18,'slash_Summary_G&Y'!F17)) -> 6.396260232 | U18: =IF('G&Y report'!$E$3="","",IF('slash_Summary_G&Y'!$B$3=0,'slash_Summary_G&Y'!G18,'slash_Summary_G&Y'!G17)) -> 124.9996036 | V18: =IF('G&Y report'!$E$3="","",IF('slash_Summary_G&Y'!$B$3=0,'slash_Summary_G&Y'!H18,'slash_Summary_G&Y'!H17)) -> 1224.157577 | W18: =IF('G&Y report'!$E$3="","",IF('slash_Summary_G&Y'!$B$3=0,'slash_Summary_G&Y'!I18,'slash_Summary_G&Y'!I17)) -> 0.0008372544628 | X18: =IF('G&Y report'!$E$3="","",IF('slash_Summary_G&Y'!$B$3=0,'slash_Summary_G&Y'!J18,'slash_Summary_G&Y'!J17)) -> 279.419493 | Y18: =IF('G&Y report'!$E$3="","",IF('slash_Summary_G&Y'!$B$3=0,'slash_Summary_G&Y'!K18,'slash_Summary_G&Y'!K17)) -> 836.3659721 | Z18: =IF('G&Y report'!$E$3="","",IF('slash_Summary_G&Y'!$B$3=0,'slash_Summary_G&Y'!L18,'slash_Summary_G&Y'!L17)) -> 943.7982247 | AA18: =IF('G&Y report'!$E$3="","",IF('slash_Summary_G&Y'!$B$3=0,'slash_Summary_G&Y'!M18,'slash_Summary_G&Y'!M17)) -> 0.0006455045416 | AB18: =IF('G&Y report'!$E$3="","",IF('slash_Summary_G&Y'!$B$3=0,'slash_Summary_G&Y'!N18,'slash_Summary_G&Y'!N17)) -> 215.4262053 | AC18: =IF('G&Y report'!$E$3="","",IF('slash_Summary_G&Y'!$B$3=0,'slash_Summary_G&Y'!O18,'slash_Summary_G&Y'!O17)) -> 644.8195351 | AD18: =IF('G&Y report'!$F$3="","",IF('long_Summary_G&Y'!$B$3=0,'long_Summary_G&Y'!B18,'long_Summary_G&Y'!B17)) ->  | AE18: =IF('G&Y report'!$F$3="","",IF('long_Summary_G&Y'!$B$3=0,'long_Summary_G&Y'!C18,'long_Summary_G&Y'!C17)) ->  | AF18: =IF('G&Y report'!$F$3="","",IF('long_Summary_G&Y'!$B$3=0,'long_Summary_G&Y'!D18,'long_Summary_G&Y'!D17)) ->  | AG18: =IF('G&Y report'!$F$3="","",IF('long_Summary_G&Y'!$B$3=0,'long_Summary_G&Y'!E18,'long_Summary_G&Y'!E17)) ->  | AH18: =IF('G&Y report'!$F$3="","",IF('long_Summary_G&Y'!$B$3=0,'long_Summary_G&Y'!F18,'long_Summary_G&Y'!F17)) ->  | AI18: =IF('G&Y report'!$F$3="","",IF('long_Summary_G&Y'!$B$3=0,'long_Summary_G&Y'!G18,'long_Summary_G&Y'!G17)) ->  | AJ18: =IF('G&Y report'!$F$3="","",IF('long_Summary_G&Y'!$B$3=0,'long_Summary_G&Y'!H18,'long_Summary_G&Y'!H17)) ->  | AK18: =IF('G&Y report'!$F$3="","",IF('long_Summary_G&Y'!$B$3=0,'long_Summary_G&Y'!I18,'long_Summary_G&Y'!I17)) ->  | AL18: =IF('G&Y report'!$F$3="","",IF('long_Summary_G&Y'!$B$3=0,'long_Summary_G&Y'!J18,'long_Summary_G&Y'!J17)) ->  | AM18: =IF('G&Y report'!$F$3="","",IF('long_Summary_G&Y'!$B$3=0,'long_Summary_G&Y'!K18,'long_Summary_G&Y'!K17)) ->  | AN18: =IF('G&Y report'!$F$3="","",IF('long_Summary_G&Y'!$B$3=0,'long_Summary_G&Y'!L18,'long_Summary_G&Y'!L17)) ->  | AO18: =IF('G&Y report'!$F$3="","",IF('long_Summary_G&Y'!$B$3=0,'long_Summary_G&Y'!M18,'long_Summary_G&Y'!M17)) ->  | AP18: =IF('G&Y report'!$F$3="","",IF('long_Summary_G&Y'!$B$3=0,'long_Summary_G&Y'!N18,'long_Summary_G&Y'!N17)) ->  | AQ18: =IF('G&Y report'!$F$3="","",IF('long_Summary_G&Y'!$B$3=0,'long_Summary_G&Y'!O18,'long_Summary_G&Y'!O17)) ->  | BK18: 15 | BL18: 251.6149976 | BM18: 256.0927039 | BO18: 48.22155287 | BP18: 46.47128033 | BR18: 69.17228736 | BS18: 57.14481675 | BU18: 1135.874746 | BV18: 943.7982247
B19: =IF('G&Y report'!$D$3="","",'lob_Summary_G&Y'!B18) -> 16 | C19: =IF('G&Y report'!$D$3="","",'lob_Summary_G&Y'!C18) -> 249.6246151 | D19: =IF('G&Y report'!$D$3="","",'lob_Summary_G&Y'!D18) -> 50.74179123 | E19: =IF('G&Y report'!$D$3="","",'lob_Summary_G&Y'!E18) -> 78.48504035 | F19: =IF('G&Y report'!$D$3="","",'lob_Summary_G&Y'!F18) -> 7.59252174 | G19: =IF('G&Y report'!$D$3="","",'lob_Summary_G&Y'!G18) -> 160.4379149 | H19: =IF('G&Y report'!$D$3="","",'lob_Summary_G&Y'!H18) -> 1743.577801 | I19: =IF('G&Y report'!$D$3="","",'lob_Summary_G&Y'!I18) -> 0.2302002449 | J19: =IF('G&Y report'!$D$3="","",'lob_Summary_G&Y'!J18) -> 729.685173 | K19: =IF('G&Y report'!$D$3="","",'lob_Summary_G&Y'!K18) -> 944.3638834 | L19: =IF('G&Y report'!$D$3="","",'lob_Summary_G&Y'!L18) -> 1403.372692 | M19: =IF('G&Y report'!$D$3="","",'lob_Summary_G&Y'!M18) -> 0.2177198968 | N19: =IF('G&Y report'!$D$3="","",'lob_Summary_G&Y'!N18) -> 585.3522826 | O19: =IF('G&Y report'!$D$3="","",'lob_Summary_G&Y'!O18) -> 755.2321271 | P19: =IF('G&Y report'!$E$3="","",IF('slash_Summary_G&Y'!$B$3="","",IF('slash_Summary_G&Y'!$B$3=0,'slash_Summary_G&Y'!B19,'slash_Summary_G&Y'!B18))) -> 16 | Q19: =IF('G&Y report'!$E$3="","",IF('slash_Summary_G&Y'!$B$3=0,'slash_Summary_G&Y'!C19,'slash_Summary_G&Y'!C18)) -> 254.1494185 | R19: =IF('G&Y report'!$E$3="","",IF('slash_Summary_G&Y'!$B$3=0,'slash_Summary_G&Y'!D19,'slash_Summary_G&Y'!D18)) -> 49.46757529 | S19: =IF('G&Y report'!$E$3="","",IF('slash_Summary_G&Y'!$B$3=0,'slash_Summary_G&Y'!E19,'slash_Summary_G&Y'!E18)) -> 62.74259166 | T19: =IF('G&Y report'!$E$3="","",IF('slash_Summary_G&Y'!$B$3=0,'slash_Summary_G&Y'!F19,'slash_Summary_G&Y'!F18)) -> 6.727798443 | U19: =IF('G&Y report'!$E$3="","",IF('slash_Summary_G&Y'!$B$3=0,'slash_Summary_G&Y'!G19,'slash_Summary_G&Y'!G18)) -> 134.5318891 | V19: =IF('G&Y report'!$E$3="","",IF('slash_Summary_G&Y'!$B$3=0,'slash_Summary_G&Y'!H19,'slash_Summary_G&Y'!H18)) -> 1420.149313 | W19: =IF('G&Y report'!$E$3="","",IF('slash_Summary_G&Y'!$B$3=0,'slash_Summary_G&Y'!I19,'slash_Summary_G&Y'!I18)) -> 0.03099519377 | X19: =IF('G&Y report'!$E$3="","",IF('slash_Summary_G&Y'!$B$3=0,'slash_Summary_G&Y'!J19,'slash_Summary_G&Y'!J18)) -> 462.2263998 | Y19: =IF('G&Y report'!$E$3="","",IF('slash_Summary_G&Y'!$B$3=0,'slash_Summary_G&Y'!K19,'slash_Summary_G&Y'!K18)) -> 861.9725344 | Z19: =IF('G&Y report'!$E$3="","",IF('slash_Summary_G&Y'!$B$3=0,'slash_Summary_G&Y'!L19,'slash_Summary_G&Y'!L18)) -> 1107.410086 | AA19: =IF('G&Y report'!$E$3="","",IF('slash_Summary_G&Y'!$B$3=0,'slash_Summary_G&Y'!M19,'slash_Summary_G&Y'!M18)) -> 0.02416956435 | AB19: =IF('G&Y report'!$E$3="","",IF('slash_Summary_G&Y'!$B$3=0,'slash_Summary_G&Y'!N19,'slash_Summary_G&Y'!N18)) -> 360.4368728 | AC19: =IF('G&Y report'!$E$3="","",IF('slash_Summary_G&Y'!$B$3=0,'slash_Summary_G&Y'!O19,'slash_Summary_G&Y'!O18)) -> 672.152618 | AD19: =IF('G&Y report'!$F$3="","",IF('long_Summary_G&Y'!$B$3=0,'long_Summary_G&Y'!B19,'long_Summary_G&Y'!B18)) ->  | AE19: =IF('G&Y report'!$F$3="","",IF('long_Summary_G&Y'!$B$3=0,'long_Summary_G&Y'!C19,'long_Summary_G&Y'!C18)) ->  | AF19: =IF('G&Y report'!$F$3="","",IF('long_Summary_G&Y'!$B$3=0,'long_Summary_G&Y'!D19,'long_Summary_G&Y'!D18)) ->  | AG19: =IF('G&Y report'!$F$3="","",IF('long_Summary_G&Y'!$B$3=0,'long_Summary_G&Y'!E19,'long_Summary_G&Y'!E18)) ->  | AH19: =IF('G&Y report'!$F$3="","",IF('long_Summary_G&Y'!$B$3=0,'long_Summary_G&Y'!F19,'long_Summary_G&Y'!F18)) ->  | AI19: =IF('G&Y report'!$F$3="","",IF('long_Summary_G&Y'!$B$3=0,'long_Summary_G&Y'!G19,'long_Summary_G&Y'!G18)) ->  | AJ19: =IF('G&Y report'!$F$3="","",IF('long_Summary_G&Y'!$B$3=0,'long_Summary_G&Y'!H19,'long_Summary_G&Y'!H18)) ->  | AK19: =IF('G&Y report'!$F$3="","",IF('long_Summary_G&Y'!$B$3=0,'long_Summary_G&Y'!I19,'long_Summary_G&Y'!I18)) ->  | AL19: =IF('G&Y report'!$F$3="","",IF('long_Summary_G&Y'!$B$3=0,'long_Summary_G&Y'!J19,'long_Summary_G&Y'!J18)) ->  | AM19: =IF('G&Y report'!$F$3="","",IF('long_Summary_G&Y'!$B$3=0,'long_Summary_G&Y'!K19,'long_Summary_G&Y'!K18)) ->  | AN19: =IF('G&Y report'!$F$3="","",IF('long_Summary_G&Y'!$B$3=0,'long_Summary_G&Y'!L19,'long_Summary_G&Y'!L18)) ->  | AO19: =IF('G&Y report'!$F$3="","",IF('long_Summary_G&Y'!$B$3=0,'long_Summary_G&Y'!M19,'long_Summary_G&Y'!M18)) ->  | AP19: =IF('G&Y report'!$F$3="","",IF('long_Summary_G&Y'!$B$3=0,'long_Summary_G&Y'!N19,'long_Summary_G&Y'!N18)) ->  | AQ19: =IF('G&Y report'!$F$3="","",IF('long_Summary_G&Y'!$B$3=0,'long_Summary_G&Y'!O19,'long_Summary_G&Y'!O18)) ->  | BK19: 16 | BL19: 249.6246151 | BM19: 254.1494185 | BO19: 50.74179123 | BP19: 49.46757529 | BR19: 78.48504035 | BS19: 62.74259166 | BU19: 1403.372692 | BV19: 1107.410086
B20: =IF('G&Y report'!$D$3="","",'lob_Summary_G&Y'!B19) -> 17 | C20: =IF('G&Y report'!$D$3="","",'lob_Summary_G&Y'!C19) -> 247.5586411 | D20: =IF('G&Y report'!$D$3="","",'lob_Summary_G&Y'!D19) -> 53.17770682 | E20: =IF('G&Y report'!$D$3="","",'lob_Summary_G&Y'!E19) -> 87.25671005 | F20: =IF('G&Y report'!$D$3="","",'lob_Summary_G&Y'!F19) -> 8.038900946 | G20: =IF('G&Y report'!$D$3="","",'lob_Summary_G&Y'!G19) -> 174.3888675 | H20: =IF('G&Y report'!$D$3="","",'lob_Summary_G&Y'!H19) -> 2066.952826 | I20: =IF('G&Y report'!$D$3="","",'lob_Summary_G&Y'!I19) -> 3.200180592 | J20: =IF('G&Y report'!$D$3="","",'lob_Summary_G&Y'!J19) -> 1089.643983 | K20: =IF('G&Y report'!$D$3="","",'lob_Summary_G&Y'!K19) -> 914.3336802 | L20: =IF('G&Y report'!$D$3="","",'lob_Summary_G&Y'!L19) -> 1675.120948 | M20: =IF('G&Y report'!$D$3="","",'lob_Summary_G&Y'!M19) -> 2.862198437 | N20: =IF('G&Y report'!$D$3="","",'lob_Summary_G&Y'!N19) -> 878.3142547 | O20: =IF('G&Y report'!$D$3="","",'lob_Summary_G&Y'!O19) -> 739.4612996 | P20: =IF('G&Y report'!$E$3="","",IF('slash_Summary_G&Y'!$B$3="","",IF('slash_Summary_G&Y'!$B$3=0,'slash_Summary_G&Y'!B20,'slash_Summary_G&Y'!B19))) -> 17 | Q20: =IF('G&Y report'!$E$3="","",IF('slash_Summary_G&Y'!$B$3=0,'slash_Summary_G&Y'!C20,'slash_Summary_G&Y'!C19)) -> 252.178984 | R20: =IF('G&Y report'!$E$3="","",IF('slash_Summary_G&Y'!$B$3=0,'slash_Summary_G&Y'!D20,'slash_Summary_G&Y'!D19)) -> 52.32621987 | S20: =IF('G&Y report'!$E$3="","",IF('slash_Summary_G&Y'!$B$3=0,'slash_Summary_G&Y'!E20,'slash_Summary_G&Y'!E19)) -> 68.09275013 | T20: =IF('G&Y report'!$E$3="","",IF('slash_Summary_G&Y'!$B$3=0,'slash_Summary_G&Y'!F20,'slash_Summary_G&Y'!F19)) -> 7.036104766 | U20: =IF('G&Y report'!$E$3="","",IF('slash_Summary_G&Y'!$B$3=0,'slash_Summary_G&Y'!G20,'slash_Summary_G&Y'!G19)) -> 143.442296 | V20: =IF('G&Y report'!$E$3="","",IF('slash_Summary_G&Y'!$B$3=0,'slash_Summary_G&Y'!H20,'slash_Summary_G&Y'!H19)) -> 1619.217806 | W20: =IF('G&Y report'!$E$3="","",IF('slash_Summary_G&Y'!$B$3=0,'slash_Summary_G&Y'!I20,'slash_Summary_G&Y'!I19)) -> 0.3707991045 | X20: =IF('G&Y report'!$E$3="","",IF('slash_Summary_G&Y'!$B$3=0,'slash_Summary_G&Y'!J20,'slash_Summary_G&Y'!J19)) -> 670.8212334 | Y20: =IF('G&Y report'!$E$3="","",IF('slash_Summary_G&Y'!$B$3=0,'slash_Summary_G&Y'!K20,'slash_Summary_G&Y'!K19)) -> 862.1356091 | Z20: =IF('G&Y report'!$E$3="","",IF('slash_Summary_G&Y'!$B$3=0,'slash_Summary_G&Y'!L20,'slash_Summary_G&Y'!L19)) -> 1275.584702 | AA20: =IF('G&Y report'!$E$3="","",IF('slash_Summary_G&Y'!$B$3=0,'slash_Summary_G&Y'!M20,'slash_Summary_G&Y'!M19)) -> 0.2921075 | AB20: =IF('G&Y report'!$E$3="","",IF('slash_Summary_G&Y'!$B$3=0,'slash_Summary_G&Y'!N20,'slash_Summary_G&Y'!N19)) -> 528.4584323 | AC20: =IF('G&Y report'!$E$3="","",IF('slash_Summary_G&Y'!$B$3=0,'slash_Summary_G&Y'!O20,'slash_Summary_G&Y'!O19)) -> 679.171752 | AD20: =IF('G&Y report'!$F$3="","",IF('long_Summary_G&Y'!$B$3=0,'long_Summary_G&Y'!B20,'long_Summary_G&Y'!B19)) ->  | AE20: =IF('G&Y report'!$F$3="","",IF('long_Summary_G&Y'!$B$3=0,'long_Summary_G&Y'!C20,'long_Summary_G&Y'!C19)) ->  | AF20: =IF('G&Y report'!$F$3="","",IF('long_Summary_G&Y'!$B$3=0,'long_Summary_G&Y'!D20,'long_Summary_G&Y'!D19)) ->  | AG20: =IF('G&Y report'!$F$3="","",IF('long_Summary_G&Y'!$B$3=0,'long_Summary_G&Y'!E20,'long_Summary_G&Y'!E19)) ->  | AH20: =IF('G&Y report'!$F$3="","",IF('long_Summary_G&Y'!$B$3=0,'long_Summary_G&Y'!F20,'long_Summary_G&Y'!F19)) ->  | AI20: =IF('G&Y report'!$F$3="","",IF('long_Summary_G&Y'!$B$3=0,'long_Summary_G&Y'!G20,'long_Summary_G&Y'!G19)) ->  | AJ20: =IF('G&Y report'!$F$3="","",IF('long_Summary_G&Y'!$B$3=0,'long_Summary_G&Y'!H20,'long_Summary_G&Y'!H19)) ->  | AK20: =IF('G&Y report'!$F$3="","",IF('long_Summary_G&Y'!$B$3=0,'long_Summary_G&Y'!I20,'long_Summary_G&Y'!I19)) ->  | AL20: =IF('G&Y report'!$F$3="","",IF('long_Summary_G&Y'!$B$3=0,'long_Summary_G&Y'!J20,'long_Summary_G&Y'!J19)) ->  | AM20: =IF('G&Y report'!$F$3="","",IF('long_Summary_G&Y'!$B$3=0,'long_Summary_G&Y'!K20,'long_Summary_G&Y'!K19)) ->  | AN20: =IF('G&Y report'!$F$3="","",IF('long_Summary_G&Y'!$B$3=0,'long_Summary_G&Y'!L20,'long_Summary_G&Y'!L19)) ->  | AO20: =IF('G&Y report'!$F$3="","",IF('long_Summary_G&Y'!$B$3=0,'long_Summary_G&Y'!M20,'long_Summary_G&Y'!M19)) ->  | AP20: =IF('G&Y report'!$F$3="","",IF('long_Summary_G&Y'!$B$3=0,'long_Summary_G&Y'!N20,'long_Summary_G&Y'!N19)) ->  | AQ20: =IF('G&Y report'!$F$3="","",IF('long_Summary_G&Y'!$B$3=0,'long_Summary_G&Y'!O20,'long_Summary_G&Y'!O19)) ->  | BK20: 17 | BL20: 247.5586411 | BM20: 252.178984 | BO20: 53.17770682 | BP20: 52.32621987 | BR20: 87.25671005 | BS20: 68.09275013 | BU20: 1675.120948 | BV20: 1275.584702
B21: =IF('G&Y report'!$D$3="","",'lob_Summary_G&Y'!B20) -> 18 | C21: =IF('G&Y report'!$D$3="","",'lob_Summary_G&Y'!C20) -> 245.4244069 | D21: =IF('G&Y report'!$D$3="","",'lob_Summary_G&Y'!D20) -> 55.53250028 | E21: =IF('G&Y report'!$D$3="","",'lob_Summary_G&Y'!E20) -> 95.44138458 | F21: =IF('G&Y report'!$D$3="","",'lob_Summary_G&Y'!F20) -> 8.443952776 | G21: =IF('G&Y report'!$D$3="","",'lob_Summary_G&Y'!G20) -> 187.0784455 | H21: =IF('G&Y report'!$D$3="","",'lob_Summary_G&Y'!H20) -> 2386.586135 | I21: =IF('G&Y report'!$D$3="","",'lob_Summary_G&Y'!I20) -> 17.55472022 | J21: =IF('G&Y report'!$D$3="","",'lob_Summary_G&Y'!J20) -> 1446.928726 | K21: =IF('G&Y report'!$D$3="","",'lob_Summary_G&Y'!K20) -> 869.5749121 | L21: =IF('G&Y report'!$D$3="","",'lob_Summary_G&Y'!L20) -> 1946.286368 | M21: =IF('G&Y report'!$D$3="","",'lob_Summary_G&Y'!M20) -> 15.23535021 | N21: =IF('G&Y report'!$D$3="","",'lob_Summary_G&Y'!N20) -> 1172.199796 | O21: =IF('G&Y report'!$D$3="","",'lob_Summary_G&Y'!O20) -> 710.5706709 | P21: =IF('G&Y report'!$E$3="","",IF('slash_Summary_G&Y'!$B$3="","",IF('slash_Summary_G&Y'!$B$3=0,'slash_Summary_G&Y'!B21,'slash_Summary_G&Y'!B20))) -> 18 | Q21: =IF('G&Y report'!$E$3="","",IF('slash_Summary_G&Y'!$B$3=0,'slash_Summary_G&Y'!C21,'slash_Summary_G&Y'!C20)) -> 250.1838825 | R21: =IF('G&Y report'!$E$3="","",IF('slash_Summary_G&Y'!$B$3=0,'slash_Summary_G&Y'!D21,'slash_Summary_G&Y'!D20)) -> 55.04638567 | S21: =IF('G&Y report'!$E$3="","",IF('slash_Summary_G&Y'!$B$3=0,'slash_Summary_G&Y'!E21,'slash_Summary_G&Y'!E20)) -> 73.1742692 | T21: =IF('G&Y report'!$E$3="","",IF('slash_Summary_G&Y'!$B$3=0,'slash_Summary_G&Y'!F21,'slash_Summary_G&Y'!F20)) -> 7.322946112 | U21: =IF('G&Y report'!$E$3="","",IF('slash_Summary_G&Y'!$B$3=0,'slash_Summary_G&Y'!G21,'slash_Summary_G&Y'!G20)) -> 151.7330188 | V21: =IF('G&Y report'!$E$3="","",IF('slash_Summary_G&Y'!$B$3=0,'slash_Summary_G&Y'!H21,'slash_Summary_G&Y'!H20)) -> 1819.057548 | W21: =IF('G&Y report'!$E$3="","",IF('slash_Summary_G&Y'!$B$3=0,'slash_Summary_G&Y'!I21,'slash_Summary_G&Y'!I20)) -> 2.177761668 | X21: =IF('G&Y report'!$E$3="","",IF('slash_Summary_G&Y'!$B$3=0,'slash_Summary_G&Y'!J21,'slash_Summary_G&Y'!J20)) -> 892.1828875 | Y21: =IF('G&Y report'!$E$3="","",IF('slash_Summary_G&Y'!$B$3=0,'slash_Summary_G&Y'!K21,'slash_Summary_G&Y'!K20)) -> 846.980927 | Z21: =IF('G&Y report'!$E$3="","",IF('slash_Summary_G&Y'!$B$3=0,'slash_Summary_G&Y'!L21,'slash_Summary_G&Y'!L20)) -> 1446.245197 | AA21: =IF('G&Y report'!$E$3="","",IF('slash_Summary_G&Y'!$B$3=0,'slash_Summary_G&Y'!M21,'slash_Summary_G&Y'!M20)) -> 1.731433597 | AB21: =IF('G&Y report'!$E$3="","",IF('slash_Summary_G&Y'!$B$3=0,'slash_Summary_G&Y'!N21,'slash_Summary_G&Y'!N20)) -> 709.3317182 | AC21: =IF('G&Y report'!$E$3="","",IF('slash_Summary_G&Y'!$B$3=0,'slash_Summary_G&Y'!O21,'slash_Summary_G&Y'!O20)) -> 673.3938126 | AD21: =IF('G&Y report'!$F$3="","",IF('long_Summary_G&Y'!$B$3=0,'long_Summary_G&Y'!B21,'long_Summary_G&Y'!B20)) ->  | AE21: =IF('G&Y report'!$F$3="","",IF('long_Summary_G&Y'!$B$3=0,'long_Summary_G&Y'!C21,'long_Summary_G&Y'!C20)) ->  | AF21: =IF('G&Y report'!$F$3="","",IF('long_Summary_G&Y'!$B$3=0,'long_Summary_G&Y'!D21,'long_Summary_G&Y'!D20)) ->  | AG21: =IF('G&Y report'!$F$3="","",IF('long_Summary_G&Y'!$B$3=0,'long_Summary_G&Y'!E21,'long_Summary_G&Y'!E20)) ->  | AH21: =IF('G&Y report'!$F$3="","",IF('long_Summary_G&Y'!$B$3=0,'long_Summary_G&Y'!F21,'long_Summary_G&Y'!F20)) ->  | AI21: =IF('G&Y report'!$F$3="","",IF('long_Summary_G&Y'!$B$3=0,'long_Summary_G&Y'!G21,'long_Summary_G&Y'!G20)) ->  | AJ21: =IF('G&Y report'!$F$3="","",IF('long_Summary_G&Y'!$B$3=0,'long_Summary_G&Y'!H21,'long_Summary_G&Y'!H20)) ->  | AK21: =IF('G&Y report'!$F$3="","",IF('long_Summary_G&Y'!$B$3=0,'long_Summary_G&Y'!I21,'long_Summary_G&Y'!I20)) ->  | AL21: =IF('G&Y report'!$F$3="","",IF('long_Summary_G&Y'!$B$3=0,'long_Summary_G&Y'!J21,'long_Summary_G&Y'!J20)) ->  | AM21: =IF('G&Y report'!$F$3="","",IF('long_Summary_G&Y'!$B$3=0,'long_Summary_G&Y'!K21,'long_Summary_G&Y'!K20)) ->  | AN21: =IF('G&Y report'!$F$3="","",IF('long_Summary_G&Y'!$B$3=0,'long_Summary_G&Y'!L21,'long_Summary_G&Y'!L20)) ->  | AO21: =IF('G&Y report'!$F$3="","",IF('long_Summary_G&Y'!$B$3=0,'long_Summary_G&Y'!M21,'long_Summary_G&Y'!M20)) ->  | AP21: =IF('G&Y report'!$F$3="","",IF('long_Summary_G&Y'!$B$3=0,'long_Summary_G&Y'!N21,'long_Summary_G&Y'!N20)) ->  | AQ21: =IF('G&Y report'!$F$3="","",IF('long_Summary_G&Y'!$B$3=0,'long_Summary_G&Y'!O21,'long_Summary_G&Y'!O20)) ->  | BK21: 18 | BL21: 245.4244069 | BM21: 250.1838825 | BO21: 55.53250028 | BP21: 55.04638567 | BR21: 95.44138458 | BS21: 73.1742692 | BU21: 1946.286368 | BV21: 1446.245197
B22: =IF('G&Y report'!$D$3="","",'lob_Summary_G&Y'!B21) -> 19 | C22: =IF('G&Y report'!$D$3="","",'lob_Summary_G&Y'!C21) -> 243.2291791 | D22: =IF('G&Y report'!$D$3="","",'lob_Summary_G&Y'!D21) -> 57.80933119 | E22: =IF('G&Y report'!$D$3="","",'lob_Summary_G&Y'!E21) -> 103.0190674 | F22: =IF('G&Y report'!$D$3="","",'lob_Summary_G&Y'!F21) -> 8.812259453 | G22: =IF('G&Y report'!$D$3="","",'lob_Summary_G&Y'!G21) -> 198.5549648 | H22: =IF('G&Y report'!$D$3="","",'lob_Summary_G&Y'!H21) -> 2698.436476 | I22: =IF('G&Y report'!$D$3="","",'lob_Summary_G&Y'!I21) -> 56.11292455 | J22: =IF('G&Y report'!$D$3="","",'lob_Summary_G&Y'!J21) -> 1773.938219 | K22: =IF('G&Y report'!$D$3="","",'lob_Summary_G&Y'!K21) -> 821.4925968 | L22: =IF('G&Y report'!$D$3="","",'lob_Summary_G&Y'!L21) -> 2213.210474 | M22: =IF('G&Y report'!$D$3="","",'lob_Summary_G&Y'!M21) -> 47.90398403 | N22: =IF('G&Y report'!$D$3="","",'lob_Summary_G&Y'!N21) -> 1444.204361 | O22: =IF('G&Y report'!$D$3="","",'lob_Summary_G&Y'!O21) -> 677.6750141 | P22: =IF('G&Y report'!$E$3="","",IF('slash_Summary_G&Y'!$B$3="","",IF('slash_Summary_G&Y'!$B$3=0,'slash_Summary_G&Y'!B22,'slash_Summary_G&Y'!B21))) -> 19 | Q22: =IF('G&Y report'!$E$3="","",IF('slash_Summary_G&Y'!$B$3=0,'slash_Summary_G&Y'!C22,'slash_Summary_G&Y'!C21)) -> 248.1664009 | R22: =IF('G&Y report'!$E$3="","",IF('slash_Summary_G&Y'!$B$3=0,'slash_Summary_G&Y'!D22,'slash_Summary_G&Y'!D21)) -> 57.62883664 | S22: =IF('G&Y report'!$E$3="","",IF('slash_Summary_G&Y'!$B$3=0,'slash_Summary_G&Y'!E22,'slash_Summary_G&Y'!E21)) -> 77.97416092 | T22: =IF('G&Y report'!$E$3="","",IF('slash_Summary_G&Y'!$B$3=0,'slash_Summary_G&Y'!F22,'slash_Summary_G&Y'!F21)) -> 7.589971922 | U22: =IF('G&Y report'!$E$3="","",IF('slash_Summary_G&Y'!$B$3=0,'slash_Summary_G&Y'!G22,'slash_Summary_G&Y'!G21)) -> 159.4147322 | V22: =IF('G&Y report'!$E$3="","",IF('slash_Summary_G&Y'!$B$3=0,'slash_Summary_G&Y'!H22,'slash_Summary_G&Y'!H21)) -> 2017.64933 | W22: =IF('G&Y report'!$E$3="","",IF('slash_Summary_G&Y'!$B$3=0,'slash_Summary_G&Y'!I22,'slash_Summary_G&Y'!I21)) -> 8.020334569 | X22: =IF('G&Y report'!$E$3="","",IF('slash_Summary_G&Y'!$B$3=0,'slash_Summary_G&Y'!J22,'slash_Summary_G&Y'!J21)) -> 1115.198447 | Y22: =IF('G&Y report'!$E$3="","",IF('slash_Summary_G&Y'!$B$3=0,'slash_Summary_G&Y'!K22,'slash_Summary_G&Y'!K21)) -> 823.459964 | Z22: =IF('G&Y report'!$E$3="","",IF('slash_Summary_G&Y'!$B$3=0,'slash_Summary_G&Y'!L22,'slash_Summary_G&Y'!L21)) -> 1617.516327 | AA22: =IF('G&Y report'!$E$3="","",IF('slash_Summary_G&Y'!$B$3=0,'slash_Summary_G&Y'!M22,'slash_Summary_G&Y'!M21)) -> 6.429770485 | AB22: =IF('G&Y report'!$E$3="","",IF('slash_Summary_G&Y'!$B$3=0,'slash_Summary_G&Y'!N22,'slash_Summary_G&Y'!N21)) -> 894.0362776 | AC22: =IF('G&Y report'!$E$3="","",IF('slash_Summary_G&Y'!$B$3=0,'slash_Summary_G&Y'!O22,'slash_Summary_G&Y'!O21)) -> 660.1543274 | AD22: =IF('G&Y report'!$F$3="","",IF('long_Summary_G&Y'!$B$3=0,'long_Summary_G&Y'!B22,'long_Summary_G&Y'!B21)) ->  | AE22: =IF('G&Y report'!$F$3="","",IF('long_Summary_G&Y'!$B$3=0,'long_Summary_G&Y'!C22,'long_Summary_G&Y'!C21)) ->  | AF22: =IF('G&Y report'!$F$3="","",IF('long_Summary_G&Y'!$B$3=0,'long_Summary_G&Y'!D22,'long_Summary_G&Y'!D21)) ->  | AG22: =IF('G&Y report'!$F$3="","",IF('long_Summary_G&Y'!$B$3=0,'long_Summary_G&Y'!E22,'long_Summary_G&Y'!E21)) ->  | AH22: =IF('G&Y report'!$F$3="","",IF('long_Summary_G&Y'!$B$3=0,'long_Summary_G&Y'!F22,'long_Summary_G&Y'!F21)) ->  | AI22: =IF('G&Y report'!$F$3="","",IF('long_Summary_G&Y'!$B$3=0,'long_Summary_G&Y'!G22,'long_Summary_G&Y'!G21)) ->  | AJ22: =IF('G&Y report'!$F$3="","",IF('long_Summary_G&Y'!$B$3=0,'long_Summary_G&Y'!H22,'long_Summary_G&Y'!H21)) ->  | AK22: =IF('G&Y report'!$F$3="","",IF('long_Summary_G&Y'!$B$3=0,'long_Summary_G&Y'!I22,'long_Summary_G&Y'!I21)) ->  | AL22: =IF('G&Y report'!$F$3="","",IF('long_Summary_G&Y'!$B$3=0,'long_Summary_G&Y'!J22,'long_Summary_G&Y'!J21)) ->  | AM22: =IF('G&Y report'!$F$3="","",IF('long_Summary_G&Y'!$B$3=0,'long_Summary_G&Y'!K22,'long_Summary_G&Y'!K21)) ->  | AN22: =IF('G&Y report'!$F$3="","",IF('long_Summary_G&Y'!$B$3=0,'long_Summary_G&Y'!L22,'long_Summary_G&Y'!L21)) ->  | AO22: =IF('G&Y report'!$F$3="","",IF('long_Summary_G&Y'!$B$3=0,'long_Summary_G&Y'!M22,'long_Summary_G&Y'!M21)) ->  | AP22: =IF('G&Y report'!$F$3="","",IF('long_Summary_G&Y'!$B$3=0,'long_Summary_G&Y'!N22,'long_Summary_G&Y'!N21)) ->  | AQ22: =IF('G&Y report'!$F$3="","",IF('long_Summary_G&Y'!$B$3=0,'long_Summary_G&Y'!O22,'long_Summary_G&Y'!O21)) ->  | BK22: 19 | BL22: 243.2291791 | BM22: 248.1664009 | BO22: 57.80933119 | BP22: 57.62883664 | BR22: 103.0190674 | BS22: 77.97416092 | BU22: 2213.210474 | BV22: 1617.516327
B23: =IF('G&Y report'!$D$3="","",'lob_Summary_G&Y'!B22) -> 20 | C23: =IF('G&Y report'!$D$3="","",'lob_Summary_G&Y'!C22) -> 240.9801157 | D23: =IF('G&Y report'!$D$3="","",'lob_Summary_G&Y'!D22) -> 60.01129323 | E23: =IF('G&Y report'!$D$3="","",'lob_Summary_G&Y'!E22) -> 109.9886297 | F23: =IF('G&Y report'!$D$3="","",'lob_Summary_G&Y'!F22) -> 9.147861838 | G23: =IF('G&Y report'!$D$3="","",'lob_Summary_G&Y'!G22) -> 208.8811074 | H23: =IF('G&Y report'!$D$3="","",'lob_Summary_G&Y'!H22) -> 2999.663387 | I23: =IF('G&Y report'!$D$3="","",'lob_Summary_G&Y'!I22) -> 128.5810527 | J23: =IF('G&Y report'!$D$3="","",'lob_Summary_G&Y'!J22) -> 2053.46076 | K23: =IF('G&Y report'!$D$3="","",'lob_Summary_G&Y'!K22) -> 775.1971123 | L23: =IF('G&Y report'!$D$3="","",'lob_Summary_G&Y'!L22) -> 2473.20917 | M23: =IF('G&Y report'!$D$3="","",'lob_Summary_G&Y'!M22) -> 108.8000539 | N23: =IF('G&Y report'!$D$3="","",'lob_Summary_G&Y'!N22) -> 1679.793035 | O23: =IF('G&Y report'!$D$3="","",'lob_Summary_G&Y'!O22) -> 645.0578082 | P23: =IF('G&Y report'!$E$3="","",IF('slash_Summary_G&Y'!$B$3="","",IF('slash_Summary_G&Y'!$B$3=0,'slash_Summary_G&Y'!B23,'slash_Summary_G&Y'!B22))) -> 20 | Q23: =IF('G&Y report'!$E$3="","",IF('slash_Summary_G&Y'!$B$3=0,'slash_Summary_G&Y'!C23,'slash_Summary_G&Y'!C22)) -> 246.1286553 | R23: =IF('G&Y report'!$E$3="","",IF('slash_Summary_G&Y'!$B$3=0,'slash_Summary_G&Y'!D23,'slash_Summary_G&Y'!D22)) -> 60.07558591 | S23: =IF('G&Y report'!$E$3="","",IF('slash_Summary_G&Y'!$B$3=0,'slash_Summary_G&Y'!E23,'slash_Summary_G&Y'!E22)) -> 82.48585119 | T23: =IF('G&Y report'!$E$3="","",IF('slash_Summary_G&Y'!$B$3=0,'slash_Summary_G&Y'!F23,'slash_Summary_G&Y'!F22)) -> 7.838716289 | U23: =IF('G&Y report'!$E$3="","",IF('slash_Summary_G&Y'!$B$3=0,'slash_Summary_G&Y'!G23,'slash_Summary_G&Y'!G22)) -> 166.5042477 | V23: =IF('G&Y report'!$E$3="","",IF('slash_Summary_G&Y'!$B$3=0,'slash_Summary_G&Y'!H23,'slash_Summary_G&Y'!H22)) -> 2213.26148 | W23: =IF('G&Y report'!$E$3="","",IF('slash_Summary_G&Y'!$B$3=0,'slash_Summary_G&Y'!I23,'slash_Summary_G&Y'!I22)) -> 21.50979072 | X23: =IF('G&Y report'!$E$3="","",IF('slash_Summary_G&Y'!$B$3=0,'slash_Summary_G&Y'!J23,'slash_Summary_G&Y'!J22)) -> 1330.453047 | Y23: =IF('G&Y report'!$E$3="","",IF('slash_Summary_G&Y'!$B$3=0,'slash_Summary_G&Y'!K23,'slash_Summary_G&Y'!K22)) -> 795.9620528 | Z23: =IF('G&Y report'!$E$3="","",IF('slash_Summary_G&Y'!$B$3=0,'slash_Summary_G&Y'!L23,'slash_Summary_G&Y'!L22)) -> 1787.741844 | AA23: =IF('G&Y report'!$E$3="","",IF('slash_Summary_G&Y'!$B$3=0,'slash_Summary_G&Y'!M23,'slash_Summary_G&Y'!M22)) -> 17.37433795 | AB23: =IF('G&Y report'!$E$3="","",IF('slash_Summary_G&Y'!$B$3=0,'slash_Summary_G&Y'!N23,'slash_Summary_G&Y'!N22)) -> 1074.661356 | AC23: =IF('G&Y report'!$E$3="","",IF('slash_Summary_G&Y'!$B$3=0,'slash_Summary_G&Y'!O23,'slash_Summary_G&Y'!O22)) -> 642.9311136 | AD23: =IF('G&Y report'!$F$3="","",IF('long_Summary_G&Y'!$B$3=0,'long_Summary_G&Y'!B23,'long_Summary_G&Y'!B22)) ->  | AE23: =IF('G&Y report'!$F$3="","",IF('long_Summary_G&Y'!$B$3=0,'long_Summary_G&Y'!C23,'long_Summary_G&Y'!C22)) ->  | AF23: =IF('G&Y report'!$F$3="","",IF('long_Summary_G&Y'!$B$3=0,'long_Summary_G&Y'!D23,'long_Summary_G&Y'!D22)) ->  | AG23: =IF('G&Y report'!$F$3="","",IF('long_Summary_G&Y'!$B$3=0,'long_Summary_G&Y'!E23,'long_Summary_G&Y'!E22)) ->  | AH23: =IF('G&Y report'!$F$3="","",IF('long_Summary_G&Y'!$B$3=0,'long_Summary_G&Y'!F23,'long_Summary_G&Y'!F22)) ->  | AI23: =IF('G&Y report'!$F$3="","",IF('long_Summary_G&Y'!$B$3=0,'long_Summary_G&Y'!G23,'long_Summary_G&Y'!G22)) ->  | AJ23: =IF('G&Y report'!$F$3="","",IF('long_Summary_G&Y'!$B$3=0,'long_Summary_G&Y'!H23,'long_Summary_G&Y'!H22)) ->  | AK23: =IF('G&Y report'!$F$3="","",IF('long_Summary_G&Y'!$B$3=0,'long_Summary_G&Y'!I23,'long_Summary_G&Y'!I22)) ->  | AL23: =IF('G&Y report'!$F$3="","",IF('long_Summary_G&Y'!$B$3=0,'long_Summary_G&Y'!J23,'long_Summary_G&Y'!J22)) ->  | AM23: =IF('G&Y report'!$F$3="","",IF('long_Summary_G&Y'!$B$3=0,'long_Summary_G&Y'!K23,'long_Summary_G&Y'!K22)) ->  | AN23: =IF('G&Y report'!$F$3="","",IF('long_Summary_G&Y'!$B$3=0,'long_Summary_G&Y'!L23,'long_Summary_G&Y'!L22)) ->  | AO23: =IF('G&Y report'!$F$3="","",IF('long_Summary_G&Y'!$B$3=0,'long_Summary_G&Y'!M23,'long_Summary_G&Y'!M22)) ->  | AP23: =IF('G&Y report'!$F$3="","",IF('long_Summary_G&Y'!$B$3=0,'long_Summary_G&Y'!N23,'long_Summary_G&Y'!N22)) ->  | AQ23: =IF('G&Y report'!$F$3="","",IF('long_Summary_G&Y'!$B$3=0,'long_Summary_G&Y'!O23,'long_Summary_G&Y'!O22)) ->  | BK23: 20 | BL23: 240.9801157 | BM23: 246.1286553 | BO23: 60.01129323 | BP23: 60.07558591 | BR23: 109.9886297 | BS23: 82.48585119 | BU23: 2473.20917 | BV23: 1787.741844
B24: =IF('G&Y report'!$D$3="","",'lob_Summary_G&Y'!B23) -> 21 | C24: =IF('G&Y report'!$D$3="","",'lob_Summary_G&Y'!C23) -> 238.6842266 | D24: =IF('G&Y report'!$D$3="","",'lob_Summary_G&Y'!D23) -> 62.14139702 | E24: =IF('G&Y report'!$D$3="","",'lob_Summary_G&Y'!E23) -> 116.3623819 | F24: =IF('G&Y report'!$D$3="","",'lob_Summary_G&Y'!F23) -> 9.454329776 | G24: =IF('G&Y report'!$D$3="","",'lob_Summary_G&Y'!G23) -> 218.1278247 | H24: =IF('G&Y report'!$D$3="","",'lob_Summary_G&Y'!H23) -> 3288.367197 | I24: =IF('G&Y report'!$D$3="","",'lob_Summary_G&Y'!I23) -> 237.513417 | J24: =IF('G&Y report'!$D$3="","",'lob_Summary_G&Y'!J23) -> 2279.360583 | K24: =IF('G&Y report'!$D$3="","",'lob_Summary_G&Y'!K23) -> 732.6746856 | L24: =IF('G&Y report'!$D$3="","",'lob_Summary_G&Y'!L23) -> 2724.383653 | M24: =IF('G&Y report'!$D$3="","",'lob_Summary_G&Y'!M23) -> 200.0746084 | N24: =IF('G&Y report'!$D$3="","",'lob_Summary_G&Y'!N23) -> 1873.351418 | O24: =IF('G&Y report'!$D$3="","",'lob_Summary_G&Y'!O23) -> 614.5356138 | P24: =IF('G&Y report'!$E$3="","",IF('slash_Summary_G&Y'!$B$3="","",IF('slash_Summary_G&Y'!$B$3=0,'slash_Summary_G&Y'!B24,'slash_Summary_G&Y'!B23))) -> 21 | Q24: =IF('G&Y report'!$E$3="","",IF('slash_Summary_G&Y'!$B$3=0,'slash_Summary_G&Y'!C24,IF('slash_Summary_G&Y'!C23="","",'slash_Summary_G&Y'!C23))) -> 244.0726122 | R24: =IF('G&Y report'!$E$3="","",IF('slash_Summary_G&Y'!$B$3=0,'slash_Summary_G&Y'!D24,'slash_Summary_G&Y'!D23)) -> 62.38961357 | S24: =IF('G&Y report'!$E$3="","",IF('slash_Summary_G&Y'!$B$3=0,'slash_Summary_G&Y'!E24,'slash_Summary_G&Y'!E23)) -> 86.70784199 | T24: =IF('G&Y report'!$E$3="","",IF('slash_Summary_G&Y'!$B$3=0,'slash_Summary_G&Y'!F24,'slash_Summary_G&Y'!F23)) -> 8.070602721 | U24: =IF('G&Y report'!$E$3="","",IF('slash_Summary_G&Y'!$B$3=0,'slash_Summary_G&Y'!G24,'slash_Summary_G&Y'!G23)) -> 173.0227181 | V24: =IF('G&Y report'!$E$3="","",IF('slash_Summary_G&Y'!$B$3=0,'slash_Summary_G&Y'!H24,'slash_Summary_G&Y'!H23)) -> 2404.440327 | W24: =IF('G&Y report'!$E$3="","",IF('slash_Summary_G&Y'!$B$3=0,'slash_Summary_G&Y'!I24,'slash_Summary_G&Y'!I23)) -> 46.1909219 | X24: =IF('G&Y report'!$E$3="","",IF('slash_Summary_G&Y'!$B$3=0,'slash_Summary_G&Y'!J24,'slash_Summary_G&Y'!J23)) -> 1530.554738 | Y24: =IF('G&Y report'!$E$3="","",IF('slash_Summary_G&Y'!$B$3=0,'slash_Summary_G&Y'!K24,'slash_Summary_G&Y'!K23)) -> 767.1178505 | Z24: =IF('G&Y report'!$E$3="","",IF('slash_Summary_G&Y'!$B$3=0,'slash_Summary_G&Y'!L24,'slash_Summary_G&Y'!L23)) -> 1955.489386 | AA24: =IF('G&Y report'!$E$3="","",IF('slash_Summary_G&Y'!$B$3=0,'slash_Summary_G&Y'!M24,'slash_Summary_G&Y'!M23)) -> 37.56627124 | AB24: =IF('G&Y report'!$E$3="","",IF('slash_Summary_G&Y'!$B$3=0,'slash_Summary_G&Y'!N24,'slash_Summary_G&Y'!N23)) -> 1244.773476 | AC24: =IF('G&Y report'!$E$3="","",IF('slash_Summary_G&Y'!$B$3=0,'slash_Summary_G&Y'!O24,'slash_Summary_G&Y'!O23)) -> 623.8835697 | AD24: =IF('G&Y report'!$F$3="","",IF('long_Summary_G&Y'!$B$3=0,'long_Summary_G&Y'!B24,'long_Summary_G&Y'!B23)) ->  | AE24: =IF('G&Y report'!$F$3="","",IF('long_Summary_G&Y'!$B$3=0,'long_Summary_G&Y'!C24,'long_Summary_G&Y'!C23)) ->  | AF24: =IF('G&Y report'!$F$3="","",IF('long_Summary_G&Y'!$B$3=0,'long_Summary_G&Y'!D24,'long_Summary_G&Y'!D23)) ->  | AG24: =IF('G&Y report'!$F$3="","",IF('long_Summary_G&Y'!$B$3=0,'long_Summary_G&Y'!E24,'long_Summary_G&Y'!E23)) ->  | AH24: =IF('G&Y report'!$F$3="","",IF('long_Summary_G&Y'!$B$3=0,'long_Summary_G&Y'!F24,'long_Summary_G&Y'!F23)) ->  | AI24: =IF('G&Y report'!$F$3="","",IF('long_Summary_G&Y'!$B$3=0,'long_Summary_G&Y'!G24,'long_Summary_G&Y'!G23)) ->  | AJ24: =IF('G&Y report'!$F$3="","",IF('long_Summary_G&Y'!$B$3=0,'long_Summary_G&Y'!H24,'long_Summary_G&Y'!H23)) ->  | AK24: =IF('G&Y report'!$F$3="","",IF('long_Summary_G&Y'!$B$3=0,'long_Summary_G&Y'!I24,'long_Summary_G&Y'!I23)) ->  | AL24: =IF('G&Y report'!$F$3="","",IF('long_Summary_G&Y'!$B$3=0,'long_Summary_G&Y'!J24,'long_Summary_G&Y'!J23)) ->  | AM24: =IF('G&Y report'!$F$3="","",IF('long_Summary_G&Y'!$B$3=0,'long_Summary_G&Y'!K24,'long_Summary_G&Y'!K23)) ->  | AN24: =IF('G&Y report'!$F$3="","",IF('long_Summary_G&Y'!$B$3=0,'long_Summary_G&Y'!L24,'long_Summary_G&Y'!L23)) ->  | AO24: =IF('G&Y report'!$F$3="","",IF('long_Summary_G&Y'!$B$3=0,'long_Summary_G&Y'!M24,'long_Summary_G&Y'!M23)) ->  | AP24: =IF('G&Y report'!$F$3="","",IF('long_Summary_G&Y'!$B$3=0,'long_Summary_G&Y'!N24,'long_Summary_G&Y'!N23)) ->  | AQ24: =IF('G&Y report'!$F$3="","",IF('long_Summary_G&Y'!$B$3=0,'long_Summary_G&Y'!O24,'long_Summary_G&Y'!O23)) ->  | BK24: 21 | BL24: 238.6842266 | BM24: 244.0726122 | BO24: 62.14139702 | BP24: 62.38961357 | BR24: 116.3623819 | BS24: 86.70784199 | BU24: 2724.383653 | BV24: 1955.489386
B25: =IF('G&Y report'!$D$3="","",'lob_Summary_G&Y'!B24) -> 22 | C25: =IF('G&Y report'!$D$3="","",'lob_Summary_G&Y'!C24) -> 236.3483379 | D25: =IF('G&Y report'!$D$3="","",'lob_Summary_G&Y'!D24) -> 64.2025586 | E25: =IF('G&Y report'!$D$3="","",'lob_Summary_G&Y'!E24) -> 122.1619311 | F25: =IF('G&Y report'!$D$3="","",'lob_Summary_G&Y'!F24) -> 9.73482108 | G25: =IF('G&Y report'!$D$3="","",'lob_Summary_G&Y'!G24) -> 226.3700415 | H25: =IF('G&Y report'!$D$3="","",'lob_Summary_G&Y'!H24) -> 3563.371782 | I25: =IF('G&Y report'!$D$3="","",'lob_Summary_G&Y'!I24) -> 379.3245861 | J25: =IF('G&Y report'!$D$3="","",'lob_Summary_G&Y'!J24) -> 2453.734473 | K25: =IF('G&Y report'!$D$3="","",'lob_Summary_G&Y'!K24) -> 694.4504072 | L25: =IF('G&Y report'!$D$3="","",'lob_Summary_G&Y'!L24) -> 2965.455644 | M25: =IF('G&Y report'!$D$3="","",'lob_Summary_G&Y'!M24) -> 318.9379717 | N25: =IF('G&Y report'!$D$3="","",'lob_Summary_G&Y'!N24) -> 2025.947302 | O25: =IF('G&Y report'!$D$3="","",'lob_Summary_G&Y'!O24) -> 586.7295481 | P25: =IF('G&Y report'!$E$3="","",IF('slash_Summary_G&Y'!$B$3="","",IF('slash_Summary_G&Y'!$B$3=0,'slash_Summary_G&Y'!B25,'slash_Summary_G&Y'!B24))) -> 22 | Q25: =IF('G&Y report'!$E$3="","",IF('slash_Summary_G&Y'!$B$3=0,'slash_Summary_G&Y'!C25,IF('slash_Summary_G&Y'!C24="","",'slash_Summary_G&Y'!C24))) -> 242.0001052 | R25: =IF('G&Y report'!$E$3="","",IF('slash_Summary_G&Y'!$B$3=0,'slash_Summary_G&Y'!D25,'slash_Summary_G&Y'!D24)) -> 64.57463473 | S25: =IF('G&Y report'!$E$3="","",IF('slash_Summary_G&Y'!$B$3=0,'slash_Summary_G&Y'!E25,'slash_Summary_G&Y'!E24)) -> 90.64260885 | T25: =IF('G&Y report'!$E$3="","",IF('slash_Summary_G&Y'!$B$3=0,'slash_Summary_G&Y'!F25,'slash_Summary_G&Y'!F24)) -> 8.28695015 | U25: =IF('G&Y report'!$E$3="","",IF('slash_Summary_G&Y'!$B$3=0,'slash_Summary_G&Y'!G25,'slash_Summary_G&Y'!G24)) -> 178.9942544 | V25: =IF('G&Y report'!$E$3="","",IF('slash_Summary_G&Y'!$B$3=0,'slash_Summary_G&Y'!H25,'slash_Summary_G&Y'!H24)) -> 2589.993493 | W25: =IF('G&Y report'!$E$3="","",IF('slash_Summary_G&Y'!$B$3=0,'slash_Summary_G&Y'!I25,'slash_Summary_G&Y'!I24)) -> 84.52489207 | X25: =IF('G&Y report'!$E$3="","",IF('slash_Summary_G&Y'!$B$3=0,'slash_Summary_G&Y'!J25,'slash_Summary_G&Y'!J24)) -> 1710.520208 | Y25: =IF('G&Y report'!$E$3="","",IF('slash_Summary_G&Y'!$B$3=0,'slash_Summary_G&Y'!K25,'slash_Summary_G&Y'!K24)) -> 738.4358331 | Z25: =IF('G&Y report'!$E$3="","",IF('slash_Summary_G&Y'!$B$3=0,'slash_Summary_G&Y'!L25,'slash_Summary_G&Y'!L24)) -> 2119.546266 | AA25: =IF('G&Y report'!$E$3="","",IF('slash_Summary_G&Y'!$B$3=0,'slash_Summary_G&Y'!M25,'slash_Summary_G&Y'!M24)) -> 69.17176428 | AB25: =IF('G&Y report'!$E$3="","",IF('slash_Summary_G&Y'!$B$3=0,'slash_Summary_G&Y'!N25,'slash_Summary_G&Y'!N24)) -> 1399.820783 | AC25: =IF('G&Y report'!$E$3="","",IF('slash_Summary_G&Y'!$B$3=0,'slash_Summary_G&Y'!O25,'slash_Summary_G&Y'!O24)) -> 604.3061178 | AD25: =IF('G&Y report'!$F$3="","",IF('long_Summary_G&Y'!$B$3=0,'long_Summary_G&Y'!B25,'long_Summary_G&Y'!B24)) ->  | AE25: =IF('G&Y report'!$F$3="","",IF('long_Summary_G&Y'!$B$3=0,'long_Summary_G&Y'!C25,'long_Summary_G&Y'!C24)) ->  | AF25: =IF('G&Y report'!$F$3="","",IF('long_Summary_G&Y'!$B$3=0,'long_Summary_G&Y'!D25,'long_Summary_G&Y'!D24)) ->  | AG25: =IF('G&Y report'!$F$3="","",IF('long_Summary_G&Y'!$B$3=0,'long_Summary_G&Y'!E25,'long_Summary_G&Y'!E24)) ->  | AH25: =IF('G&Y report'!$F$3="","",IF('long_Summary_G&Y'!$B$3=0,'long_Summary_G&Y'!F25,'long_Summary_G&Y'!F24)) ->  | AI25: =IF('G&Y report'!$F$3="","",IF('long_Summary_G&Y'!$B$3=0,'long_Summary_G&Y'!G25,'long_Summary_G&Y'!G24)) ->  | AJ25: =IF('G&Y report'!$F$3="","",IF('long_Summary_G&Y'!$B$3=0,'long_Summary_G&Y'!H25,'long_Summary_G&Y'!H24)) ->  | AK25: =IF('G&Y report'!$F$3="","",IF('long_Summary_G&Y'!$B$3=0,'long_Summary_G&Y'!I25,'long_Summary_G&Y'!I24)) ->  | AL25: =IF('G&Y report'!$F$3="","",IF('long_Summary_G&Y'!$B$3=0,'long_Summary_G&Y'!J25,'long_Summary_G&Y'!J24)) ->  | AM25: =IF('G&Y report'!$F$3="","",IF('long_Summary_G&Y'!$B$3=0,'long_Summary_G&Y'!K25,'long_Summary_G&Y'!K24)) ->  | AN25: =IF('G&Y report'!$F$3="","",IF('long_Summary_G&Y'!$B$3=0,'long_Summary_G&Y'!L25,'long_Summary_G&Y'!L24)) ->  | AO25: =IF('G&Y report'!$F$3="","",IF('long_Summary_G&Y'!$B$3=0,'long_Summary_G&Y'!M25,'long_Summary_G&Y'!M24)) ->  | AP25: =IF('G&Y report'!$F$3="","",IF('long_Summary_G&Y'!$B$3=0,'long_Summary_G&Y'!N25,'long_Summary_G&Y'!N24)) ->  | AQ25: =IF('G&Y report'!$F$3="","",IF('long_Summary_G&Y'!$B$3=0,'long_Summary_G&Y'!O25,'long_Summary_G&Y'!O24)) ->  | BK25: 22 | BL25: 236.3483379 | BM25: 242.0001052 | BO25: 64.2025586 | BP25: 64.57463473 | BR25: 122.1619311 | BS25: 90.64260885 | BU25: 2965.455644 | BV25: 2119.546266
B26: =IF('G&Y report'!$D$3="","",'lob_Summary_G&Y'!B25) -> 23 | C26: =IF('G&Y report'!$D$3="","",'lob_Summary_G&Y'!C25) -> 233.9790607 | D26: =IF('G&Y report'!$D$3="","",'lob_Summary_G&Y'!D25) -> 66.19759215 | E26: =IF('G&Y report'!$D$3="","",'lob_Summary_G&Y'!E25) -> 127.4150453 | F26: =IF('G&Y report'!$D$3="","",'lob_Summary_G&Y'!F25) -> 9.992132061 | G26: =IF('G&Y report'!$D$3="","",'lob_Summary_G&Y'!G25) -> 233.6836613 | H26: =IF('G&Y report'!$D$3="","",'lob_Summary_G&Y'!H25) -> 3824.049135 | I26: =IF('G&Y report'!$D$3="","",'lob_Summary_G&Y'!I25) -> 547.1886225 | J26: =IF('G&Y report'!$D$3="","",'lob_Summary_G&Y'!J25) -> 2583.051133 | K26: =IF('G&Y report'!$D$3="","",'lob_Summary_G&Y'!K25) -> 660.4050483 | L26: =IF('G&Y report'!$D$3="","",'lob_Summary_G&Y'!L25) -> 3195.629899 | M26: =IF('G&Y report'!$D$3="","",'lob_Summary_G&Y'!M25) -> 459.9587085 | N26: =IF('G&Y report'!$D$3="","",'lob_Summary_G&Y'!N25) -> 2142.27824 | O26: =IF('G&Y report'!$D$3="","",'lob_Summary_G&Y'!O25) -> 561.7057108 | P26: =IF('G&Y report'!$E$3="","",IF('slash_Summary_G&Y'!$B$3="","",IF('slash_Summary_G&Y'!$B$3=0,'slash_Summary_G&Y'!B26,'slash_Summary_G&Y'!B25))) -> 23 | Q26: =IF('G&Y report'!$E$3="","",IF('slash_Summary_G&Y'!$B$3=0,'slash_Summary_G&Y'!C26,IF('slash_Summary_G&Y'!C25="","",'slash_Summary_G&Y'!C25))) -> 239.9128491 | R26: =IF('G&Y report'!$E$3="","",IF('slash_Summary_G&Y'!$B$3=0,'slash_Summary_G&Y'!D26,'slash_Summary_G&Y'!D25)) -> 66.63490911 | S26: =IF('G&Y report'!$E$3="","",IF('slash_Summary_G&Y'!$B$3=0,'slash_Summary_G&Y'!E26,'slash_Summary_G&Y'!E25)) -> 94.29569378 | T26: =IF('G&Y report'!$E$3="","",IF('slash_Summary_G&Y'!$B$3=0,'slash_Summary_G&Y'!F26,'slash_Summary_G&Y'!F25)) -> 8.488979432 | U26: =IF('G&Y report'!$E$3="","",IF('slash_Summary_G&Y'!$B$3=0,'slash_Summary_G&Y'!G26,'slash_Summary_G&Y'!G25)) -> 184.4448595 | V26: =IF('G&Y report'!$E$3="","",IF('slash_Summary_G&Y'!$B$3=0,'slash_Summary_G&Y'!H26,'slash_Summary_G&Y'!H25)) -> 2768.968778 | W26: =IF('G&Y report'!$E$3="","",IF('slash_Summary_G&Y'!$B$3=0,'slash_Summary_G&Y'!I26,'slash_Summary_G&Y'!I25)) -> 137.4588688 | X26: =IF('G&Y report'!$E$3="","",IF('slash_Summary_G&Y'!$B$3=0,'slash_Summary_G&Y'!J26,'slash_Summary_G&Y'!J25)) -> 1867.766796 | Y26: =IF('G&Y report'!$E$3="","",IF('slash_Summary_G&Y'!$B$3=0,'slash_Summary_G&Y'!K26,'slash_Summary_G&Y'!K25)) -> 710.735367 | Z26: =IF('G&Y report'!$E$3="","",IF('slash_Summary_G&Y'!$B$3=0,'slash_Summary_G&Y'!L26,'slash_Summary_G&Y'!L25)) -> 2278.908918 | AA26: =IF('G&Y report'!$E$3="","",IF('slash_Summary_G&Y'!$B$3=0,'slash_Summary_G&Y'!M26,'slash_Summary_G&Y'!M25)) -> 113.1310127 | AB26: =IF('G&Y report'!$E$3="","",IF('slash_Summary_G&Y'!$B$3=0,'slash_Summary_G&Y'!N26,'slash_Summary_G&Y'!N25)) -> 1537.20419 | AC26: =IF('G&Y report'!$E$3="","",IF('slash_Summary_G&Y'!$B$3=0,'slash_Summary_G&Y'!O26,'slash_Summary_G&Y'!O25)) -> 584.9474284 | AD26: =IF('G&Y report'!$F$3="","",IF('long_Summary_G&Y'!$B$3=0,'long_Summary_G&Y'!B26,'long_Summary_G&Y'!B25)) ->  | AE26: =IF('G&Y report'!$F$3="","",IF('long_Summary_G&Y'!$B$3=0,'long_Summary_G&Y'!C26,'long_Summary_G&Y'!C25)) ->  | AF26: =IF('G&Y report'!$F$3="","",IF('long_Summary_G&Y'!$B$3=0,'long_Summary_G&Y'!D26,'long_Summary_G&Y'!D25)) ->  | AG26: =IF('G&Y report'!$F$3="","",IF('long_Summary_G&Y'!$B$3=0,'long_Summary_G&Y'!E26,'long_Summary_G&Y'!E25)) ->  | AH26: =IF('G&Y report'!$F$3="","",IF('long_Summary_G&Y'!$B$3=0,'long_Summary_G&Y'!F26,'long_Summary_G&Y'!F25)) ->  | AI26: =IF('G&Y report'!$F$3="","",IF('long_Summary_G&Y'!$B$3=0,'long_Summary_G&Y'!G26,'long_Summary_G&Y'!G25)) ->  | AJ26: =IF('G&Y report'!$F$3="","",IF('long_Summary_G&Y'!$B$3=0,'long_Summary_G&Y'!H26,'long_Summary_G&Y'!H25)) ->  | AK26: =IF('G&Y report'!$F$3="","",IF('long_Summary_G&Y'!$B$3=0,'long_Summary_G&Y'!I26,'long_Summary_G&Y'!I25)) ->  | AL26: =IF('G&Y report'!$F$3="","",IF('long_Summary_G&Y'!$B$3=0,'long_Summary_G&Y'!J26,'long_Summary_G&Y'!J25)) ->  | AM26: =IF('G&Y report'!$F$3="","",IF('long_Summary_G&Y'!$B$3=0,'long_Summary_G&Y'!K26,'long_Summary_G&Y'!K25)) ->  | AN26: =IF('G&Y report'!$F$3="","",IF('long_Summary_G&Y'!$B$3=0,'long_Summary_G&Y'!L26,'long_Summary_G&Y'!L25)) ->  | AO26: =IF('G&Y report'!$F$3="","",IF('long_Summary_G&Y'!$B$3=0,'long_Summary_G&Y'!M26,'long_Summary_G&Y'!M25)) ->  | AP26: =IF('G&Y report'!$F$3="","",IF('long_Summary_G&Y'!$B$3=0,'long_Summary_G&Y'!N26,'long_Summary_G&Y'!N25)) ->  | AQ26: =IF('G&Y report'!$F$3="","",IF('long_Summary_G&Y'!$B$3=0,'long_Summary_G&Y'!O26,'long_Summary_G&Y'!O25)) ->  | BK26: 23 | BL26: 233.9790607 | BM26: 239.9128491 | BO26: 66.19759215 | BP26: 66.63490911 | BR26: 127.4150453 | BS26: 94.29569378 | BU26: 3195.629899 | BV26: 2278.908918
B27: =IF('G&Y report'!$D$3="","",'lob_Summary_G&Y'!B26) -> 24 | C27: =IF('G&Y report'!$D$3="","",'lob_Summary_G&Y'!C26) -> 231.5827643 | D27: =IF('G&Y report'!$D$3="","",'lob_Summary_G&Y'!D26) -> 68.12920584 | E27: =IF('G&Y report'!$D$3="","",'lob_Summary_G&Y'!E26) -> 132.1532985 | F27: =IF('G&Y report'!$D$3="","",'lob_Summary_G&Y'!F26) -> 10.22874124 | G27: =IF('G&Y report'!$D$3="","",'lob_Summary_G&Y'!G26) -> 240.143509 | H27: =IF('G&Y report'!$D$3="","",'lob_Summary_G&Y'!H26) -> 4070.180587 | I27: =IF('G&Y report'!$D$3="","",'lob_Summary_G&Y'!I26) -> 733.4893798 | J27: =IF('G&Y report'!$D$3="","",'lob_Summary_G&Y'!J26) -> 2675.192483 | K27: =IF('G&Y report'!$D$3="","",'lob_Summary_G&Y'!K26) -> 630.1643381 | L27: =IF('G&Y report'!$D$3="","",'lob_Summary_G&Y'!L26) -> 3414.48233 | M27: =IF('G&Y report'!$D$3="","",'lob_Summary_G&Y'!M26) -> 617.0085622 | N27: =IF('G&Y report'!$D$3="","",'lob_Summary_G&Y'!N26) -> 2228.316335 | O27: =IF('G&Y report'!$D$3="","",'lob_Summary_G&Y'!O26) -> 539.2894033 | P27: =IF('G&Y report'!$E$3="","",IF('slash_Summary_G&Y'!$B$3="","",IF('slash_Summary_G&Y'!$B$3=0,'slash_Summary_G&Y'!B27,'slash_Summary_G&Y'!B26))) -> 24 | Q27: =IF('G&Y report'!$E$3="","",IF('slash_Summary_G&Y'!$B$3=0,'slash_Summary_G&Y'!C27,IF('slash_Summary_G&Y'!C26="","",'slash_Summary_G&Y'!C26))) -> 237.8124519 | R27: =IF('G&Y report'!$E$3="","",IF('slash_Summary_G&Y'!$B$3=0,'slash_Summary_G&Y'!D27,'slash_Summary_G&Y'!D26)) -> 68.5750852 | S27: =IF('G&Y report'!$E$3="","",IF('slash_Summary_G&Y'!$B$3=0,'slash_Summary_G&Y'!E27,'slash_Summary_G&Y'!E26)) -> 97.67496078 | T27: =IF('G&Y report'!$E$3="","",IF('slash_Summary_G&Y'!$B$3=0,'slash_Summary_G&Y'!F27,'slash_Summary_G&Y'!F26)) -> 8.677819905 | U27: =IF('G&Y report'!$E$3="","",IF('slash_Summary_G&Y'!$B$3=0,'slash_Summary_G&Y'!G27,'slash_Summary_G&Y'!G26)) -> 189.4016056 | V27: =IF('G&Y report'!$E$3="","",IF('slash_Summary_G&Y'!$B$3=0,'slash_Summary_G&Y'!H27,'slash_Summary_G&Y'!H26)) -> 2940.630695 | W27: =IF('G&Y report'!$E$3="","",IF('slash_Summary_G&Y'!$B$3=0,'slash_Summary_G&Y'!I27,'slash_Summary_G&Y'!I26)) -> 204.5361992 | X27: =IF('G&Y report'!$E$3="","",IF('slash_Summary_G&Y'!$B$3=0,'slash_Summary_G&Y'!J27,'slash_Summary_G&Y'!J26)) -> 2001.714145 | Y27: =IF('G&Y report'!$E$3="","",IF('slash_Summary_G&Y'!$B$3=0,'slash_Summary_G&Y'!K27,'slash_Summary_G&Y'!K26)) -> 684.4227505 | Z27: =IF('G&Y report'!$E$3="","",IF('slash_Summary_G&Y'!$B$3=0,'slash_Summary_G&Y'!L27,'slash_Summary_G&Y'!L26)) -> 2432.768163 | AA27: =IF('G&Y report'!$E$3="","",IF('slash_Summary_G&Y'!$B$3=0,'slash_Summary_G&Y'!M27,'slash_Summary_G&Y'!M26)) -> 169.2117118 | AB27: =IF('G&Y report'!$E$3="","",IF('slash_Summary_G&Y'!$B$3=0,'slash_Summary_G&Y'!N27,'slash_Summary_G&Y'!N26)) -> 1656.007486 | AC27: =IF('G&Y report'!$E$3="","",IF('slash_Summary_G&Y'!$B$3=0,'slash_Summary_G&Y'!O27,'slash_Summary_G&Y'!O26)) -> 566.2193081 | AD27: =IF('G&Y report'!$F$3="","",IF('long_Summary_G&Y'!$B$3=0,'long_Summary_G&Y'!B27,'long_Summary_G&Y'!B26)) ->  | AE27: =IF('G&Y report'!$F$3="","",IF('long_Summary_G&Y'!$B$3=0,'long_Summary_G&Y'!C27,'long_Summary_G&Y'!C26)) ->  | AF27: =IF('G&Y report'!$F$3="","",IF('long_Summary_G&Y'!$B$3=0,'long_Summary_G&Y'!D27,'long_Summary_G&Y'!D26)) ->  | AG27: =IF('G&Y report'!$F$3="","",IF('long_Summary_G&Y'!$B$3=0,'long_Summary_G&Y'!E27,'long_Summary_G&Y'!E26)) ->  | AH27: =IF('G&Y report'!$F$3="","",IF('long_Summary_G&Y'!$B$3=0,'long_Summary_G&Y'!F27,'long_Summary_G&Y'!F26)) ->  | AI27: =IF('G&Y report'!$F$3="","",IF('long_Summary_G&Y'!$B$3=0,'long_Summary_G&Y'!G27,'long_Summary_G&Y'!G26)) ->  | AJ27: =IF('G&Y report'!$F$3="","",IF('long_Summary_G&Y'!$B$3=0,'long_Summary_G&Y'!H27,'long_Summary_G&Y'!H26)) ->  | AK27: =IF('G&Y report'!$F$3="","",IF('long_Summary_G&Y'!$B$3=0,'long_Summary_G&Y'!I27,'long_Summary_G&Y'!I26)) ->  | AL27: =IF('G&Y report'!$F$3="","",IF('long_Summary_G&Y'!$B$3=0,'long_Summary_G&Y'!J27,'long_Summary_G&Y'!J26)) ->  | AM27: =IF('G&Y report'!$F$3="","",IF('long_Summary_G&Y'!$B$3=0,'long_Summary_G&Y'!K27,'long_Summary_G&Y'!K26)) ->  | AN27: =IF('G&Y report'!$F$3="","",IF('long_Summary_G&Y'!$B$3=0,'long_Summary_G&Y'!L27,'long_Summary_G&Y'!L26)) ->  | AO27: =IF('G&Y report'!$F$3="","",IF('long_Summary_G&Y'!$B$3=0,'long_Summary_G&Y'!M27,'long_Summary_G&Y'!M26)) ->  | AP27: =IF('G&Y report'!$F$3="","",IF('long_Summary_G&Y'!$B$3=0,'long_Summary_G&Y'!N27,'long_Summary_G&Y'!N26)) ->  | AQ27: =IF('G&Y report'!$F$3="","",IF('long_Summary_G&Y'!$B$3=0,'long_Summary_G&Y'!O27,'long_Summary_G&Y'!O26)) ->  | BK27: 24 | BL27: 231.5827643 | BM27: 237.8124519 | BO27: 68.12920584 | BP27: 68.5750852 | BR27: 132.1532985 | BS27: 97.67496078 | BU27: 3414.48233 | BV27: 2432.768163
B28: =IF('G&Y report'!$D$3="","",'lob_Summary_G&Y'!B27) -> 25 | C28: =IF('G&Y report'!$D$3="","",'lob_Summary_G&Y'!C27) -> 229.1655534 | D28: =IF('G&Y report'!$D$3="","",'lob_Summary_G&Y'!D27) -> 70 | E28: =IF('G&Y report'!$D$3="","",'lob_Summary_G&Y'!E27) -> 136.4103194 | F28: =IF('G&Y report'!$D$3="","",'lob_Summary_G&Y'!F27) -> 10.44684736 | G28: =IF('G&Y report'!$D$3="","",'lob_Summary_G&Y'!G27) -> 245.8219521 | H28: =IF('G&Y report'!$D$3="","",'lob_Summary_G&Y'!H27) -> 4301.848458 | I28: =IF('G&Y report'!$D$3="","",'lob_Summary_G&Y'!I27) -> 931.230626 | J28: =IF('G&Y report'!$D$3="","",'lob_Summary_G&Y'!J27) -> 2737.767118 | K28: =IF('G&Y report'!$D$3="","",'lob_Summary_G&Y'!K27) -> 603.2797813 | L28: =IF('G&Y report'!$D$3="","",'lob_Summary_G&Y'!L27) -> 3621.870411 | M28: =IF('G&Y report'!$D$3="","",'lob_Summary_G&Y'!M27) -> 784.3959379 | N28: =IF('G&Y report'!$D$3="","",'lob_Summary_G&Y'!N27) -> 2289.944 | O28: =IF('G&Y report'!$D$3="","",'lob_Summary_G&Y'!O27) -> 519.2166611 | P28: =IF('G&Y report'!$E$3="","",IF('slash_Summary_G&Y'!$B$3="","",IF('slash_Summary_G&Y'!$B$3=0,'slash_Summary_G&Y'!B28,'slash_Summary_G&Y'!B27))) -> 25 | Q28: =IF('G&Y report'!$E$3="","",IF('slash_Summary_G&Y'!$B$3=0,'slash_Summary_G&Y'!C28,IF('slash_Summary_G&Y'!C27="","",'slash_Summary_G&Y'!C27))) -> 235.7004254 | R28: =IF('G&Y report'!$E$3="","",IF('slash_Summary_G&Y'!$B$3=0,'slash_Summary_G&Y'!D28,'slash_Summary_G&Y'!D27)) -> 70.4 | S28: =IF('G&Y report'!$E$3="","",IF('slash_Summary_G&Y'!$B$3=0,'slash_Summary_G&Y'!E28,'slash_Summary_G&Y'!E27)) -> 100.7898369 | T28: =IF('G&Y report'!$E$3="","",IF('slash_Summary_G&Y'!$B$3=0,'slash_Summary_G&Y'!F28,'slash_Summary_G&Y'!F27)) -> 8.854509199 | U28: =IF('G&Y report'!$E$3="","",IF('slash_Summary_G&Y'!$B$3=0,'slash_Summary_G&Y'!G28,'slash_Summary_G&Y'!G27)) -> 193.8917714 | V28: =IF('G&Y report'!$E$3="","",IF('slash_Summary_G&Y'!$B$3=0,'slash_Summary_G&Y'!H28,'slash_Summary_G&Y'!H27)) -> 3104.428844 | W28: =IF('G&Y report'!$E$3="","",IF('slash_Summary_G&Y'!$B$3=0,'slash_Summary_G&Y'!I28,'slash_Summary_G&Y'!I27)) -> 284.2782533 | X28: =IF('G&Y report'!$E$3="","",IF('slash_Summary_G&Y'!$B$3=0,'slash_Summary_G&Y'!J28,'slash_Summary_G&Y'!J27)) -> 2113.207552 | Y28: =IF('G&Y report'!$E$3="","",IF('slash_Summary_G&Y'!$B$3=0,'slash_Summary_G&Y'!K28,'slash_Summary_G&Y'!K27)) -> 659.662412 | Z28: =IF('G&Y report'!$E$3="","",IF('slash_Summary_G&Y'!$B$3=0,'slash_Summary_G&Y'!L28,'slash_Summary_G&Y'!L27)) -> 2580.485444 | AA28: =IF('G&Y report'!$E$3="","",IF('slash_Summary_G&Y'!$B$3=0,'slash_Summary_G&Y'!M28,'slash_Summary_G&Y'!M27)) -> 236.2997936 | AB28: =IF('G&Y report'!$E$3="","",IF('slash_Summary_G&Y'!$B$3=0,'slash_Summary_G&Y'!N28,'slash_Summary_G&Y'!N27)) -> 1756.555426 | AC28: =IF('G&Y report'!$E$3="","",IF('slash_Summary_G&Y'!$B$3=0,'slash_Summary_G&Y'!O28,'slash_Summary_G&Y'!O27)) -> 548.3292864 | AD28: =IF('G&Y report'!$F$3="","",IF('long_Summary_G&Y'!$B$3=0,'long_Summary_G&Y'!B28,'long_Summary_G&Y'!B27)) ->  | AE28: =IF('G&Y report'!$F$3="","",IF('long_Summary_G&Y'!$B$3=0,'long_Summary_G&Y'!C28,'long_Summary_G&Y'!C27)) ->  | AF28: =IF('G&Y report'!$F$3="","",IF('long_Summary_G&Y'!$B$3=0,'long_Summary_G&Y'!D28,'long_Summary_G&Y'!D27)) ->  | AG28: =IF('G&Y report'!$F$3="","",IF('long_Summary_G&Y'!$B$3=0,'long_Summary_G&Y'!E28,'long_Summary_G&Y'!E27)) ->  | AH28: =IF('G&Y report'!$F$3="","",IF('long_Summary_G&Y'!$B$3=0,'long_Summary_G&Y'!F28,'long_Summary_G&Y'!F27)) ->  | AI28: =IF('G&Y report'!$F$3="","",IF('long_Summary_G&Y'!$B$3=0,'long_Summary_G&Y'!G28,'long_Summary_G&Y'!G27)) ->  | AJ28: =IF('G&Y report'!$F$3="","",IF('long_Summary_G&Y'!$B$3=0,'long_Summary_G&Y'!H28,'long_Summary_G&Y'!H27)) ->  | AK28: =IF('G&Y report'!$F$3="","",IF('long_Summary_G&Y'!$B$3=0,'long_Summary_G&Y'!I28,'long_Summary_G&Y'!I27)) ->  | AL28: =IF('G&Y report'!$F$3="","",IF('long_Summary_G&Y'!$B$3=0,'long_Summary_G&Y'!J28,'long_Summary_G&Y'!J27)) ->  | AM28: =IF('G&Y report'!$F$3="","",IF('long_Summary_G&Y'!$B$3=0,'long_Summary_G&Y'!K28,'long_Summary_G&Y'!K27)) ->  | AN28: =IF('G&Y report'!$F$3="","",IF('long_Summary_G&Y'!$B$3=0,'long_Summary_G&Y'!L28,'long_Summary_G&Y'!L27)) ->  | AO28: =IF('G&Y report'!$F$3="","",IF('long_Summary_G&Y'!$B$3=0,'long_Summary_G&Y'!M28,'long_Summary_G&Y'!M27)) ->  | AP28: =IF('G&Y report'!$F$3="","",IF('long_Summary_G&Y'!$B$3=0,'long_Summary_G&Y'!N28,'long_Summary_G&Y'!N27)) ->  | AQ28: =IF('G&Y report'!$F$3="","",IF('long_Summary_G&Y'!$B$3=0,'long_Summary_G&Y'!O28,'long_Summary_G&Y'!O27)) ->  | BK28: 25 | BL28: 229.1655534 | BM28: 235.7004254 | BO28: 70 | BP28: 70.4 | BR28: 136.4103194 | BS28: 100.7898369 | BU28: 3621.870411 | BV28: 2580.485444
B29: =IF('G&Y report'!$D$3="","",'lob_Summary_G&Y'!B28) -> 26 | C29: =IF('G&Y report'!$D$3="","",'lob_Summary_G&Y'!C28) -> 226.73325 | D29: =IF('G&Y report'!$D$3="","",'lob_Summary_G&Y'!D28) -> 71.81246707 | E29: =IF('G&Y report'!$D$3="","",'lob_Summary_G&Y'!E28) -> 140.2205024 | F29: =IF('G&Y report'!$D$3="","",'lob_Summary_G&Y'!F28) -> 10.64840249 | G29: =IF('G&Y report'!$D$3="","",'lob_Summary_G&Y'!G28) -> 250.7880096 | H29: =IF('G&Y report'!$D$3="","",'lob_Summary_G&Y'!H28) -> 4519.35223 | I29: =IF('G&Y report'!$D$3="","",'lob_Summary_G&Y'!I28) -> 1134.617947 | J29: =IF('G&Y report'!$D$3="","",'lob_Summary_G&Y'!J28) -> 2777.372501 | K29: =IF('G&Y report'!$D$3="","",'lob_Summary_G&Y'!K28) -> 579.3091612 | L29: =IF('G&Y report'!$D$3="","",'lob_Summary_G&Y'!L28) -> 3817.86219 | M29: =IF('G&Y report'!$D$3="","",'lob_Summary_G&Y'!M28) -> 957.3491513 | N29: =IF('G&Y report'!$D$3="","",'lob_Summary_G&Y'!N28) -> 2332.335369 | O29: =IF('G&Y report'!$D$3="","",'lob_Summary_G&Y'!O28) -> 501.2055242 | P29: =IF('G&Y report'!$E$3="","",IF('slash_Summary_G&Y'!$B$3="","",IF('slash_Summary_G&Y'!$B$3=0,'slash_Summary_G&Y'!B29,'slash_Summary_G&Y'!B28))) -> 26 | Q29: =IF('G&Y report'!$E$3="","",IF('slash_Summary_G&Y'!$B$3=0,'slash_Summary_G&Y'!C29,IF('slash_Summary_G&Y'!C28="","",'slash_Summary_G&Y'!C28))) -> 233.5781935 | R29: =IF('G&Y report'!$E$3="","",IF('slash_Summary_G&Y'!$B$3=0,'slash_Summary_G&Y'!D29,'slash_Summary_G&Y'!D28)) -> 71.72574171 | S29: =IF('G&Y report'!$E$3="","",IF('slash_Summary_G&Y'!$B$3=0,'slash_Summary_G&Y'!E29,'slash_Summary_G&Y'!E28)) -> 102.8547151 | T29: =IF('G&Y report'!$E$3="","",IF('slash_Summary_G&Y'!$B$3=0,'slash_Summary_G&Y'!F29,'slash_Summary_G&Y'!F28)) -> 8.985293352 | U29: =IF('G&Y report'!$E$3="","",IF('slash_Summary_G&Y'!$B$3=0,'slash_Summary_G&Y'!G29,'slash_Summary_G&Y'!G28)) -> 196.721385 | V29: =IF('G&Y report'!$E$3="","",IF('slash_Summary_G&Y'!$B$3=0,'slash_Summary_G&Y'!H29,'slash_Summary_G&Y'!H28)) -> 3220.193617 | W29: =IF('G&Y report'!$E$3="","",IF('slash_Summary_G&Y'!$B$3=0,'slash_Summary_G&Y'!I29,'slash_Summary_G&Y'!I28)) -> 353.470437 | X29: =IF('G&Y report'!$E$3="","",IF('slash_Summary_G&Y'!$B$3=0,'slash_Summary_G&Y'!J29,'slash_Summary_G&Y'!J28)) -> 2181.372508 | Y29: =IF('G&Y report'!$E$3="","",IF('slash_Summary_G&Y'!$B$3=0,'slash_Summary_G&Y'!K29,'slash_Summary_G&Y'!K28)) -> 640.0412819 | Z29: =IF('G&Y report'!$E$3="","",IF('slash_Summary_G&Y'!$B$3=0,'slash_Summary_G&Y'!L29,'slash_Summary_G&Y'!L28)) -> 2685.804569 | AA29: =IF('G&Y report'!$E$3="","",IF('slash_Summary_G&Y'!$B$3=0,'slash_Summary_G&Y'!M29,'slash_Summary_G&Y'!M28)) -> 294.8122466 | AB29: =IF('G&Y report'!$E$3="","",IF('slash_Summary_G&Y'!$B$3=0,'slash_Summary_G&Y'!N29,'slash_Summary_G&Y'!N28)) -> 1819.375151 | AC29: =IF('G&Y report'!$E$3="","",IF('slash_Summary_G&Y'!$B$3=0,'slash_Summary_G&Y'!O29,'slash_Summary_G&Y'!O28)) -> 533.8268451 | AD29: =IF('G&Y report'!$F$3="","",IF('long_Summary_G&Y'!$B$3=0,'long_Summary_G&Y'!B29,'long_Summary_G&Y'!B28)) ->  | AE29: =IF('G&Y report'!$F$3="","",IF('long_Summary_G&Y'!$B$3=0,'long_Summary_G&Y'!C29,'long_Summary_G&Y'!C28)) ->  | AF29: =IF('G&Y report'!$F$3="","",IF('long_Summary_G&Y'!$B$3=0,'long_Summary_G&Y'!D29,'long_Summary_G&Y'!D28)) ->  | AG29: =IF('G&Y report'!$F$3="","",IF('long_Summary_G&Y'!$B$3=0,'long_Summary_G&Y'!E29,'long_Summary_G&Y'!E28)) ->  | AH29: =IF('G&Y report'!$F$3="","",IF('long_Summary_G&Y'!$B$3=0,'long_Summary_G&Y'!F29,'long_Summary_G&Y'!F28)) ->  | AI29: =IF('G&Y report'!$F$3="","",IF('long_Summary_G&Y'!$B$3=0,'long_Summary_G&Y'!G29,'long_Summary_G&Y'!G28)) ->  | AJ29: =IF('G&Y report'!$F$3="","",IF('long_Summary_G&Y'!$B$3=0,'long_Summary_G&Y'!H29,'long_Summary_G&Y'!H28)) ->  | AK29: =IF('G&Y report'!$F$3="","",IF('long_Summary_G&Y'!$B$3=0,'long_Summary_G&Y'!I29,'long_Summary_G&Y'!I28)) ->  | AL29: =IF('G&Y report'!$F$3="","",IF('long_Summary_G&Y'!$B$3=0,'long_Summary_G&Y'!J29,'long_Summary_G&Y'!J28)) ->  | AM29: =IF('G&Y report'!$F$3="","",IF('long_Summary_G&Y'!$B$3=0,'long_Summary_G&Y'!K29,'long_Summary_G&Y'!K28)) ->  | AN29: =IF('G&Y report'!$F$3="","",IF('long_Summary_G&Y'!$B$3=0,'long_Summary_G&Y'!L29,'long_Summary_G&Y'!L28)) ->  | AO29: =IF('G&Y report'!$F$3="","",IF('long_Summary_G&Y'!$B$3=0,'long_Summary_G&Y'!M29,'long_Summary_G&Y'!M28)) ->  | AP29: =IF('G&Y report'!$F$3="","",IF('long_Summary_G&Y'!$B$3=0,'long_Summary_G&Y'!N29,'long_Summary_G&Y'!N28)) ->  | AQ29: =IF('G&Y report'!$F$3="","",IF('long_Summary_G&Y'!$B$3=0,'long_Summary_G&Y'!O29,'long_Summary_G&Y'!O28)) ->  | BK29: 26 | BL29: 226.73325 | BM29: 233.5781935 | BO29: 71.81246707 | BP29: 71.72574171 | BR29: 140.2205024 | BS29: 102.8547151 | BU29: 3817.86219 | BV29: 2685.804569
B30: =IF('G&Y report'!$D$3="","",'lob_Summary_G&Y'!B29) -> 27 | C30: =IF('G&Y report'!$D$3="","",'lob_Summary_G&Y'!C29) -> 224.2913789 | D30: =IF('G&Y report'!$D$3="","",'lob_Summary_G&Y'!D29) -> 73.56899275 | E30: =IF('G&Y report'!$D$3="","",'lob_Summary_G&Y'!E29) -> 143.6180746 | F30: =IF('G&Y report'!$D$3="","",'lob_Summary_G&Y'!F29) -> 10.83514094 | G30: =IF('G&Y report'!$D$3="","",'lob_Summary_G&Y'!G29) -> 255.1068132 | H30: =IF('G&Y report'!$D$3="","",'lob_Summary_G&Y'!H29) -> 4723.144116 | I30: =IF('G&Y report'!$D$3="","",'lob_Summary_G&Y'!I29) -> 1339.158369 | J30: =IF('G&Y report'!$D$3="","",'lob_Summary_G&Y'!J29) -> 2799.403936 | K30: =IF('G&Y report'!$D$3="","",'lob_Summary_G&Y'!K29) -> 557.8492085 | L30: =IF('G&Y report'!$D$3="","",'lob_Summary_G&Y'!L29) -> 4002.680451 | M30: =IF('G&Y report'!$D$3="","",'lob_Summary_G&Y'!M29) -> 1132.115958 | N30: =IF('G&Y report'!$D$3="","",'lob_Summary_G&Y'!N29) -> 2359.773805 | O30: =IF('G&Y report'!$D$3="","",'lob_Summary_G&Y'!O29) -> 484.9878692 | P30: =IF('G&Y report'!$E$3="","",IF('slash_Summary_G&Y'!$B$3="","",IF('slash_Summary_G&Y'!$B$3=0,'slash_Summary_G&Y'!B30,'slash_Summary_G&Y'!B29))) -> 27 | Q30: =IF('G&Y report'!$E$3="","",IF('slash_Summary_G&Y'!$B$3=0,'slash_Summary_G&Y'!C30,IF('slash_Summary_G&Y'!C29="","",'slash_Summary_G&Y'!C29))) -> 231.4470999 | R30: =IF('G&Y report'!$E$3="","",IF('slash_Summary_G&Y'!$B$3=0,'slash_Summary_G&Y'!D30,'slash_Summary_G&Y'!D29)) -> 72.98088035 | S30: =IF('G&Y report'!$E$3="","",IF('slash_Summary_G&Y'!$B$3=0,'slash_Summary_G&Y'!E30,'slash_Summary_G&Y'!E29)) -> 104.7525541 | T30: =IF('G&Y report'!$E$3="","",IF('slash_Summary_G&Y'!$B$3=0,'slash_Summary_G&Y'!F30,'slash_Summary_G&Y'!F29)) -> 9.109462326 | U30: =IF('G&Y report'!$E$3="","",IF('slash_Summary_G&Y'!$B$3=0,'slash_Summary_G&Y'!G30,'slash_Summary_G&Y'!G29)) -> 199.2680164 | V30: =IF('G&Y report'!$E$3="","",IF('slash_Summary_G&Y'!$B$3=0,'slash_Summary_G&Y'!H30,'slash_Summary_G&Y'!H29)) -> 3329.804845 | W30: =IF('G&Y report'!$E$3="","",IF('slash_Summary_G&Y'!$B$3=0,'slash_Summary_G&Y'!I30,'slash_Summary_G&Y'!I29)) -> 427.5761425 | X30: =IF('G&Y report'!$E$3="","",IF('slash_Summary_G&Y'!$B$3=0,'slash_Summary_G&Y'!J30,'slash_Summary_G&Y'!J29)) -> 2237.309561 | Y30: =IF('G&Y report'!$E$3="","",IF('slash_Summary_G&Y'!$B$3=0,'slash_Summary_G&Y'!K30,'slash_Summary_G&Y'!K29)) -> 621.4108813 | Z30: =IF('G&Y report'!$E$3="","",IF('slash_Summary_G&Y'!$B$3=0,'slash_Summary_G&Y'!L30,'slash_Summary_G&Y'!L29)) -> 2785.992301 | AA30: =IF('G&Y report'!$E$3="","",IF('slash_Summary_G&Y'!$B$3=0,'slash_Summary_G&Y'!M30,'slash_Summary_G&Y'!M29)) -> 357.7458429 | AB30: =IF('G&Y report'!$E$3="","",IF('slash_Summary_G&Y'!$B$3=0,'slash_Summary_G&Y'!N30,'slash_Summary_G&Y'!N29)) -> 1871.919677 | AC30: =IF('G&Y report'!$E$3="","",IF('slash_Summary_G&Y'!$B$3=0,'slash_Summary_G&Y'!O30,'slash_Summary_G&Y'!O29)) -> 519.9241432 | AD30: =IF('G&Y report'!$F$3="","",IF('long_Summary_G&Y'!$B$3=0,'long_Summary_G&Y'!B30,'long_Summary_G&Y'!B29)) ->  | AE30: =IF('G&Y report'!$F$3="","",IF('long_Summary_G&Y'!$B$3=0,'long_Summary_G&Y'!C30,'long_Summary_G&Y'!C29)) ->  | AF30: =IF('G&Y report'!$F$3="","",IF('long_Summary_G&Y'!$B$3=0,'long_Summary_G&Y'!D30,'long_Summary_G&Y'!D29)) ->  | AG30: =IF('G&Y report'!$F$3="","",IF('long_Summary_G&Y'!$B$3=0,'long_Summary_G&Y'!E30,'long_Summary_G&Y'!E29)) ->  | AH30: =IF('G&Y report'!$F$3="","",IF('long_Summary_G&Y'!$B$3=0,'long_Summary_G&Y'!F30,'long_Summary_G&Y'!F29)) ->  | AI30: =IF('G&Y report'!$F$3="","",IF('long_Summary_G&Y'!$B$3=0,'long_Summary_G&Y'!G30,'long_Summary_G&Y'!G29)) ->  | AJ30: =IF('G&Y report'!$F$3="","",IF('long_Summary_G&Y'!$B$3=0,'long_Summary_G&Y'!H30,'long_Summary_G&Y'!H29)) ->  | AK30: =IF('G&Y report'!$F$3="","",IF('long_Summary_G&Y'!$B$3=0,'long_Summary_G&Y'!I30,'long_Summary_G&Y'!I29)) ->  | AL30: =IF('G&Y report'!$F$3="","",IF('long_Summary_G&Y'!$B$3=0,'long_Summary_G&Y'!J30,'long_Summary_G&Y'!J29)) ->  | AM30: =IF('G&Y report'!$F$3="","",IF('long_Summary_G&Y'!$B$3=0,'long_Summary_G&Y'!K30,'long_Summary_G&Y'!K29)) ->  | AN30: =IF('G&Y report'!$F$3="","",IF('long_Summary_G&Y'!$B$3=0,'long_Summary_G&Y'!L30,'long_Summary_G&Y'!L29)) ->  | AO30: =IF('G&Y report'!$F$3="","",IF('long_Summary_G&Y'!$B$3=0,'long_Summary_G&Y'!M30,'long_Summary_G&Y'!M29)) ->  | AP30: =IF('G&Y report'!$F$3="","",IF('long_Summary_G&Y'!$B$3=0,'long_Summary_G&Y'!N30,'long_Summary_G&Y'!N29)) ->  | AQ30: =IF('G&Y report'!$F$3="","",IF('long_Summary_G&Y'!$B$3=0,'long_Summary_G&Y'!O30,'long_Summary_G&Y'!O29)) ->  | BK30: 27 | BL30: 224.2913789 | BM30: 231.4470999 | BO30: 73.56899275 | BP30: 72.98088035 | BR30: 143.6180746 | BS30: 104.7525541 | BU30: 4002.680451 | BV30: 2785.992301
B31: =IF('G&Y report'!$D$3="","",'lob_Summary_G&Y'!B30) -> 28 | C31: =IF('G&Y report'!$D$3="","",'lob_Summary_G&Y'!C30) -> 221.8451568 | D31: =IF('G&Y report'!$D$3="","",'lob_Summary_G&Y'!D30) -> 75.27185812 | E31: =IF('G&Y report'!$D$3="","",'lob_Summary_G&Y'!E30) -> 146.6364332 | F31: =IF('G&Y report'!$D$3="","",'lob_Summary_G&Y'!F30) -> 11.00860461 | G31: =IF('G&Y report'!$D$3="","",'lob_Summary_G&Y'!G30) -> 258.8393205 | H31: =IF('G&Y report'!$D$3="","",'lob_Summary_G&Y'!H30) -> 4913.779843 | I31: =IF('G&Y report'!$D$3="","",'lob_Summary_G&Y'!I30) -> 1541.534404 | J31: =IF('G&Y report'!$D$3="","",'lob_Summary_G&Y'!J30) -> 2808.124977 | K31: =IF('G&Y report'!$D$3="","",'lob_Summary_G&Y'!K30) -> 538.5458346 | L31: =IF('G&Y report'!$D$3="","",'lob_Summary_G&Y'!L30) -> 4176.65907 | M31: =IF('G&Y report'!$D$3="","",'lob_Summary_G&Y'!M30) -> 1305.879194 | N31: =IF('G&Y report'!$D$3="","",'lob_Summary_G&Y'!N30) -> 2375.683278 | O31: =IF('G&Y report'!$D$3="","",'lob_Summary_G&Y'!O30) -> 470.3219987 | P31: =IF('G&Y report'!$E$3="","",IF('slash_Summary_G&Y'!$B$3="","",IF('slash_Summary_G&Y'!$B$3=0,'slash_Summary_G&Y'!B31,'slash_Summary_G&Y'!B30))) -> 28 | Q31: =IF('G&Y report'!$E$3="","",IF('slash_Summary_G&Y'!$B$3=0,'slash_Summary_G&Y'!C31,IF('slash_Summary_G&Y'!C30="","",'slash_Summary_G&Y'!C30))) -> 229.3084152 | R31: =IF('G&Y report'!$E$3="","",IF('slash_Summary_G&Y'!$B$3=0,'slash_Summary_G&Y'!D31,'slash_Summary_G&Y'!D30)) -> 74.17064572 | S31: =IF('G&Y report'!$E$3="","",IF('slash_Summary_G&Y'!$B$3=0,'slash_Summary_G&Y'!E31,'slash_Summary_G&Y'!E30)) -> 106.4959248 | T31: =IF('G&Y report'!$E$3="","",IF('slash_Summary_G&Y'!$B$3=0,'slash_Summary_G&Y'!F31,'slash_Summary_G&Y'!F30)) -> 9.227685909 | U31: =IF('G&Y report'!$E$3="","",IF('slash_Summary_G&Y'!$B$3=0,'slash_Summary_G&Y'!G31,'slash_Summary_G&Y'!G30)) -> 201.5551701 | V31: =IF('G&Y report'!$E$3="","",IF('slash_Summary_G&Y'!$B$3=0,'slash_Summary_G&Y'!H31,'slash_Summary_G&Y'!H30)) -> 3433.509745 | W31: =IF('G&Y report'!$E$3="","",IF('slash_Summary_G&Y'!$B$3=0,'slash_Summary_G&Y'!I31,'slash_Summary_G&Y'!I30)) -> 505.6002537 | X31: =IF('G&Y report'!$E$3="","",IF('slash_Summary_G&Y'!$B$3=0,'slash_Summary_G&Y'!J31,'slash_Summary_G&Y'!J30)) -> 2282.353196 | Y31: =IF('G&Y report'!$E$3="","",IF('slash_Summary_G&Y'!$B$3=0,'slash_Summary_G&Y'!K31,'slash_Summary_G&Y'!K30)) -> 603.7036191 | Z31: =IF('G&Y report'!$E$3="","",IF('slash_Summary_G&Y'!$B$3=0,'slash_Summary_G&Y'!L31,'slash_Summary_G&Y'!L30)) -> 2881.208366 | AA31: =IF('G&Y report'!$E$3="","",IF('slash_Summary_G&Y'!$B$3=0,'slash_Summary_G&Y'!M31,'slash_Summary_G&Y'!M30)) -> 424.271311 | AB31: =IF('G&Y report'!$E$3="","",IF('slash_Summary_G&Y'!$B$3=0,'slash_Summary_G&Y'!N31,'slash_Summary_G&Y'!N30)) -> 1915.222501 | AC31: =IF('G&Y report'!$E$3="","",IF('slash_Summary_G&Y'!$B$3=0,'slash_Summary_G&Y'!O31,'slash_Summary_G&Y'!O30)) -> 506.5941404 | AD31: =IF('G&Y report'!$F$3="","",IF('long_Summary_G&Y'!$B$3=0,'long_Summary_G&Y'!B31,'long_Summary_G&Y'!B30)) ->  | AE31: =IF('G&Y report'!$F$3="","",IF('long_Summary_G&Y'!$B$3=0,'long_Summary_G&Y'!C31,'long_Summary_G&Y'!C30)) ->  | AF31: =IF('G&Y report'!$F$3="","",IF('long_Summary_G&Y'!$B$3=0,'long_Summary_G&Y'!D31,'long_Summary_G&Y'!D30)) ->  | AG31: =IF('G&Y report'!$F$3="","",IF('long_Summary_G&Y'!$B$3=0,'long_Summary_G&Y'!E31,'long_Summary_G&Y'!E30)) ->  | AH31: =IF('G&Y report'!$F$3="","",IF('long_Summary_G&Y'!$B$3=0,'long_Summary_G&Y'!F31,'long_Summary_G&Y'!F30)) ->  | AI31: =IF('G&Y report'!$F$3="","",IF('long_Summary_G&Y'!$B$3=0,'long_Summary_G&Y'!G31,'long_Summary_G&Y'!G30)) ->  | AJ31: =IF('G&Y report'!$F$3="","",IF('long_Summary_G&Y'!$B$3=0,'long_Summary_G&Y'!H31,'long_Summary_G&Y'!H30)) ->  | AK31: =IF('G&Y report'!$F$3="","",IF('long_Summary_G&Y'!$B$3=0,'long_Summary_G&Y'!I31,'long_Summary_G&Y'!I30)) ->  | AL31: =IF('G&Y report'!$F$3="","",IF('long_Summary_G&Y'!$B$3=0,'long_Summary_G&Y'!J31,'long_Summary_G&Y'!J30)) ->  | AM31: =IF('G&Y report'!$F$3="","",IF('long_Summary_G&Y'!$B$3=0,'long_Summary_G&Y'!K31,'long_Summary_G&Y'!K30)) ->  | AN31: =IF('G&Y report'!$F$3="","",IF('long_Summary_G&Y'!$B$3=0,'long_Summary_G&Y'!L31,'long_Summary_G&Y'!L30)) ->  | AO31: =IF('G&Y report'!$F$3="","",IF('long_Summary_G&Y'!$B$3=0,'long_Summary_G&Y'!M31,'long_Summary_G&Y'!M30)) ->  | AP31: =IF('G&Y report'!$F$3="","",IF('long_Summary_G&Y'!$B$3=0,'long_Summary_G&Y'!N31,'long_Summary_G&Y'!N30)) ->  | AQ31: =IF('G&Y report'!$F$3="","",IF('long_Summary_G&Y'!$B$3=0,'long_Summary_G&Y'!O31,'long_Summary_G&Y'!O30)) ->  | BK31: 28 | BL31: 221.8451568 | BM31: 229.3084152 | BO31: 75.27185812 | BP31: 74.17064572 | BR31: 146.6364332 | BS31: 106.4959248 | BU31: 4176.65907 | BV31: 2881.208366
... 38 more rows

Sheet Site_Index (hidden)
A1: Note: Estimate SI using known dominant height and stand age
A2: Species | B2: Loblolly Pine | C2: Slash Pine | D2: Longleaf Pine
A3: Dominant Height (ft) | E3: (Enter dominant height here)
A4: Age (yrs.) | E4: (Enter age here)
A6: Site Index (ft) | B6: =+IF(B3="","",IF(B4="","",('lob_Equations - Parameters'!$P$12+(0.5*(B3-'lob_Equations - Parameters'!$P$12+SQRT((B3-'lob_Equations - Parameters'!$P$12)^2+4*'lob_Equations - Parameters'!$Q$12*B3*B4^-'lob_Equations - Parameters'!$R$12))))/(1+('lob_Equations - Parameters'!$Q$12/(0.5*(B3-'lob_Equations - Parameters'!$P$12+SQRT((B3-'lob_Equations - Parameters'!$P$12)^2+4*'lob_Equations - Parameters'!$Q$12*B3*B4^-'lob_Equations - Parameters'!$R$12))))*(25^-'lob_Equations - Parameters'!$R$12)))) ->  | C6: =+IF(C3="","",IF(C4="","",$C$3/('slash_Equations - Parameters'!$B$12*(1-EXP('slash_Equations - Parameters'!$C$12*$C$4))^'slash_Equations - Parameters'!$D$12))) ->  | D6: =+IF(D3="","",IF(D4="","",$D$3/((1-EXP('long_Equations - Parameters'!$E$15*$D$4))/(1-EXP('long_Equations - Parameters'!$E$15*50)))^'long_Equations - Parameters'!$F$15)) -> 
B7: base age =25 y | C7: base age =25 y | D7: base age =50 y
B8: Dieguez Aranda et al. 2006 | C8: Pienaar et al. 1996 | D8: Gonzalez-Benecke et al. 2011
A10: Note: Estimate comparable SI for 2 species using known SI of reference species
A11: Estimate comparable SI between species | C11: Comparable SI
A12: Species of known SI | B12: SI known | C12: Loblolly | D12: Slash | E12: Longleaf
A13: Loblolly | D13: =IF(B13="","",0.2573*B13 + 48.966) ->  | E13: =IF(B13="","",0.2104*B13 + 50.154) -> 
A14: Slash | C14: =IF(B14="","",0.7704*B14 + 13.196) ->  | E14: =IF(B14="","",1.5754*B14 - 42.017) -> 
A15: Longleaf | C15: =IF(B15="","",1.2576*B15 - 19.636) ->  | D15: =IF(B15="","",0.7561*B15 + 16.682) -> 

Sheet lob_Inputs (hidden)
A1: Note: Input Values in English Units | D1: Select Physiographic Region | F1: Units (Output) | L1: metric | N1: engl
A2: Type of Simulation | K2: 1 | L2: =2.47105*B9 -> 1455.44845 | M2: N | N2: =+M6 -> 589
A3: From Establishment (Planting) | K3: 1 | L3: =+B10*0.3048 -> 21.336 | M3: SI | N3: =+M5 -> 70
A4: From Inventory Post Establishment | K4: 1 | L4: 0 | M4: =IF($L$7=1,1,IF(K9=1,F14,G14)) -> 1 | N4: Starting Age
K5: Errors | L5: =IF($B$17<>"",1,0)+ IF($C$20<>"",1,0)+ IF($C$18<>"",1,0)+ IF($C$17<>"",1,0) -> 0 | M5: =+IF($L$7=1,$K$13,$M$14) -> 70 | N5: SI
A6: Rotation Age (yr.) | B6: =Inputs!B7 -> 30 | K6: =Inputs!I21 -> TRUE | M6: =+MAX(K11,M12) -> 589 | N6: N
K7: FALSE | L7: =Inputs!I5 -> 1 | M7: =IF(L7=1,0,IF(M13="",EXP('lob_Equations - Parameters'!$D$18+('lob_Equations - Parameters'!$E$18/M4)+'lob_Equations - Parameters'!$F$18*(LN(M6))+'lob_Equations - Parameters'!$G$18*(LN(M8))+'lob_Equations - Parameters'!$H$18*(LN(M6)/M4)+'lob_Equations - Parameters'!$I$18*(LN(M8)/M4)),M13)) -> 0 | N7: BA
A8: Simulation From Planting | E8: Simulation From Inventory | G8: =+IF(L7=2,"RECOMMENDED FOR AGE > 5 YRS.","") ->  | K8: FALSE | M8: ='lob_Growth&Yield'!Y4 -> 3.276759399 | N8: Hdom
A9: N/acre at Establishment (planting) | B9: =Inputs!B12*Inputs!B13 -> 589 | E9: From Inventory Tree List | K9: 2 | L9: (assume No P Defficient)
A10: Site Index (ft) base age =25 | B10: =Inputs!B8 -> 70 | E10: From Inventory Summary | K10: From Planting | L10: English | M10: Inventory | N10: English
K11: =+IF($L$7=1,$B$9,"") -> 589 | L11: N | M11: =IF($L$7=1,0,$M$5*(('lob_Equations - Parameters'!$E$12)/(1-EXP('lob_Equations - Parameters'!$F$12*$M$4)))^('lob_Equations - Parameters'!$G$12)) -> 0 | N11: Hdom
A12: Simulate Thinning? | E12: Simulation From Inventory (Data From Inventory List or from external summary) | M12: =+IF($L$7=1,0,IF($K$9=1,F15,G15)) -> 0 | N12: N
E13: INPUTS | F13: From Inventory Tab | G13: Enter Inventory Summary | K13: =+IF($L$7=1,$B$10,"") -> 70 | L13: SI | M13: =IF(L7=1,0,IF(K2=1,IF($K$9=1,F16,G16))) -> 0 | N13: BA
A14: Thinning at Fixed Age | B14: Age (years) | C14: % N Removal | D14: =+IF($K$7=TRUE,"Required","Not Needed") -> Not Needed | E14: Age | F14: =+IF($L$7=1,"",IF($K$9=2,"",IF(#REF!="","",#REF!))) ->  | G14: =Inputs!B17 -> 1 | K14: FALSE | M14: =+IF($L$7=1,0,IF($K$9=1,F17,G17)) -> 0 | N14: SI
A15: Th1 | B15: =Inputs!B24 -> 12 | C15: =Inputs!C24 -> 0.5 | E15: Stem Density (trees / acre) | F15: =+IF($L$7=1,"",IF($K$9=2,"",IF(#REF!="","",#REF!))) ->  | G15: =Inputs!B18 -> 600 | K15: FALSE | M15: age1 | N15: =+M4 -> 1
A16: Th2 | B16: =IF(Inputs!B25="","",Inputs!B25) ->  | C16: =IF(Inputs!C25="","",Inputs!C25) ->  | E16: BA (ft2 / acre) | F16: =+IF($L$7=1,"",IF($K$9=2,"",IF(#REF!="","",#REF!))) ->  | G16: =IF(Inputs!B19="","",Inputs!B19) ->  | K16: FALSE | M16: age2 | N16: =+IF(K15=FALSE,B6,B6*B20) -> 30
B17: =+IF(B15="","",IF(B15>=$B$6,"ERROR IN THINNING AGE",IF(B15<$M$4,"ERROR IN THINNING AGE",IF(B16="","",IF(B16>=$B$6,"ERROR IN THINNING AGE",""))))) ->  | C17: =+IF(C15="","",IF(C15>=1,"ERROR IN % REMOVAL",IF(C15=0,"ERROR IN % REMOVAL",IF(C16="","",IF(C16>=1,"ERROR IN % REMOVAL",IF(C16=0,"ERROR IN % REMOVAL","")))))) ->  | E17: Site Index (ft) base age = 25 | F17: =+IF($L$7=1,"",IF($K$9=2,"",IF(#REF!="","",#REF!))) ->  | G17: =Inputs!B8 -> 70
A18: Assessing C Balance? | C18: =+IF(B20*B6>500,"Error…... Maximum Simulation Length: 500 yrs.","") ->  | K18: =+IF($K$31=TRUE,FALSE,IF($L$19=1,TRUE,FALSE)) -> FALSE
A19: Simulate Multiple Rotations | K19: =+IF($K$31=TRUE,FALSE,IF($L$19=2,TRUE,FALSE)) -> FALSE | L19: 1
A20: # Rotations to Simulate ? | B20: 10 | C20: =+IF(AND($K$15=TRUE,$B$20=""),"Need to Enter # Rotations","") ->  | K20: =+IF($K$31=TRUE,FALSE,IF($L$19=3,TRUE,FALSE)) -> FALSE
A21: Burning Residues at Site Prep.? | C21: =+IF($K$15=TRUE, "Required","") ->  | E21: Tillage | K21: =+IF($K$31=TRUE,FALSE,IF($L$19=4,TRUE,FALSE)) -> FALSE
K22: =+IF($K$31=TRUE,FALSE,IF($L$19=5,TRUE,FALSE)) -> FALSE
A23: Herbaceous Weed Control | K23: =+IF($K$31=TRUE,FALSE,IF($L$19=6,TRUE,FALSE)) -> FALSE
A24: First Treatment | B24: Second Treatment | E24: Hardwood Release ? | K24: =+IF($K$31=TRUE,FALSE,IF($L$19=7,TRUE,FALSE)) -> FALSE
A25: Banded - no grass Year 1 | E25: Age | F25: 14 | K25: =+IF($K$31=TRUE,FALSE,IF($L$19=8,TRUE,FALSE)) -> FALSE
A26: Banded - grass Year 1 | E26: % Reduction | F26: 0.5 | K26: =+IF($K$31=TRUE,FALSE,IF($L$19=9,TRUE,FALSE)) -> FALSE
A27: Broadcast - no grass Year 1 | E27: % Hardwood Basal Area at age 5 | F27: 12 | K27: =+IF($K$31=TRUE,FALSE,IF($L$19=10,TRUE,FALSE)) -> FALSE | L27: =+F26*100 -> 50
A28: Broadcast - grass Year 1 | K28: =+IF($K$31=TRUE,FALSE,IF($L$19=11,TRUE,FALSE)) -> FALSE
A29: Banded - no grass Year 2 | K29: =+IF($K$31=TRUE,FALSE,IF($L$19=12,TRUE,FALSE)) -> FALSE
A30: Banded - grass Year 2 | E30: Fertilization
A31: Broadcast - no grass Year 2 | E31: Fert_number | F31: Age (year) | G31: N (lbs / acre) | H31: P (lbs / acre) | K31: TRUE
A32: Broadcast - grass Year 2 | E32: F1 | F32: 5 | G32: 135 | H32: 25
A33: Broadcast - no grass Year 1 | B33: Banded - no grass Year 2 | E33: F2 | F33: 10 | G33: 225 | H33: 25 | K33: =+IF(AND(K34=FALSE,K35=FALSE,K36=FALSE,K37=FALSE),FALSE,TRUE) -> FALSE | L33: lbsN | M33: lbsP | N33: age
A34: Banded - grass Year 1 | B34: Banded - grass Year 2 | E34: F3 | F34: 15 | G34: 225 | H34: 25 | K34: FALSE | L34: =+G32*1 -> 135 | M34: 25 | N34: =+IF(F32="",100,F32) -> 5
A35: Broadcast - no grass Year 1 | B35: Broadcast - no grass Year 2 | E35: F4 | K35: FALSE | L35: 225 | M35: 25 | N35: =+IF(F33="",100,F33) -> 10
A36: Broadcast - grass Year 1 | B36: Broadcast - grass Year 2 | K36: FALSE | L36: 225 | M36: 25 | N36: =+IF(F34="",100,F34) -> 15
E37: Stand Location (to determine CWD decay rate) (in decimal degrees) | K37: FALSE | L37: 0 | M37: 0 | N37: =+IF(F35="",100,F35) -> 100
A38: NO Herbaceous Weed Control Treatment | E38: Latitude (N) | F38: 28
E39: Longitude (-W) | F39: 82
C40: (If No HWC Treatment is selected all the above are not taken in account)
A50: Silvic. Scheme | B50: Age-Th1 | C50: % removal_Th1 | D50: Age_Th2 | E50: % removal-Th2 | F50: Age_harvest
A51: Unthinned | F51: =+$B$6 -> 30
A52: 1 Thinning | B52: =+$B$15 -> 12 | C52: =+$C$15 -> 0.5 | F52: =+$B$6 -> 30
A53: 2 Thinnings | B53: =+$B$15 -> 12 | C53: =+$C$15 -> 0.5 | D53: =+$B$16 ->  | E53: =+$C$16 ->  | F53: =+$B$6 -> 30

Sheet long_Inputs (hidden)
A1: Note: Input Values in English Units | D1: Units (Output)
A2: Type of Simulation | J2: 1
A3: From Establishment (Planting) | H3: =IF($J$4=1,TRUE,FALSE) -> TRUE | I3: =+IF(H3=TRUE,1,0) -> 1 | J3: 2
A4: From Inventory Post Establishment | H4: =IF($J$4=2,TRUE,FALSE) -> FALSE | I4: =+IF(H4=TRUE,1,0) -> 0 | J4: =Inputs!I5 -> 1 | K4: start_plot | L4: =+IF(H3=TRUE,$H$7-1,$H$7) -> 0
D5: Simulation From Inventory | E5: =+IF(C2<>"","",IF(AND(L8=0,$J$4=2),"Must Select One","")) ->  | H5: Select Base | I5: 2 | K5: end_plot | L5: =+IF(long_Inputs!$H$18=TRUE,$B$19*$B$6,long_Inputs!$B$6) -> 30 | M5: In DOD Base?
A6: Rotation Age (yr.) | B6: =Inputs!D7 -> 30 | C6: Required | D6: From Inventory Tree List | I6: =+SUM(I3:I4) -> 1 | J6: warning | K6: =IF($L$8=1,TRUE,FALSE) -> FALSE | L6: =+IF(K6=TRUE,1,0) -> 0 | M6: No, Other Site
B7: =+IF($B$6<=H7,"Error…Rotation Age <= Starting Age !!","") ->  | D7: From Inventory Summary | H7: =IF($H$3=TRUE,1,IF(K6=TRUE,E11,F11)) -> 1 | I7: Starting Age | J7: =+IF($B$10*2.47105>2850,1,0) -> 0 | K7: =IF($L$8=2,TRUE,FALSE) -> TRUE | L7: 1 | M7: Yes, Fort Benning
F8: =+IF(AND($K$6=TRUE,$L$14=0,$H$4=TRUE),"Need to Input Inventory Data","") ->  | H8: =+IF($H$3=TRUE,$H$13,$J$14) -> 24.9936 | I8: SI | J8: =+IF($B$12*0.3048>31,1,IF($B$12*0.3048<19.5,1,0)) -> 0 | L8: 2 | M8: Yes, Camp Lejeune
A9: Simulation From Planting | D9: Simulation From Inventory (Data From Inventory List or from external summary | M9: Yes, Fort Polk
A10: TPA planting | B10: =Inputs!D12 -> 600 | C10: =+IF($H$3=TRUE,"Required",IF(AND($H$4=TRUE,$H$18=TRUE),"Req. for Mult. Rot.","")) -> Required | D10: INPUTS | E10: From Inventory Tab | F10: Enter Inventory Summary | H10: From Planting | I10: Metric | J10: Inventory | K10: Metric
A11: Survival year 1 | B11: =Inputs!D13 -> 0.95 | C11: =+IF($H$3=TRUE,"Required",IF(AND($H$4=TRUE,$H$18=TRUE),"Req. for Mult. Rot.","")) -> Required | D11: Age | E11: =+IF($H$4=FALSE,"",IF($K$7=TRUE,"",IF(long_Inventory!$Q$3="","",long_Inventory!$Q$3))) ->  | F11: =Inputs!D17 -> 10 | G11: =+IF(AND($H$4=TRUE,$K$7=TRUE),"Required","") ->  | H11: =+B10*2.47105 -> 1482.63 | I11: N | J11: =IF($H$4=FALSE,0,J14*((1-EXP('long_Equations - Parameters'!$E$15*H7))/(1-EXP('long_Equations - Parameters'!$E$15*50)))^'long_Equations - Parameters'!$F$15) -> 0 | K11: (Hdom) | L11: =+IF(E11<>"",1,0) + IF(F11<>"",1,0) -> 1
A12: Site Index (ft) base age =50 | B12: =Inputs!D8 -> 82 | C12: =+IF($H$3=TRUE,"Required",IF(AND($H$4=TRUE,$H$18=TRUE),"Not. Req. for Mult. Rot.","")) -> Required | D12: Stem Density (trees / acre) | E12: =+IF($H$4=FALSE,"",IF($K$7=TRUE,"",IF(long_Inventory!$V$4="","",long_Inventory!$V$4))) ->  | F12: =Inputs!D18 -> 600 | G12: =+IF(AND($H$4=TRUE,$K$7=TRUE),"Required","") ->  | J12: =+IF($H$4=FALSE,0,IF($K$6=TRUE,E12*2.47105,F12*2.47105)) -> 0 | K12: N | L12: =+IF(E12<>"",1,0) + IF(F12<>"",1,0) -> 1
B13: =+IF($H$3=TRUE,"Required",IF(AND($H$4=TRUE,$H$18=TRUE),"Use SI from Inventory","")) -> Required | C13: =IF(AND($J$4=1,$B$10=""),"Enter Value",IF(AND($J$4=1,$B$11=""),"Enter Value",IF(AND($J$4=1,$B$12=""),"Enter Value",""))) ->  | D13: BA (ft2 / acre) | E13: =+IF($H$4=FALSE,"",IF($K$7=TRUE,"",IF(long_Inventory!$V$5="","",long_Inventory!$V$5))) ->  | F13: =IF(Inputs!D19="","",Inputs!D19) ->  | G13: =+IF(AND($H$4=TRUE,$K$7=TRUE),"Optional","") ->  | H13: =+IF($J$4=1,$B$12*0.3048,$J$14) -> 24.9936 | I13: SI | J13: =+IF($H$4=FALSE,0,IF($K$6=TRUE,E13*0.229568,IF(AND($K$7=TRUE,F13<>""),F13*0.229568,EXP('long_Equations - Parameters'!$D$21+'long_Equations - Parameters'!$E$21*LN($J$12)+'long_Equations - Parameters'!$F$21*LN($J$11))))) -> 0 | K13: BA | L13: =+IF(E13<>"",1,0) + IF(F13<>"",1,0) -> 0
D14: Site Index (ft) base age =50 | E14: =+IF($H$4=FALSE,"",IF($K$7=TRUE,"",IF(long_Inventory!$V$7="","",long_Inventory!$V$7))) ->  | F14: =Inputs!D8 -> 82 | G14: =+IF(AND($H$4=TRUE,$K$7=TRUE),"Required","") ->  | J14: =IF($H$4=FALSE,0,IF($K$6=TRUE,E14*0.3048,F14*0.3048)) -> 0 | K14: SI | L14: =+IF(E14<>"",1,0) + IF(F14<>"",1,0) -> 1
A15: Simulate Thinning? | C15: Optional | E15: =+IF($H$3=TRUE,"",IF(AND($K$6=TRUE,$E$13=""),"Need To Fill Data List","")) ->  | F15: =+IF($H$3=TRUE,"",IF(AND(L15<3,$K$7=TRUE),"Need to Enter Data","")) ->  | H15: =Inputs!I21 -> TRUE | I15: =+IF(H15=TRUE,1,0) -> 1 | L15: =+SUM(L11,L12,L14) -> 3
D16: Already Thinned ? | F16: =+IF($H$4=TRUE,"Required","") ->  | J16: =+J13*4.356 -> 0 | L16: TRUE
A17: Assessing C Balance? | C17: Optional
A18: Simulate Multiple Rotations | C18: =+IF(B19*B6>500,"Error…... Maximum Simulation Length: 500 yrs.","") ->  | H18: FALSE | I18: =+IF(H18=TRUE,1,0) -> 0
A19: # Rotations to Simulate ? | C19: =+IF(AND($H$18=TRUE,$B$19=""),"Need to Enter # Rotations","") -> 
D20: Burning Residues at Site Prep.? | F20: =+IF($H$18=TRUE, "Required","") ->  | H20: TRUE | I20: 0
A21: Thinning Type | B21: =IF($H$15=TRUE,"Select Type","") -> Select Type | D21: Prescribed Burning | E21: =+IF(AND($E$22<>"",$E$23<>"",$E$22<H7),"Error…Age !!","") ->  | F21: Type of Site | G21: Type of Understory
A22: Fixed Age | D22: Age first prescribed burned | H22: =IF($J$22=1,TRUE,FALSE) -> TRUE | I22: =+IF(H22=TRUE,1,0) -> 1 | J22: 1 | L22: FALSE
A23: Target BA | D23: Burning Frequency (yrs.) | H23: =IF($J$22=2,TRUE,FALSE) -> FALSE | I23: =+IF(H23=TRUE,1,0) -> 0 | L23: FALSE
A24: Target SDI | D24: Burned Before ? | H24: =IF($J$22=3,TRUE,FALSE) -> FALSE | I24: 0 | K24: FALSE | L24: FALSE
I25: =+SUM(I22:I24) -> 1 | L25: 2
A26: Thinning at Fixed Age | B26: Age (years) | C26: % Removal | D26: =+IF(AND(H22=TRUE,$H$15=TRUE),"Required","Not Needed") -> Required | L26: 2
A27: Th1 | B27: =IF(Inputs!F24="","",Inputs!F24) -> 15 | C27: =IF(Inputs!G24="","",Inputs!G24) -> 0.33 | D27: =+IF(B27="","",IF($I$15=0,"",IF(AND($H$22=TRUE,B27<=$H$7),"ERROR IN THINNING AGE",IF(AND($H$22=TRUE,B27>$B$6),"ERROR IN THINNING AGE","")))) ->  | H27: Errors | I27: =IF($F$15<>"",1,0)+ IF($D$27<>"",1,0)+ IF($D$28<>"",1,0)+ IF($D$29<>"",1,0)+ IF($D$30<>"",1,0)+ IF($E$21<>"",1,0)+ IF($F$25<>"",1,0)+ IF($E$15<>"",1,0)+ IF($C$18<>"",1,0)+ IF($C$19<>"",1,0) + IF($B$6="",1,0) + IF($B$6<H7,1,0) + IF($B$7<>"",1,0) + IF($B$6<H7,1,0) + IF($C$13<>"",1,0) -> 0
A28: Th2 | B28: =IF(Inputs!F25="","",Inputs!F25) -> 20 | C28: =IF(Inputs!G25="","",Inputs!G25) -> 0.33 | D28: =+IF(B28="","",IF($I$15=0,"",IF(AND($H$22=TRUE,B28<=$H$7),"ERROR IN THINNING AGE",IF(AND($H$22=TRUE,B28>$B$6),"ERROR IN THINNING AGE","")))) -> 
A29: Th3 | B29: =IF(Inputs!F26="","",Inputs!F26) ->  | C29: =IF(Inputs!G26="","",Inputs!G26) ->  | D29: =+IF(B29="","",IF($I$15=0,"",IF(AND($H$22=TRUE,B29<=$H$7),"ERROR IN THINNING AGE",IF(AND($H$22=TRUE,B29>$B$6),"ERROR IN THINNING AGE","")))) -> 
A30: Th4 | B30: =IF(Inputs!F27="","",Inputs!F27) ->  | C30: =IF(Inputs!G27="","",Inputs!G27) ->  | D30: =+IF(B30="","",IF($I$15=0,"",IF(AND($H$22=TRUE,B30<=$H$7),"ERROR IN THINNING AGE",IF(AND($H$22=TRUE,B30>$B$6),"ERROR IN THINNING AGE","")))) -> 
A32: Upper Stocking Limit BA | B32: Residual BA | C32: =+IF($H$23=TRUE,"Required","Not Needed") -> Not Needed
A33: (ft2 / acre) | B33: (ft2 / acre)
A34: 110 | B34: 75 | H34: =0.229568*$A$34 -> 25.25248 | I34: =0.229568*$B$34 -> 17.2176
A36: Target SDI - Limits (% of Max.) | C36: =+IF($H$24=TRUE,"Required","Not Needed") -> Not Needed
A37: Self-thinning threshold | B37: Lower-Limit Full Site Occupancy | C37: Maximum SDI = | D37: 486 | E37: Trees per acre
A38: 0.55 | B38: 0.4 | H38: =+$A$38*$D$37*2.47105 -> 660.511665 | I38: =+$B$38*$D$37*2.47105 -> 480.37212

Sheet lob_Site Index Response (hidden)
B1: Site Index------> | C1: =+lob_Inputs!N3 -> 70 | D1: Cur Age------> | E1: 1
B2: a | C2: b | D2: c | E2: d | F2: e | G2: f | H2: g | I2: h | J2: I | K2: j | L2: k | M2: l | N2: m | O2: n
D3: HD Tillage Response | F3: BA Tillage Response | H3: HD HWC Response | J3: BA HWC Response | L3: HD Release Response | N3: BA Release Response | T3: Fert 1 | X3: Fert 2 | AB3: Fert 3 | AF3: Fert 4
D4: Yrs to Max --> | E4: =21.333-0.0667*$C$1 -> 16.664 | F4: Yrs to Max --> | G4: =21.333-0.0667*$C$1 -> 16.664 | H4: c ----------> | I4: =IF(lob_RParms!$D$6=13,0,(1/(lob_RParms!L25-lob_RParms!M25*$C$1))) -> 0 | J4: c ----------> | K4: =IF(lob_RParms!$D$6=13,0,(1/(lob_RParms!V25-lob_RParms!W25*$C$1))) -> 0 | L4: Yrs Max---> | M4: 12 | N4: Yrs Max---> | O4: 12 | T4: On ?------> | U4: =+lob_Inputs!K34 -> FALSE | X4: On ?------> | Y4: =+lob_Inputs!K35 -> FALSE | AB4: On ?------> | AC4: =+lob_Inputs!K36 -> FALSE | AF4: On ?------> | AG4: =+lob_Inputs!K37 -> FALSE
D5: Max Resp ---> | E5: =12.6667-0.1333*$C$1 -> 3.3357 | F5: Max Resp ---> | G5: =11-0.1*$C$1 -> 4 | H5: b ----------> | I5: =IF(lob_RParms!$D$6=13,0,((lob_RParms!J25-lob_RParms!K25*$C$1)*$I$4*EXP(1))) -> 0 | J5: b ----------> | K5: =IF(lob_RParms!$D$6=13,0,((lob_RParms!T25-lob_RParms!U25*$C$1)*$K$4*EXP(1))) -> 0 | L5: Max Rs----> | M5: =3.33-0.0267*($C$1) -> 1.461 | N5: Max Rs----> | O5: =36.667-0.3333*($C$1) -> 13.336 | T5: Age-------> | U5: =+lob_Inputs!F32 -> 5 | X5: Age-------> | Y5: =+lob_Inputs!F33 -> 10 | AB5: Age-------> | AC5: =+lob_Inputs!F34 -> 15 | AF5: Age-------> | AG5: =+lob_Inputs!F35 -> 0
D6: c ---------------> | E6: =1/$E$4 -> 0.06000960154 | F6: c ---------------> | G6: =1/$G$4 -> 0.06000960154 | H6: Year-----------> | I6: =lob_RParms!N25 -> 1 | L6: b -------------> | M6: =$M$5*$M$7*EXP(1) -> 0.3309508126 | N6: b -------------> | O6: =$O$5*$O$7*EXP(1) -> 3.020917205 | T6: N-----------> | U6: =+lob_Inputs!L34 -> 135 | X6: N-----------> | Y6: =+lob_Inputs!L35 -> 225 | AB6: N-----------> | AC6: =+lob_Inputs!L36 -> 225 | AF6: N-----------> | AG6: =+lob_Inputs!L37 -> 0
D7: b ---------------> | E7: =$E$5*$E$6*EXP(1) -> 0.5441294224 | F7: b ---------------> | G7: =$G$5*$G$6*EXP(1) -> 0.6524920376 | L7: c -------------> | M7: =1/$M$4 -> 0.08333333333 | N7: c -------------> | O7: =1/$O$4 -> 0.08333333333 | T7: P-----------> | U7: =IF($U$4=TRUE,lob_Inputs!M34,0) -> 0 | X7: P-----------> | Y7: =IF($Y$4=TRUE,lob_Inputs!M35,0) -> 0 | AB7: P-----------> | AC7: =IF($AC$4=TRUE,lob_Inputs!M36,0) -> 0 | AF7: P-----------> | AG7: =IF($AG$4=TRUE,lob_Inputs!M37,0) -> 0
T8: PDef ?---> | U8: =+lob_Inputs!$K$9 -> 2 | X8: PDef ?---> | Y8: =+lob_Inputs!$K$9 -> 2 | AB8: PDef ?---> | AC8: =+lob_Inputs!$K$9 -> 2 | AF8: PDef ?---> | AG8: =+lob_Inputs!$K$9 -> 2
Q9: Hdwd Damp | S9: Yrs to Max --> | T9: =GetFertilizerYrsToMax($U$5,$C$1,$U$8,$U$6,$U$7,"HD",$B13,"AGE") -> 0 | U9: =GetFertilizerYrsToMax($U$5,$C$1,$U$8,$U$6,$U$7,"BA",$B13,"AGE") -> 5.35 | X9: =GetFertilizerYrsToMax($Y$5,$C$1,$Y$8,$Y$6,$Y$7,"HD",$B13,"AGE") -> 7 | Y9: =GetFertilizerYrsToMax($Y$5,$C$1,$Y$8,$Y$6,$Y$7,"BA",$B13,"AGE") -> 6.25 | AB9: =GetFertilizerYrsToMax($AC$5,$C$1,$AC$8,$AC$6,$AC$7,"HD",$B13,"AGE") -> 7 | AC9: =GetFertilizerYrsToMax($AC$5,$C$1,$AC$8,$AC$6,$AC$7,"BA",$B13,"AGE") -> 6.25 | AF9: =GetFertilizerYrsToMax($AG$5,$C$1,$AG$8,$AG$6,$AG$7,"HD",$B13,"AGE") -> 18 | AG9: =GetFertilizerYrsToMax($AG$5,$C$1,$AG$8,$AG$6,$AG$7,"BA",$B13,"AGE") -> 0
E10: HD Tillage | G10: BA Tillage | I10: HD HWC | J10: BA HWC | M10: HD Release | O10: BA Release | Q10: Function | T10: HD Fert 1 | U10: BA Fert 1 | X10: HD Fert 2 | Y10: BA Fert 2 | AB10: HD Fert 3 | AC10: BA Fert 3 | AF10: HD Fert 4 | AG10: BA Fert 4 | AL10: HD Resp | AM10: HD Fert | AN10: HD Total | AT10: BA Resp | AU10: BA Fert | AV10: BA total
A11: Year | B11: Age | C11: RS | D11: xxxxxx | E11: Response | F11: xxxxxx | G11: Response | I11: Response | J11: Response | L11: xxxxxx | M11: Response | N11: xxxxxx | O11: Response | Q11: for Fert | S11: xxxxxx | T11: Response | U11: Response | W11: xxxxxx | X11: Response | Y11: Response | AA11: xxxxxx | AB11: Response | AC11: Response | AE11: xxxxxx | AF11: Response | AG11: Response | AL11: w/o Fert | AM11: Response | AN11: Response | AT11: w/o Fert | AU11: Response | AV11: Response | AW11: SI60 | AX11: SI65 | AY11: SI70 | AZ11: SI75
A12: 0 | B12: =+IF('lob_Growth&Yield'!B4=1,'lob_Growth&Yield'!E4,"") -> 1 | C12: =IF(B12=0,0,IF(B12="","",SQRT(43560/'lob_Growth&Yield'!$K4)/'lob_Growth&Yield'!$Y4)) -> 2.69265016 | D12: =IF(B12=0,0,IF(B12="","",(EXP(-0.25*('lob_Growth&Yield'!$Y4^(1.8333-1/60*$C$1))))*$E$7*$B12*EXP(-$E$6*$B12))) -> 0.2952045838 | E12: =IF(lob_Inputs!$K$8=TRUE,$D12,0) -> 0 | F12: =IF(B12=0,0,IF(B12="","",(EXP(-0.25*('lob_Growth&Yield'!H4^(1.8333-1/60*$C$1))))*$G$7*$B12*EXP(-$G$6*$B12))) -> 0.5541575756 | G12: =IF(lob_Inputs!$K$8=TRUE,$F12,0) -> 0 | I12: =IF(B12=0,0,IF(B12="","",(EXP(-0.25*('lob_Growth&Yield'!H4^(1.8333-1/60*$C$1))))*$I$5*($B12-$I$6)*EXP(-$I$4*($B12-$I$6)))) -> 0 | J12: =IF(B12=0,0,IF(B12="","",(EXP(-0.25*('lob_Growth&Yield'!H4^(1.8333-1/60*$C$1))))*$K$5*($B12-$I$6)*EXP(-$K$4*($B12-$I$6)))) -> 0 | L12: =IF('lob_Growth&Yield'!E4=0,0,IF(B12="","",IF(OR(lob_Inputs!$K$14=FALSE,'lob_Growth&Yield'!E4<lob_Inputs!$F$25),0,(EXP(-0.25*('lob_Growth&Yield'!H4^(1.8333-1/60*$C$1))))*$M$6*('lob_Growth&Yield'!E4-lob_Inputs!$F$25)*EXP(-($M$7*('lob_Growth&Yield'!E4-lob_Inputs!$F$25)))))) -> 0 | M12: =IF(B12="","",IF(B12<(lob_RParms!$A$31+$M$4),$L12,$L$39)) -> 0 | N12: =IF(B12="","",IF(OR(lob_RParms!$A$30=FALSE,$B12<lob_RParms!$A$31),0,(EXP(-0.25*('lob_Growth&Yield'!H4^(1.8333-1/60*$C$1))))*$O$6*($B12-lob_RParms!$A$31)*EXP(-($O$7*($B12-lob_RParms!$A$31))))) -> 0 | O12: =IF(B12="","",IF($B12<(lob_RParms!$A$31+$O$4),$N12,$N$39)) -> 0 | Q12: =IF(B12="","",(EXP(-0.25*('lob_Growth&Yield'!H4^(1.8333-1/60*$C$1))))) -> 0.9018200717 | S12: =+IF(B12="","",IF($U$4=TRUE,GetFertilizerResponseAtAge($U$5,$C$1,$U$8,$U$6,$U$7,"HD",$B12,"RESP")*$Q12,0)) -> 0 | T12: =IF(B12="","",IF($B12<($U$5+$T$9),$S12,$S$39)) -> 0 | U12: =IF(B12="","",IF($U$4=TRUE,GetFertilizerResponseAtAge($U$5,$C$1,$U$8,$U$6,$U$7,"BA",$B12,"RESP")*$Q12,0)) -> 0 | W12: =IF(B12="","",IF($Y$4=TRUE,GetFertilizerResponseAtAge($Y$5,$C$1,$Y$8,$Y$6,$Y$7,"HD",$B12,"RESP")*$Q12,0)) -> 0 | X12: =IF(B12="","",IF($B12<($Y$5+$X$9),$W12,$W$39)) -> 0 | Y12: =IF(B12="","",IF($Y$4=TRUE,GetFertilizerResponseAtAge($Y$5,$C$1,$Y$8,$Y$6,$Y$7,"BA",$B12,"RESP")*$Q12,0)) -> 0 | AA12: =IF(B12="","",IF($AC$4=TRUE,GetFertilizerResponseAtAge($AC$5,$C$1,$AC$8,$AC$6,$AC$7,"HD",$B12,"RESP")*$Q12,0)) -> 0 | AB12: =IF(B12="","",IF($B12<($AC$5+$AB$9),$AA12,$AA$39)) -> 0 | AC12: =IF(B12="","",IF($AC$4=TRUE,GetFertilizerResponseAtAge($AC$5,$C$1,$AC$8,$AC$6,$AC$7,"BA",$B12,"RESP")*$Q12,0)) -> 0 | AE12: =IF(B12="","",IF($AG$4=TRUE,GetFertilizerResponseAtAge($AG$5,$C$1,$AG$8,$AG$6,$AG$7,"HD",$B12,"RESP")*$Q12,0)) -> 0 | AF12: =IF(B12="","",IF($B12<($AG$5+$AF$9),$AE12,$AE$39)) -> 0 | AG12: =IF(B12="","",IF($AG$4=TRUE,GetFertilizerResponseAtAge($AG$5,$C$1,$AG$8,$AG$6,$AG$7,"BA",$B12,"RESP")*$Q12,0)) -> 0 | AH12: =IF(B12="","",IF($I12>0,1,0)) -> 0 | AI12: =IF(B12="","",IF($M12>0,1,0)) -> 0 | AJ12: =IF(B12="","",SUM(AH12:AI12)) -> 0 | AK12: =IF(B12="","",IF($AJ12>1,1,$AJ12)) -> 0 | AL12: =IF(B12=0,0,IF(B12="","",$AK12*($E12+$I12+$M12))) -> 0 | AM12: =IF(B12="","",$T12+0.9*$X12+0.8*$AB12+0.7*$AF12) -> 0 | AN12: =IF(B12="","",SUM(AL12:AM12)) -> 0 | AP12: =IF(B12="","",IF($J12>0,1,0)) -> 0 | AQ12: =IF(B12="","",IF($O12>0,1,0)) -> 0 | AR12: =IF(B12="","",SUM(AP12:AQ12)) -> 0 | AS12: =IF(B12="","",IF($AR12>1,1,$AR12)) -> 0 | AT12: =IF(B12=0,0,IF(B12="","",$AS12*($G12+$J12+$O12))) -> 0 | AU12: =IF(B12="","",$U12+0.9*$Y12+0.8*$AC12+0.7*$AG12) -> 0 | AV12: =IF(B12="","",SUM(AT12:AU12)) -> 0
A13: 1 | B13: =+IF('lob_Growth&Yield'!B5=1,'lob_Growth&Yield'!E5,"") -> 2 | C13: =IF(B13=0,0,IF(B13="","",SQRT(43560/'lob_Growth&Yield'!$K5)/'lob_Growth&Yield'!$Y5)) -> 1.280706193 | D13: =IF(B13=0,0,IF(B13="","",(EXP(-0.25*('lob_Growth&Yield'!$Y5^(1.8333-1/60*$C$1))))*$E$7*$B13*EXP(-$E$6*$B13))) -> 0.3898274059 | E13: =IF(lob_Inputs!$K$8=TRUE,$D13,0) -> 0 | F13: =IF(B13=0,0,IF(B13="","",(EXP(-0.25*('lob_Growth&Yield'!H5^(1.8333-1/60*$C$1))))*$G$7*$B13*EXP(-$G$6*$B13))) -> 1.058062803 | G13: =IF(lob_Inputs!$K$8=TRUE,$F13,0) -> 0 | I13: =IF(B13=0,0,IF(B13="","",(EXP(-0.25*('lob_Growth&Yield'!H5^(1.8333-1/60*$C$1))))*$I$5*($B13-$I$6)*EXP(-$I$4*($B13-$I$6)))) -> 0 | J13: =IF(B13=0,0,IF(B13="","",(EXP(-0.25*('lob_Growth&Yield'!H5^(1.8333-1/60*$C$1))))*$K$5*($B13-$I$6)*EXP(-$K$4*($B13-$I$6)))) -> 0 | L13: =IF('lob_Growth&Yield'!E5=0,0,IF(B13="","",IF(OR(lob_Inputs!$K$14=FALSE,'lob_Growth&Yield'!E5<lob_Inputs!$F$25),0,(EXP(-0.25*('lob_Growth&Yield'!H5^(1.8333-1/60*$C$1))))*$M$6*('lob_Growth&Yield'!E5-lob_Inputs!$F$25)*EXP(-($M$7*('lob_Growth&Yield'!E5-lob_Inputs!$F$25)))))) -> 0 | M13: =IF(B13="","",IF(B13<(lob_RParms!$A$31+$M$4),$L13,$L$39)) -> 0 | N13: =IF(B13="","",IF(OR(lob_RParms!$A$30=FALSE,$B13<lob_RParms!$A$31),0,(EXP(-0.25*('lob_Growth&Yield'!H5^(1.8333-1/60*$C$1))))*$O$6*($B13-lob_RParms!$A$31)*EXP(-($O$7*($B13-lob_RParms!$A$31))))) -> 0 | O13: =IF(B13="","",IF($B13<(lob_RParms!$A$31+$O$4),$N13,$N$39)) -> 0 | Q13: =IF(B13="","",(EXP(-0.25*('lob_Growth&Yield'!H5^(1.8333-1/60*$C$1))))) -> 0.9141762035 | S13: =+IF(B13="","",IF($U$4=TRUE,GetFertilizerResponseAtAge($U$5,$C$1,$U$8,$U$6,$U$7,"HD",$B13,"RESP")*$Q13,0)) -> 0 | T13: =IF(B13="","",IF($B13<($U$5+$T$9),$S13,$S$39)) -> 0 | U13: =IF(B13="","",IF($U$4=TRUE,GetFertilizerResponseAtAge($U$5,$C$1,$U$8,$U$6,$U$7,"BA",$B13,"RESP")*$Q13,0)) -> 0 | W13: =IF(B13="","",IF($Y$4=TRUE,GetFertilizerResponseAtAge($Y$5,$C$1,$Y$8,$Y$6,$Y$7,"HD",$B13,"RESP")*$Q13,0)) -> 0 | X13: =IF(B13="","",IF($B13<($Y$5+$X$9),$W13,$W$39)) -> 0 | Y13: =IF(B13="","",IF($Y$4=TRUE,GetFertilizerResponseAtAge($Y$5,$C$1,$Y$8,$Y$6,$Y$7,"BA",$B13,"RESP")*$Q13,0)) -> 0 | AA13: =IF(B13="","",IF($AC$4=TRUE,GetFertilizerResponseAtAge($AC$5,$C$1,$AC$8,$AC$6,$AC$7,"HD",$B13,"RESP")*$Q13,0)) -> 0 | AB13: =IF(B13="","",IF($B13<($AC$5+$AB$9),$AA13,$AA$39)) -> 0 | AC13: =IF(B13="","",IF($AC$4=TRUE,GetFertilizerResponseAtAge($AC$5,$C$1,$AC$8,$AC$6,$AC$7,"BA",$B13,"RESP")*$Q13,0)) -> 0 | AE13: =IF(B13="","",IF($AG$4=TRUE,GetFertilizerResponseAtAge($AG$5,$C$1,$AG$8,$AG$6,$AG$7,"HD",$B13,"RESP")*$Q13,0)) -> 0 | AF13: =IF(B13="","",IF($B13<($AG$5+$AF$9),$AE13,$AE$39)) -> 0 | AG13: =IF(B13="","",IF($AG$4=TRUE,GetFertilizerResponseAtAge($AG$5,$C$1,$AG$8,$AG$6,$AG$7,"BA",$B13,"RESP")*$Q13,0)) -> 0 | AH13: =IF(B13="","",IF($I13>0,1,0)) -> 0 | AI13: =IF(B13="","",IF($M13>0,1,0)) -> 0 | AJ13: =IF(B13="","",SUM(AH13:AI13)) -> 0 | AK13: =IF(B13="","",IF($AJ13>1,1,$AJ13)) -> 0 | AL13: =IF(B13=0,0,IF(B13="","",$AK13*($E13+$I13+$M13))) -> 0 | AM13: =IF(B13="","",$T13+0.9*$X13+0.8*$AB13+0.7*$AF13) -> 0 | AN13: =IF(B13="","",SUM(AL13:AM13)) -> 0 | AP13: =IF(B13="","",IF($J13>0,1,0)) -> 0 | AQ13: =IF(B13="","",IF($O13>0,1,0)) -> 0 | AR13: =IF(B13="","",SUM(AP13:AQ13)) -> 0 | AS13: =IF(B13="","",IF($AR13>1,1,$AR13)) -> 0 | AT13: =IF(B13=0,0,IF(B13="","",$AS13*($G13+$J13+$O13))) -> 0 | AU13: =IF(B13="","",$U13+0.9*$Y13+0.8*$AC13+0.7*$AG13) -> 0 | AV13: =IF(B13="","",SUM(AT13:AU13)) -> 0 | AW13: 0.681390725 | AX13: 0.6185628052 | AY13: 0.5541575756 | AZ13: 0.4882570385
A14: 2 | B14: =+IF('lob_Growth&Yield'!B6=1,'lob_Growth&Yield'!E6,"") -> 3 | C14: =IF(B14=0,0,IF(B14="","",SQRT(43560/'lob_Growth&Yield'!$K6)/'lob_Growth&Yield'!$Y6)) -> 0.8378537265 | D14: =IF(B14=0,0,IF(B14="","",(EXP(-0.25*('lob_Growth&Yield'!$Y6^(1.8333-1/60*$C$1))))*$E$7*$B14*EXP(-$E$6*$B14))) -> 0.4087425696 | E14: =IF(lob_Inputs!$K$8=TRUE,$D14,0) -> 0 | F14: =IF(B14=0,0,IF(B14="","",(EXP(-0.25*('lob_Growth&Yield'!H6^(1.8333-1/60*$C$1))))*$G$7*$B14*EXP(-$G$6*$B14))) -> 1.511808068 | G14: =IF(lob_Inputs!$K$8=TRUE,$F14,0) -> 0 | I14: =IF(B14=0,0,IF(B14="","",(EXP(-0.25*('lob_Growth&Yield'!H6^(1.8333-1/60*$C$1))))*$I$5*($B14-$I$6)*EXP(-$I$4*($B14-$I$6)))) -> 0 | J14: =IF(B14=0,0,IF(B14="","",(EXP(-0.25*('lob_Growth&Yield'!H6^(1.8333-1/60*$C$1))))*$K$5*($B14-$I$6)*EXP(-$K$4*($B14-$I$6)))) -> 0 | L14: =IF('lob_Growth&Yield'!E6=0,0,IF(B14="","",IF(OR(lob_Inputs!$K$14=FALSE,'lob_Growth&Yield'!E6<lob_Inputs!$F$25),0,(EXP(-0.25*('lob_Growth&Yield'!H6^(1.8333-1/60*$C$1))))*$M$6*('lob_Growth&Yield'!E6-lob_Inputs!$F$25)*EXP(-($M$7*('lob_Growth&Yield'!E6-lob_Inputs!$F$25)))))) -> 0 | M14: =IF(B14="","",IF(B14<(lob_RParms!$A$31+$M$4),$L14,$L$39)) -> 0 | N14: =IF(B14="","",IF(OR(lob_RParms!$A$30=FALSE,$B14<lob_RParms!$A$31),0,(EXP(-0.25*('lob_Growth&Yield'!H6^(1.8333-1/60*$C$1))))*$O$6*($B14-lob_RParms!$A$31)*EXP(-($O$7*($B14-lob_RParms!$A$31))))) -> 0 | O14: =IF(B14="","",IF($B14<(lob_RParms!$A$31+$O$4),$N14,$N$39)) -> 0 | Q14: =IF(B14="","",(EXP(-0.25*('lob_Growth&Yield'!H6^(1.8333-1/60*$C$1))))) -> 0.924667736 | S14: =+IF(B14="","",IF($U$4=TRUE,GetFertilizerResponseAtAge($U$5,$C$1,$U$8,$U$6,$U$7,"HD",$B14,"RESP")*$Q14,0)) -> 0 | T14: 0 | U14: =IF(B14="","",IF($U$4=TRUE,GetFertilizerResponseAtAge($U$5,$C$1,$U$8,$U$6,$U$7,"BA",$B14,"RESP")*$Q14,0)) -> 0 | W14: =IF(B14="","",IF($Y$4=TRUE,GetFertilizerResponseAtAge($Y$5,$C$1,$Y$8,$Y$6,$Y$7,"HD",$B14,"RESP")*$Q14,0)) -> 0 | X14: 0 | Y14: =IF(B14="","",IF($Y$4=TRUE,GetFertilizerResponseAtAge($Y$5,$C$1,$Y$8,$Y$6,$Y$7,"BA",$B14,"RESP")*$Q14,0)) -> 0 | AA14: =IF(B14="","",IF($AC$4=TRUE,GetFertilizerResponseAtAge($AC$5,$C$1,$AC$8,$AC$6,$AC$7,"HD",$B14,"RESP")*$Q14,0)) -> 0 | AB14: 0 | AC14: =IF(B14="","",IF($AC$4=TRUE,GetFertilizerResponseAtAge($AC$5,$C$1,$AC$8,$AC$6,$AC$7,"BA",$B14,"RESP")*$Q14,0)) -> 0 | AE14: =IF(B14="","",IF($AG$4=TRUE,GetFertilizerResponseAtAge($AG$5,$C$1,$AG$8,$AG$6,$AG$7,"HD",$B14,"RESP")*$Q14,0)) -> 0 | AF14: 0 | AG14: =IF(B14="","",IF($AG$4=TRUE,GetFertilizerResponseAtAge($AG$5,$C$1,$AG$8,$AG$6,$AG$7,"BA",$B14,"RESP")*$Q14,0)) -> 0 | AH14: 0 | AI14: 0 | AJ14: 0 | AK14: 0 | AL14: 0 | AM14: 0 | AN14: 0 | AP14: 0 | AQ14: 0 | AR14: 0 | AS14: 0 | AT14: 0 | AU14: 0 | AV14: 0 | AW14: 4.461274598 | AX14: 4.118650842 | AY14: 3.756275564 | AZ14: 3.372936107
A15: 3 | B15: =+IF('lob_Growth&Yield'!B7=1,'lob_Growth&Yield'!E7,"") -> 4 | C15: =IF(B15=0,0,IF(B15="","",SQRT(43560/'lob_Growth&Yield'!$K7)/'lob_Growth&Yield'!$Y7)) -> 0.6251617922 | D15: =IF(B15=0,0,IF(B15="","",(EXP(-0.25*('lob_Growth&Yield'!$Y7^(1.8333-1/60*$C$1))))*$E$7*$B15*EXP(-$E$6*$B15))) -> 0.3947485017 | E15: =IF(lob_Inputs!$K$8=TRUE,$D15,0) -> 0 | F15: =IF(B15=0,0,IF(B15="","",(EXP(-0.25*('lob_Growth&Yield'!H7^(1.8333-1/60*$C$1))))*$G$7*$B15*EXP(-$G$6*$B15))) -> 1.916538393 | G15: =IF(lob_Inputs!$K$8=TRUE,$F15,0) -> 0 | I15: =IF(B15=0,0,IF(B15="","",(EXP(-0.25*('lob_Growth&Yield'!H7^(1.8333-1/60*$C$1))))*$I$5*($B15-$I$6)*EXP(-$I$4*($B15-$I$6)))) -> 0 | J15: =IF(B15=0,0,IF(B15="","",(EXP(-0.25*('lob_Growth&Yield'!H7^(1.8333-1/60*$C$1))))*$K$5*($B15-$I$6)*EXP(-$K$4*($B15-$I$6)))) -> 0 | L15: =IF('lob_Growth&Yield'!E7=0,0,IF(B15="","",IF(OR(lob_Inputs!$K$14=FALSE,'lob_Growth&Yield'!E7<lob_Inputs!$F$25),0,(EXP(-0.25*('lob_Growth&Yield'!H7^(1.8333-1/60*$C$1))))*$M$6*('lob_Growth&Yield'!E7-lob_Inputs!$F$25)*EXP(-($M$7*('lob_Growth&Yield'!E7-lob_Inputs!$F$25)))))) -> 0 | M15: =IF(B15="","",IF(B15<(lob_RParms!$A$31+$M$4),$L15,$L$39)) -> 0 | N15: =IF(B15="","",IF(OR(lob_RParms!$A$30=FALSE,$B15<lob_RParms!$A$31),0,(EXP(-0.25*('lob_Growth&Yield'!H7^(1.8333-1/60*$C$1))))*$O$6*($B15-lob_RParms!$A$31)*EXP(-($O$7*($B15-lob_RParms!$A$31))))) -> 0 | O15: =IF(B15="","",IF($B15<(lob_RParms!$A$31+$O$4),$N15,$N$39)) -> 0 | Q15: =IF(B15="","",(EXP(-0.25*('lob_Growth&Yield'!H7^(1.8333-1/60*$C$1))))) -> 0.9335329928 | S15: =+IF(B15="","",IF($U$4=TRUE,GetFertilizerResponseAtAge($U$5,$C$1,$U$8,$U$6,$U$7,"HD",$B15,"RESP")*$Q15,0)) -> 0 | T15: 0 | U15: =IF(B15="","",IF($U$4=TRUE,GetFertilizerResponseAtAge($U$5,$C$1,$U$8,$U$6,$U$7,"BA",$B15,"RESP")*$Q15,0)) -> 0 | W15: =IF(B15="","",IF($Y$4=TRUE,GetFertilizerResponseAtAge($Y$5,$C$1,$Y$8,$Y$6,$Y$7,"HD",$B15,"RESP")*$Q15,0)) -> 0 | X15: 0 | Y15: =IF(B15="","",IF($Y$4=TRUE,GetFertilizerResponseAtAge($Y$5,$C$1,$Y$8,$Y$6,$Y$7,"BA",$B15,"RESP")*$Q15,0)) -> 0 | AA15: =IF(B15="","",IF($AC$4=TRUE,GetFertilizerResponseAtAge($AC$5,$C$1,$AC$8,$AC$6,$AC$7,"HD",$B15,"RESP")*$Q15,0)) -> 0 | AB15: 0 | AC15: =IF(B15="","",IF($AC$4=TRUE,GetFertilizerResponseAtAge($AC$5,$C$1,$AC$8,$AC$6,$AC$7,"BA",$B15,"RESP")*$Q15,0)) -> 0 | AE15: =IF(B15="","",IF($AG$4=TRUE,GetFertilizerResponseAtAge($AG$5,$C$1,$AG$8,$AG$6,$AG$7,"HD",$B15,"RESP")*$Q15,0)) -> 0 | AF15: 0 | AG15: =IF(B15="","",IF($AG$4=TRUE,GetFertilizerResponseAtAge($AG$5,$C$1,$AG$8,$AG$6,$AG$7,"BA",$B15,"RESP")*$Q15,0)) -> 0 | AH15: 0 | AI15: 0 | AJ15: 0 | AK15: 0 | AL15: 0 | AM15: 0 | AN15: 0 | AP15: 0 | AQ15: 0 | AR15: 0 | AS15: 0 | AT15: 0 | AU15: 0 | AV15: 0 | AW15: 7.69537294 | AX15: 7.090260735 | AY15: 6.450734208 | AZ15: 5.775211473
A16: 4 | B16: =+IF('lob_Growth&Yield'!B8=1,'lob_Growth&Yield'!E8,"") -> 5 | C16: =IF(B16=0,0,IF(B16="","",SQRT(43560/'lob_Growth&Yield'!$K8)/'lob_Growth&Yield'!$Y8)) -> 0.5014434573 | D16: =IF(B16=0,0,IF(B16="","",(EXP(-0.25*('lob_Growth&Yield'!$Y8^(1.8333-1/60*$C$1))))*$E$7*$B16*EXP(-$E$6*$B16))) -> 0.366827109 | E16: =IF(lob_Inputs!$K$8=TRUE,$D16,0) -> 0 | F16: =IF(B16=0,0,IF(B16="","",(EXP(-0.25*('lob_Growth&Yield'!H8^(1.8333-1/60*$C$1))))*$G$7*$B16*EXP(-$G$6*$B16))) -> 2.274152017 | G16: =IF(lob_Inputs!$K$8=TRUE,$F16,0) -> 0 | I16: =IF(B16=0,0,IF(B16="","",(EXP(-0.25*('lob_Growth&Yield'!H8^(1.8333-1/60*$C$1))))*$I$5*($B16-$I$6)*EXP(-$I$4*($B16-$I$6)))) -> 0 | J16: =IF(B16=0,0,IF(B16="","",(EXP(-0.25*('lob_Growth&Yield'!H8^(1.8333-1/60*$C$1))))*$K$5*($B16-$I$6)*EXP(-$K$4*($B16-$I$6)))) -> 0 | L16: =IF('lob_Growth&Yield'!E8=0,0,IF(B16="","",IF(OR(lob_Inputs!$K$14=FALSE,'lob_Growth&Yield'!E8<lob_Inputs!$F$25),0,(EXP(-0.25*('lob_Growth&Yield'!H8^(1.8333-1/60*$C$1))))*$M$6*('lob_Growth&Yield'!E8-lob_Inputs!$F$25)*EXP(-($M$7*('lob_Growth&Yield'!E8-lob_Inputs!$F$25)))))) -> 0 | M16: =IF(B16="","",IF(B16<(lob_RParms!$A$31+$M$4),$L16,$L$39)) -> 0 | N16: =IF(B16="","",IF(OR(lob_RParms!$A$30=FALSE,$B16<lob_RParms!$A$31),0,(EXP(-0.25*('lob_Growth&Yield'!H8^(1.8333-1/60*$C$1))))*$O$6*($B16-lob_RParms!$A$31)*EXP(-($O$7*($B16-lob_RParms!$A$31))))) -> 0 | O16: =IF(B16="","",IF($B16<(lob_RParms!$A$31+$O$4),$N16,$N$39)) -> 0 | Q16: =IF(B16="","",(EXP(-0.25*('lob_Growth&Yield'!H8^(1.8333-1/60*$C$1))))) -> 0.9409866573 | S16: =+IF(B16="","",IF($U$4=TRUE,GetFertilizerResponseAtAge($U$5,$C$1,$U$8,$U$6,$U$7,"HD",$B16,"RESP")*$Q16,0)) -> 0 | T16: 0 | U16: =IF(B16="","",IF($U$4=TRUE,GetFertilizerResponseAtAge($U$5,$C$1,$U$8,$U$6,$U$7,"BA",$B16,"RESP")*$Q16,0)) -> 0 | W16: =IF(B16="","",IF($Y$4=TRUE,GetFertilizerResponseAtAge($Y$5,$C$1,$Y$8,$Y$6,$Y$7,"HD",$B16,"RESP")*$Q16,0)) -> 0 | X16: 0 | Y16: =IF(B16="","",IF($Y$4=TRUE,GetFertilizerResponseAtAge($Y$5,$C$1,$Y$8,$Y$6,$Y$7,"BA",$B16,"RESP")*$Q16,0)) -> 0 | AA16: =IF(B16="","",IF($AC$4=TRUE,GetFertilizerResponseAtAge($AC$5,$C$1,$AC$8,$AC$6,$AC$7,"HD",$B16,"RESP")*$Q16,0)) -> 0 | AB16: 0 | AC16: =IF(B16="","",IF($AC$4=TRUE,GetFertilizerResponseAtAge($AC$5,$C$1,$AC$8,$AC$6,$AC$7,"BA",$B16,"RESP")*$Q16,0)) -> 0 | AE16: =IF(B16="","",IF($AG$4=TRUE,GetFertilizerResponseAtAge($AG$5,$C$1,$AG$8,$AG$6,$AG$7,"HD",$B16,"RESP")*$Q16,0)) -> 0 | AF16: 0 | AG16: =IF(B16="","",IF($AG$4=TRUE,GetFertilizerResponseAtAge($AG$5,$C$1,$AG$8,$AG$6,$AG$7,"BA",$B16,"RESP")*$Q16,0)) -> 0 | AH16: 0 | AI16: 0 | AJ16: 0 | AK16: 0 | AL16: 0 | AM16: 0 | AN16: 0 | AP16: 0 | AQ16: 0 | AR16: 0 | AS16: 0 | AT16: 0 | AU16: 0 | AV16: 0 | AW16: 10.42385128 | AX16: 9.576805546 | AY16: 8.684194924 | AZ16: 7.744749578
A17: 5 | B17: =+IF('lob_Growth&Yield'!B9=1,'lob_Growth&Yield'!E9,"") -> 6 | C17: =IF(B17=0,0,IF(B17="","",SQRT(43560/'lob_Growth&Yield'!$K9)/'lob_Growth&Yield'!$Y9)) -> 0.4211044471 | D17: =IF(B17=0,0,IF(B17="","",(EXP(-0.25*('lob_Growth&Yield'!$Y9^(1.8333-1/60*$C$1))))*$E$7*$B17*EXP(-$E$6*$B17))) -> 0.3340400913 | E17: =IF(lob_Inputs!$K$8=TRUE,$D17,0) -> 0 | F17: =IF(B17=0,0,IF(B17="","",(EXP(-0.25*('lob_Growth&Yield'!H9^(1.8333-1/60*$C$1))))*$G$7*$B17*EXP(-$G$6*$B17))) -> 2.58706125 | G17: =IF(lob_Inputs!$K$8=TRUE,$F17,0) -> 0 | I17: =IF(B17=0,0,IF(B17="","",(EXP(-0.25*('lob_Growth&Yield'!H9^(1.8333-1/60*$C$1))))*$I$5*($B17-$I$6)*EXP(-$I$4*($B17-$I$6)))) -> 0 | J17: =IF(B17=0,0,IF(B17="","",(EXP(-0.25*('lob_Growth&Yield'!H9^(1.8333-1/60*$C$1))))*$K$5*($B17-$I$6)*EXP(-$K$4*($B17-$I$6)))) -> 0 | L17: =IF('lob_Growth&Yield'!E9=0,0,IF(B17="","",IF(OR(lob_Inputs!$K$14=FALSE,'lob_Growth&Yield'!E9<lob_Inputs!$F$25),0,(EXP(-0.25*('lob_Growth&Yield'!H9^(1.8333-1/60*$C$1))))*$M$6*('lob_Growth&Yield'!E9-lob_Inputs!$F$25)*EXP(-($M$7*('lob_Growth&Yield'!E9-lob_Inputs!$F$25)))))) -> 0 | M17: =IF(B17="","",IF(B17<(lob_RParms!$A$31+$M$4),$L17,$L$39)) -> 0 | N17: =IF(B17="","",IF(OR(lob_RParms!$A$30=FALSE,$B17<lob_RParms!$A$31),0,(EXP(-0.25*('lob_Growth&Yield'!H9^(1.8333-1/60*$C$1))))*$O$6*($B17-lob_RParms!$A$31)*EXP(-($O$7*($B17-lob_RParms!$A$31))))) -> 0 | O17: =IF(B17="","",IF($B17<(lob_RParms!$A$31+$O$4),$N17,$N$39)) -> 0 | Q17: =IF(B17="","",(EXP(-0.25*('lob_Growth&Yield'!H9^(1.8333-1/60*$C$1))))) -> 0.9472209113 | S17: =+IF(B17="","",IF($U$4=TRUE,GetFertilizerResponseAtAge($U$5,$C$1,$U$8,$U$6,$U$7,"HD",$B17,"RESP")*$Q17,0)) -> 0 | T17: 0 | U17: =IF(B17="","",IF($U$4=TRUE,GetFertilizerResponseAtAge($U$5,$C$1,$U$8,$U$6,$U$7,"BA",$B17,"RESP")*$Q17,0)) -> 0 | W17: =IF(B17="","",IF($Y$4=TRUE,GetFertilizerResponseAtAge($Y$5,$C$1,$Y$8,$Y$6,$Y$7,"HD",$B17,"RESP")*$Q17,0)) -> 0 | X17: 0 | Y17: =IF(B17="","",IF($Y$4=TRUE,GetFertilizerResponseAtAge($Y$5,$C$1,$Y$8,$Y$6,$Y$7,"BA",$B17,"RESP")*$Q17,0)) -> 0 | AA17: =IF(B17="","",IF($AC$4=TRUE,GetFertilizerResponseAtAge($AC$5,$C$1,$AC$8,$AC$6,$AC$7,"HD",$B17,"RESP")*$Q17,0)) -> 0 | AB17: 0 | AC17: =IF(B17="","",IF($AC$4=TRUE,GetFertilizerResponseAtAge($AC$5,$C$1,$AC$8,$AC$6,$AC$7,"BA",$B17,"RESP")*$Q17,0)) -> 0 | AE17: =IF(B17="","",IF($AG$4=TRUE,GetFertilizerResponseAtAge($AG$5,$C$1,$AG$8,$AG$6,$AG$7,"HD",$B17,"RESP")*$Q17,0)) -> 0 | AF17: 0 | AG17: =IF(B17="","",IF($AG$4=TRUE,GetFertilizerResponseAtAge($AG$5,$C$1,$AG$8,$AG$6,$AG$7,"BA",$B17,"RESP")*$Q17,0)) -> 0 | AH17: 0 | AI17: 0 | AJ17: 0 | AK17: 0 | AL17: 0 | AM17: 0 | AN17: 0 | AP17: 0 | AQ17: 0 | AR17: 0 | AS17: 0 | AT17: 0 | AU17: 0 | AV17: 0 | AW17: 12.6914201 | AX17: 11.62444622 | AY17: 10.50418152 | AZ17: 9.330163819
A18: 6 | B18: =+IF('lob_Growth&Yield'!B10=1,'lob_Growth&Yield'!E10,"") -> 7 | C18: =IF(B18=0,0,IF(B18="","",SQRT(43560/'lob_Growth&Yield'!$K10)/'lob_Growth&Yield'!$Y10)) -> 0.3650625355 | D18: =IF(B18=0,0,IF(B18="","",(EXP(-0.25*('lob_Growth&Yield'!$Y10^(1.8333-1/60*$C$1))))*$E$7*$B18*EXP(-$E$6*$B18))) -> 0.3007969692 | E18: =IF(lob_Inputs!$K$8=TRUE,$D18,0) -> 0 | F18: =IF(B18=0,0,IF(B18="","",(EXP(-0.25*('lob_Growth&Yield'!H10^(1.8333-1/60*$C$1))))*$G$7*$B18*EXP(-$G$6*$B18))) -> 2.858004915 | G18: =IF(lob_Inputs!$K$8=TRUE,$F18,0) -> 0 | I18: =IF(B18=0,0,IF(B18="","",(EXP(-0.25*('lob_Growth&Yield'!H10^(1.8333-1/60*$C$1))))*$I$5*($B18-$I$6)*EXP(-$I$4*($B18-$I$6)))) -> 0 | J18: =IF(B18=0,0,IF(B18="","",(EXP(-0.25*('lob_Growth&Yield'!H10^(1.8333-1/60*$C$1))))*$K$5*($B18-$I$6)*EXP(-$K$4*($B18-$I$6)))) -> 0 | L18: =IF('lob_Growth&Yield'!E10=0,0,IF(B18="","",IF(OR(lob_Inputs!$K$14=FALSE,'lob_Growth&Yield'!E10<lob_Inputs!$F$25),0,(EXP(-0.25*('lob_Growth&Yield'!H10^(1.8333-1/60*$C$1))))*$M$6*('lob_Growth&Yield'!E10-lob_Inputs!$F$25)*EXP(-($M$7*('lob_Growth&Yield'!E10-lob_Inputs!$F$25)))))) -> 0 | M18: =IF(B18="","",IF(B18<(lob_RParms!$A$31+$M$4),$L18,$L$39)) -> 0 | N18: =IF(B18="","",IF(OR(lob_RParms!$A$30=FALSE,$B18<lob_RParms!$A$31),0,(EXP(-0.25*('lob_Growth&Yield'!H10^(1.8333-1/60*$C$1))))*$O$6*($B18-lob_RParms!$A$31)*EXP(-($O$7*($B18-lob_RParms!$A$31))))) -> 0 | O18: =IF(B18="","",IF($B18<(lob_RParms!$A$31+$O$4),$N18,$N$39)) -> 0 | Q18: =IF(B18="","",(EXP(-0.25*('lob_Growth&Yield'!H10^(1.8333-1/60*$C$1))))) -> 0.9524070176 | S18: =+IF(B18="","",IF($U$4=TRUE,GetFertilizerResponseAtAge($U$5,$C$1,$U$8,$U$6,$U$7,"HD",$B18,"RESP")*$Q18,0)) -> 0 | T18: 0 | U18: =IF(B18="","",IF($U$4=TRUE,GetFertilizerResponseAtAge($U$5,$C$1,$U$8,$U$6,$U$7,"BA",$B18,"RESP")*$Q18,0)) -> 0 | W18: =IF(B18="","",IF($Y$4=TRUE,GetFertilizerResponseAtAge($Y$5,$C$1,$Y$8,$Y$6,$Y$7,"HD",$B18,"RESP")*$Q18,0)) -> 0 | X18: 0 | Y18: =IF(B18="","",IF($Y$4=TRUE,GetFertilizerResponseAtAge($Y$5,$C$1,$Y$8,$Y$6,$Y$7,"BA",$B18,"RESP")*$Q18,0)) -> 0 | AA18: =IF(B18="","",IF($AC$4=TRUE,GetFertilizerResponseAtAge($AC$5,$C$1,$AC$8,$AC$6,$AC$7,"HD",$B18,"RESP")*$Q18,0)) -> 0 | AB18: 0 | AC18: =IF(B18="","",IF($AC$4=TRUE,GetFertilizerResponseAtAge($AC$5,$C$1,$AC$8,$AC$6,$AC$7,"BA",$B18,"RESP")*$Q18,0)) -> 0 | AE18: =IF(B18="","",IF($AG$4=TRUE,GetFertilizerResponseAtAge($AG$5,$C$1,$AG$8,$AG$6,$AG$7,"HD",$B18,"RESP")*$Q18,0)) -> 0 | AF18: 0 | AG18: =IF(B18="","",IF($AG$4=TRUE,GetFertilizerResponseAtAge($AG$5,$C$1,$AG$8,$AG$6,$AG$7,"BA",$B18,"RESP")*$Q18,0)) -> 0 | AH18: 0 | AI18: 0 | AJ18: 0 | AK18: 0 | AL18: 0 | AM18: 0 | AN18: 0 | AP18: 0 | AQ18: 0 | AR18: 0 | AS18: 0 | AT18: 0 | AU18: 0 | AV18: 0 | AW18: 14.544209 | AX18: 13.2796326 | AY18: 11.95728084 | AZ18: 10.57785384
A19: 7 | B19: =+IF('lob_Growth&Yield'!B11=1,'lob_Growth&Yield'!E11,"") -> 8 | C19: =IF(B19=0,0,IF(B19="","",SQRT(43560/'lob_Growth&Yield'!$K11)/'lob_Growth&Yield'!$Y11)) -> 0.3239571312 | D19: =IF(B19=0,0,IF(B19="","",(EXP(-0.25*('lob_Growth&Yield'!$Y11^(1.8333-1/60*$C$1))))*$E$7*$B19*EXP(-$E$6*$B19))) -> 0.2691918085 | E19: =IF(lob_Inputs!$K$8=TRUE,$D19,0) -> 0 | F19: =IF(B19=0,0,IF(B19="","",(EXP(-0.25*('lob_Growth&Yield'!H11^(1.8333-1/60*$C$1))))*$G$7*$B19*EXP(-$G$6*$B19))) -> 3.089903591 | G19: =IF(lob_Inputs!$K$8=TRUE,$F19,0) -> 0 | I19: =IF(B19=0,0,IF(B19="","",(EXP(-0.25*('lob_Growth&Yield'!H11^(1.8333-1/60*$C$1))))*$I$5*($B19-$I$6)*EXP(-$I$4*($B19-$I$6)))) -> 0 | J19: =IF(B19=0,0,IF(B19="","",(EXP(-0.25*('lob_Growth&Yield'!H11^(1.8333-1/60*$C$1))))*$K$5*($B19-$I$6)*EXP(-$K$4*($B19-$I$6)))) -> 0 | L19: =IF('lob_Growth&Yield'!E11=0,0,IF(B19="","",IF(OR(lob_Inputs!$K$14=FALSE,'lob_Growth&Yield'!E11<lob_Inputs!$F$25),0,(EXP(-0.25*('lob_Growth&Yield'!H11^(1.8333-1/60*$C$1))))*$M$6*('lob_Growth&Yield'!E11-lob_Inputs!$F$25)*EXP(-($M$7*('lob_Growth&Yield'!E11-lob_Inputs!$F$25)))))) -> 0 | M19: =IF(B19="","",IF(B19<(lob_RParms!$A$31+$M$4),$L19,$L$39)) -> 0 | N19: =IF(B19="","",IF(OR(lob_RParms!$A$30=FALSE,$B19<lob_RParms!$A$31),0,(EXP(-0.25*('lob_Growth&Yield'!H11^(1.8333-1/60*$C$1))))*$O$6*($B19-lob_RParms!$A$31)*EXP(-($O$7*($B19-lob_RParms!$A$31))))) -> 0 | O19: =IF(B19="","",IF($B19<(lob_RParms!$A$31+$O$4),$N19,$N$39)) -> 0 | Q19: =IF(B19="","",(EXP(-0.25*('lob_Growth&Yield'!H11^(1.8333-1/60*$C$1))))) -> 0.9566970531 | S19: =+IF(B19="","",IF($U$4=TRUE,GetFertilizerResponseAtAge($U$5,$C$1,$U$8,$U$6,$U$7,"HD",$B19,"RESP")*$Q19,0)) -> 0 | T19: 0 | U19: =IF(B19="","",IF($U$4=TRUE,GetFertilizerResponseAtAge($U$5,$C$1,$U$8,$U$6,$U$7,"BA",$B19,"RESP")*$Q19,0)) -> 0 | W19: =IF(B19="","",IF($Y$4=TRUE,GetFertilizerResponseAtAge($Y$5,$C$1,$Y$8,$Y$6,$Y$7,"HD",$B19,"RESP")*$Q19,0)) -> 0 | X19: 0 | Y19: =IF(B19="","",IF($Y$4=TRUE,GetFertilizerResponseAtAge($Y$5,$C$1,$Y$8,$Y$6,$Y$7,"BA",$B19,"RESP")*$Q19,0)) -> 0 | AA19: =IF(B19="","",IF($AC$4=TRUE,GetFertilizerResponseAtAge($AC$5,$C$1,$AC$8,$AC$6,$AC$7,"HD",$B19,"RESP")*$Q19,0)) -> 0 | AB19: 0 | AC19: =IF(B19="","",IF($AC$4=TRUE,GetFertilizerResponseAtAge($AC$5,$C$1,$AC$8,$AC$6,$AC$7,"BA",$B19,"RESP")*$Q19,0)) -> 0 | AE19: =IF(B19="","",IF($AG$4=TRUE,GetFertilizerResponseAtAge($AG$5,$C$1,$AG$8,$AG$6,$AG$7,"HD",$B19,"RESP")*$Q19,0)) -> 0 | AF19: 0 | AG19: =IF(B19="","",IF($AG$4=TRUE,GetFertilizerResponseAtAge($AG$5,$C$1,$AG$8,$AG$6,$AG$7,"BA",$B19,"RESP")*$Q19,0)) -> 0 | AH19: 0 | AI19: 0 | AJ19: 0 | AK19: 0 | AL19: 0 | AM19: 0 | AN19: 0 | AP19: 0 | AQ19: 0 | AR19: 0 | AS19: 0 | AT19: 0 | AU19: 0 | AV19: 0 | AW19: 22.47433684 | AX19: 17.58938102 | AY19: 15.86691603 | AZ19: 14.08581119
A20: 8 | B20: =+IF('lob_Growth&Yield'!B12=1,'lob_Growth&Yield'!E12,"") -> 9 | C20: =IF(B20=0,0,IF(B20="","",SQRT(43560/'lob_Growth&Yield'!$K12)/'lob_Growth&Yield'!$Y12)) -> 0.2926705021 | D20: =IF(B20=0,0,IF(B20="","",(EXP(-0.25*('lob_Growth&Yield'!$Y12^(1.8333-1/60*$C$1))))*$E$7*$B20*EXP(-$E$6*$B20))) -> 0.240131389 | E20: =IF(lob_Inputs!$K$8=TRUE,$D20,0) -> 0 | F20: =IF(B20=0,0,IF(B20="","",(EXP(-0.25*('lob_Growth&Yield'!H12^(1.8333-1/60*$C$1))))*$G$7*$B20*EXP(-$G$6*$B20))) -> 3.285749516 | G20: =IF(lob_Inputs!$K$8=TRUE,$F20,0) -> 0 | I20: =IF(B20=0,0,IF(B20="","",(EXP(-0.25*('lob_Growth&Yield'!H12^(1.8333-1/60*$C$1))))*$I$5*($B20-$I$6)*EXP(-$I$4*($B20-$I$6)))) -> 0 | J20: =IF(B20=0,0,IF(B20="","",(EXP(-0.25*('lob_Growth&Yield'!H12^(1.8333-1/60*$C$1))))*$K$5*($B20-$I$6)*EXP(-$K$4*($B20-$I$6)))) -> 0 | L20: =IF('lob_Growth&Yield'!E12=0,0,IF(B20="","",IF(OR(lob_Inputs!$K$14=FALSE,'lob_Growth&Yield'!E12<lob_Inputs!$F$25),0,(EXP(-0.25*('lob_Growth&Yield'!H12^(1.8333-1/60*$C$1))))*$M$6*('lob_Growth&Yield'!E12-lob_Inputs!$F$25)*EXP(-($M$7*('lob_Growth&Yield'!E12-lob_Inputs!$F$25)))))) -> 0 | M20: =IF(B20="","",IF(B20<(lob_RParms!$A$31+$M$4),$L20,$L$39)) -> 0 | N20: =IF(B20="","",IF(OR(lob_RParms!$A$30=FALSE,$B20<lob_RParms!$A$31),0,(EXP(-0.25*('lob_Growth&Yield'!H12^(1.8333-1/60*$C$1))))*$O$6*($B20-lob_RParms!$A$31)*EXP(-($O$7*($B20-lob_RParms!$A$31))))) -> 0 | O20: =IF(B20="","",IF($B20<(lob_RParms!$A$31+$O$4),$N20,$N$39)) -> 0 | Q20: =IF(B20="","",(EXP(-0.25*('lob_Growth&Yield'!H12^(1.8333-1/60*$C$1))))) -> 0.9602255909 | S20: =+IF(B20="","",IF($U$4=TRUE,GetFertilizerResponseAtAge($U$5,$C$1,$U$8,$U$6,$U$7,"HD",$B20,"RESP")*$Q20,0)) -> 0 | T20: 0 | U20: =IF(B20="","",IF($U$4=TRUE,GetFertilizerResponseAtAge($U$5,$C$1,$U$8,$U$6,$U$7,"BA",$B20,"RESP")*$Q20,0)) -> 0 | W20: =IF(B20="","",IF($Y$4=TRUE,GetFertilizerResponseAtAge($Y$5,$C$1,$Y$8,$Y$6,$Y$7,"HD",$B20,"RESP")*$Q20,0)) -> 0 | X20: 0 | Y20: =IF(B20="","",IF($Y$4=TRUE,GetFertilizerResponseAtAge($Y$5,$C$1,$Y$8,$Y$6,$Y$7,"BA",$B20,"RESP")*$Q20,0)) -> 0 | AA20: =IF(B20="","",IF($AC$4=TRUE,GetFertilizerResponseAtAge($AC$5,$C$1,$AC$8,$AC$6,$AC$7,"HD",$B20,"RESP")*$Q20,0)) -> 0 | AB20: 0 | AC20: =IF(B20="","",IF($AC$4=TRUE,GetFertilizerResponseAtAge($AC$5,$C$1,$AC$8,$AC$6,$AC$7,"BA",$B20,"RESP")*$Q20,0)) -> 0 | AE20: =IF(B20="","",IF($AG$4=TRUE,GetFertilizerResponseAtAge($AG$5,$C$1,$AG$8,$AG$6,$AG$7,"HD",$B20,"RESP")*$Q20,0)) -> 0 | AF20: 0 | AG20: =IF(B20="","",IF($AG$4=TRUE,GetFertilizerResponseAtAge($AG$5,$C$1,$AG$8,$AG$6,$AG$7,"BA",$B20,"RESP")*$Q20,0)) -> 0 | AH20: 0 | AI20: 0 | AJ20: 0 | AK20: 0 | AL20: 0 | AM20: 0 | AN20: 0 | AP20: 0 | AQ20: 0 | AR20: 0 | AS20: 0 | AT20: 0 | AU20: 0 | AV20: 0 | AW20: 27.97479372 | AX20: 20.61682273 | AY20: 18.5925456 | AZ20: 16.51089251
A21: 9 | B21: =+IF('lob_Growth&Yield'!B13=1,'lob_Growth&Yield'!E13,"") -> 10 | C21: =IF(B21=0,0,IF(B21="","",SQRT(43560/'lob_Growth&Yield'!$K13)/'lob_Growth&Yield'!$Y13)) -> 0.2681739675 | D21: =IF(B21=0,0,IF(B21="","",(EXP(-0.25*('lob_Growth&Yield'!$Y13^(1.8333-1/60*$C$1))))*$E$7*$B21*EXP(-$E$6*$B21))) -> 0.2139088578 | E21: =IF(lob_Inputs!$K$8=TRUE,$D21,0) -> 0 | F21: =IF(B21=0,0,IF(B21="","",(EXP(-0.25*('lob_Growth&Yield'!H13^(1.8333-1/60*$C$1))))*$G$7*$B21*EXP(-$G$6*$B21))) -> 3.44852415 | G21: =IF(lob_Inputs!$K$8=TRUE,$F21,0) -> 0 | I21: =IF(B21=0,0,IF(B21="","",(EXP(-0.25*('lob_Growth&Yield'!H13^(1.8333-1/60*$C$1))))*$I$5*($B21-$I$6)*EXP(-$I$4*($B21-$I$6)))) -> 0 | J21: =IF(B21=0,0,IF(B21="","",(EXP(-0.25*('lob_Growth&Yield'!H13^(1.8333-1/60*$C$1))))*$K$5*($B21-$I$6)*EXP(-$K$4*($B21-$I$6)))) -> 0 | L21: =IF('lob_Growth&Yield'!E13=0,0,IF(B21="","",IF(OR(lob_Inputs!$K$14=FALSE,'lob_Growth&Yield'!E13<lob_Inputs!$F$25),0,(EXP(-0.25*('lob_Growth&Yield'!H13^(1.8333-1/60*$C$1))))*$M$6*('lob_Growth&Yield'!E13-lob_Inputs!$F$25)*EXP(-($M$7*('lob_Growth&Yield'!E13-lob_Inputs!$F$25)))))) -> 0 | M21: =IF(B21="","",IF(B21<(lob_RParms!$A$31+$M$4),$L21,$L$39)) -> 0 | N21: =IF(B21="","",IF(OR(lob_RParms!$A$30=FALSE,$B21<lob_RParms!$A$31),0,(EXP(-0.25*('lob_Growth&Yield'!H13^(1.8333-1/60*$C$1))))*$O$6*($B21-lob_RParms!$A$31)*EXP(-($O$7*($B21-lob_RParms!$A$31))))) -> 0 | O21: =IF(B21="","",IF($B21<(lob_RParms!$A$31+$O$4),$N21,$N$39)) -> 0 | Q21: =IF(B21="","",(EXP(-0.25*('lob_Growth&Yield'!H13^(1.8333-1/60*$C$1))))) -> 0.9631112226 | S21: =+IF(B21="","",IF($U$4=TRUE,GetFertilizerResponseAtAge($U$5,$C$1,$U$8,$U$6,$U$7,"HD",$B21,"RESP")*$Q21,0)) -> 0 | T21: 0 | U21: =IF(B21="","",IF($U$4=TRUE,GetFertilizerResponseAtAge($U$5,$C$1,$U$8,$U$6,$U$7,"BA",$B21,"RESP")*$Q21,0)) -> 0 | W21: =IF(B21="","",IF($Y$4=TRUE,GetFertilizerResponseAtAge($Y$5,$C$1,$Y$8,$Y$6,$Y$7,"HD",$B21,"RESP")*$Q21,0)) -> 0 | X21: 0 | Y21: =IF(B21="","",IF($Y$4=TRUE,GetFertilizerResponseAtAge($Y$5,$C$1,$Y$8,$Y$6,$Y$7,"BA",$B21,"RESP")*$Q21,0)) -> 0 | AA21: =IF(B21="","",IF($AC$4=TRUE,GetFertilizerResponseAtAge($AC$5,$C$1,$AC$8,$AC$6,$AC$7,"HD",$B21,"RESP")*$Q21,0)) -> 0 | AB21: 0 | AC21: =IF(B21="","",IF($AC$4=TRUE,GetFertilizerResponseAtAge($AC$5,$C$1,$AC$8,$AC$6,$AC$7,"BA",$B21,"RESP")*$Q21,0)) -> 0 | AE21: =IF(B21="","",IF($AG$4=TRUE,GetFertilizerResponseAtAge($AG$5,$C$1,$AG$8,$AG$6,$AG$7,"HD",$B21,"RESP")*$Q21,0)) -> 0 | AF21: 0 | AG21: =IF(B21="","",IF($AG$4=TRUE,GetFertilizerResponseAtAge($AG$5,$C$1,$AG$8,$AG$6,$AG$7,"BA",$B21,"RESP")*$Q21,0)) -> 0 | AH21: 0 | AI21: 0 | AJ21: 0 | AK21: 0 | AL21: 0 | AM21: 0 | AN21: 0 | AP21: 0 | AQ21: 0 | AR21: 0 | AS21: 0 | AT21: 0 | AU21: 0 | AV21: 0 | AW21: 31.59108025 | AX21: 22.63538425 | AY21: 20.38778328 | AZ21: 18.08669628
A22: 10 | B22: =+IF('lob_Growth&Yield'!B14=1,'lob_Growth&Yield'!E14,"") -> 11 | C22: =IF(B22=0,0,IF(B22="","",SQRT(43560/'lob_Growth&Yield'!$K14)/'lob_Growth&Yield'!$Y14)) -> 0.2485632038 | D22: =IF(B22=0,0,IF(B22="","",(EXP(-0.25*('lob_Growth&Yield'!$Y14^(1.8333-1/60*$C$1))))*$E$7*$B22*EXP(-$E$6*$B22))) -> 0.1905050292 | E22: =IF(lob_Inputs!$K$8=TRUE,$D22,0) -> 0 | F22: =IF(B22=0,0,IF(B22="","",(EXP(-0.25*('lob_Growth&Yield'!H14^(1.8333-1/60*$C$1))))*$G$7*$B22*EXP(-$G$6*$B22))) -> 3.581137618 | G22: =IF(lob_Inputs!$K$8=TRUE,$F22,0) -> 0 | I22: =IF(B22=0,0,IF(B22="","",(EXP(-0.25*('lob_Growth&Yield'!H14^(1.8333-1/60*$C$1))))*$I$5*($B22-$I$6)*EXP(-$I$4*($B22-$I$6)))) -> 0 | J22: =IF(B22=0,0,IF(B22="","",(EXP(-0.25*('lob_Growth&Yield'!H14^(1.8333-1/60*$C$1))))*$K$5*($B22-$I$6)*EXP(-$K$4*($B22-$I$6)))) -> 0 | L22: =IF('lob_Growth&Yield'!E14=0,0,IF(B22="","",IF(OR(lob_Inputs!$K$14=FALSE,'lob_Growth&Yield'!E14<lob_Inputs!$F$25),0,(EXP(-0.25*('lob_Growth&Yield'!H14^(1.8333-1/60*$C$1))))*$M$6*('lob_Growth&Yield'!E14-lob_Inputs!$F$25)*EXP(-($M$7*('lob_Growth&Yield'!E14-lob_Inputs!$F$25)))))) -> 0 | M22: =IF(B22="","",IF(B22<(lob_RParms!$A$31+$M$4),$L22,$L$39)) -> 0 | N22: =IF(B22="","",IF(OR(lob_RParms!$A$30=FALSE,$B22<lob_RParms!$A$31),0,(EXP(-0.25*('lob_Growth&Yield'!H14^(1.8333-1/60*$C$1))))*$O$6*($B22-lob_RParms!$A$31)*EXP(-($O$7*($B22-lob_RParms!$A$31))))) -> 0 | O22: =IF(B22="","",IF($B22<(lob_RParms!$A$31+$O$4),$N22,$N$39)) -> 0 | Q22: =IF(B22="","",(EXP(-0.25*('lob_Growth&Yield'!H14^(1.8333-1/60*$C$1))))) -> 0.9654578901 | S22: =+IF(B22="","",IF($U$4=TRUE,GetFertilizerResponseAtAge($U$5,$C$1,$U$8,$U$6,$U$7,"HD",$B22,"RESP")*$Q22,0)) -> 0 | T22: 0 | U22: =IF(B22="","",IF($U$4=TRUE,GetFertilizerResponseAtAge($U$5,$C$1,$U$8,$U$6,$U$7,"BA",$B22,"RESP")*$Q22,0)) -> 0 | W22: =IF(B22="","",IF($Y$4=TRUE,GetFertilizerResponseAtAge($Y$5,$C$1,$Y$8,$Y$6,$Y$7,"HD",$B22,"RESP")*$Q22,0)) -> 0 | X22: 0 | Y22: =IF(B22="","",IF($Y$4=TRUE,GetFertilizerResponseAtAge($Y$5,$C$1,$Y$8,$Y$6,$Y$7,"BA",$B22,"RESP")*$Q22,0)) -> 0 | AA22: =IF(B22="","",IF($AC$4=TRUE,GetFertilizerResponseAtAge($AC$5,$C$1,$AC$8,$AC$6,$AC$7,"HD",$B22,"RESP")*$Q22,0)) -> 0 | AB22: 0 | AC22: =IF(B22="","",IF($AC$4=TRUE,GetFertilizerResponseAtAge($AC$5,$C$1,$AC$8,$AC$6,$AC$7,"BA",$B22,"RESP")*$Q22,0)) -> 0 | AE22: =IF(B22="","",IF($AG$4=TRUE,GetFertilizerResponseAtAge($AG$5,$C$1,$AG$8,$AG$6,$AG$7,"HD",$B22,"RESP")*$Q22,0)) -> 0 | AF22: 0 | AG22: =IF(B22="","",IF($AG$4=TRUE,GetFertilizerResponseAtAge($AG$5,$C$1,$AG$8,$AG$6,$AG$7,"BA",$B22,"RESP")*$Q22,0)) -> 0 | AH22: 0 | AI22: 0 | AJ22: 0 | AK22: 0 | AL22: 0 | AM22: 0 | AN22: 0 | AP22: 0 | AQ22: 0 | AR22: 0 | AS22: 0 | AT22: 0 | AU22: 0 | AV22: 0 | AW22: 33.76207595 | AX22: 23.86747337 | AY22: 21.45901634 | AZ22: 19.00324767
A23: 11 | B23: =+IF('lob_Growth&Yield'!B15=1,'lob_Growth&Yield'!E15,"") -> 12 | C23: =IF(B23=0,0,IF(B23="","",SQRT(43560/'lob_Growth&Yield'!$K15)/'lob_Growth&Yield'!$Y15)) -> 0.2325820462 | D23: =IF(B23=0,0,IF(B23="","",(EXP(-0.25*('lob_Growth&Yield'!$Y15^(1.8333-1/60*$C$1))))*$E$7*$B23*EXP(-$E$6*$B23))) -> 0.1697495556 | E23: =IF(lob_Inputs!$K$8=TRUE,$D23,0) -> 0 | F23: =IF(B23=0,0,IF(B23="","",(EXP(-0.25*('lob_Growth&Yield'!H15^(1.8333-1/60*$C$1))))*$G$7*$B23*EXP(-$G$6*$B23))) -> 3.686385529 | G23: =IF(lob_Inputs!$K$8=TRUE,$F23,0) -> 0 | I23: =IF(B23=0,0,IF(B23="","",(EXP(-0.25*('lob_Growth&Yield'!H15^(1.8333-1/60*$C$1))))*$I$5*($B23-$I$6)*EXP(-$I$4*($B23-$I$6)))) -> 0 | J23: =IF(B23=0,0,IF(B23="","",(EXP(-0.25*('lob_Growth&Yield'!H15^(1.8333-1/60*$C$1))))*$K$5*($B23-$I$6)*EXP(-$K$4*($B23-$I$6)))) -> 0 | L23: =IF('lob_Growth&Yield'!E15=0,0,IF(B23="","",IF(OR(lob_Inputs!$K$14=FALSE,'lob_Growth&Yield'!E15<lob_Inputs!$F$25),0,(EXP(-0.25*('lob_Growth&Yield'!H15^(1.8333-1/60*$C$1))))*$M$6*('lob_Growth&Yield'!E15-lob_Inputs!$F$25)*EXP(-($M$7*('lob_Growth&Yield'!E15-lob_Inputs!$F$25)))))) -> 0 | M23: =IF(B23="","",IF(B23<(lob_RParms!$A$31+$M$4),$L23,$L$39)) -> 0 | N23: =IF(B23="","",IF(OR(lob_RParms!$A$30=FALSE,$B23<lob_RParms!$A$31),0,(EXP(-0.25*('lob_Growth&Yield'!H15^(1.8333-1/60*$C$1))))*$O$6*($B23-lob_RParms!$A$31)*EXP(-($O$7*($B23-lob_RParms!$A$31))))) -> 0 | O23: =IF(B23="","",IF($B23<(lob_RParms!$A$31+$O$4),$N23,$N$39)) -> 0 | Q23: =IF(B23="","",(EXP(-0.25*('lob_Growth&Yield'!H15^(1.8333-1/60*$C$1))))) -> 0.9673560583 | S23: =+IF(B23="","",IF($U$4=TRUE,GetFertilizerResponseAtAge($U$5,$C$1,$U$8,$U$6,$U$7,"HD",$B23,"RESP")*$Q23,0)) -> 0 | T23: 0 | U23: =IF(B23="","",IF($U$4=TRUE,GetFertilizerResponseAtAge($U$5,$C$1,$U$8,$U$6,$U$7,"BA",$B23,"RESP")*$Q23,0)) -> 0 | W23: =IF(B23="","",IF($Y$4=TRUE,GetFertilizerResponseAtAge($Y$5,$C$1,$Y$8,$Y$6,$Y$7,"HD",$B23,"RESP")*$Q23,0)) -> 0 | X23: 0 | Y23: =IF(B23="","",IF($Y$4=TRUE,GetFertilizerResponseAtAge($Y$5,$C$1,$Y$8,$Y$6,$Y$7,"BA",$B23,"RESP")*$Q23,0)) -> 0 | AA23: =IF(B23="","",IF($AC$4=TRUE,GetFertilizerResponseAtAge($AC$5,$C$1,$AC$8,$AC$6,$AC$7,"HD",$B23,"RESP")*$Q23,0)) -> 0 | AB23: 0 | AC23: =IF(B23="","",IF($AC$4=TRUE,GetFertilizerResponseAtAge($AC$5,$C$1,$AC$8,$AC$6,$AC$7,"BA",$B23,"RESP")*$Q23,0)) -> 0 | AE23: =IF(B23="","",IF($AG$4=TRUE,GetFertilizerResponseAtAge($AG$5,$C$1,$AG$8,$AG$6,$AG$7,"HD",$B23,"RESP")*$Q23,0)) -> 0 | AF23: 0 | AG23: =IF(B23="","",IF($AG$4=TRUE,GetFertilizerResponseAtAge($AG$5,$C$1,$AG$8,$AG$6,$AG$7,"BA",$B23,"RESP")*$Q23,0)) -> 0 | AH23: 0 | AI23: 0 | AJ23: 0 | AK23: 0 | AL23: 0 | AM23: 0 | AN23: 0 | AP23: 0 | AQ23: 0 | AR23: 0 | AS23: 0 | AT23: 0 | AU23: 0 | AV23: 0
A24: 12 | B24: =+IF('lob_Growth&Yield'!B16=1,'lob_Growth&Yield'!E16,"") -> 13 | C24: =IF(B24=0,0,IF(B24="","",SQRT(43560/'lob_Growth&Yield'!$K16)/'lob_Growth&Yield'!$Y16)) -> 0.2193689807 | D24: =IF(B24=0,0,IF(B24="","",(EXP(-0.25*('lob_Growth&Yield'!$Y16^(1.8333-1/60*$C$1))))*$E$7*$B24*EXP(-$E$6*$B24))) -> 0.1514076187 | E24: =IF(lob_Inputs!$K$8=TRUE,$D24,0) -> 0 | F24: =IF(B24=0,0,IF(B24="","",(EXP(-0.25*('lob_Growth&Yield'!H16^(1.8333-1/60*$C$1))))*$G$7*$B24*EXP(-$G$6*$B24))) -> 3.766919638 | G24: =IF(lob_Inputs!$K$8=TRUE,$F24,0) -> 0 | I24: =IF(B24=0,0,IF(B24="","",(EXP(-0.25*('lob_Growth&Yield'!H16^(1.8333-1/60*$C$1))))*$I$5*($B24-$I$6)*EXP(-$I$4*($B24-$I$6)))) -> 0 | J24: =IF(B24=0,0,IF(B24="","",(EXP(-0.25*('lob_Growth&Yield'!H16^(1.8333-1/60*$C$1))))*$K$5*($B24-$I$6)*EXP(-$K$4*($B24-$I$6)))) -> 0 | L24: =IF('lob_Growth&Yield'!E16=0,0,IF(B24="","",IF(OR(lob_Inputs!$K$14=FALSE,'lob_Growth&Yield'!E16<lob_Inputs!$F$25),0,(EXP(-0.25*('lob_Growth&Yield'!H16^(1.8333-1/60*$C$1))))*$M$6*('lob_Growth&Yield'!E16-lob_Inputs!$F$25)*EXP(-($M$7*('lob_Growth&Yield'!E16-lob_Inputs!$F$25)))))) -> 0 | M24: =IF(B24="","",IF(B24<(lob_RParms!$A$31+$M$4),$L24,$L$39)) -> 0 | N24: =IF(B24="","",IF(OR(lob_RParms!$A$30=FALSE,$B24<lob_RParms!$A$31),0,(EXP(-0.25*('lob_Growth&Yield'!H16^(1.8333-1/60*$C$1))))*$O$6*($B24-lob_RParms!$A$31)*EXP(-($O$7*($B24-lob_RParms!$A$31))))) -> 0 | O24: =IF(B24="","",IF($B24<(lob_RParms!$A$31+$O$4),$N24,$N$39)) -> 0 | Q24: =IF(B24="","",(EXP(-0.25*('lob_Growth&Yield'!H16^(1.8333-1/60*$C$1))))) -> 0.9688837927 | S24: =+IF(B24="","",IF($U$4=TRUE,GetFertilizerResponseAtAge($U$5,$C$1,$U$8,$U$6,$U$7,"HD",$B24,"RESP")*$Q24,0)) -> 0 | T24: 0 | U24: =IF(B24="","",IF($U$4=TRUE,GetFertilizerResponseAtAge($U$5,$C$1,$U$8,$U$6,$U$7,"BA",$B24,"RESP")*$Q24,0)) -> 0 | W24: =IF(B24="","",IF($Y$4=TRUE,GetFertilizerResponseAtAge($Y$5,$C$1,$Y$8,$Y$6,$Y$7,"HD",$B24,"RESP")*$Q24,0)) -> 0 | X24: 0 | Y24: =IF(B24="","",IF($Y$4=TRUE,GetFertilizerResponseAtAge($Y$5,$C$1,$Y$8,$Y$6,$Y$7,"BA",$B24,"RESP")*$Q24,0)) -> 0 | AA24: =IF(B24="","",IF($AC$4=TRUE,GetFertilizerResponseAtAge($AC$5,$C$1,$AC$8,$AC$6,$AC$7,"HD",$B24,"RESP")*$Q24,0)) -> 0 | AB24: 0 | AC24: =IF(B24="","",IF($AC$4=TRUE,GetFertilizerResponseAtAge($AC$5,$C$1,$AC$8,$AC$6,$AC$7,"BA",$B24,"RESP")*$Q24,0)) -> 0 | AE24: =IF(B24="","",IF($AG$4=TRUE,GetFertilizerResponseAtAge($AG$5,$C$1,$AG$8,$AG$6,$AG$7,"HD",$B24,"RESP")*$Q24,0)) -> 0 | AF24: 0 | AG24: =IF(B24="","",IF($AG$4=TRUE,GetFertilizerResponseAtAge($AG$5,$C$1,$AG$8,$AG$6,$AG$7,"BA",$B24,"RESP")*$Q24,0)) -> 0 | AH24: 0 | AI24: 0 | AJ24: 0 | AK24: 0 | AL24: 0 | AM24: 0 | AN24: 0 | AP24: 0 | AQ24: 0 | AR24: 0 | AS24: 0 | AT24: 0 | AU24: 0 | AV24: 0
A25: 13 | B25: =+IF('lob_Growth&Yield'!B17=1,'lob_Growth&Yield'!E17,"") -> 14 | C25: =IF(B25=0,0,IF(B25="","",SQRT(43560/'lob_Growth&Yield'!$K17)/'lob_Growth&Yield'!$Y17)) -> 0.2083137628 | D25: =IF(B25=0,0,IF(B25="","",(EXP(-0.25*('lob_Growth&Yield'!$Y17^(1.8333-1/60*$C$1))))*$E$7*$B25*EXP(-$E$6*$B25))) -> 0.1352261486 | E25: =IF(lob_Inputs!$K$8=TRUE,$D25,0) -> 0 | F25: =IF(B25=0,0,IF(B25="","",(EXP(-0.25*('lob_Growth&Yield'!H17^(1.8333-1/60*$C$1))))*$G$7*$B25*EXP(-$G$6*$B25))) -> 3.825229602 | G25: =IF(lob_Inputs!$K$8=TRUE,$F25,0) -> 0 | I25: =IF(B25=0,0,IF(B25="","",(EXP(-0.25*('lob_Growth&Yield'!H17^(1.8333-1/60*$C$1))))*$I$5*($B25-$I$6)*EXP(-$I$4*($B25-$I$6)))) -> 0 | J25: =IF(B25=0,0,IF(B25="","",(EXP(-0.25*('lob_Growth&Yield'!H17^(1.8333-1/60*$C$1))))*$K$5*($B25-$I$6)*EXP(-$K$4*($B25-$I$6)))) -> 0 | L25: =IF('lob_Growth&Yield'!E17=0,0,IF(B25="","",IF(OR(lob_Inputs!$K$14=FALSE,'lob_Growth&Yield'!E17<lob_Inputs!$F$25),0,(EXP(-0.25*('lob_Growth&Yield'!H17^(1.8333-1/60*$C$1))))*$M$6*('lob_Growth&Yield'!E17-lob_Inputs!$F$25)*EXP(-($M$7*('lob_Growth&Yield'!E17-lob_Inputs!$F$25)))))) -> 0 | M25: =IF(B25="","",IF(B25<(lob_RParms!$A$31+$M$4),$L25,$L$39)) -> 0 | N25: =IF(B25="","",IF(OR(lob_RParms!$A$30=FALSE,$B25<lob_RParms!$A$31),0,(EXP(-0.25*('lob_Growth&Yield'!H17^(1.8333-1/60*$C$1))))*$O$6*($B25-lob_RParms!$A$31)*EXP(-($O$7*($B25-lob_RParms!$A$31))))) -> 0 | O25: =IF(B25="","",IF($B25<(lob_RParms!$A$31+$O$4),$N25,$N$39)) -> 0 | Q25: =IF(B25="","",(EXP(-0.25*('lob_Growth&Yield'!H17^(1.8333-1/60*$C$1))))) -> 0.9701078062 | S25: =+IF(B25="","",IF($U$4=TRUE,GetFertilizerResponseAtAge($U$5,$C$1,$U$8,$U$6,$U$7,"HD",$B25,"RESP")*$Q25,0)) -> 0 | T25: 0 | U25: =IF(B25="","",IF($U$4=TRUE,GetFertilizerResponseAtAge($U$5,$C$1,$U$8,$U$6,$U$7,"BA",$B25,"RESP")*$Q25,0)) -> 0 | W25: =IF(B25="","",IF($Y$4=TRUE,GetFertilizerResponseAtAge($Y$5,$C$1,$Y$8,$Y$6,$Y$7,"HD",$B25,"RESP")*$Q25,0)) -> 0 | X25: 0 | Y25: =IF(B25="","",IF($Y$4=TRUE,GetFertilizerResponseAtAge($Y$5,$C$1,$Y$8,$Y$6,$Y$7,"BA",$B25,"RESP")*$Q25,0)) -> 0 | AA25: =IF(B25="","",IF($AC$4=TRUE,GetFertilizerResponseAtAge($AC$5,$C$1,$AC$8,$AC$6,$AC$7,"HD",$B25,"RESP")*$Q25,0)) -> 0 | AB25: 0 | AC25: =IF(B25="","",IF($AC$4=TRUE,GetFertilizerResponseAtAge($AC$5,$C$1,$AC$8,$AC$6,$AC$7,"BA",$B25,"RESP")*$Q25,0)) -> 0 | AE25: =IF(B25="","",IF($AG$4=TRUE,GetFertilizerResponseAtAge($AG$5,$C$1,$AG$8,$AG$6,$AG$7,"HD",$B25,"RESP")*$Q25,0)) -> 0 | AF25: 0 | AG25: =IF(B25="","",IF($AG$4=TRUE,GetFertilizerResponseAtAge($AG$5,$C$1,$AG$8,$AG$6,$AG$7,"BA",$B25,"RESP")*$Q25,0)) -> 0 | AH25: 0 | AI25: 0 | AJ25: 0 | AK25: 0 | AL25: 0 | AM25: 0 | AN25: 0 | AP25: 0 | AQ25: 0 | AR25: 0 | AS25: 0 | AT25: 0 | AU25: 0 | AV25: 0
A26: 14 | B26: =+IF('lob_Growth&Yield'!B18=1,'lob_Growth&Yield'!E18,"") -> 15 | C26: =IF(B26=0,0,IF(B26="","",SQRT(43560/'lob_Growth&Yield'!$K18)/'lob_Growth&Yield'!$Y18)) -> 0.1989721893 | D26: =IF(B26=0,0,IF(B26="","",(EXP(-0.25*('lob_Growth&Yield'!$Y18^(1.8333-1/60*$C$1))))*$E$7*$B26*EXP(-$E$6*$B26))) -> 0.1209577476 | E26: =IF(lob_Inputs!$K$8=TRUE,$D26,0) -> 0 | F26: =IF(B26=0,0,IF(B26="","",(EXP(-0.25*('lob_Growth&Yield'!H18^(1.8333-1/60*$C$1))))*$G$7*$B26*EXP(-$G$6*$B26))) -> 3.863633517 | G26: =IF(lob_Inputs!$K$8=TRUE,$F26,0) -> 0 | I26: =IF(B26=0,0,IF(B26="","",(EXP(-0.25*('lob_Growth&Yield'!H18^(1.8333-1/60*$C$1))))*$I$5*($B26-$I$6)*EXP(-$I$4*($B26-$I$6)))) -> 0 | J26: =IF(B26=0,0,IF(B26="","",(EXP(-0.25*('lob_Growth&Yield'!H18^(1.8333-1/60*$C$1))))*$K$5*($B26-$I$6)*EXP(-$K$4*($B26-$I$6)))) -> 0 | L26: =IF('lob_Growth&Yield'!E18=0,0,IF(B26="","",IF(OR(lob_Inputs!$K$14=FALSE,'lob_Growth&Yield'!E18<lob_Inputs!$F$25),0,(EXP(-0.25*('lob_Growth&Yield'!H18^(1.8333-1/60*$C$1))))*$M$6*('lob_Growth&Yield'!E18-lob_Inputs!$F$25)*EXP(-($M$7*('lob_Growth&Yield'!E18-lob_Inputs!$F$25)))))) -> 0 | M26: =IF(B26="","",IF(B26<(lob_RParms!$A$31+$M$4),$L26,$L$39)) -> 0 | N26: =IF(B26="","",IF(OR(lob_RParms!$A$30=FALSE,$B26<lob_RParms!$A$31),0,(EXP(-0.25*('lob_Growth&Yield'!H18^(1.8333-1/60*$C$1))))*$O$6*($B26-lob_RParms!$A$31)*EXP(-($O$7*($B26-lob_RParms!$A$31))))) -> 0 | O26: =IF(B26="","",IF($B26<(lob_RParms!$A$31+$O$4),$N26,$N$39)) -> 0 | Q26: =IF(B26="","",(EXP(-0.25*('lob_Growth&Yield'!H18^(1.8333-1/60*$C$1))))) -> 0.9710845214 | S26: =+IF(B26="","",IF($U$4=TRUE,GetFertilizerResponseAtAge($U$5,$C$1,$U$8,$U$6,$U$7,"HD",$B26,"RESP")*$Q26,0)) -> 0 | T26: 0 | U26: =IF(B26="","",IF($U$4=TRUE,GetFertilizerResponseAtAge($U$5,$C$1,$U$8,$U$6,$U$7,"BA",$B26,"RESP")*$Q26,0)) -> 0 | W26: =IF(B26="","",IF($Y$4=TRUE,GetFertilizerResponseAtAge($Y$5,$C$1,$Y$8,$Y$6,$Y$7,"HD",$B26,"RESP")*$Q26,0)) -> 0 | X26: 0 | Y26: =IF(B26="","",IF($Y$4=TRUE,GetFertilizerResponseAtAge($Y$5,$C$1,$Y$8,$Y$6,$Y$7,"BA",$B26,"RESP")*$Q26,0)) -> 0 | AA26: =IF(B26="","",IF($AC$4=TRUE,GetFertilizerResponseAtAge($AC$5,$C$1,$AC$8,$AC$6,$AC$7,"HD",$B26,"RESP")*$Q26,0)) -> 0 | AB26: 0 | AC26: =IF(B26="","",IF($AC$4=TRUE,GetFertilizerResponseAtAge($AC$5,$C$1,$AC$8,$AC$6,$AC$7,"BA",$B26,"RESP")*$Q26,0)) -> 0 | AE26: =IF(B26="","",IF($AG$4=TRUE,GetFertilizerResponseAtAge($AG$5,$C$1,$AG$8,$AG$6,$AG$7,"HD",$B26,"RESP")*$Q26,0)) -> 0 | AF26: 0 | AG26: =IF(B26="","",IF($AG$4=TRUE,GetFertilizerResponseAtAge($AG$5,$C$1,$AG$8,$AG$6,$AG$7,"BA",$B26,"RESP")*$Q26,0)) -> 0 | AH26: 0 | AI26: 0 | AJ26: 0 | AK26: 0 | AL26: 0 | AM26: 0 | AN26: 0 | AP26: 0 | AQ26: 0 | AR26: 0 | AS26: 0 | AT26: 0 | AU26: 0 | AV26: 0
A27: 15 | B27: =+IF('lob_Growth&Yield'!B19=1,'lob_Growth&Yield'!E19,"") -> 16 | C27: =IF(B27=0,0,IF(B27="","",SQRT(43560/'lob_Growth&Yield'!$K19)/'lob_Growth&Yield'!$Y19)) -> 0.1910132891 | D27: =IF(B27=0,0,IF(B27="","",(EXP(-0.25*('lob_Growth&Yield'!$Y19^(1.8333-1/60*$C$1))))*$E$7*$B27*EXP(-$E$6*$B27))) -> 0.1083722715 | E27: =IF(lob_Inputs!$K$8=TRUE,$D27,0) -> 0 | F27: =IF(B27=0,0,IF(B27="","",(EXP(-0.25*('lob_Growth&Yield'!H19^(1.8333-1/60*$C$1))))*$G$7*$B27*EXP(-$G$6*$B27))) -> 3.884275311 | G27: =IF(lob_Inputs!$K$8=TRUE,$F27,0) -> 0 | I27: =IF(B27=0,0,IF(B27="","",(EXP(-0.25*('lob_Growth&Yield'!H19^(1.8333-1/60*$C$1))))*$I$5*($B27-$I$6)*EXP(-$I$4*($B27-$I$6)))) -> 0 | J27: =IF(B27=0,0,IF(B27="","",(EXP(-0.25*('lob_Growth&Yield'!H19^(1.8333-1/60*$C$1))))*$K$5*($B27-$I$6)*EXP(-$K$4*($B27-$I$6)))) -> 0 | L27: =IF('lob_Growth&Yield'!E19=0,0,IF(B27="","",IF(OR(lob_Inputs!$K$14=FALSE,'lob_Growth&Yield'!E19<lob_Inputs!$F$25),0,(EXP(-0.25*('lob_Growth&Yield'!H19^(1.8333-1/60*$C$1))))*$M$6*('lob_Growth&Yield'!E19-lob_Inputs!$F$25)*EXP(-($M$7*('lob_Growth&Yield'!E19-lob_Inputs!$F$25)))))) -> 0 | M27: =IF(B27="","",IF(B27<(lob_RParms!$A$31+$M$4),$L27,$L$39)) -> 0 | N27: =IF(B27="","",IF(OR(lob_RParms!$A$30=FALSE,$B27<lob_RParms!$A$31),0,(EXP(-0.25*('lob_Growth&Yield'!H19^(1.8333-1/60*$C$1))))*$O$6*($B27-lob_RParms!$A$31)*EXP(-($O$7*($B27-lob_RParms!$A$31))))) -> 0 | O27: =IF(B27="","",IF($B27<(lob_RParms!$A$31+$O$4),$N27,$N$39)) -> 0 | Q27: =IF(B27="","",(EXP(-0.25*('lob_Growth&Yield'!H19^(1.8333-1/60*$C$1))))) -> 0.9718611607 | S27: =+IF(B27="","",IF($U$4=TRUE,GetFertilizerResponseAtAge($U$5,$C$1,$U$8,$U$6,$U$7,"HD",$B27,"RESP")*$Q27,0)) -> 0 | T27: 0 | U27: =IF(B27="","",IF($U$4=TRUE,GetFertilizerResponseAtAge($U$5,$C$1,$U$8,$U$6,$U$7,"BA",$B27,"RESP")*$Q27,0)) -> 0 | W27: =IF(B27="","",IF($Y$4=TRUE,GetFertilizerResponseAtAge($Y$5,$C$1,$Y$8,$Y$6,$Y$7,"HD",$B27,"RESP")*$Q27,0)) -> 0 | X27: 0 | Y27: =IF(B27="","",IF($Y$4=TRUE,GetFertilizerResponseAtAge($Y$5,$C$1,$Y$8,$Y$6,$Y$7,"BA",$B27,"RESP")*$Q27,0)) -> 0 | AA27: =IF(B27="","",IF($AC$4=TRUE,GetFertilizerResponseAtAge($AC$5,$C$1,$AC$8,$AC$6,$AC$7,"HD",$B27,"RESP")*$Q27,0)) -> 0 | AB27: 0 | AC27: =IF(B27="","",IF($AC$4=TRUE,GetFertilizerResponseAtAge($AC$5,$C$1,$AC$8,$AC$6,$AC$7,"BA",$B27,"RESP")*$Q27,0)) -> 0 | AE27: =IF(B27="","",IF($AG$4=TRUE,GetFertilizerResponseAtAge($AG$5,$C$1,$AG$8,$AG$6,$AG$7,"HD",$B27,"RESP")*$Q27,0)) -> 0 | AF27: 0 | AG27: =IF(B27="","",IF($AG$4=TRUE,GetFertilizerResponseAtAge($AG$5,$C$1,$AG$8,$AG$6,$AG$7,"BA",$B27,"RESP")*$Q27,0)) -> 0 | AH27: 0 | AI27: 0 | AJ27: 0 | AK27: 0 | AL27: 0 | AM27: 0 | AN27: 0 | AP27: 0 | AQ27: 0 | AR27: 0 | AS27: 0 | AT27: 0 | AU27: 0 | AV27: 0
A28: 16 | B28: =+IF('lob_Growth&Yield'!B20=1,'lob_Growth&Yield'!E20,"") -> 17 | C28: =IF(B28=0,0,IF(B28="","",SQRT(43560/'lob_Growth&Yield'!$K20)/'lob_Growth&Yield'!$Y20)) -> 0.1841854229 | D28: =IF(B28=0,0,IF(B28="","",(EXP(-0.25*('lob_Growth&Yield'!$Y20^(1.8333-1/60*$C$1))))*$E$7*$B28*EXP(-$E$6*$B28))) -> 0.09726160917 | E28: =IF(lob_Inputs!$K$8=TRUE,$D28,0) -> 0 | F28: =IF(B28=0,0,IF(B28="","",(EXP(-0.25*('lob_Growth&Yield'!H20^(1.8333-1/60*$C$1))))*$G$7*$B28*EXP(-$G$6*$B28))) -> 3.889127219 | G28: =IF(lob_Inputs!$K$8=TRUE,$F28,0) -> 0 | I28: =IF(B28=0,0,IF(B28="","",(EXP(-0.25*('lob_Growth&Yield'!H20^(1.8333-1/60*$C$1))))*$I$5*($B28-$I$6)*EXP(-$I$4*($B28-$I$6)))) -> 0 | J28: =IF(B28=0,0,IF(B28="","",(EXP(-0.25*('lob_Growth&Yield'!H20^(1.8333-1/60*$C$1))))*$K$5*($B28-$I$6)*EXP(-$K$4*($B28-$I$6)))) -> 0 | L28: =IF('lob_Growth&Yield'!E20=0,0,IF(B28="","",IF(OR(lob_Inputs!$K$14=FALSE,'lob_Growth&Yield'!E20<lob_Inputs!$F$25),0,(EXP(-0.25*('lob_Growth&Yield'!H20^(1.8333-1/60*$C$1))))*$M$6*('lob_Growth&Yield'!E20-lob_Inputs!$F$25)*EXP(-($M$7*('lob_Growth&Yield'!E20-lob_Inputs!$F$25)))))) -> 0 | M28: =IF(B28="","",IF(B28<(lob_RParms!$A$31+$M$4),$L28,$L$39)) -> 0 | N28: =IF(B28="","",IF(OR(lob_RParms!$A$30=FALSE,$B28<lob_RParms!$A$31),0,(EXP(-0.25*('lob_Growth&Yield'!H20^(1.8333-1/60*$C$1))))*$O$6*($B28-lob_RParms!$A$31)*EXP(-($O$7*($B28-lob_RParms!$A$31))))) -> 0 | O28: =IF(B28="","",IF($B28<(lob_RParms!$A$31+$O$4),$N28,$N$39)) -> 0 | Q28: =IF(B28="","",(EXP(-0.25*('lob_Growth&Yield'!H20^(1.8333-1/60*$C$1))))) -> 0.9724768505 | S28: =+IF(B28="","",IF($U$4=TRUE,GetFertilizerResponseAtAge($U$5,$C$1,$U$8,$U$6,$U$7,"HD",$B28,"RESP")*$Q28,0)) -> 0 | T28: 0 | U28: =IF(B28="","",IF($U$4=TRUE,GetFertilizerResponseAtAge($U$5,$C$1,$U$8,$U$6,$U$7,"BA",$B28,"RESP")*$Q28,0)) -> 0 | W28: =IF(B28="","",IF($Y$4=TRUE,GetFertilizerResponseAtAge($Y$5,$C$1,$Y$8,$Y$6,$Y$7,"HD",$B28,"RESP")*$Q28,0)) -> 0 | X28: 0 | Y28: =IF(B28="","",IF($Y$4=TRUE,GetFertilizerResponseAtAge($Y$5,$C$1,$Y$8,$Y$6,$Y$7,"BA",$B28,"RESP")*$Q28,0)) -> 0 | AA28: =IF(B28="","",IF($AC$4=TRUE,GetFertilizerResponseAtAge($AC$5,$C$1,$AC$8,$AC$6,$AC$7,"HD",$B28,"RESP")*$Q28,0)) -> 0 | AB28: 0 | AC28: =IF(B28="","",IF($AC$4=TRUE,GetFertilizerResponseAtAge($AC$5,$C$1,$AC$8,$AC$6,$AC$7,"BA",$B28,"RESP")*$Q28,0)) -> 0 | AE28: =IF(B28="","",IF($AG$4=TRUE,GetFertilizerResponseAtAge($AG$5,$C$1,$AG$8,$AG$6,$AG$7,"HD",$B28,"RESP")*$Q28,0)) -> 0 | AF28: 0 | AG28: =IF(B28="","",IF($AG$4=TRUE,GetFertilizerResponseAtAge($AG$5,$C$1,$AG$8,$AG$6,$AG$7,"BA",$B28,"RESP")*$Q28,0)) -> 0 | AH28: 0 | AI28: 0 | AJ28: 0 | AK28: 0 | AL28: 0 | AM28: 0 | AN28: 0 | AP28: 0 | AQ28: 0 | AR28: 0 | AS28: 0 | AT28: 0 | AU28: 0 | AV28: 0
A29: 17 | B29: =+IF('lob_Growth&Yield'!B21=1,'lob_Growth&Yield'!E21,"") -> 18 | C29: =IF(B29=0,0,IF(B29="","",SQRT(43560/'lob_Growth&Yield'!$K21)/'lob_Growth&Yield'!$Y21)) -> 0.1782938514 | D29: =IF(B29=0,0,IF(B29="","",(EXP(-0.25*('lob_Growth&Yield'!$Y21^(1.8333-1/60*$C$1))))*$E$7*$B29*EXP(-$E$6*$B29))) -> 0.08744078049 | E29: =IF(lob_Inputs!$K$8=TRUE,$D29,0) -> 0 | F29: =IF(B29=0,0,IF(B29="","",(EXP(-0.25*('lob_Growth&Yield'!H21^(1.8333-1/60*$C$1))))*$G$7*$B29*EXP(-$G$6*$B29))) -> 3.879995883 | G29: =IF(lob_Inputs!$K$8=TRUE,$F29,0) -> 0 | I29: =IF(B29=0,0,IF(B29="","",(EXP(-0.25*('lob_Growth&Yield'!H21^(1.8333-1/60*$C$1))))*$I$5*($B29-$I$6)*EXP(-$I$4*($B29-$I$6)))) -> 0 | J29: =IF(B29=0,0,IF(B29="","",(EXP(-0.25*('lob_Growth&Yield'!H21^(1.8333-1/60*$C$1))))*$K$5*($B29-$I$6)*EXP(-$K$4*($B29-$I$6)))) -> 0 | L29: =IF('lob_Growth&Yield'!E21=0,0,IF(B29="","",IF(OR(lob_Inputs!$K$14=FALSE,'lob_Growth&Yield'!E21<lob_Inputs!$F$25),0,(EXP(-0.25*('lob_Growth&Yield'!H21^(1.8333-1/60*$C$1))))*$M$6*('lob_Growth&Yield'!E21-lob_Inputs!$F$25)*EXP(-($M$7*('lob_Growth&Yield'!E21-lob_Inputs!$F$25)))))) -> 0 | M29: =IF(B29="","",IF(B29<(lob_RParms!$A$31+$M$4),$L29,$L$39)) -> 0 | N29: =IF(B29="","",IF(OR(lob_RParms!$A$30=FALSE,$B29<lob_RParms!$A$31),0,(EXP(-0.25*('lob_Growth&Yield'!H21^(1.8333-1/60*$C$1))))*$O$6*($B29-lob_RParms!$A$31)*EXP(-($O$7*($B29-lob_RParms!$A$31))))) -> 0 | O29: =IF(B29="","",IF($B29<(lob_RParms!$A$31+$O$4),$N29,$N$39)) -> 0 | Q29: =IF(B29="","",(EXP(-0.25*('lob_Growth&Yield'!H21^(1.8333-1/60*$C$1))))) -> 0.9729637096 | S29: =+IF(B29="","",IF($U$4=TRUE,GetFertilizerResponseAtAge($U$5,$C$1,$U$8,$U$6,$U$7,"HD",$B29,"RESP")*$Q29,0)) -> 0 | T29: 0 | U29: =IF(B29="","",IF($U$4=TRUE,GetFertilizerResponseAtAge($U$5,$C$1,$U$8,$U$6,$U$7,"BA",$B29,"RESP")*$Q29,0)) -> 0 | W29: =IF(B29="","",IF($Y$4=TRUE,GetFertilizerResponseAtAge($Y$5,$C$1,$Y$8,$Y$6,$Y$7,"HD",$B29,"RESP")*$Q29,0)) -> 0 | X29: 0 | Y29: =IF(B29="","",IF($Y$4=TRUE,GetFertilizerResponseAtAge($Y$5,$C$1,$Y$8,$Y$6,$Y$7,"BA",$B29,"RESP")*$Q29,0)) -> 0 | AA29: =IF(B29="","",IF($AC$4=TRUE,GetFertilizerResponseAtAge($AC$5,$C$1,$AC$8,$AC$6,$AC$7,"HD",$B29,"RESP")*$Q29,0)) -> 0 | AB29: 0 | AC29: =IF(B29="","",IF($AC$4=TRUE,GetFertilizerResponseAtAge($AC$5,$C$1,$AC$8,$AC$6,$AC$7,"BA",$B29,"RESP")*$Q29,0)) -> 0 | AE29: =IF(B29="","",IF($AG$4=TRUE,GetFertilizerResponseAtAge($AG$5,$C$1,$AG$8,$AG$6,$AG$7,"HD",$B29,"RESP")*$Q29,0)) -> 0 | AF29: 0 | AG29: =IF(B29="","",IF($AG$4=TRUE,GetFertilizerResponseAtAge($AG$5,$C$1,$AG$8,$AG$6,$AG$7,"BA",$B29,"RESP")*$Q29,0)) -> 0 | AH29: 0 | AI29: 0 | AJ29: 0 | AK29: 0 | AL29: 0 | AM29: 0 | AN29: 0 | AP29: 0 | AQ29: 0 | AR29: 0 | AS29: 0 | AT29: 0 | AU29: 0 | AV29: 0
A30: 18 | B30: =+IF('lob_Growth&Yield'!B22=1,'lob_Growth&Yield'!E22,"") -> 19 | C30: =IF(B30=0,0,IF(B30="","",SQRT(43560/'lob_Growth&Yield'!$K22)/'lob_Growth&Yield'!$Y22)) -> 0.1731854946 | D30: =IF(B30=0,0,IF(B30="","",(EXP(-0.25*('lob_Growth&Yield'!$Y22^(1.8333-1/60*$C$1))))*$E$7*$B30*EXP(-$E$6*$B30))) -> 0.07874711815 | E30: =IF(lob_Inputs!$K$8=TRUE,$D30,0) -> 0 | F30: =IF(B30=0,0,IF(B30="","",(EXP(-0.25*('lob_Growth&Yield'!H22^(1.8333-1/60*$C$1))))*$G$7*$B30*EXP(-$G$6*$B30))) -> 3.858530786 | G30: =IF(lob_Inputs!$K$8=TRUE,$F30,0) -> 0 | I30: =IF(B30=0,0,IF(B30="","",(EXP(-0.25*('lob_Growth&Yield'!H22^(1.8333-1/60*$C$1))))*$I$5*($B30-$I$6)*EXP(-$I$4*($B30-$I$6)))) -> 0 | J30: =IF(B30=0,0,IF(B30="","",(EXP(-0.25*('lob_Growth&Yield'!H22^(1.8333-1/60*$C$1))))*$K$5*($B30-$I$6)*EXP(-$K$4*($B30-$I$6)))) -> 0 | L30: =IF('lob_Growth&Yield'!E22=0,0,IF(B30="","",IF(OR(lob_Inputs!$K$14=FALSE,'lob_Growth&Yield'!E22<lob_Inputs!$F$25),0,(EXP(-0.25*('lob_Growth&Yield'!H22^(1.8333-1/60*$C$1))))*$M$6*('lob_Growth&Yield'!E22-lob_Inputs!$F$25)*EXP(-($M$7*('lob_Growth&Yield'!E22-lob_Inputs!$F$25)))))) -> 0 | M30: =IF(B30="","",IF(B30<(lob_RParms!$A$31+$M$4),$L30,$L$39)) -> 0 | N30: =IF(B30="","",IF(OR(lob_RParms!$A$30=FALSE,$B30<lob_RParms!$A$31),0,(EXP(-0.25*('lob_Growth&Yield'!H22^(1.8333-1/60*$C$1))))*$O$6*($B30-lob_RParms!$A$31)*EXP(-($O$7*($B30-lob_RParms!$A$31))))) -> 0 | O30: =IF(B30="","",IF($B30<(lob_RParms!$A$31+$O$4),$N30,$N$39)) -> 0 | Q30: =IF(B30="","",(EXP(-0.25*('lob_Growth&Yield'!H22^(1.8333-1/60*$C$1))))) -> 0.9733478857 | S30: =+IF(B30="","",IF($U$4=TRUE,GetFertilizerResponseAtAge($U$5,$C$1,$U$8,$U$6,$U$7,"HD",$B30,"RESP")*$Q30,0)) -> 0 | T30: 0 | U30: =IF(B30="","",IF($U$4=TRUE,GetFertilizerResponseAtAge($U$5,$C$1,$U$8,$U$6,$U$7,"BA",$B30,"RESP")*$Q30,0)) -> 0 | W30: =IF(B30="","",IF($Y$4=TRUE,GetFertilizerResponseAtAge($Y$5,$C$1,$Y$8,$Y$6,$Y$7,"HD",$B30,"RESP")*$Q30,0)) -> 0 | X30: 0 | Y30: =IF(B30="","",IF($Y$4=TRUE,GetFertilizerResponseAtAge($Y$5,$C$1,$Y$8,$Y$6,$Y$7,"BA",$B30,"RESP")*$Q30,0)) -> 0 | AA30: =IF(B30="","",IF($AC$4=TRUE,GetFertilizerResponseAtAge($AC$5,$C$1,$AC$8,$AC$6,$AC$7,"HD",$B30,"RESP")*$Q30,0)) -> 0 | AB30: 0 | AC30: =IF(B30="","",IF($AC$4=TRUE,GetFertilizerResponseAtAge($AC$5,$C$1,$AC$8,$AC$6,$AC$7,"BA",$B30,"RESP")*$Q30,0)) -> 0 | AE30: =IF(B30="","",IF($AG$4=TRUE,GetFertilizerResponseAtAge($AG$5,$C$1,$AG$8,$AG$6,$AG$7,"HD",$B30,"RESP")*$Q30,0)) -> 0 | AF30: 0 | AG30: =IF(B30="","",IF($AG$4=TRUE,GetFertilizerResponseAtAge($AG$5,$C$1,$AG$8,$AG$6,$AG$7,"BA",$B30,"RESP")*$Q30,0)) -> 0 | AH30: 0 | AI30: 0 | AJ30: 0 | AK30: 0 | AL30: 0 | AM30: 0 | AN30: 0 | AP30: 0 | AQ30: 0 | AR30: 0 | AS30: 0 | AT30: 0 | AU30: 0 | AV30: 0
A31: 19 | B31: =+IF('lob_Growth&Yield'!B23=1,'lob_Growth&Yield'!E23,"") -> 20 | C31: =IF(B31=0,0,IF(B31="","",SQRT(43560/'lob_Growth&Yield'!$K23)/'lob_Growth&Yield'!$Y23)) -> 0.1687383328 | D31: =IF(B31=0,0,IF(B31="","",(EXP(-0.25*('lob_Growth&Yield'!$Y23^(1.8333-1/60*$C$1))))*$E$7*$B31*EXP(-$E$6*$B31))) -> 0.07103853071 | E31: =IF(lob_Inputs!$K$8=TRUE,$D31,0) -> 0 | F31: =IF(B31=0,0,IF(B31="","",(EXP(-0.25*('lob_Growth&Yield'!H23^(1.8333-1/60*$C$1))))*$G$7*$B31*EXP(-$G$6*$B31))) -> 3.826234052 | G31: =IF(lob_Inputs!$K$8=TRUE,$F31,0) -> 0 | I31: =IF(B31=0,0,IF(B31="","",(EXP(-0.25*('lob_Growth&Yield'!H23^(1.8333-1/60*$C$1))))*$I$5*($B31-$I$6)*EXP(-$I$4*($B31-$I$6)))) -> 0 | J31: =IF(B31=0,0,IF(B31="","",(EXP(-0.25*('lob_Growth&Yield'!H23^(1.8333-1/60*$C$1))))*$K$5*($B31-$I$6)*EXP(-$K$4*($B31-$I$6)))) -> 0 | L31: =IF('lob_Growth&Yield'!E23=0,0,IF(B31="","",IF(OR(lob_Inputs!$K$14=FALSE,'lob_Growth&Yield'!E23<lob_Inputs!$F$25),0,(EXP(-0.25*('lob_Growth&Yield'!H23^(1.8333-1/60*$C$1))))*$M$6*('lob_Growth&Yield'!E23-lob_Inputs!$F$25)*EXP(-($M$7*('lob_Growth&Yield'!E23-lob_Inputs!$F$25)))))) -> 0 | M31: =IF(B31="","",IF(B31<(lob_RParms!$A$31+$M$4),$L31,$L$39)) -> 0 | N31: =IF(B31="","",IF(OR(lob_RParms!$A$30=FALSE,$B31<lob_RParms!$A$31),0,(EXP(-0.25*('lob_Growth&Yield'!H23^(1.8333-1/60*$C$1))))*$O$6*($B31-lob_RParms!$A$31)*EXP(-($O$7*($B31-lob_RParms!$A$31))))) -> 0 | O31: =IF(B31="","",IF($B31<(lob_RParms!$A$31+$O$4),$N31,$N$39)) -> 0 | Q31: =IF(B31="","",(EXP(-0.25*('lob_Growth&Yield'!H23^(1.8333-1/60*$C$1))))) -> 0.9736505121 | S31: =+IF(B31="","",IF($U$4=TRUE,GetFertilizerResponseAtAge($U$5,$C$1,$U$8,$U$6,$U$7,"HD",$B31,"RESP")*$Q31,0)) -> 0 | T31: 0 | U31: =IF(B31="","",IF($U$4=TRUE,GetFertilizerResponseAtAge($U$5,$C$1,$U$8,$U$6,$U$7,"BA",$B31,"RESP")*$Q31,0)) -> 0 | W31: =IF(B31="","",IF($Y$4=TRUE,GetFertilizerResponseAtAge($Y$5,$C$1,$Y$8,$Y$6,$Y$7,"HD",$B31,"RESP")*$Q31,0)) -> 0 | X31: 0 | Y31: =IF(B31="","",IF($Y$4=TRUE,GetFertilizerResponseAtAge($Y$5,$C$1,$Y$8,$Y$6,$Y$7,"BA",$B31,"RESP")*$Q31,0)) -> 0 | AA31: =IF(B31="","",IF($AC$4=TRUE,GetFertilizerResponseAtAge($AC$5,$C$1,$AC$8,$AC$6,$AC$7,"HD",$B31,"RESP")*$Q31,0)) -> 0 | AB31: 0 | AC31: =IF(B31="","",IF($AC$4=TRUE,GetFertilizerResponseAtAge($AC$5,$C$1,$AC$8,$AC$6,$AC$7,"BA",$B31,"RESP")*$Q31,0)) -> 0 | AE31: =IF(B31="","",IF($AG$4=TRUE,GetFertilizerResponseAtAge($AG$5,$C$1,$AG$8,$AG$6,$AG$7,"HD",$B31,"RESP")*$Q31,0)) -> 0 | AF31: 0 | AG31: =IF(B31="","",IF($AG$4=TRUE,GetFertilizerResponseAtAge($AG$5,$C$1,$AG$8,$AG$6,$AG$7,"BA",$B31,"RESP")*$Q31,0)) -> 0 | AH31: 0 | AI31: 0 | AJ31: 0 | AK31: 0 | AL31: 0 | AM31: 0 | AN31: 0 | AP31: 0 | AQ31: 0 | AR31: 0 | AS31: 0 | AT31: 0 | AU31: 0 | AV31: 0
A32: 20 | B32: =+IF('lob_Growth&Yield'!B24=1,'lob_Growth&Yield'!E24,"") -> 21 | C32: =IF(B32=0,0,IF(B32="","",SQRT(43560/'lob_Growth&Yield'!$K24)/'lob_Growth&Yield'!$Y24)) -> 0.1648538839 | D32: =IF(B32=0,0,IF(B32="","",(EXP(-0.25*('lob_Growth&Yield'!$Y24^(1.8333-1/60*$C$1))))*$E$7*$B32*EXP(-$E$6*$B32))) -> 0.06419140423 | E32: =IF(lob_Inputs!$K$8=TRUE,$D32,0) -> 0 | F32: =IF(B32=0,0,IF(B32="","",(EXP(-0.25*('lob_Growth&Yield'!H24^(1.8333-1/60*$C$1))))*$G$7*$B32*EXP(-$G$6*$B32))) -> 3.784470834 | G32: =IF(lob_Inputs!$K$8=TRUE,$F32,0) -> 0 | I32: =IF(B32=0,0,IF(B32="","",(EXP(-0.25*('lob_Growth&Yield'!H24^(1.8333-1/60*$C$1))))*$I$5*($B32-$I$6)*EXP(-$I$4*($B32-$I$6)))) -> 0 | J32: =IF(B32=0,0,IF(B32="","",(EXP(-0.25*('lob_Growth&Yield'!H24^(1.8333-1/60*$C$1))))*$K$5*($B32-$I$6)*EXP(-$K$4*($B32-$I$6)))) -> 0 | L32: =IF('lob_Growth&Yield'!E24=0,0,IF(B32="","",IF(OR(lob_Inputs!$K$14=FALSE,'lob_Growth&Yield'!E24<lob_Inputs!$F$25),0,(EXP(-0.25*('lob_Growth&Yield'!H24^(1.8333-1/60*$C$1))))*$M$6*('lob_Growth&Yield'!E24-lob_Inputs!$F$25)*EXP(-($M$7*('lob_Growth&Yield'!E24-lob_Inputs!$F$25)))))) -> 0 | M32: =IF(B32="","",IF(B32<(lob_RParms!$A$31+$M$4),$L32,$L$39)) -> 0 | N32: =IF(B32="","",IF(OR(lob_RParms!$A$30=FALSE,$B32<lob_RParms!$A$31),0,(EXP(-0.25*('lob_Growth&Yield'!H24^(1.8333-1/60*$C$1))))*$O$6*($B32-lob_RParms!$A$31)*EXP(-($O$7*($B32-lob_RParms!$A$31))))) -> 0 | O32: =IF(B32="","",IF($B32<(lob_RParms!$A$31+$O$4),$N32,$N$39)) -> 0 | Q32: =IF(B32="","",(EXP(-0.25*('lob_Growth&Yield'!H24^(1.8333-1/60*$C$1))))) -> 0.9738885651 | S32: =+IF(B32="","",IF($U$4=TRUE,GetFertilizerResponseAtAge($U$5,$C$1,$U$8,$U$6,$U$7,"HD",$B32,"RESP")*$Q32,0)) -> 0 | T32: 0 | U32: =IF(B32="","",IF($U$4=TRUE,GetFertilizerResponseAtAge($U$5,$C$1,$U$8,$U$6,$U$7,"BA",$B32,"RESP")*$Q32,0)) -> 0 | W32: =IF(B32="","",IF($Y$4=TRUE,GetFertilizerResponseAtAge($Y$5,$C$1,$Y$8,$Y$6,$Y$7,"HD",$B32,"RESP")*$Q32,0)) -> 0 | X32: 0 | Y32: =IF(B32="","",IF($Y$4=TRUE,GetFertilizerResponseAtAge($Y$5,$C$1,$Y$8,$Y$6,$Y$7,"BA",$B32,"RESP")*$Q32,0)) -> 0 | AA32: =IF(B32="","",IF($AC$4=TRUE,GetFertilizerResponseAtAge($AC$5,$C$1,$AC$8,$AC$6,$AC$7,"HD",$B32,"RESP")*$Q32,0)) -> 0 | AB32: 0 | AC32: =IF(B32="","",IF($AC$4=TRUE,GetFertilizerResponseAtAge($AC$5,$C$1,$AC$8,$AC$6,$AC$7,"BA",$B32,"RESP")*$Q32,0)) -> 0 | AE32: =IF(B32="","",IF($AG$4=TRUE,GetFertilizerResponseAtAge($AG$5,$C$1,$AG$8,$AG$6,$AG$7,"HD",$B32,"RESP")*$Q32,0)) -> 0 | AF32: 0 | AG32: =IF(B32="","",IF($AG$4=TRUE,GetFertilizerResponseAtAge($AG$5,$C$1,$AG$8,$AG$6,$AG$7,"BA",$B32,"RESP")*$Q32,0)) -> 0 | AH32: 0 | AI32: 0 | AJ32: 0 | AK32: 0 | AL32: 0 | AM32: 0 | AN32: 0 | AP32: 0 | AQ32: 0 | AR32: 0 | AS32: 0 | AT32: 0 | AU32: 0 | AV32: 0
A33: 21 | B33: =+IF('lob_Growth&Yield'!B25=1,'lob_Growth&Yield'!E25,"") -> 22 | C33: =IF(B33=0,0,IF(B33="","",SQRT(43560/'lob_Growth&Yield'!$K25)/'lob_Growth&Yield'!$Y25)) -> 0.1614517638 | D33: =IF(B33=0,0,IF(B33="","",(EXP(-0.25*('lob_Growth&Yield'!$Y25^(1.8333-1/60*$C$1))))*$E$7*$B33*EXP(-$E$6*$B33))) -> 0.0580984463 | E33: =IF(lob_Inputs!$K$8=TRUE,$D33,0) -> 0 | F33: =IF(B33=0,0,IF(B33="","",(EXP(-0.25*('lob_Growth&Yield'!H25^(1.8333-1/60*$C$1))))*$G$7*$B33*EXP(-$G$6*$B33))) -> 3.734479785 | G33: =IF(lob_Inputs!$K$8=TRUE,$F33,0) -> 0 | I33: =IF(B33=0,0,IF(B33="","",(EXP(-0.25*('lob_Growth&Yield'!H25^(1.8333-1/60*$C$1))))*$I$5*($B33-$I$6)*EXP(-$I$4*($B33-$I$6)))) -> 0 | J33: =IF(B33=0,0,IF(B33="","",(EXP(-0.25*('lob_Growth&Yield'!H25^(1.8333-1/60*$C$1))))*$K$5*($B33-$I$6)*EXP(-$K$4*($B33-$I$6)))) -> 0 | L33: =IF('lob_Growth&Yield'!E25=0,0,IF(B33="","",IF(OR(lob_Inputs!$K$14=FALSE,'lob_Growth&Yield'!E25<lob_Inputs!$F$25),0,(EXP(-0.25*('lob_Growth&Yield'!H25^(1.8333-1/60*$C$1))))*$M$6*('lob_Growth&Yield'!E25-lob_Inputs!$F$25)*EXP(-($M$7*('lob_Growth&Yield'!E25-lob_Inputs!$F$25)))))) -> 0 | M33: =IF(B33="","",IF(B33<(lob_RParms!$A$31+$M$4),$L33,$L$39)) -> 0 | N33: =IF(B33="","",IF(OR(lob_RParms!$A$30=FALSE,$B33<lob_RParms!$A$31),0,(EXP(-0.25*('lob_Growth&Yield'!H25^(1.8333-1/60*$C$1))))*$O$6*($B33-lob_RParms!$A$31)*EXP(-($O$7*($B33-lob_RParms!$A$31))))) -> 0 | O33: =IF(B33="","",IF($B33<(lob_RParms!$A$31+$O$4),$N33,$N$39)) -> 0 | Q33: =IF(B33="","",(EXP(-0.25*('lob_Growth&Yield'!H25^(1.8333-1/60*$C$1))))) -> 0.974075611 | S33: =+IF(B33="","",IF($U$4=TRUE,GetFertilizerResponseAtAge($U$5,$C$1,$U$8,$U$6,$U$7,"HD",$B33,"RESP")*$Q33,0)) -> 0 | T33: 0 | U33: =IF(B33="","",IF($U$4=TRUE,GetFertilizerResponseAtAge($U$5,$C$1,$U$8,$U$6,$U$7,"BA",$B33,"RESP")*$Q33,0)) -> 0 | W33: =IF(B33="","",IF($Y$4=TRUE,GetFertilizerResponseAtAge($Y$5,$C$1,$Y$8,$Y$6,$Y$7,"HD",$B33,"RESP")*$Q33,0)) -> 0 | X33: 0 | Y33: =IF(B33="","",IF($Y$4=TRUE,GetFertilizerResponseAtAge($Y$5,$C$1,$Y$8,$Y$6,$Y$7,"BA",$B33,"RESP")*$Q33,0)) -> 0 | AA33: =IF(B33="","",IF($AC$4=TRUE,GetFertilizerResponseAtAge($AC$5,$C$1,$AC$8,$AC$6,$AC$7,"HD",$B33,"RESP")*$Q33,0)) -> 0 | AB33: 0 | AC33: =IF(B33="","",IF($AC$4=TRUE,GetFertilizerResponseAtAge($AC$5,$C$1,$AC$8,$AC$6,$AC$7,"BA",$B33,"RESP")*$Q33,0)) -> 0 | AE33: =IF(B33="","",IF($AG$4=TRUE,GetFertilizerResponseAtAge($AG$5,$C$1,$AG$8,$AG$6,$AG$7,"HD",$B33,"RESP")*$Q33,0)) -> 0 | AF33: 0 | AG33: =IF(B33="","",IF($AG$4=TRUE,GetFertilizerResponseAtAge($AG$5,$C$1,$AG$8,$AG$6,$AG$7,"BA",$B33,"RESP")*$Q33,0)) -> 0 | AH33: 0 | AI33: 0 | AJ33: 0 | AK33: 0 | AL33: 0 | AM33: 0 | AN33: 0 | AP33: 0 | AQ33: 0 | AR33: 0 | AS33: 0 | AT33: 0 | AU33: 0 | AV33: 0
A34: 22 | B34: =+IF('lob_Growth&Yield'!B26=1,'lob_Growth&Yield'!E26,"") -> 23 | C34: =IF(B34=0,0,IF(B34="","",SQRT(43560/'lob_Growth&Yield'!$K26)/'lob_Growth&Yield'!$Y26)) -> 0.1584656895 | D34: =IF(B34=0,0,IF(B34="","",(EXP(-0.25*('lob_Growth&Yield'!$Y26^(1.8333-1/60*$C$1))))*$E$7*$B34*EXP(-$E$6*$B34))) -> 0.05266663043 | E34: =IF(lob_Inputs!$K$8=TRUE,$D34,0) -> 0 | F34: =IF(B34=0,0,IF(B34="","",(EXP(-0.25*('lob_Growth&Yield'!H26^(1.8333-1/60*$C$1))))*$G$7*$B34*EXP(-$G$6*$B34))) -> 3.677383228 | G34: =IF(lob_Inputs!$K$8=TRUE,$F34,0) -> 0 | I34: =IF(B34=0,0,IF(B34="","",(EXP(-0.25*('lob_Growth&Yield'!H26^(1.8333-1/60*$C$1))))*$I$5*($B34-$I$6)*EXP(-$I$4*($B34-$I$6)))) -> 0 | J34: =IF(B34=0,0,IF(B34="","",(EXP(-0.25*('lob_Growth&Yield'!H26^(1.8333-1/60*$C$1))))*$K$5*($B34-$I$6)*EXP(-$K$4*($B34-$I$6)))) -> 0 | L34: =IF('lob_Growth&Yield'!E26=0,0,IF(B34="","",IF(OR(lob_Inputs!$K$14=FALSE,'lob_Growth&Yield'!E26<lob_Inputs!$F$25),0,(EXP(-0.25*('lob_Growth&Yield'!H26^(1.8333-1/60*$C$1))))*$M$6*('lob_Growth&Yield'!E26-lob_Inputs!$F$25)*EXP(-($M$7*('lob_Growth&Yield'!E26-lob_Inputs!$F$25)))))) -> 0 | M34: =IF(B34="","",IF(B34<(lob_RParms!$A$31+$M$4),$L34,$L$39)) -> 0 | N34: =IF(B34="","",IF(OR(lob_RParms!$A$30=FALSE,$B34<lob_RParms!$A$31),0,(EXP(-0.25*('lob_Growth&Yield'!H26^(1.8333-1/60*$C$1))))*$O$6*($B34-lob_RParms!$A$31)*EXP(-($O$7*($B34-lob_RParms!$A$31))))) -> 0 | O34: =IF(B34="","",IF($B34<(lob_RParms!$A$31+$O$4),$N34,$N$39)) -> 0 | Q34: =IF(B34="","",(EXP(-0.25*('lob_Growth&Yield'!H26^(1.8333-1/60*$C$1))))) -> 0.9742224456 | S34: =+IF(B34="","",IF($U$4=TRUE,GetFertilizerResponseAtAge($U$5,$C$1,$U$8,$U$6,$U$7,"HD",$B34,"RESP")*$Q34,0)) -> 0 | T34: 0 | U34: =IF(B34="","",IF($U$4=TRUE,GetFertilizerResponseAtAge($U$5,$C$1,$U$8,$U$6,$U$7,"BA",$B34,"RESP")*$Q34,0)) -> 0 | W34: =IF(B34="","",IF($Y$4=TRUE,GetFertilizerResponseAtAge($Y$5,$C$1,$Y$8,$Y$6,$Y$7,"HD",$B34,"RESP")*$Q34,0)) -> 0 | X34: 0 | Y34: =IF(B34="","",IF($Y$4=TRUE,GetFertilizerResponseAtAge($Y$5,$C$1,$Y$8,$Y$6,$Y$7,"BA",$B34,"RESP")*$Q34,0)) -> 0 | AA34: =IF(B34="","",IF($AC$4=TRUE,GetFertilizerResponseAtAge($AC$5,$C$1,$AC$8,$AC$6,$AC$7,"HD",$B34,"RESP")*$Q34,0)) -> 0 | AB34: 0 | AC34: =IF(B34="","",IF($AC$4=TRUE,GetFertilizerResponseAtAge($AC$5,$C$1,$AC$8,$AC$6,$AC$7,"BA",$B34,"RESP")*$Q34,0)) -> 0 | AE34: =IF(B34="","",IF($AG$4=TRUE,GetFertilizerResponseAtAge($AG$5,$C$1,$AG$8,$AG$6,$AG$7,"HD",$B34,"RESP")*$Q34,0)) -> 0 | AF34: 0 | AG34: =IF(B34="","",IF($AG$4=TRUE,GetFertilizerResponseAtAge($AG$5,$C$1,$AG$8,$AG$6,$AG$7,"BA",$B34,"RESP")*$Q34,0)) -> 0 | AH34: 0 | AI34: 0 | AJ34: 0 | AK34: 0 | AL34: 0 | AM34: 0 | AN34: 0 | AP34: 0 | AQ34: 0 | AR34: 0 | AS34: 0 | AT34: 0 | AU34: 0 | AV34: 0
A35: 23 | B35: =+IF('lob_Growth&Yield'!B27=1,'lob_Growth&Yield'!E27,"") -> 24 | C35: =IF(B35=0,0,IF(B35="","",SQRT(43560/'lob_Growth&Yield'!$K27)/'lob_Growth&Yield'!$Y27)) -> 0.1558404969 | D35: =IF(B35=0,0,IF(B35="","",(EXP(-0.25*('lob_Growth&Yield'!$Y27^(1.8333-1/60*$C$1))))*$E$7*$B35*EXP(-$E$6*$B35))) -> 0.04781531525 | E35: =IF(lob_Inputs!$K$8=TRUE,$D35,0) -> 0 | F35: =IF(B35=0,0,IF(B35="","",(EXP(-0.25*('lob_Growth&Yield'!H27^(1.8333-1/60*$C$1))))*$G$7*$B35*EXP(-$G$6*$B35))) -> 3.614196845 | G35: =IF(lob_Inputs!$K$8=TRUE,$F35,0) -> 0 | I35: =IF(B35=0,0,IF(B35="","",(EXP(-0.25*('lob_Growth&Yield'!H27^(1.8333-1/60*$C$1))))*$I$5*($B35-$I$6)*EXP(-$I$4*($B35-$I$6)))) -> 0 | J35: =IF(B35=0,0,IF(B35="","",(EXP(-0.25*('lob_Growth&Yield'!H27^(1.8333-1/60*$C$1))))*$K$5*($B35-$I$6)*EXP(-$K$4*($B35-$I$6)))) -> 0 | L35: =IF('lob_Growth&Yield'!E27=0,0,IF(B35="","",IF(OR(lob_Inputs!$K$14=FALSE,'lob_Growth&Yield'!E27<lob_Inputs!$F$25),0,(EXP(-0.25*('lob_Growth&Yield'!H27^(1.8333-1/60*$C$1))))*$M$6*('lob_Growth&Yield'!E27-lob_Inputs!$F$25)*EXP(-($M$7*('lob_Growth&Yield'!E27-lob_Inputs!$F$25)))))) -> 0 | M35: =IF(B35="","",IF(B35<(lob_RParms!$A$31+$M$4),$L35,$L$39)) -> 0 | N35: =IF(B35="","",IF(OR(lob_RParms!$A$30=FALSE,$B35<lob_RParms!$A$31),0,(EXP(-0.25*('lob_Growth&Yield'!H27^(1.8333-1/60*$C$1))))*$O$6*($B35-lob_RParms!$A$31)*EXP(-($O$7*($B35-lob_RParms!$A$31))))) -> 0 | O35: =IF(B35="","",IF($B35<(lob_RParms!$A$31+$O$4),$N35,$N$39)) -> 0 | Q35: =IF(B35="","",(EXP(-0.25*('lob_Growth&Yield'!H27^(1.8333-1/60*$C$1))))) -> 0.9743376302 | S35: =+IF(B35="","",IF($U$4=TRUE,GetFertilizerResponseAtAge($U$5,$C$1,$U$8,$U$6,$U$7,"HD",$B35,"RESP")*$Q35,0)) -> 0 | T35: 0 | U35: =IF(B35="","",IF($U$4=TRUE,GetFertilizerResponseAtAge($U$5,$C$1,$U$8,$U$6,$U$7,"BA",$B35,"RESP")*$Q35,0)) -> 0 | W35: =IF(B35="","",IF($Y$4=TRUE,GetFertilizerResponseAtAge($Y$5,$C$1,$Y$8,$Y$6,$Y$7,"HD",$B35,"RESP")*$Q35,0)) -> 0 | X35: 0 | Y35: =IF(B35="","",IF($Y$4=TRUE,GetFertilizerResponseAtAge($Y$5,$C$1,$Y$8,$Y$6,$Y$7,"BA",$B35,"RESP")*$Q35,0)) -> 0 | AA35: =IF(B35="","",IF($AC$4=TRUE,GetFertilizerResponseAtAge($AC$5,$C$1,$AC$8,$AC$6,$AC$7,"HD",$B35,"RESP")*$Q35,0)) -> 0 | AB35: 0 | AC35: =IF(B35="","",IF($AC$4=TRUE,GetFertilizerResponseAtAge($AC$5,$C$1,$AC$8,$AC$6,$AC$7,"BA",$B35,"RESP")*$Q35,0)) -> 0 | AE35: =IF(B35="","",IF($AG$4=TRUE,GetFertilizerResponseAtAge($AG$5,$C$1,$AG$8,$AG$6,$AG$7,"HD",$B35,"RESP")*$Q35,0)) -> 0 | AF35: 0 | AG35: =IF(B35="","",IF($AG$4=TRUE,GetFertilizerResponseAtAge($AG$5,$C$1,$AG$8,$AG$6,$AG$7,"BA",$B35,"RESP")*$Q35,0)) -> 0 | AH35: 0 | AI35: 0 | AJ35: 0 | AK35: 0 | AL35: 0 | AM35: 0 | AN35: 0 | AP35: 0 | AQ35: 0 | AR35: 0 | AS35: 0 | AT35: 0 | AU35: 0 | AV35: 0
A36: 24 | B36: =+IF('lob_Growth&Yield'!B28=1,'lob_Growth&Yield'!E28,"") -> 25 | C36: =IF(B36=0,0,IF(B36="","",SQRT(43560/'lob_Growth&Yield'!$K28)/'lob_Growth&Yield'!$Y28)) -> 0.1535298865 | D36: =IF(B36=0,0,IF(B36="","",(EXP(-0.25*('lob_Growth&Yield'!$Y28^(1.8333-1/60*$C$1))))*$E$7*$B36*EXP(-$E$6*$B36))) -> 0.04347456609 | E36: =IF(lob_Inputs!$K$8=TRUE,$D36,0) -> 0 | F36: =IF(B36=0,0,IF(B36="","",(EXP(-0.25*('lob_Growth&Yield'!H28^(1.8333-1/60*$C$1))))*$G$7*$B36*EXP(-$G$6*$B36))) -> 3.54583874 | G36: =IF(lob_Inputs!$K$8=TRUE,$F36,0) -> 0 | I36: =IF(B36=0,0,IF(B36="","",(EXP(-0.25*('lob_Growth&Yield'!H28^(1.8333-1/60*$C$1))))*$I$5*($B36-$I$6)*EXP(-$I$4*($B36-$I$6)))) -> 0 | J36: =IF(B36=0,0,IF(B36="","",(EXP(-0.25*('lob_Growth&Yield'!H28^(1.8333-1/60*$C$1))))*$K$5*($B36-$I$6)*EXP(-$K$4*($B36-$I$6)))) -> 0 | L36: =IF('lob_Growth&Yield'!E28=0,0,IF(B36="","",IF(OR(lob_Inputs!$K$14=FALSE,'lob_Growth&Yield'!E28<lob_Inputs!$F$25),0,(EXP(-0.25*('lob_Growth&Yield'!H28^(1.8333-1/60*$C$1))))*$M$6*('lob_Growth&Yield'!E28-lob_Inputs!$F$25)*EXP(-($M$7*('lob_Growth&Yield'!E28-lob_Inputs!$F$25)))))) -> 0 | M36: =IF(B36="","",IF(B36<(lob_RParms!$A$31+$M$4),$L36,$L$39)) -> 0 | N36: =IF(B36="","",IF(OR(lob_RParms!$A$30=FALSE,$B36<lob_RParms!$A$31),0,(EXP(-0.25*('lob_Growth&Yield'!H28^(1.8333-1/60*$C$1))))*$O$6*($B36-lob_RParms!$A$31)*EXP(-($O$7*($B36-lob_RParms!$A$31))))) -> 0 | O36: =IF(B36="","",IF($B36<(lob_RParms!$A$31+$O$4),$N36,$N$39)) -> 0 | Q36: =IF(B36="","",(EXP(-0.25*('lob_Growth&Yield'!H28^(1.8333-1/60*$C$1))))) -> 0.9744279348 | S36: =+IF(B36="","",IF($U$4=TRUE,GetFertilizerResponseAtAge($U$5,$C$1,$U$8,$U$6,$U$7,"HD",$B36,"RESP")*$Q36,0)) -> 0 | T36: 0 | U36: =IF(B36="","",IF($U$4=TRUE,GetFertilizerResponseAtAge($U$5,$C$1,$U$8,$U$6,$U$7,"BA",$B36,"RESP")*$Q36,0)) -> 0 | W36: =IF(B36="","",IF($Y$4=TRUE,GetFertilizerResponseAtAge($Y$5,$C$1,$Y$8,$Y$6,$Y$7,"HD",$B36,"RESP")*$Q36,0)) -> 0 | X36: 0 | Y36: =IF(B36="","",IF($Y$4=TRUE,GetFertilizerResponseAtAge($Y$5,$C$1,$Y$8,$Y$6,$Y$7,"BA",$B36,"RESP")*$Q36,0)) -> 0 | AA36: =IF(B36="","",IF($AC$4=TRUE,GetFertilizerResponseAtAge($AC$5,$C$1,$AC$8,$AC$6,$AC$7,"HD",$B36,"RESP")*$Q36,0)) -> 0 | AB36: 0 | AC36: =IF(B36="","",IF($AC$4=TRUE,GetFertilizerResponseAtAge($AC$5,$C$1,$AC$8,$AC$6,$AC$7,"BA",$B36,"RESP")*$Q36,0)) -> 0 | AE36: =IF(B36="","",IF($AG$4=TRUE,GetFertilizerResponseAtAge($AG$5,$C$1,$AG$8,$AG$6,$AG$7,"HD",$B36,"RESP")*$Q36,0)) -> 0 | AF36: 0 | AG36: =IF(B36="","",IF($AG$4=TRUE,GetFertilizerResponseAtAge($AG$5,$C$1,$AG$8,$AG$6,$AG$7,"BA",$B36,"RESP")*$Q36,0)) -> 0 | AH36: 0 | AI36: 0 | AJ36: 0 | AK36: 0 | AL36: 0 | AM36: 0 | AN36: 0 | AP36: 0 | AQ36: 0 | AR36: 0 | AS36: 0 | AT36: 0 | AU36: 0 | AV36: 0
A37: 25 | B37: =+IF('lob_Growth&Yield'!B29=1,'lob_Growth&Yield'!E29,"") -> 26 | C37: =IF(B37=0,0,IF(B37="","",SQRT(43560/'lob_Growth&Yield'!$K29)/'lob_Growth&Yield'!$Y29)) -> 0.1514946976 | D37: =IF(B37=0,0,IF(B37="","",(EXP(-0.25*('lob_Growth&Yield'!$Y29^(1.8333-1/60*$C$1))))*$E$7*$B37*EXP(-$E$6*$B37))) -> 0.03958368058 | E37: =IF(lob_Inputs!$K$8=TRUE,$D37,0) -> 0 | F37: =IF(B37=0,0,IF(B37="","",(EXP(-0.25*('lob_Growth&Yield'!H29^(1.8333-1/60*$C$1))))*$G$7*$B37*EXP(-$G$6*$B37))) -> 3.473137842 | G37: =IF(lob_Inputs!$K$8=TRUE,$F37,0) -> 0 | I37: =IF(B37=0,0,IF(B37="","",(EXP(-0.25*('lob_Growth&Yield'!H29^(1.8333-1/60*$C$1))))*$I$5*($B37-$I$6)*EXP(-$I$4*($B37-$I$6)))) -> 0 | J37: =IF(B37=0,0,IF(B37="","",(EXP(-0.25*('lob_Growth&Yield'!H29^(1.8333-1/60*$C$1))))*$K$5*($B37-$I$6)*EXP(-$K$4*($B37-$I$6)))) -> 0 | L37: =IF('lob_Growth&Yield'!E29=0,0,IF(B37="","",IF(OR(lob_Inputs!$K$14=FALSE,'lob_Growth&Yield'!E29<lob_Inputs!$F$25),0,(EXP(-0.25*('lob_Growth&Yield'!H29^(1.8333-1/60*$C$1))))*$M$6*('lob_Growth&Yield'!E29-lob_Inputs!$F$25)*EXP(-($M$7*('lob_Growth&Yield'!E29-lob_Inputs!$F$25)))))) -> 0 | M37: =IF(B37="","",IF(B37<(lob_RParms!$A$31+$M$4),$L37,$L$39)) -> 0 | N37: =IF(B37="","",IF(OR(lob_RParms!$A$30=FALSE,$B37<lob_RParms!$A$31),0,(EXP(-0.25*('lob_Growth&Yield'!H29^(1.8333-1/60*$C$1))))*$O$6*($B37-lob_RParms!$A$31)*EXP(-($O$7*($B37-lob_RParms!$A$31))))) -> 0 | O37: =IF(B37="","",IF($B37<(lob_RParms!$A$31+$O$4),$N37,$N$39)) -> 0 | Q37: =IF(B37="","",(EXP(-0.25*('lob_Growth&Yield'!H29^(1.8333-1/60*$C$1))))) -> 0.9744987014 | S37: =+IF(B37="","",IF($U$4=TRUE,GetFertilizerResponseAtAge($U$5,$C$1,$U$8,$U$6,$U$7,"HD",$B37,"RESP")*$Q37,0)) -> 0 | T37: 0 | U37: =IF(B37="","",IF($U$4=TRUE,GetFertilizerResponseAtAge($U$5,$C$1,$U$8,$U$6,$U$7,"BA",$B37,"RESP")*$Q37,0)) -> 0 | W37: =IF(B37="","",IF($Y$4=TRUE,GetFertilizerResponseAtAge($Y$5,$C$1,$Y$8,$Y$6,$Y$7,"HD",$B37,"RESP")*$Q37,0)) -> 0 | X37: 0 | Y37: =IF(B37="","",IF($Y$4=TRUE,GetFertilizerResponseAtAge($Y$5,$C$1,$Y$8,$Y$6,$Y$7,"BA",$B37,"RESP")*$Q37,0)) -> 0 | AA37: =IF(B37="","",IF($AC$4=TRUE,GetFertilizerResponseAtAge($AC$5,$C$1,$AC$8,$AC$6,$AC$7,"HD",$B37,"RESP")*$Q37,0)) -> 0 | AB37: 0 | AC37: =IF(B37="","",IF($AC$4=TRUE,GetFertilizerResponseAtAge($AC$5,$C$1,$AC$8,$AC$6,$AC$7,"BA",$B37,"RESP")*$Q37,0)) -> 0 | AE37: =IF(B37="","",IF($AG$4=TRUE,GetFertilizerResponseAtAge($AG$5,$C$1,$AG$8,$AG$6,$AG$7,"HD",$B37,"RESP")*$Q37,0)) -> 0 | AF37: 0 | AG37: =IF(B37="","",IF($AG$4=TRUE,GetFertilizerResponseAtAge($AG$5,$C$1,$AG$8,$AG$6,$AG$7,"BA",$B37,"RESP")*$Q37,0)) -> 0 | AH37: 0 | AI37: 0 | AJ37: 0 | AK37: 0 | AL37: 0 | AM37: 0 | AN37: 0 | AP37: 0 | AQ37: 0 | AR37: 0 | AS37: 0 | AT37: 0 | AU37: 0 | AV37: 0
K39: MAX------> | L39: =MAX(L13:L37) -> 0 | M39: MAX------> | N39: =MAX(N13:N37) -> 0 | R39: MAX------> | S39: =MAX(S13:S37) -> 0 | V39: MAX------> | W39: =MAX(W13:W37) -> 0 | Z39: MAX------> | AA39: =MAX(AA13:AA37) -> 0 | AD39: MAX------> | AE39: =MAX(AE13:AE37) -> 0
AN40: =+LOOKUP(25,B12:B37,AN12:AN37) -> 0
B41: At Base Age | E41: =GetResponseAtBaseAge(E12,"e") ->  | G41: =GetResponseAtBaseAge(G13,"g") ->  | I41: =GetResponseAtBaseAge(I13,"i") ->  | J41: =GetResponseAtBaseAge(J13,"j") ->  | M41: =GetResponseAtBaseAge(M13,"m") ->  | O41: =GetResponseAtBaseAge(N13,"n") ->  | AN41: =GetResponseAtBaseAge(AN13,"AM") -> 
AM43: SI = | AN43: =+AN40+lob_Inputs!N3 -> 70 | AO43: ft
AN44: =+AN43*0.3048 -> 21.336 | AO44: m

Sheet lob_Equations - Parameters (hidden)
A1: Yield prediction & Growth projection. Loblolly pine plantation
A2: PMRC technical reports (1996 & 2001)
A4: Survival Prediction Function
A5: PMRC Model | C5: TPA2 = | D5: 100 + ((TPA1 - 100)^-0.745339 + (0.0003425)^2 * SI25*(A2^1.97472 - A1^1.97472))^(-1/0.745339)
E6: b1 | F6: b2 | G6: b3
E7: -0.745339 | F7: 0.0003425 | G7: 1.97472
A9: Height Prediction | L9: Height Prediction
A10: Chapman & Richards | C10: Hd1 = | D10: SI25*((0.30323)/(1-EXP(-0.014452*A1)))^(-0.8216) | O10: Hd1 =
E11: b1 | F11: b2 | G11: b3 | L11: Dieguez Aranda et al. 2006 | P11: b1 | Q11: b2 | R11: b3
E12: 0.30323 | F12: -0.014452 | G12: -0.8216 | P12: 85.75 | Q12: 4474 | R12: 1.107
A13: F-test revealed no significant differences in survival and height equations for the three physiographic regions
A15: Basal Area Prediction Model
A16: PMRC Model | C16: Ln (BA1) = | D16: b0 + (b1/A1) + b2*(Ln(TPA1) + b3*(Ln(Hd1) + b4*(LnTPA1)/A1 + b5*(Ln(Hd1)/A1
D17: b0 | E17: b1 | F17: b2 | G17: b3 | H17: b4 | I17: b5
A18: Lower Coastal Plain | D18: 0 | E18: -42.689283 | F18: 0.367244 | G18: 0.659985 | H18: 2.012724 | I18: 7.703502
A19: Piedmont & Upper Coastal Plain | D19: -0.855557 | E19: -36.050347 | F19: 0.299071 | G19: 0.980246 | H19: 3.309212 | I19: 3.787258
A22: Per acre Yield Prediction
A23: PMRC Model | C23: Ln (Y) = | D23: b0 + b1*Ln(TPA) + b2*Ln(Hd) + b3*Ln(BA) + b4*Ln(TPA)/A + b5*Ln(BA)/A
D24: b0 | E24: b1 | F24: b2 | G24: b3 | H24: b4 | I24: b5
A25: Lower Coastal Plain | B25: GWOB (tons/ac) | D25: -5.175922 | E25: 0.198424 | F25: 1.232028 | G25: 0.705769 | H25: -5.129853 | I25: 6.731477
B26: DWIB(tons/ac) | D26: -6.332502 | E26: 0.145815 | F26: 1.296629 | G26: 0.814967 | H26: -4.660198 | I26: 5.383589
B27: TVOB (ft3/ac)) | D27: -1.520877 | E27: 0.20068 | F27: 1.207586 | G27: 0.703405 | H27: -5.139064 | I27: 6.744164
B28: TVIB (ft3/ac)) | D28: -2.088857 | E28: 0.177587 | F28: 1.30377 | G28: 0.72695 | H28: -5.091474 | I28: 6.676532
C30: Ln (Y) = | D30: b0 + b1*Ln(Hd) + b2*Ln(BA) + b3*Ln(TPA)/A + b4*Ln(Hd)/A + b5*Ln(BA)/A
A31: Piedmont & Upper Coastal Plain | B31: GWOB (tons/ac) | D31: -3.818016 | E31: 0.430179 | F31: 1.276768 | G31: -8.088792 | H31: 7.428472 | I31: 5.554509
... 28 more rows

Sheet lob_RParms (hidden)
A1: P Def. 1=yes 2=no--------> | B1: =+IF(lob_Inputs!K9="TRUE",1,2) -> 2 | E1: Dom Height Response | J1: Max Gain | L1: Time to Max | O1: BA Response | T1: Max Gain | V1: Time to Max
E2: SI=50 gain | F2: SI=80 gain | G2: SI=50 yrs | H2: SI=80 yrs | O2: SI=50 gain | P2: SI=80 gain | Q2: SI=50 yrs | R2: SI=80 yrs
E3: Max gain | F3: Max gain | G3: to max gain | H3: to max gain | J3: delta 0 | K3: delta 1 | L3: gamma 0 | M3: gamma 1 | O3: Max gain | P3: Max gain | Q3: to max gain | R3: to max gain | T3: delta 0 | U3: delta 1 | V3: gamma 0 | W3: gamma 1
A6: HWC Band NonGrass 1 | C6: HWC-----> | D6: =+IF(lob_Inputs!$K$18=TRUE,1,IF(lob_Inputs!$K$19=TRUE,2,IF(lob_Inputs!$K$20=TRUE,3,IF(lob_Inputs!$K$21=TRUE,4,IF(lob_Inputs!$K$22=TRUE,5,IF(lob_Inputs!$K$23=TRUE,6,IF(lob_Inputs!$K$24=TRUE,7,IF(lob_Inputs!$K$25=TRUE,8,IF(lob_Inputs!$K$26=TRUE,9,IF(lob_Inputs!$K$27=TRUE,10,IF(lob_Inputs!$K$28=TRUE,11,IF(lob_Inputs!$K$29=TRUE,12,13)))))))))))) -> 13 | E6: 5 | F6: 3 | G6: 10 | H6: 8 | J6: =$F6+$K6*$B$20 -> 8.333333333 | K6: =($F6-$E6)/($B$19-$B$20) -> 0.06666666667 | L6: =$G6+$M6*$B$19 -> 13.33333333 | M6: =($H6-$G6)/($B$19-$B$20) -> 0.06666666667 | O6: 12 | P6: 7 | Q6: 15 | R6: 12 | T6: =$P6+$U6*$B$20 -> 20.33333333 | U6: =($P6-$O6)/($B$19-$B$20) -> 0.1666666667 | V6: =$R6+$W6*$B$19 -> 17 | W6: =($R6-$Q6)/($B$19-$B$20) -> 0.1
A7: HWC Band Grass 1 | E7: 3 | F7: 2 | G7: 10 | H7: 8 | J7: =$F7+$K7*$B$20 -> 4.666666667 | K7: =($F7-$E7)/($B$19-$B$20) -> 0.03333333333 | L7: =$G7+$M7*$B$19 -> 13.33333333 | M7: =($H7-$G7)/($B$19-$B$20) -> 0.06666666667 | O7: 12 | P7: 7 | Q7: 15 | R7: 12 | T7: =$P7+$U7*$B$20 -> 20.33333333 | U7: =($P7-$O7)/($B$19-$B$20) -> 0.1666666667 | V7: =$R7+$W7*$B$19 -> 17 | W7: =($R7-$Q7)/($B$19-$B$20) -> 0.1
A8: HWC Brdcst NonGrass 1 | E8: 6 | F8: 4 | G8: 10 | H8: 8 | J8: 9.333333333 | K8: 0.06666666667 | L8: 13.33333333 | M8: 0.06666666667 | O8: 15 | P8: 9 | Q8: 15 | R8: 12 | T8: 25 | U8: 0.2 | V8: 17 | W8: 0.1
A9: HWC Brdcst Grass 1 | E9: 5 | F9: 3 | G9: 10 | H9: 8 | J9: 8.333333333 | K9: 0.06666666667 | L9: 13.33333333 | M9: 0.06666666667 | O9: 15 | P9: 9 | Q9: 15 | R9: 12 | T9: 25 | U9: 0.2 | V9: 17 | W9: 0.1
A10: HWC Band NonGrass 2 | E10: 2 | F10: 1 | G10: 10 | H10: 8 | J10: 3.666666667 | K10: 0.03333333333 | L10: 13.33333333 | M10: 0.06666666667 | O10: 6 | P10: 4 | Q10: 15 | R10: 12 | T10: 9.333333333 | U10: 0.06666666667 | V10: 17 | W10: 0.1
A11: HWC Band Grass 2 | E11: 1 | F11: 1 | G11: 10 | H11: 8 | J11: 1 | K11: 0 | L11: 13.33333333 | M11: 0.06666666667 | O11: 5 | P11: 2 | Q11: 15 | R11: 12 | T11: 10 | U11: 0.1 | V11: 17 | W11: 0.1
A12: HWC Brdcst NonGrass 2 | E12: 2.5 | F12: 2.5 | G12: 10 | H12: 8 | J12: 2.5 | K12: 0 | L12: 13.33333333 | M12: 0.06666666667 | O12: 8 | P12: 5 | Q12: 15 | R12: 12 | T12: 13 | U12: 0.1 | V12: 17 | W12: 0.1
A13: HWC Brdcst Grass 2 | E13: 1.5 | F13: 1 | G13: 10 | H13: 8 | J13: 2.333333333 | K13: 0.01666666667 | L13: 13.33333333 | M13: 0.06666666667 | O13: 6 | P13: 3 | Q13: 15 | R13: 12 | T13: 11 | U13: 0.1 | V13: 17 | W13: 0.1
A14: HWC Band NonGrass 1 | B14: HWC Band NonGrass 2 | E14: 7 | F14: 4 | G14: 10 | H14: 8 | J14: 12 | K14: 0.1 | L14: 13.33333333 | M14: 0.06666666667 | O14: 18 | P14: 9 | Q14: 15 | R14: 12 | T14: 33 | U14: 0.3 | V14: 17 | W14: 0.1
A15: HWC Brdcst NonGrass 1 | B15: HWC Band Grass 2 | E15: 8 | F15: 5 | G15: 10 | H15: 8 | J15: 13 | K15: 0.1 | L15: 13.33333333 | M15: 0.06666666667 | O15: 20 | P15: 10.5 | Q15: 15 | R15: 12 | T15: 35.83333333 | U15: 0.3166666667 | V15: 17 | W15: 0.1
A16: HWC Brdcst NonGrass 1 | B16: HWC Brdcst NonGrass 2 | E16: 9 | F16: 6 | G16: 10 | H16: 8 | J16: 14 | K16: 0.1 | L16: 13.33333333 | M16: 0.06666666667 | O16: 22 | P16: 12 | Q16: 15 | R16: 12 | T16: 38.66666667 | U16: 0.3333333333 | V16: 17 | W16: 0.1
A17: HWC Brdcst Grass 1 | B17: HWC Brdcst Grass 2 | E17: 11 | F17: 7 | G17: 10 | H17: 8 | J17: 17.66666667 | K17: 0.1333333333 | L17: 13.33333333 | M17: 0.06666666667 | O17: 25 | P17: 15 | Q17: 15 | R17: 12 | T17: 41.66666667 | U17: 0.3333333333 | V17: 17 | W17: 0.1
A19: Min SI -------------------------> | B19: 50
A20: Max SI ------------------------> | B20: 80 | J20: =IF($D$6=1,J6,IF($D$6=2,J7,IF($D$6=3,J8,IF($D$6=4,J9,IF($D$6=5,J10,IF($D$6=6,J11,"")))))) ->  | K20: =IF($D$6=1,K6,IF($D$6=2,K7,IF($D$6=3,K8,IF($D$6=4,K9,IF($D$6=5,K10,IF($D$6=6,K11,"")))))) ->  | L20: =IF($D$6=1,L6,IF($D$6=2,L7,IF($D$6=3,L8,IF($D$6=4,L9,IF($D$6=5,L10,IF($D$6=6,L11,"")))))) ->  | M20: =IF($D$6=1,M6,IF($D$6=2,M7,IF($D$6=3,M8,IF($D$6=4,M9,IF($D$6=5,M10,IF($D$6=6,M11,"")))))) ->  | N20: =IF($D$6=1,$A6,IF($D$6=2,$A7,IF($D$6=3,$A8,IF($D$6=4,$A9,IF($D$6=5,$A10,IF($D$6=6,$A11,"")))))) ->  | O20: =IF($D$6=1,$B6,IF($D$6=2,$B7,IF($D$6=3,$B8,IF($D$6=4,$B9,IF($D$6=5,$B10,IF($D$6=6,$B11,"")))))) ->  | T20: =IF($D$6=1,T6,IF($D$6=2,T7,IF($D$6=3,T8,IF($D$6=4,T9,IF($D$6=5,T10,IF($D$6=6,T11,"")))))) ->  | U20: =IF($D$6=1,U6,IF($D$6=2,U7,IF($D$6=3,U8,IF($D$6=4,U9,IF($D$6=5,U10,IF($D$6=6,U11,"")))))) ->  | V20: =IF($D$6=1,V6,IF($D$6=2,V7,IF($D$6=3,V8,IF($D$6=4,V9,IF($D$6=5,V10,IF($D$6=6,V11,"")))))) ->  | W20: =IF($D$6=1,W6,IF($D$6=2,W7,IF($D$6=3,W8,IF($D$6=4,W9,IF($D$6=5,W10,IF($D$6=6,W11,"")))))) ->  | X20: =IF($D$6=1,$A6,IF($D$6=2,$A7,IF($D$6=3,$A8,IF($D$6=4,$A9,IF($D$6=5,$A10,IF($D$6=6,$A11,"")))))) ->  | Y20: =IF($D$6=1,$B6,IF($D$6=2,$B7,IF($D$6=3,$B8,IF($D$6=4,$B9,IF($D$6=5,$B10,IF($D$6=6,$B11,"")))))) -> 
J21: =IF($D$6=7,J12,IF($D$6=8,J13,IF($D$6=9,J14,IF($D$6=10,J15,IF($D$6=11,J16,IF($D$6=12,J17,"")))))) ->  | K21: =IF($D$6=7,K12,IF($D$6=8,K13,IF($D$6=9,K14,IF($D$6=10,K15,IF($D$6=11,K16,IF($D$6=12,K17,"")))))) ->  | L21: =IF($D$6=7,L12,IF($D$6=8,L13,IF($D$6=9,L14,IF($D$6=10,L15,IF($D$6=11,L16,IF($D$6=12,L17,"")))))) ->  | M21: =IF($D$6=7,M12,IF($D$6=8,M13,IF($D$6=9,M14,IF($D$6=10,M15,IF($D$6=11,M16,IF($D$6=12,M17,"")))))) ->  | N21: =IF($D$6=7,$A12,IF($D$6=8,$A13,IF($D$6=9,$A14,IF($D$6=10,$A15,IF($D$6=11,$A16,IF($D$6=12,$A17,"")))))) ->  | O21: =IF($D$6=7,$B12,IF($D$6=8,$B13,IF($D$6=9,$B14,IF($D$6=10,$B15,IF($D$6=11,$B16,IF($D$6=12,$B17,"")))))) ->  | T21: =IF($D$6=7,T12,IF($D$6=8,T13,IF($D$6=9,T14,IF($D$6=10,T15,IF($D$6=11,T16,IF($D$6=12,T17,"")))))) ->  | U21: =IF($D$6=7,U12,IF($D$6=8,U13,IF($D$6=9,U14,IF($D$6=10,U15,IF($D$6=11,U16,IF($D$6=12,U17,"")))))) ->  | V21: =IF($D$6=7,V12,IF($D$6=8,V13,IF($D$6=9,V14,IF($D$6=10,V15,IF($D$6=11,V16,IF($D$6=12,V17,"")))))) ->  | W21: =IF($D$6=7,W12,IF($D$6=8,W13,IF($D$6=9,W14,IF($D$6=10,W15,IF($D$6=11,W16,IF($D$6=12,W17,"")))))) ->  | X21: =IF($D$6=7,$A12,IF($D$6=8,$A13,IF($D$6=9,$A14,IF($D$6=10,$A15,IF($D$6=11,$A16,IF($D$6=12,$A17,"")))))) ->  | Y21: =IF($D$6=7,$B12,IF($D$6=8,$B13,IF($D$6=9,$B14,IF($D$6=10,$B15,IF($D$6=11,$B16,IF($D$6=12,$B17,"")))))) -> 
A22: =+lob_Inputs!N3 -> 70 | B22: <----Site Index
A23: =+lob_Inputs!K8 -> FALSE | B23: <----Tillage
J24: delta 0 | K24: delta 1 | L24: gamma 0 | M24: gamma 1 | N24: Year | T24: delta 0 | U24: delta 1 | V24: gamma 0 | W24: gamma 1 | X24: Year
A25: =+lob_Inputs!K34 -> FALSE | B25: <----Fert 1 | J25: =IF(J20="",J21,J20) ->  | K25: =IF(K20="",K21,K20) ->  | L25: =IF(L20="",L21,L20) ->  | M25: =IF(M20="",M21,M20) ->  | N25: =IF(AND($D$6>=5, $D$6 <=8),2,1) -> 1 | O25: =IF(N20="",N21,N20) ->  | P25: =IF(OR(O20="",O20=0),O21,O20) ->  | T25: =IF(T20="",T21,T20) ->  | U25: =IF(U20="",U21,U20) ->  | V25: =IF(V20="",V21,V20) ->  | W25: =IF(W20="",W21,W20) ->  | X25: =IF(AND($D$6>=5, $D$6 <=8),2,1) -> 1 | Y25: =IF(X20="",X21,X20) -> 
A26: =+lob_Inputs!K35 -> FALSE | B26: <----Fert 2
A27: =+lob_Inputs!K36 -> FALSE | B27: <----Fert 3
A28: =+lob_Inputs!K37 -> FALSE | B28: <----Fert 4
A30: =+lob_Inputs!K14 -> FALSE | B30: <----Release
A31: =+lob_Inputs!F25 -> 14 | B31: <----Release Age
B34: Adjusted HD1 | D34: 1.727282039
B35: HD Parameter | D35: 0.04780128551
B36: Predicted BA | D36: 2.474812835e-07

Sheet lob_Treatment Responses (hidden)
B1: Site Index------> | C1: =+lob_Inputs!N3 -> 70 | D1: Cur Age------> | E1: 1
B2: a | C2: b | D2: c | E2: d | F2: e | G2: f | H2: g | I2: h | J2: I | K2: j | L2: k | M2: l | N2: m | O2: n
D3: HD Tillage Response | F3: BA Tillage Response | H3: HD HWC Response | J3: BA HWC Response | L3: HD Release Response | N3: BA Release Response | T3: Fert 1 | X3: Fert 2 | AB3: Fert 3 | AF3: Fert 4
D4: Yrs to Max --> | E4: =21.333-0.0667*$C$1 -> 16.664 | F4: Yrs to Max --> | G4: =21.333-0.0667*$C$1 -> 16.664 | H4: c ----------> | I4: =IF(lob_RParms!$D$6=13,0,(1/(lob_RParms!L25-lob_RParms!M25*$C$1))) -> 0 | J4: c ----------> | K4: =IF(lob_RParms!$D$6=13,0,(1/(lob_RParms!V25-lob_RParms!W25*$C$1))) -> 0 | L4: Yrs Max---> | M4: 12 | N4: Yrs Max---> | O4: 12 | T4: On ?------> | U4: =+lob_Inputs!K34 -> FALSE | X4: On ?------> | Y4: =+lob_Inputs!K35 -> FALSE | AB4: On ?------> | AC4: =+lob_Inputs!K36 -> FALSE | AF4: On ?------> | AG4: =+lob_Inputs!K37 -> FALSE
D5: Max Resp ---> | E5: =12.6667-0.1333*$C$1 -> 3.3357 | F5: Max Resp ---> | G5: =11-0.1*$C$1 -> 4 | H5: b ----------> | I5: =IF(lob_RParms!$D$6=13,0,((lob_RParms!J25-lob_RParms!K25*$C$1)*$I$4*EXP(1))) -> 0 | J5: b ----------> | K5: =IF(lob_RParms!$D$6=13,0,((lob_RParms!T25-lob_RParms!U25*$C$1)*$K$4*EXP(1))) -> 0 | L5: Max Rs----> | M5: =3.33-0.0267*($C$1) -> 1.461 | N5: Max Rs----> | O5: =36.667-0.3333*($C$1) -> 13.336 | T5: Age-------> | U5: =+lob_Inputs!F32 -> 5 | X5: Age-------> | Y5: =+lob_Inputs!F33 -> 10 | AB5: Age-------> | AC5: =+lob_Inputs!F34 -> 15 | AF5: Age-------> | AG5: =+lob_Inputs!F35 -> 0
D6: c ---------------> | E6: =1/$E$4 -> 0.06000960154 | F6: c ---------------> | G6: =1/$G$4 -> 0.06000960154 | H6: Year-----------> | I6: =lob_RParms!N25 -> 1 | L6: b -------------> | M6: =$M$5*$M$7*EXP(1) -> 0.3309508126 | N6: b -------------> | O6: =$O$5*$O$7*EXP(1) -> 3.020917205 | T6: N-----------> | U6: =+lob_Inputs!L34 -> 135 | X6: N-----------> | Y6: =+lob_Inputs!L35 -> 225 | AB6: N-----------> | AC6: =+lob_Inputs!L36 -> 225 | AF6: N-----------> | AG6: =+lob_Inputs!L37 -> 0 | BC6: =+BC46-C46 ->  | BH6: 0 | BK6: 0 | BP6: 0 | BR6: 0 | BV6: 0 | BZ6: 0 | CD6: 0 | CO6: 0 | DC6: =+DC46-BC46 ->  | DH6: 0 | DK6: 0 | DP6: 0 | DR6: 0 | DV6: 0 | DZ6: 0 | EB6: =+EB46-CB46 ->  | ED6: 0 | EO6: 0 | ET6: =+ET46-CT46 ->  | EU6: =+EU46-CU46 ->  | EV6: =+EV46-CV46 -> 
D7: b ---------------> | E7: =$E$5*$E$6*EXP(1) -> 0.5441294224 | F7: b ---------------> | G7: =$G$5*$G$6*EXP(1) -> 0.6524920376 | L7: c -------------> | M7: =1/$M$4 -> 0.08333333333 | N7: c -------------> | O7: =1/$O$4 -> 0.08333333333 | T7: P-----------> | U7: =IF($U$4=TRUE,lob_Inputs!M34,0) -> 0 | X7: P-----------> | Y7: =IF($Y$4=TRUE,lob_Inputs!M35,0) -> 0 | AB7: P-----------> | AC7: =IF($AC$4=TRUE,lob_Inputs!M36,0) -> 0 | AF7: P-----------> | AG7: =IF($AG$4=TRUE,lob_Inputs!M37,0) -> 0
T8: PDef ?---> | U8: =+lob_Inputs!$K$9 -> 2 | X8: PDef ?---> | Y8: =+lob_Inputs!$K$9 -> 2 | AB8: PDef ?---> | AC8: =+lob_Inputs!$K$9 -> 2 | AF8: PDef ?---> | AG8: =+lob_Inputs!$K$9 -> 2 | BB8: 1 thinning | DB8: 2 thinning
Q9: Hdwd Damp | S9: Yrs to Max --> | T9: =GetFertilizerYrsToMax($U$5,$C$1,$U$8,$U$6,$U$7,"HD",$B13,"AGE") -> 0 | U9: =GetFertilizerYrsToMax($U$5,$C$1,$U$8,$U$6,$U$7,"BA",$B13,"AGE") -> 5.35 | X9: =GetFertilizerYrsToMax($Y$5,$C$1,$Y$8,$Y$6,$Y$7,"HD",$B13,"AGE") -> 7 | Y9: =GetFertilizerYrsToMax($Y$5,$C$1,$Y$8,$Y$6,$Y$7,"BA",$B13,"AGE") -> 6.25 | AB9: =GetFertilizerYrsToMax($AC$5,$C$1,$AC$8,$AC$6,$AC$7,"HD",$B13,"AGE") -> 7 | AC9: =GetFertilizerYrsToMax($AC$5,$C$1,$AC$8,$AC$6,$AC$7,"BA",$B13,"AGE") -> 6.25 | AF9: =GetFertilizerYrsToMax($AG$5,$C$1,$AG$8,$AG$6,$AG$7,"HD",$B13,"AGE") -> 18 | AG9: =GetFertilizerYrsToMax($AG$5,$C$1,$AG$8,$AG$6,$AG$7,"BA",$B13,"AGE") -> 0 | BQ9: Hdwd Damp | DQ9: Hdwd Damp
E10: HD Tillage | G10: BA Tillage | I10: HD HWC | J10: BA HWC | M10: HD Release | O10: BA Release | Q10: Function | T10: HD Fert 1 | U10: BA Fert 1 | X10: HD Fert 2 | Y10: BA Fert 2 | AB10: HD Fert 3 | AC10: BA Fert 3 | AF10: HD Fert 4 | AG10: BA Fert 4 | AL10: HD Resp | AM10: HD Fert | AN10: HD Total | AT10: BA Resp | AU10: BA Fert | AV10: BA total | BE10: HD Tillage | BG10: BA Tillage | BI10: HD HWC | BJ10: BA HWC | BM10: HD Release | BO10: BA Release | BQ10: Function | BT10: HD Fert 1 | BU10: BA Fert 1 | BX10: HD Fert 2 | BY10: BA Fert 2 | CB10: HD Fert 3 | CC10: BA Fert 3 | CF10: HD Fert 4 | CG10: BA Fert 4 | CL10: HD Resp | CM10: HD Fert | CN10: HD Total | CT10: BA Resp | CU10: BA Fert | CV10: BA total | DE10: HD Tillage | DG10: BA Tillage | DI10: HD HWC | DJ10: BA HWC | DM10: HD Release | DO10: BA Release | DQ10: Function | DT10: HD Fert 1 | DU10: BA Fert 1 | DX10: HD Fert 2 | DY10: BA Fert 2 | EB10: HD Fert 3 | EC10: BA Fert 3 | EF10: HD Fert 4 | EG10: BA Fert 4 | EL10: HD Resp | EM10: HD Fert | EN10: HD Total | ET10: BA Resp | EU10: BA Fert | EV10: BA total
A11: Year | B11: Age | C11: RS | D11: xxxxxx | E11: Response | F11: xxxxxx | G11: Response | I11: Response | J11: Response | L11: xxxxxx | M11: Response | N11: xxxxxx | O11: Response | Q11: for Fert | S11: xxxxxx | T11: Response | U11: Response | W11: xxxxxx | X11: Response | Y11: Response | AA11: xxxxxx | AB11: Response | AC11: Response | AE11: xxxxxx | AF11: Response | AG11: Response | AL11: w/o Fert | AM11: Response | AN11: Response | AT11: w/o Fert | AU11: Response | AV11: Response | AW11: SI60 | AX11: SI65 | AY11: SI70 | AZ11: SI75 | BB11: Age | BC11: RS | BD11: xxxxxx | BE11: Response | BF11: xxxxxx | BG11: Response | BI11: Response | BJ11: Response | BL11: xxxxxx | BM11: Response | BN11: xxxxxx | BO11: Response | BQ11: for Fert | BS11: xxxxxx | BT11: Response | BU11: Response | BW11: xxxxxx | BX11: Response | BY11: Response | CA11: xxxxxx | CB11: Response | CC11: Response | CE11: xxxxxx | CF11: Response | CG11: Response | CL11: w/o Fert | CM11: Response | CN11: Response | CT11: w/o Fert | CU11: Response | CV11: Response | DB11: Age | DC11: RS | DD11: xxxxxx | DE11: Response | DF11: xxxxxx | DG11: Response | DI11: Response | DJ11: Response | DL11: xxxxxx | DM11: Response | DN11: xxxxxx | DO11: Response | DQ11: for Fert | DS11: xxxxxx | DT11: Response | DU11: Response | DW11: xxxxxx | DX11: Response | DY11: Response | EA11: xxxxxx | EB11: Response | EC11: Response | EE11: xxxxxx | EF11: Response | EG11: Response | EL11: w/o Fert | EM11: Response | EN11: Response | ET11: w/o Fert | EU11: Response | EV11: Response
A12: =+'lob_Growth&Yield'!A4 -> 0 | B12: =+'lob_Growth&Yield'!E4 -> 1 | C12: =IF(B12="","",IF(B12=0,0,SQRT(43560/'lob_Growth&Yield'!$K4)/'lob_Growth&Yield'!$Y4)) -> 2.69265016 | D12: =IF(B12="","",IF(B12=0,0,(EXP(-0.25*('lob_Growth&Yield'!$Y4^(1.8333-1/60*$C$1))))*$E$7*$B12*EXP(-$E$6*$B12))) -> 0.2952045838 | E12: =IF(B12="","",IF(lob_Inputs!$K$8=TRUE,$D12,0)) -> 0 | F12: =IF(B12="","",(EXP(-0.25*('lob_Growth&Yield'!H4^(1.8333-1/60*$C$1))))*$G$7*$B12*EXP(-$G$6*$B12)) -> 0.5541575756 | G12: =IF(B12="","",IF(lob_Inputs!$K$8=TRUE,$F12,0)) -> 0 | I12: =IF(B12="","",IF('lob_Growth&Yield'!E4=0,0,(EXP(-0.25*('lob_Growth&Yield'!H4^(1.8333-1/60*$C$1))))*$I$5*($B12-$I$6)*EXP(-$I$4*($B12-$I$6)))) -> 0 | J12: =IF(B12="","",IF(B12=0,0,(EXP(-0.25*('lob_Growth&Yield'!H4^(1.8333-1/60*$C$1))))*$K$5*($B12-$I$6)*EXP(-$K$4*($B12-$I$6)))) -> 0 | L12: =IF(B12="","",IF(B12=0,0,IF(OR(lob_Inputs!$K$14=FALSE,B12<lob_Inputs!$F$25),0,(EXP(-0.25*('lob_Growth&Yield'!H4^(1.8333-1/60*$C$1))))*$M$6*(B12-lob_Inputs!$F$25)*EXP(-($M$7*(B12-lob_Inputs!$F$25)))))) -> 0 | M12: =IF(B12="","",IF(B12<(lob_RParms!$A$31+$M$4),$L12,$L$514)) -> 0 | N12: =IF(B12="","",IF(OR(lob_RParms!$A$30=FALSE,$B12<lob_RParms!$A$31),0,(EXP(-0.25*('lob_Growth&Yield'!H4^(1.8333-1/60*$C$1))))*$O$6*($B12-lob_RParms!$A$31)*EXP(-($O$7*($B12-lob_RParms!$A$31))))) -> 0 | O12: =IF(B12="","",IF($B12<(lob_RParms!$A$31+$O$4),$N12,$N$514)) -> 0 | Q12: =IF(B12="","",(EXP(-0.25*('lob_Growth&Yield'!H4^(1.8333-1/60*$C$1))))) -> 0.9018200717 | S12: =IF(B12="","",IF($U$4=TRUE,GetFertilizerResponseAtAge($U$5,$C$1,$U$8,$U$6,$U$7,"HD",$B12,"RESP")*$Q12,0)) -> 0 | T12: =IF(B12="","",IF($B12<($U$5+$T$9),$S12,$S$514)) -> 0 | U12: =IF(B12="","",IF($U$4=TRUE,GetFertilizerResponseAtAge($U$5,$C$1,$U$8,$U$6,$U$7,"BA",$B12,"RESP")*$Q12,0)) -> 0 | W12: =IF(B12="","",IF($Y$4=TRUE,GetFertilizerResponseAtAge($Y$5,$C$1,$Y$8,$Y$6,$Y$7,"HD",$B12,"RESP")*$Q12,0)) -> 0 | X12: =IF(B12="","",IF($B12<($Y$5+$X$9),$W12,$W$514)) -> 0 | Y12: =IF(B12="","",IF($Y$4=TRUE,GetFertilizerResponseAtAge($Y$5,$C$1,$Y$8,$Y$6,$Y$7,"BA",$B12,"RESP")*$Q12,0)) -> 0 | AA12: =IF(B12="","",IF($AC$4=TRUE,GetFertilizerResponseAtAge($AC$5,$C$1,$AC$8,$AC$6,$AC$7,"HD",$B12,"RESP")*$Q12,0)) -> 0 | AB12: =IF(B12="","",IF($B12<($AC$5+$AB$9),$AA12,$AA$514)) -> 0 | AC12: =IF(B12="","",IF($AC$4=TRUE,GetFertilizerResponseAtAge($AC$5,$C$1,$AC$8,$AC$6,$AC$7,"BA",$B12,"RESP")*$Q12,0)) -> 0 | AE12: =IF(B12="","",IF($AG$4=TRUE,GetFertilizerResponseAtAge($AG$5,$C$1,$AG$8,$AG$6,$AG$7,"HD",$B12,"RESP")*$Q12,0)) -> 0 | AF12: =IF(B12="","",IF($B12<($AG$5+$AF$9),$AE12,$AE$514)) -> 0 | AG12: =IF(B12="","",IF($AG$4=TRUE,GetFertilizerResponseAtAge($AG$5,$C$1,$AG$8,$AG$6,$AG$7,"BA",$B12,"RESP")*$Q12,0)) -> 0 | AH12: =IF(B12="","",IF($I12>0,1,0)) -> 0 | AI12: =IF(B12="","",IF($M12>0,1,0)) -> 0 | AJ12: =IF(B12="","",SUM(AH12:AI12)) -> 0 | AK12: =IF(B12="","",IF($AJ12>1,1,$AJ12)) -> 0 | AL12: =IF(B12="","",$AK12*($E12+$I12+$M12)) -> 0 | AM12: =IF(B12="","",$T12+0.9*$X12+0.8*$AB12+0.7*$AF12) -> 0 | AN12: =IF(B12="","",SUM(AL12:AM12)) -> 0 | AP12: =IF(B12="","",IF($J12>0,1,0)) -> 0 | AQ12: =IF(B12="","",IF($O12>0,1,0)) -> 0 | AR12: =IF(B12="","",SUM(AP12:AQ12)) -> 0 | AS12: =IF(B12="","",IF($AR12>1,1,$AR12)) -> 0 | AT12: =IF(B12="","",$AS12*($G12+$J12+$O12)) -> 0 | AU12: =IF(B12="","",$U12+0.9*$Y12+0.8*$AC12+0.7*$AG12) -> 0 | AV12: =IF(B12="","",SUM(AT12:AU12)) -> 0 | BB12: =+'lob_Growth&Yield'!F4 -> 1 | BC12: =IF(B12="","",IF(BB12=0,0,SQRT(43560/'lob_Growth&Yield'!$N4)/'lob_Growth&Yield'!$Z4)) -> 2.651115791 | BD12: =IF(B12="","",IF(BB12=0,0,(EXP(-0.25*('lob_Growth&Yield'!$Z4^(1.8333-1/60*$C$1))))*$E$7*$BB12*EXP(-$E$6*$BB12))) -> 0.2952045838 | BE12: =IF(B12="","",IF(lob_Inputs!$K$8=TRUE,$BD12,0)) -> 0 | BF12: =IF(B12="","",(EXP(-0.25*('lob_Growth&Yield'!I4^(1.8333-1/60*$C$1))))*$G$7*$BB12*EXP(-$G$6*$BB12)) -> 0.5541575756 | BG12: =IF(B12="","",IF(lob_Inputs!$K$8=TRUE,$BF12,0)) -> 0 | BI12: =IF(B12="","",IF(BB12=0,0,(EXP(-0.25*('lob_Growth&Yield'!I4^(1.8333-1/60*$C$1))))*$I$5*($BB12-$I$6)*EXP(-$I$4*($BB12-$I$6)))) -> 0 | BJ12: =IF(B12="","",IF(BB12=0,0,(EXP(-0.25*('lob_Growth&Yield'!I4^(1.8333-1/60*$C$1))))*$K$5*($BB12-$I$6)*EXP(-$K$4*($BB12-$I$6)))) -> 0 | BL12: =IF(B12="","",IF(BB12=0,0,IF(OR(lob_Inputs!$K$14=FALSE,BB12<lob_Inputs!$F$25),0,(EXP(-0.25*('lob_Growth&Yield'!I4^(1.8333-1/60*$C$1))))*$M$6*(BB12-lob_Inputs!$F$25)*EXP(-($M$7*(BB12-lob_Inputs!$F$25)))))) -> 0 | BM12: =IF(B12="","",IF(BB12<(lob_RParms!$A$31+$M$4),$BL12,$BL$514)) -> 0 | BN12: =IF(B12="","",IF(OR(lob_RParms!$A$30=FALSE,$BB12<lob_RParms!$A$31),0,(EXP(-0.25*('lob_Growth&Yield'!I4^(1.8333-1/60*$C$1))))*$O$6*($BB12-lob_RParms!$A$31)*EXP(-($O$7*($BB12-lob_RParms!$A$31))))) -> 0 | BO12: =IF(B12="","",IF($BB12<(lob_RParms!$A$31+$O$4),$BN12,$BN$514)) -> 0 | BQ12: =IF(B12="","",(EXP(-0.25*('lob_Growth&Yield'!I4^(1.8333-1/60*$C$1))))) -> 0.9018200717 | BS12: =IF(B12="","",IF($U$4=TRUE,GetFertilizerResponseAtAge($U$5,$C$1,$U$8,$U$6,$U$7,"HD",$BB12,"RESP")*$BQ12,0)) -> 0 | BT12: =IF(B12="","",IF($BB12<($U$5+$T$9),$BS12,$BS$514)) -> 0 | BU12: =IF(B12="","",IF($U$4=TRUE,GetFertilizerResponseAtAge($U$5,$C$1,$U$8,$U$6,$U$7,"BA",$BB12,"RESP")*$BQ12,0)) -> 0 | BW12: =IF(B12="","",IF($Y$4=TRUE,GetFertilizerResponseAtAge($Y$5,$C$1,$Y$8,$Y$6,$Y$7,"HD",$BB12,"RESP")*$BQ12,0)) -> 0 | BX12: =IF(B12="","",IF($BB12<($Y$5+$X$9),$BW12,$BW$514)) -> 0 | BY12: =IF(B12="","",IF($Y$4=TRUE,GetFertilizerResponseAtAge($Y$5,$C$1,$Y$8,$Y$6,$Y$7,"BA",$BB12,"RESP")*$BQ12,0)) -> 0 | CA12: =IF($AC$4=TRUE,GetFertilizerResponseAtAge($AC$5,$C$1,$AC$8,$AC$6,$AC$7,"HD",$BB12,"RESP")*$BQ12,0) -> 0 | CB12: =IF($BB12<($AC$5+$AB$9),$CA12,$CA$514) -> 0 | CC12: =IF($AC$4=TRUE,GetFertilizerResponseAtAge($AC$5,$C$1,$AC$8,$AC$6,$AC$7,"BA",$BB12,"RESP")*$BQ12,0) -> 0 | CE12: =IF($AG$4=TRUE,GetFertilizerResponseAtAge($AG$5,$C$1,$AG$8,$AG$6,$AG$7,"HD",$BB12,"RESP")*$BQ12,0) -> 0 | CF12: =IF($BB12<($AG$5+$AF$9),$CE12,$CE$514) -> 0 | CG12: =IF($AG$4=TRUE,GetFertilizerResponseAtAge($AG$5,$C$1,$AG$8,$AG$6,$AG$7,"BA",$BB12,"RESP")*$BQ12,0) -> 0 | CH12: =IF($BI12>0,1,0) -> 0 | CI12: =IF($BM12>0,1,0) -> 0 | CJ12: =SUM(CH12:CI12) -> 0 | CK12: =IF($CJ12>1,1,$CJ12) -> 0 | CL12: =$CK12*($BE12+$BI12+$BM12) -> 0 | CM12: =$BT12+0.9*$BX12+0.8*$CB12+0.7*$CF12 -> 0 | CN12: =SUM(CL12:CM12) -> 0 | CP12: =IF($BJ12>0,1,0) -> 0 | CQ12: =IF($BO12>0,1,0) -> 0 | CR12: =SUM(CP12:CQ12) -> 0 | CS12: =IF($CR12>1,1,$CR12) -> 0 | CT12: =$CS12*($BG12+$BJ12+$BO12) -> 0 | CU12: =$BU12+0.9*$BY12+0.8*$CC12+0.7*$CG12 -> 0 | CV12: =SUM(CT12:CU12) -> 0 | DB12: =+'lob_Growth&Yield'!G4 -> 1 | DC12: =IF(DB12="","",IF(DB12=0,0,SQRT(43560/'lob_Growth&Yield'!$R4)/'lob_Growth&Yield'!$AA4)) -> 2.651115791 | DD12: =IF(DB12="","",IF(DB12=0,0,(EXP(-0.25*('lob_Growth&Yield'!$AA4^(1.8333-1/60*$C$1))))*$E$7*$BB12*EXP(-$E$6*$BB12))) -> 0.2952045838 | DE12: =IF(DB12="","",IF(lob_Inputs!$K$8=TRUE,$DD12,0)) -> 0 | DF12: =IF(DB12="","",(EXP(-0.25*('lob_Growth&Yield'!J4^(1.8333-1/60*$C$1))))*$G$7*$DB12*EXP(-$G$6*$DB12)) -> 0.5541575756 | DG12: =IF(DB12="","",IF(lob_Inputs!$K$8=TRUE,$DF12,0)) -> 0 | DI12: =IF(DB12="","",IF(DB12=0,0,(EXP(-0.25*('lob_Growth&Yield'!J4^(1.8333-1/60*$C$1))))*$I$5*($DB12-$I$6)*EXP(-$I$4*($DB12-$I$6)))) -> 0 | DJ12: =IF(DB12="","",IF(DB12=0,0,(EXP(-0.25*('lob_Growth&Yield'!J4^(1.8333-1/60*$C$1))))*$K$5*($DB12-$I$6)*EXP(-$K$4*($DB12-$I$6)))) -> 0 | DL12: =IF(DB12="","",IF(DB12=0,0,IF(OR(lob_Inputs!$K$14=FALSE,DB12<lob_Inputs!$F$25),0,(EXP(-0.25*('lob_Growth&Yield'!J4^(1.8333-1/60*$C$1))))*$M$6*(DB12-lob_Inputs!$F$25)*EXP(-($M$7*(DB12-lob_Inputs!$F$25)))))) -> 0 | DM12: =IF(DB12="","",IF(DB12<(lob_RParms!$A$31+$M$4),$DL12,$DL$514)) -> 0 | DN12: =IF(DB12="","",IF(OR(lob_RParms!$A$30=FALSE,$DB12<lob_RParms!$A$31),0,(EXP(-0.25*('lob_Growth&Yield'!J4^(1.8333-1/60*$C$1))))*$O$6*($DB12-lob_RParms!$A$31)*EXP(-($O$7*($DB12-lob_RParms!$A$31))))) -> 0 | DO12: =IF(DB12="","",IF($DB12<(lob_RParms!$A$31+$O$4),$DN12,$DN$514)) -> 0 | DQ12: =IF(DB12="","",(EXP(-0.25*('lob_Growth&Yield'!J4^(1.8333-1/60*$C$1))))) -> 0.9018200717 | DS12: =IF(DB12="","",IF($U$4=TRUE,GetFertilizerResponseAtAge($U$5,$C$1,$U$8,$U$6,$U$7,"HD",$DB12,"RESP")*$DQ12,0)) -> 0 | DT12: =IF(DB12="","",IF($DB12<($U$5+$T$9),$DS12,$DS$514)) -> 0 | DU12: =IF(DB12="","",IF($U$4=TRUE,GetFertilizerResponseAtAge($U$5,$C$1,$U$8,$U$6,$U$7,"BA",$DB12,"RESP")*$DQ12,0)) -> 0 | DW12: =IF(DB12="","",IF($Y$4=TRUE,GetFertilizerResponseAtAge($Y$5,$C$1,$Y$8,$Y$6,$Y$7,"HD",$DB12,"RESP")*$DQ12,0)) -> 0 | DX12: =IF(DB12="","",IF($DB12<($Y$5+$X$9),$DW12,$DW$514)) -> 0 | DY12: =IF(DB12="","",IF($Y$4=TRUE,GetFertilizerResponseAtAge($Y$5,$C$1,$Y$8,$Y$6,$Y$7,"BA",$DB12,"RESP")*$DQ12,0)) -> 0 | EA12: =IF(DB12="","",IF($AC$4=TRUE,GetFertilizerResponseAtAge($AC$5,$C$1,$AC$8,$AC$6,$AC$7,"HD",$DB12,"RESP")*$DQ12,0)) -> 0 | EB12: =IF(DB12="","",IF($DB12<($AC$5+$AB$9),$EA12,$EA$514)) -> 0 | EC12: =IF(DB12="","",IF($AC$4=TRUE,GetFertilizerResponseAtAge($AC$5,$C$1,$AC$8,$AC$6,$AC$7,"BA",$DB12,"RESP")*$DQ12,0)) -> 0 | EE12: =IF(DB12="","",IF($AG$4=TRUE,GetFertilizerResponseAtAge($AG$5,$C$1,$AG$8,$AG$6,$AG$7,"HD",$DB12,"RESP")*$DQ12,0)) -> 0 | EF12: =IF(DB12="","",IF($DB12<($AG$5+$AF$9),$EE12,$EE$514)) -> 0 | EG12: =IF(DB12="","",IF($AG$4=TRUE,GetFertilizerResponseAtAge($AG$5,$C$1,$AG$8,$AG$6,$AG$7,"BA",$DB12,"RESP")*$DQ12,0)) -> 0 | EH12: =IF(DB12="","",IF($DI12>0,1,0)) -> 0 | EI12: =IF(DB12="","",IF($DM12>0,1,0)) -> 0 | EJ12: =IF(DB12="","",SUM(EH12:EI12)) -> 0 | EK12: =IF(DB12="","",IF($EJ12>1,1,$EJ12)) -> 0 | EL12: =IF(DB12="","",$EK12*($DE12+$DI12+$DM12)) -> 0 | EM12: =IF(DB12="","",$DT12+0.9*$DX12+0.8*$EB12+0.7*$EF12) -> 0 | EN12: =IF(DB12="","",SUM(EL12:EM12)) -> 0 | EP12: =IF(DB12="","",IF($DJ12>0,1,0)) -> 0 | EQ12: =IF(DB12="","",IF($DO12>0,1,0)) -> 0 | ER12: =IF(DB12="","",SUM(EP12:EQ12)) -> 0 | ES12: =IF(DB12="","",IF($ER12>1,1,$ER12)) -> 0 | ET12: =IF(DB12="","",$ES12*($DG12+$DJ12+$DO12)) -> 0 | EU12: =IF(DB12="","",$DU12+0.9*$DY12+0.8*$EC12+0.7*$EG12) -> 0 | EV12: =IF(DB12="","",SUM(ET12:EU12)) -> 0
A13: =+'lob_Growth&Yield'!A5 -> 1 | B13: =+'lob_Growth&Yield'!E5 -> 2 | C13: =IF(B13="","",IF(B13=0,0,SQRT(43560/'lob_Growth&Yield'!$K5)/'lob_Growth&Yield'!$Y5)) -> 1.280706193 | D13: =IF(B13="","",IF(B13=0,0,(EXP(-0.25*('lob_Growth&Yield'!$Y5^(1.8333-1/60*$C$1))))*$E$7*$B13*EXP(-$E$6*$B13))) -> 0.3898274059 | E13: =IF(B13="","",IF(lob_Inputs!$K$8=TRUE,$D13,0)) -> 0 | F13: =IF(B13="","",(EXP(-0.25*('lob_Growth&Yield'!H5^(1.8333-1/60*$C$1))))*$G$7*$B13*EXP(-$G$6*$B13)) -> 1.058062803 | G13: =IF(B13="","",IF(lob_Inputs!$K$8=TRUE,$F13,0)) -> 0 | I13: =IF(B13="","",IF('lob_Growth&Yield'!E5=0,0,(EXP(-0.25*('lob_Growth&Yield'!H5^(1.8333-1/60*$C$1))))*$I$5*($B13-$I$6)*EXP(-$I$4*($B13-$I$6)))) -> 0 | J13: =IF(B13="","",IF(B13=0,0,(EXP(-0.25*('lob_Growth&Yield'!H5^(1.8333-1/60*$C$1))))*$K$5*($B13-$I$6)*EXP(-$K$4*($B13-$I$6)))) -> 0 | L13: =IF(B13="","",IF(B13=0,0,IF(OR(lob_Inputs!$K$14=FALSE,B13<lob_Inputs!$F$25),0,(EXP(-0.25*('lob_Growth&Yield'!H5^(1.8333-1/60*$C$1))))*$M$6*(B13-lob_Inputs!$F$25)*EXP(-($M$7*(B13-lob_Inputs!$F$25)))))) -> 0 | M13: =IF(B13="","",IF(B13<(lob_RParms!$A$31+$M$4),$L13,$L$514)) -> 0 | N13: =IF(B13="","",IF(OR(lob_RParms!$A$30=FALSE,$B13<lob_RParms!$A$31),0,(EXP(-0.25*('lob_Growth&Yield'!H5^(1.8333-1/60*$C$1))))*$O$6*($B13-lob_RParms!$A$31)*EXP(-($O$7*($B13-lob_RParms!$A$31))))) -> 0 | O13: =IF(B13="","",IF($B13<(lob_RParms!$A$31+$O$4),$N13,$N$514)) -> 0 | Q13: =IF(B13="","",(EXP(-0.25*('lob_Growth&Yield'!H5^(1.8333-1/60*$C$1))))) -> 0.9141762035 | S13: =IF(B13="","",IF($U$4=TRUE,GetFertilizerResponseAtAge($U$5,$C$1,$U$8,$U$6,$U$7,"HD",$B13,"RESP")*$Q13,0)) -> 0 | T13: 0 | U13: =IF(B13="","",IF($U$4=TRUE,GetFertilizerResponseAtAge($U$5,$C$1,$U$8,$U$6,$U$7,"BA",$B13,"RESP")*$Q13,0)) -> 0 | W13: =IF(B13="","",IF($Y$4=TRUE,GetFertilizerResponseAtAge($Y$5,$C$1,$Y$8,$Y$6,$Y$7,"HD",$B13,"RESP")*$Q13,0)) -> 0 | X13: 0 | Y13: =IF(B13="","",IF($Y$4=TRUE,GetFertilizerResponseAtAge($Y$5,$C$1,$Y$8,$Y$6,$Y$7,"BA",$B13,"RESP")*$Q13,0)) -> 0 | AA13: =IF(B13="","",IF($AC$4=TRUE,GetFertilizerResponseAtAge($AC$5,$C$1,$AC$8,$AC$6,$AC$7,"HD",$B13,"RESP")*$Q13,0)) -> 0 | AB13: 0 | AC13: =IF(B13="","",IF($AC$4=TRUE,GetFertilizerResponseAtAge($AC$5,$C$1,$AC$8,$AC$6,$AC$7,"BA",$B13,"RESP")*$Q13,0)) -> 0 | AE13: =IF(B13="","",IF($AG$4=TRUE,GetFertilizerResponseAtAge($AG$5,$C$1,$AG$8,$AG$6,$AG$7,"HD",$B13,"RESP")*$Q13,0)) -> 0 | AF13: 0 | AG13: =IF(B13="","",IF($AG$4=TRUE,GetFertilizerResponseAtAge($AG$5,$C$1,$AG$8,$AG$6,$AG$7,"BA",$B13,"RESP")*$Q13,0)) -> 0 | AH13: 0 | AI13: 0 | AJ13: 0 | AK13: 0 | AL13: 0 | AM13: 0 | AN13: 0 | AP13: 0 | AQ13: 0 | AR13: 0 | AS13: 0 | AT13: 0 | AU13: 0 | AV13: 0 | AW13: 0.681390725 | AX13: 0.6185628052 | AY13: 0.5541575756 | AZ13: 0.4882570385 | BB13: =+'lob_Growth&Yield'!F5 -> 2 | BC13: =IF(B13="","",IF(BB13=0,0,SQRT(43560/'lob_Growth&Yield'!$N5)/'lob_Growth&Yield'!$Z5)) -> 1.260951186 | BD13: =IF(B13="","",IF(BB13=0,0,(EXP(-0.25*('lob_Growth&Yield'!$Z5^(1.8333-1/60*$C$1))))*$E$7*$BB13*EXP(-$E$6*$BB13))) -> 0.3898274059 | BE13: =IF(B13="","",IF(lob_Inputs!$K$8=TRUE,$BD13,0)) -> 0 | BF13: =IF(B13="","",(EXP(-0.25*('lob_Growth&Yield'!I5^(1.8333-1/60*$C$1))))*$G$7*$BB13*EXP(-$G$6*$BB13)) -> 1.058062803 | BG13: =IF(B13="","",IF(lob_Inputs!$K$8=TRUE,$BF13,0)) -> 0 | BI13: =IF(B13="","",IF(BB13=0,0,(EXP(-0.25*('lob_Growth&Yield'!I5^(1.8333-1/60*$C$1))))*$I$5*($BB13-$I$6)*EXP(-$I$4*($BB13-$I$6)))) -> 0 | BJ13: =IF(B13="","",IF(BB13=0,0,(EXP(-0.25*('lob_Growth&Yield'!I5^(1.8333-1/60*$C$1))))*$K$5*($BB13-$I$6)*EXP(-$K$4*($BB13-$I$6)))) -> 0 | BL13: =IF(B13="","",IF(BB13=0,0,IF(OR(lob_Inputs!$K$14=FALSE,BB13<lob_Inputs!$F$25),0,(EXP(-0.25*('lob_Growth&Yield'!I5^(1.8333-1/60*$C$1))))*$M$6*(BB13-lob_Inputs!$F$25)*EXP(-($M$7*(BB13-lob_Inputs!$F$25)))))) -> 0 | BM13: =IF(B13="","",IF(BB13<(lob_RParms!$A$31+$M$4),$BL13,$BL$514)) -> 0 | BN13: =IF(B13="","",IF(OR(lob_RParms!$A$30=FALSE,$BB13<lob_RParms!$A$31),0,(EXP(-0.25*('lob_Growth&Yield'!I5^(1.8333-1/60*$C$1))))*$O$6*($BB13-lob_RParms!$A$31)*EXP(-($O$7*($BB13-lob_RParms!$A$31))))) -> 0 | BO13: =IF(B13="","",IF($BB13<(lob_RParms!$A$31+$O$4),$BN13,$BN$514)) -> 0 | BQ13: =IF(B13="","",(EXP(-0.25*('lob_Growth&Yield'!I5^(1.8333-1/60*$C$1))))) -> 0.9141762035 | BS13: =IF(B13="","",IF($U$4=TRUE,GetFertilizerResponseAtAge($U$5,$C$1,$U$8,$U$6,$U$7,"HD",$BB13,"RESP")*$BQ13,0)) -> 0 | BT13: 0 | BU13: =IF(B13="","",IF($U$4=TRUE,GetFertilizerResponseAtAge($U$5,$C$1,$U$8,$U$6,$U$7,"BA",$BB13,"RESP")*$BQ13,0)) -> 0 | BW13: =IF(B13="","",IF($Y$4=TRUE,GetFertilizerResponseAtAge($Y$5,$C$1,$Y$8,$Y$6,$Y$7,"HD",$BB13,"RESP")*$BQ13,0)) -> 0 | BX13: 0 | BY13: =IF(B13="","",IF($Y$4=TRUE,GetFertilizerResponseAtAge($Y$5,$C$1,$Y$8,$Y$6,$Y$7,"BA",$BB13,"RESP")*$BQ13,0)) -> 0 | CA13: =IF($AC$4=TRUE,GetFertilizerResponseAtAge($AC$5,$C$1,$AC$8,$AC$6,$AC$7,"HD",$BB13,"RESP")*$BQ13,0) -> 0 | CB13: 0 | CC13: =IF($AC$4=TRUE,GetFertilizerResponseAtAge($AC$5,$C$1,$AC$8,$AC$6,$AC$7,"BA",$BB13,"RESP")*$BQ13,0) -> 0 | CE13: =IF($AG$4=TRUE,GetFertilizerResponseAtAge($AG$5,$C$1,$AG$8,$AG$6,$AG$7,"HD",$BB13,"RESP")*$BQ13,0) -> 0 | CF13: 0 | CG13: =IF($AG$4=TRUE,GetFertilizerResponseAtAge($AG$5,$C$1,$AG$8,$AG$6,$AG$7,"BA",$BB13,"RESP")*$BQ13,0) -> 0 | CH13: 0 | CI13: 0 | CJ13: 0 | CK13: 0 | CL13: 0 | CM13: 0 | CN13: 0 | CP13: 0 | CQ13: 0 | CR13: 0 | CS13: 0 | CT13: 0 | CU13: 0 | CV13: 0 | DB13: =+'lob_Growth&Yield'!G5 -> 2 | DC13: =IF(DB13="","",IF(DB13=0,0,SQRT(43560/'lob_Growth&Yield'!$R5)/'lob_Growth&Yield'!$AA5)) -> 1.260951186 | DD13: =IF(DB13="","",IF(DB13=0,0,(EXP(-0.25*('lob_Growth&Yield'!$AA5^(1.8333-1/60*$C$1))))*$E$7*$BB13*EXP(-$E$6*$BB13))) -> 0.3898274059 | DE13: =IF(DB13="","",IF(lob_Inputs!$K$8=TRUE,$DD13,0)) -> 0 | DF13: =IF(DB13="","",(EXP(-0.25*('lob_Growth&Yield'!J5^(1.8333-1/60*$C$1))))*$G$7*$DB13*EXP(-$G$6*$DB13)) -> 1.058062803 | DG13: =IF(DB13="","",IF(lob_Inputs!$K$8=TRUE,$DF13,0)) -> 0 | DI13: =IF(DB13="","",IF(DB13=0,0,(EXP(-0.25*('lob_Growth&Yield'!J5^(1.8333-1/60*$C$1))))*$I$5*($DB13-$I$6)*EXP(-$I$4*($DB13-$I$6)))) -> 0 | DJ13: =IF(DB13="","",IF(DB13=0,0,(EXP(-0.25*('lob_Growth&Yield'!J5^(1.8333-1/60*$C$1))))*$K$5*($DB13-$I$6)*EXP(-$K$4*($DB13-$I$6)))) -> 0 | DL13: =IF(DB13="","",IF(DB13=0,0,IF(OR(lob_Inputs!$K$14=FALSE,DB13<lob_Inputs!$F$25),0,(EXP(-0.25*('lob_Growth&Yield'!J5^(1.8333-1/60*$C$1))))*$M$6*(DB13-lob_Inputs!$F$25)*EXP(-($M$7*(DB13-lob_Inputs!$F$25)))))) -> 0 | DM13: =IF(DB13="","",IF(DB13<(lob_RParms!$A$31+$M$4),$DL13,$DL$514)) -> 0 | DN13: =IF(DB13="","",IF(OR(lob_RParms!$A$30=FALSE,$DB13<lob_RParms!$A$31),0,(EXP(-0.25*('lob_Growth&Yield'!J5^(1.8333-1/60*$C$1))))*$O$6*($DB13-lob_RParms!$A$31)*EXP(-($O$7*($DB13-lob_RParms!$A$31))))) -> 0 | DO13: =IF(DB13="","",IF($DB13<(lob_RParms!$A$31+$O$4),$DN13,$DN$514)) -> 0 | DQ13: =IF(DB13="","",(EXP(-0.25*('lob_Growth&Yield'!J5^(1.8333-1/60*$C$1))))) -> 0.9141762035 | DS13: =IF(DB13="","",IF($U$4=TRUE,GetFertilizerResponseAtAge($U$5,$C$1,$U$8,$U$6,$U$7,"HD",$DB13,"RESP")*$DQ13,0)) -> 0 | DT13: 0 | DU13: =IF(DB13="","",IF($U$4=TRUE,GetFertilizerResponseAtAge($U$5,$C$1,$U$8,$U$6,$U$7,"BA",$DB13,"RESP")*$DQ13,0)) -> 0 | DW13: =IF(DB13="","",IF($Y$4=TRUE,GetFertilizerResponseAtAge($Y$5,$C$1,$Y$8,$Y$6,$Y$7,"HD",$DB13,"RESP")*$DQ13,0)) -> 0 | DX13: 0 | DY13: =IF(DB13="","",IF($Y$4=TRUE,GetFertilizerResponseAtAge($Y$5,$C$1,$Y$8,$Y$6,$Y$7,"BA",$DB13,"RESP")*$DQ13,0)) -> 0 | EA13: =IF(DB13="","",IF($AC$4=TRUE,GetFertilizerResponseAtAge($AC$5,$C$1,$AC$8,$AC$6,$AC$7,"HD",$DB13,"RESP")*$DQ13,0)) -> 0 | EB13: 0 | EC13: =IF(DB13="","",IF($AC$4=TRUE,GetFertilizerResponseAtAge($AC$5,$C$1,$AC$8,$AC$6,$AC$7,"BA",$DB13,"RESP")*$DQ13,0)) -> 0 | EE13: =IF(DB13="","",IF($AG$4=TRUE,GetFertilizerResponseAtAge($AG$5,$C$1,$AG$8,$AG$6,$AG$7,"HD",$DB13,"RESP")*$DQ13,0)) -> 0 | EF13: 0 | EG13: =IF(DB13="","",IF($AG$4=TRUE,GetFertilizerResponseAtAge($AG$5,$C$1,$AG$8,$AG$6,$AG$7,"BA",$DB13,"RESP")*$DQ13,0)) -> 0 | EH13: 0 | EI13: 0 | EJ13: 0 | EK13: 0 | EL13: 0 | EM13: 0 | EN13: 0 | EP13: 0 | EQ13: 0 | ER13: 0 | ES13: 0 | ET13: 0 | EU13: 0 | EV13: 0
A14: =+'lob_Growth&Yield'!A6 -> 2 | B14: =+'lob_Growth&Yield'!E6 -> 3 | C14: =IF(B14="","",IF(B14=0,0,SQRT(43560/'lob_Growth&Yield'!$K6)/'lob_Growth&Yield'!$Y6)) -> 0.8378537265 | D14: =IF(B14="","",IF(B14=0,0,(EXP(-0.25*('lob_Growth&Yield'!$Y6^(1.8333-1/60*$C$1))))*$E$7*$B14*EXP(-$E$6*$B14))) -> 0.4087425696 | E14: =IF(B14="","",IF(lob_Inputs!$K$8=TRUE,$D14,0)) -> 0 | F14: =IF(B14="","",(EXP(-0.25*('lob_Growth&Yield'!H6^(1.8333-1/60*$C$1))))*$G$7*$B14*EXP(-$G$6*$B14)) -> 1.511808068 | G14: =IF(B14="","",IF(lob_Inputs!$K$8=TRUE,$F14,0)) -> 0 | I14: =IF(B14="","",IF('lob_Growth&Yield'!E6=0,0,(EXP(-0.25*('lob_Growth&Yield'!H6^(1.8333-1/60*$C$1))))*$I$5*($B14-$I$6)*EXP(-$I$4*($B14-$I$6)))) -> 0 | J14: =IF(B14="","",IF(B14=0,0,(EXP(-0.25*('lob_Growth&Yield'!H6^(1.8333-1/60*$C$1))))*$K$5*($B14-$I$6)*EXP(-$K$4*($B14-$I$6)))) -> 0 | L14: =IF(B14="","",IF(B14=0,0,IF(OR(lob_Inputs!$K$14=FALSE,B14<lob_Inputs!$F$25),0,(EXP(-0.25*('lob_Growth&Yield'!H6^(1.8333-1/60*$C$1))))*$M$6*(B14-lob_Inputs!$F$25)*EXP(-($M$7*(B14-lob_Inputs!$F$25)))))) -> 0 | M14: =IF(B14="","",IF(B14<(lob_RParms!$A$31+$M$4),$L14,$L$514)) -> 0 | N14: =IF(B14="","",IF(OR(lob_RParms!$A$30=FALSE,$B14<lob_RParms!$A$31),0,(EXP(-0.25*('lob_Growth&Yield'!H6^(1.8333-1/60*$C$1))))*$O$6*($B14-lob_RParms!$A$31)*EXP(-($O$7*($B14-lob_RParms!$A$31))))) -> 0 | O14: =IF(B14="","",IF($B14<(lob_RParms!$A$31+$O$4),$N14,$N$514)) -> 0 | Q14: =IF(B14="","",(EXP(-0.25*('lob_Growth&Yield'!H6^(1.8333-1/60*$C$1))))) -> 0.924667736 | S14: =IF(B14="","",IF($U$4=TRUE,GetFertilizerResponseAtAge($U$5,$C$1,$U$8,$U$6,$U$7,"HD",$B14,"RESP")*$Q14,0)) -> 0 | T14: 0 | U14: =IF(B14="","",IF($U$4=TRUE,GetFertilizerResponseAtAge($U$5,$C$1,$U$8,$U$6,$U$7,"BA",$B14,"RESP")*$Q14,0)) -> 0 | W14: =IF(B14="","",IF($Y$4=TRUE,GetFertilizerResponseAtAge($Y$5,$C$1,$Y$8,$Y$6,$Y$7,"HD",$B14,"RESP")*$Q14,0)) -> 0 | X14: 0 | Y14: =IF(B14="","",IF($Y$4=TRUE,GetFertilizerResponseAtAge($Y$5,$C$1,$Y$8,$Y$6,$Y$7,"BA",$B14,"RESP")*$Q14,0)) -> 0 | AA14: =IF(B14="","",IF($AC$4=TRUE,GetFertilizerResponseAtAge($AC$5,$C$1,$AC$8,$AC$6,$AC$7,"HD",$B14,"RESP")*$Q14,0)) -> 0 | AB14: 0 | AC14: =IF(B14="","",IF($AC$4=TRUE,GetFertilizerResponseAtAge($AC$5,$C$1,$AC$8,$AC$6,$AC$7,"BA",$B14,"RESP")*$Q14,0)) -> 0 | AE14: =IF(B14="","",IF($AG$4=TRUE,GetFertilizerResponseAtAge($AG$5,$C$1,$AG$8,$AG$6,$AG$7,"HD",$B14,"RESP")*$Q14,0)) -> 0 | AF14: 0 | AG14: =IF(B14="","",IF($AG$4=TRUE,GetFertilizerResponseAtAge($AG$5,$C$1,$AG$8,$AG$6,$AG$7,"BA",$B14,"RESP")*$Q14,0)) -> 0 | AH14: 0 | AI14: 0 | AJ14: 0 | AK14: 0 | AL14: 0 | AM14: 0 | AN14: 0 | AP14: 0 | AQ14: 0 | AR14: 0 | AS14: 0 | AT14: 0 | AU14: 0 | AV14: 0 | AW14: 4.461274598 | AX14: 4.118650842 | AY14: 3.756275564 | AZ14: 3.372936107 | BB14: =+'lob_Growth&Yield'!F6 -> 3 | BC14: =IF(B14="","",IF(BB14=0,0,SQRT(43560/'lob_Growth&Yield'!$N6)/'lob_Growth&Yield'!$Z6)) -> 0.8249907159 | BD14: =IF(B14="","",IF(BB14=0,0,(EXP(-0.25*('lob_Growth&Yield'!$Z6^(1.8333-1/60*$C$1))))*$E$7*$BB14*EXP(-$E$6*$BB14))) -> 0.4087425696 | BE14: =IF(B14="","",IF(lob_Inputs!$K$8=TRUE,$BD14,0)) -> 0 | BF14: =IF(B14="","",(EXP(-0.25*('lob_Growth&Yield'!I6^(1.8333-1/60*$C$1))))*$G$7*$BB14*EXP(-$G$6*$BB14)) -> 1.511808068 | BG14: =IF(B14="","",IF(lob_Inputs!$K$8=TRUE,$BF14,0)) -> 0 | BI14: =IF(B14="","",IF(BB14=0,0,(EXP(-0.25*('lob_Growth&Yield'!I6^(1.8333-1/60*$C$1))))*$I$5*($BB14-$I$6)*EXP(-$I$4*($BB14-$I$6)))) -> 0 | BJ14: =IF(B14="","",IF(BB14=0,0,(EXP(-0.25*('lob_Growth&Yield'!I6^(1.8333-1/60*$C$1))))*$K$5*($BB14-$I$6)*EXP(-$K$4*($BB14-$I$6)))) -> 0 | BL14: =IF(B14="","",IF(BB14=0,0,IF(OR(lob_Inputs!$K$14=FALSE,BB14<lob_Inputs!$F$25),0,(EXP(-0.25*('lob_Growth&Yield'!I6^(1.8333-1/60*$C$1))))*$M$6*(BB14-lob_Inputs!$F$25)*EXP(-($M$7*(BB14-lob_Inputs!$F$25)))))) -> 0 | BM14: =IF(B14="","",IF(BB14<(lob_RParms!$A$31+$M$4),$BL14,$BL$514)) -> 0 | BN14: =IF(B14="","",IF(OR(lob_RParms!$A$30=FALSE,$BB14<lob_RParms!$A$31),0,(EXP(-0.25*('lob_Growth&Yield'!I6^(1.8333-1/60*$C$1))))*$O$6*($BB14-lob_RParms!$A$31)*EXP(-($O$7*($BB14-lob_RParms!$A$31))))) -> 0 | BO14: =IF(B14="","",IF($BB14<(lob_RParms!$A$31+$O$4),$BN14,$BN$514)) -> 0 | BQ14: =IF(B14="","",(EXP(-0.25*('lob_Growth&Yield'!I6^(1.8333-1/60*$C$1))))) -> 0.924667736 | BS14: =IF(B14="","",IF($U$4=TRUE,GetFertilizerResponseAtAge($U$5,$C$1,$U$8,$U$6,$U$7,"HD",$BB14,"RESP")*$BQ14,0)) -> 0 | BT14: 0 | BU14: =IF(B14="","",IF($U$4=TRUE,GetFertilizerResponseAtAge($U$5,$C$1,$U$8,$U$6,$U$7,"BA",$BB14,"RESP")*$BQ14,0)) -> 0 | BW14: =IF(B14="","",IF($Y$4=TRUE,GetFertilizerResponseAtAge($Y$5,$C$1,$Y$8,$Y$6,$Y$7,"HD",$BB14,"RESP")*$BQ14,0)) -> 0 | BX14: 0 | BY14: =IF(B14="","",IF($Y$4=TRUE,GetFertilizerResponseAtAge($Y$5,$C$1,$Y$8,$Y$6,$Y$7,"BA",$BB14,"RESP")*$BQ14,0)) -> 0 | CA14: =IF($AC$4=TRUE,GetFertilizerResponseAtAge($AC$5,$C$1,$AC$8,$AC$6,$AC$7,"HD",$BB14,"RESP")*$BQ14,0) -> 0 | CB14: 0 | CC14: =IF($AC$4=TRUE,GetFertilizerResponseAtAge($AC$5,$C$1,$AC$8,$AC$6,$AC$7,"BA",$BB14,"RESP")*$BQ14,0) -> 0 | CE14: =IF($AG$4=TRUE,GetFertilizerResponseAtAge($AG$5,$C$1,$AG$8,$AG$6,$AG$7,"HD",$BB14,"RESP")*$BQ14,0) -> 0 | CF14: 0 | CG14: =IF($AG$4=TRUE,GetFertilizerResponseAtAge($AG$5,$C$1,$AG$8,$AG$6,$AG$7,"BA",$BB14,"RESP")*$BQ14,0) -> 0 | CH14: 0 | CI14: 0 | CJ14: 0 | CK14: 0 | CL14: 0 | CM14: 0 | CN14: 0 | CP14: 0 | CQ14: 0 | CR14: 0 | CS14: 0 | CT14: 0 | CU14: 0 | CV14: 0 | DB14: =+'lob_Growth&Yield'!G6 -> 3 | DC14: =IF(DB14="","",IF(DB14=0,0,SQRT(43560/'lob_Growth&Yield'!$R6)/'lob_Growth&Yield'!$AA6)) -> 0.8249907159 | DD14: =IF(DB14="","",IF(DB14=0,0,(EXP(-0.25*('lob_Growth&Yield'!$AA6^(1.8333-1/60*$C$1))))*$E$7*$BB14*EXP(-$E$6*$BB14))) -> 0.4087425696 | DE14: =IF(DB14="","",IF(lob_Inputs!$K$8=TRUE,$DD14,0)) -> 0 | DF14: =IF(DB14="","",(EXP(-0.25*('lob_Growth&Yield'!J6^(1.8333-1/60*$C$1))))*$G$7*$DB14*EXP(-$G$6*$DB14)) -> 1.511808068 | DG14: =IF(DB14="","",IF(lob_Inputs!$K$8=TRUE,$DF14,0)) -> 0 | DI14: =IF(DB14="","",IF(DB14=0,0,(EXP(-0.25*('lob_Growth&Yield'!J6^(1.8333-1/60*$C$1))))*$I$5*($DB14-$I$6)*EXP(-$I$4*($DB14-$I$6)))) -> 0 | DJ14: =IF(DB14="","",IF(DB14=0,0,(EXP(-0.25*('lob_Growth&Yield'!J6^(1.8333-1/60*$C$1))))*$K$5*($DB14-$I$6)*EXP(-$K$4*($DB14-$I$6)))) -> 0 | DL14: =IF(DB14="","",IF(DB14=0,0,IF(OR(lob_Inputs!$K$14=FALSE,DB14<lob_Inputs!$F$25),0,(EXP(-0.25*('lob_Growth&Yield'!J6^(1.8333-1/60*$C$1))))*$M$6*(DB14-lob_Inputs!$F$25)*EXP(-($M$7*(DB14-lob_Inputs!$F$25)))))) -> 0 | DM14: =IF(DB14="","",IF(DB14<(lob_RParms!$A$31+$M$4),$DL14,$DL$514)) -> 0 | DN14: =IF(DB14="","",IF(OR(lob_RParms!$A$30=FALSE,$DB14<lob_RParms!$A$31),0,(EXP(-0.25*('lob_Growth&Yield'!J6^(1.8333-1/60*$C$1))))*$O$6*($DB14-lob_RParms!$A$31)*EXP(-($O$7*($DB14-lob_RParms!$A$31))))) -> 0 | DO14: =IF(DB14="","",IF($DB14<(lob_RParms!$A$31+$O$4),$DN14,$DN$514)) -> 0 | DQ14: =IF(DB14="","",(EXP(-0.25*('lob_Growth&Yield'!J6^(1.8333-1/60*$C$1))))) -> 0.924667736 | DS14: =IF(DB14="","",IF($U$4=TRUE,GetFertilizerResponseAtAge($U$5,$C$1,$U$8,$U$6,$U$7,"HD",$DB14,"RESP")*$DQ14,0)) -> 0 | DT14: 0 | DU14: =IF(DB14="","",IF($U$4=TRUE,GetFertilizerResponseAtAge($U$5,$C$1,$U$8,$U$6,$U$7,"BA",$DB14,"RESP")*$DQ14,0)) -> 0 | DW14: =IF(DB14="","",IF($Y$4=TRUE,GetFertilizerResponseAtAge($Y$5,$C$1,$Y$8,$Y$6,$Y$7,"HD",$DB14,"RESP")*$DQ14,0)) -> 0 | DX14: 0 | DY14: =IF(DB14="","",IF($Y$4=TRUE,GetFertilizerResponseAtAge($Y$5,$C$1,$Y$8,$Y$6,$Y$7,"BA",$DB14,"RESP")*$DQ14,0)) -> 0 | EA14: =IF(DB14="","",IF($AC$4=TRUE,GetFertilizerResponseAtAge($AC$5,$C$1,$AC$8,$AC$6,$AC$7,"HD",$DB14,"RESP")*$DQ14,0)) -> 0 | EB14: 0 | EC14: =IF(DB14="","",IF($AC$4=TRUE,GetFertilizerResponseAtAge($AC$5,$C$1,$AC$8,$AC$6,$AC$7,"BA",$DB14,"RESP")*$DQ14,0)) -> 0 | EE14: =IF(DB14="","",IF($AG$4=TRUE,GetFertilizerResponseAtAge($AG$5,$C$1,$AG$8,$AG$6,$AG$7,"HD",$DB14,"RESP")*$DQ14,0)) -> 0 | EF14: 0 | EG14: =IF(DB14="","",IF($AG$4=TRUE,GetFertilizerResponseAtAge($AG$5,$C$1,$AG$8,$AG$6,$AG$7,"BA",$DB14,"RESP")*$DQ14,0)) -> 0 | EH14: 0 | EI14: 0 | EJ14: 0 | EK14: 0 | EL14: 0 | EM14: 0 | EN14: 0 | EP14: 0 | EQ14: 0 | ER14: 0 | ES14: 0 | ET14: 0 | EU14: 0 | EV14: 0
A15: =+'lob_Growth&Yield'!A7 -> 3 | B15: =+'lob_Growth&Yield'!E7 -> 4 | C15: =IF(B15="","",IF(B15=0,0,SQRT(43560/'lob_Growth&Yield'!$K7)/'lob_Growth&Yield'!$Y7)) -> 0.6251617922 | D15: =IF(B15="","",IF(B15=0,0,(EXP(-0.25*('lob_Growth&Yield'!$Y7^(1.8333-1/60*$C$1))))*$E$7*$B15*EXP(-$E$6*$B15))) -> 0.3947485017 | E15: =IF(B15="","",IF(lob_Inputs!$K$8=TRUE,$D15,0)) -> 0 | F15: =IF(B15="","",(EXP(-0.25*('lob_Growth&Yield'!H7^(1.8333-1/60*$C$1))))*$G$7*$B15*EXP(-$G$6*$B15)) -> 1.916538393 | G15: =IF(B15="","",IF(lob_Inputs!$K$8=TRUE,$F15,0)) -> 0 | I15: =IF(B15="","",IF('lob_Growth&Yield'!E7=0,0,(EXP(-0.25*('lob_Growth&Yield'!H7^(1.8333-1/60*$C$1))))*$I$5*($B15-$I$6)*EXP(-$I$4*($B15-$I$6)))) -> 0 | J15: =IF(B15="","",IF(B15=0,0,(EXP(-0.25*('lob_Growth&Yield'!H7^(1.8333-1/60*$C$1))))*$K$5*($B15-$I$6)*EXP(-$K$4*($B15-$I$6)))) -> 0 | L15: =IF(B15="","",IF(B15=0,0,IF(OR(lob_Inputs!$K$14=FALSE,B15<lob_Inputs!$F$25),0,(EXP(-0.25*('lob_Growth&Yield'!H7^(1.8333-1/60*$C$1))))*$M$6*(B15-lob_Inputs!$F$25)*EXP(-($M$7*(B15-lob_Inputs!$F$25)))))) -> 0 | M15: =IF(B15="","",IF(B15<(lob_RParms!$A$31+$M$4),$L15,$L$514)) -> 0 | N15: =IF(B15="","",IF(OR(lob_RParms!$A$30=FALSE,$B15<lob_RParms!$A$31),0,(EXP(-0.25*('lob_Growth&Yield'!H7^(1.8333-1/60*$C$1))))*$O$6*($B15-lob_RParms!$A$31)*EXP(-($O$7*($B15-lob_RParms!$A$31))))) -> 0 | O15: =IF(B15="","",IF($B15<(lob_RParms!$A$31+$O$4),$N15,$N$514)) -> 0 | Q15: =IF(B15="","",(EXP(-0.25*('lob_Growth&Yield'!H7^(1.8333-1/60*$C$1))))) -> 0.9335329928 | S15: =IF(B15="","",IF($U$4=TRUE,GetFertilizerResponseAtAge($U$5,$C$1,$U$8,$U$6,$U$7,"HD",$B15,"RESP")*$Q15,0)) -> 0 | T15: 0 | U15: =IF(B15="","",IF($U$4=TRUE,GetFertilizerResponseAtAge($U$5,$C$1,$U$8,$U$6,$U$7,"BA",$B15,"RESP")*$Q15,0)) -> 0 | W15: =IF(B15="","",IF($Y$4=TRUE,GetFertilizerResponseAtAge($Y$5,$C$1,$Y$8,$Y$6,$Y$7,"HD",$B15,"RESP")*$Q15,0)) -> 0 | X15: 0 | Y15: =IF(B15="","",IF($Y$4=TRUE,GetFertilizerResponseAtAge($Y$5,$C$1,$Y$8,$Y$6,$Y$7,"BA",$B15,"RESP")*$Q15,0)) -> 0 | AA15: =IF(B15="","",IF($AC$4=TRUE,GetFertilizerResponseAtAge($AC$5,$C$1,$AC$8,$AC$6,$AC$7,"HD",$B15,"RESP")*$Q15,0)) -> 0 | AB15: 0 | AC15: =IF(B15="","",IF($AC$4=TRUE,GetFertilizerResponseAtAge($AC$5,$C$1,$AC$8,$AC$6,$AC$7,"BA",$B15,"RESP")*$Q15,0)) -> 0 | AE15: =IF(B15="","",IF($AG$4=TRUE,GetFertilizerResponseAtAge($AG$5,$C$1,$AG$8,$AG$6,$AG$7,"HD",$B15,"RESP")*$Q15,0)) -> 0 | AF15: 0 | AG15: =IF(B15="","",IF($AG$4=TRUE,GetFertilizerResponseAtAge($AG$5,$C$1,$AG$8,$AG$6,$AG$7,"BA",$B15,"RESP")*$Q15,0)) -> 0 | AH15: 0 | AI15: 0 | AJ15: 0 | AK15: 0 | AL15: 0 | AM15: 0 | AN15: 0 | AP15: 0 | AQ15: 0 | AR15: 0 | AS15: 0 | AT15: 0 | AU15: 0 | AV15: 0 | AW15: 7.69537294 | AX15: 7.090260735 | AY15: 6.450734208 | AZ15: 5.775211473 | BB15: =+'lob_Growth&Yield'!F7 -> 4 | BC15: =IF(B15="","",IF(BB15=0,0,SQRT(43560/'lob_Growth&Yield'!$N7)/'lob_Growth&Yield'!$Z7)) -> 0.6156266637 | BD15: =IF(B15="","",IF(BB15=0,0,(EXP(-0.25*('lob_Growth&Yield'!$Z7^(1.8333-1/60*$C$1))))*$E$7*$BB15*EXP(-$E$6*$BB15))) -> 0.3947485017 | BE15: =IF(B15="","",IF(lob_Inputs!$K$8=TRUE,$BD15,0)) -> 0 | BF15: =IF(B15="","",(EXP(-0.25*('lob_Growth&Yield'!I7^(1.8333-1/60*$C$1))))*$G$7*$BB15*EXP(-$G$6*$BB15)) -> 1.916538393 | BG15: =IF(B15="","",IF(lob_Inputs!$K$8=TRUE,$BF15,0)) -> 0 | BI15: =IF(B15="","",IF(BB15=0,0,(EXP(-0.25*('lob_Growth&Yield'!I7^(1.8333-1/60*$C$1))))*$I$5*($BB15-$I$6)*EXP(-$I$4*($BB15-$I$6)))) -> 0 | BJ15: =IF(B15="","",IF(BB15=0,0,(EXP(-0.25*('lob_Growth&Yield'!I7^(1.8333-1/60*$C$1))))*$K$5*($BB15-$I$6)*EXP(-$K$4*($BB15-$I$6)))) -> 0 | BL15: =IF(B15="","",IF(BB15=0,0,IF(OR(lob_Inputs!$K$14=FALSE,BB15<lob_Inputs!$F$25),0,(EXP(-0.25*('lob_Growth&Yield'!I7^(1.8333-1/60*$C$1))))*$M$6*(BB15-lob_Inputs!$F$25)*EXP(-($M$7*(BB15-lob_Inputs!$F$25)))))) -> 0 | BM15: =IF(B15="","",IF(BB15<(lob_RParms!$A$31+$M$4),$BL15,$BL$514)) -> 0 | BN15: =IF(B15="","",IF(OR(lob_RParms!$A$30=FALSE,$BB15<lob_RParms!$A$31),0,(EXP(-0.25*('lob_Growth&Yield'!I7^(1.8333-1/60*$C$1))))*$O$6*($BB15-lob_RParms!$A$31)*EXP(-($O$7*($BB15-lob_RParms!$A$31))))) -> 0 | BO15: =IF(B15="","",IF($BB15<(lob_RParms!$A$31+$O$4),$BN15,$BN$514)) -> 0 | BQ15: =IF(B15="","",(EXP(-0.25*('lob_Growth&Yield'!I7^(1.8333-1/60*$C$1))))) -> 0.9335329928 | BS15: =IF(B15="","",IF($U$4=TRUE,GetFertilizerResponseAtAge($U$5,$C$1,$U$8,$U$6,$U$7,"HD",$BB15,"RESP")*$BQ15,0)) -> 0 | BT15: 0 | BU15: =IF(B15="","",IF($U$4=TRUE,GetFertilizerResponseAtAge($U$5,$C$1,$U$8,$U$6,$U$7,"BA",$BB15,"RESP")*$BQ15,0)) -> 0 | BW15: =IF(B15="","",IF($Y$4=TRUE,GetFertilizerResponseAtAge($Y$5,$C$1,$Y$8,$Y$6,$Y$7,"HD",$BB15,"RESP")*$BQ15,0)) -> 0 | BX15: 0 | BY15: =IF(B15="","",IF($Y$4=TRUE,GetFertilizerResponseAtAge($Y$5,$C$1,$Y$8,$Y$6,$Y$7,"BA",$BB15,"RESP")*$BQ15,0)) -> 0 | CA15: =IF($AC$4=TRUE,GetFertilizerResponseAtAge($AC$5,$C$1,$AC$8,$AC$6,$AC$7,"HD",$BB15,"RESP")*$BQ15,0) -> 0 | CB15: 0 | CC15: =IF($AC$4=TRUE,GetFertilizerResponseAtAge($AC$5,$C$1,$AC$8,$AC$6,$AC$7,"BA",$BB15,"RESP")*$BQ15,0) -> 0 | CE15: =IF($AG$4=TRUE,GetFertilizerResponseAtAge($AG$5,$C$1,$AG$8,$AG$6,$AG$7,"HD",$BB15,"RESP")*$BQ15,0) -> 0 | CF15: 0 | CG15: =IF($AG$4=TRUE,GetFertilizerResponseAtAge($AG$5,$C$1,$AG$8,$AG$6,$AG$7,"BA",$BB15,"RESP")*$BQ15,0) -> 0 | CH15: 0 | CI15: 0 | CJ15: 0 | CK15: 0 | CL15: 0 | CM15: 0 | CN15: 0 | CP15: 0 | CQ15: 0 | CR15: 0 | CS15: 0 | CT15: 0 | CU15: 0 | CV15: 0 | DB15: =+'lob_Growth&Yield'!G7 -> 4 | DC15: =IF(DB15="","",IF(DB15=0,0,SQRT(43560/'lob_Growth&Yield'!$R7)/'lob_Growth&Yield'!$AA7)) -> 0.6156266637 | DD15: =IF(DB15="","",IF(DB15=0,0,(EXP(-0.25*('lob_Growth&Yield'!$AA7^(1.8333-1/60*$C$1))))*$E$7*$BB15*EXP(-$E$6*$BB15))) -> 0.3947485017 | DE15: =IF(DB15="","",IF(lob_Inputs!$K$8=TRUE,$DD15,0)) -> 0 | DF15: =IF(DB15="","",(EXP(-0.25*('lob_Growth&Yield'!J7^(1.8333-1/60*$C$1))))*$G$7*$DB15*EXP(-$G$6*$DB15)) -> 1.916538393 | DG15: =IF(DB15="","",IF(lob_Inputs!$K$8=TRUE,$DF15,0)) -> 0 | DI15: =IF(DB15="","",IF(DB15=0,0,(EXP(-0.25*('lob_Growth&Yield'!J7^(1.8333-1/60*$C$1))))*$I$5*($DB15-$I$6)*EXP(-$I$4*($DB15-$I$6)))) -> 0 | DJ15: =IF(DB15="","",IF(DB15=0,0,(EXP(-0.25*('lob_Growth&Yield'!J7^(1.8333-1/60*$C$1))))*$K$5*($DB15-$I$6)*EXP(-$K$4*($DB15-$I$6)))) -> 0 | DL15: =IF(DB15="","",IF(DB15=0,0,IF(OR(lob_Inputs!$K$14=FALSE,DB15<lob_Inputs!$F$25),0,(EXP(-0.25*('lob_Growth&Yield'!J7^(1.8333-1/60*$C$1))))*$M$6*(DB15-lob_Inputs!$F$25)*EXP(-($M$7*(DB15-lob_Inputs!$F$25)))))) -> 0 | DM15: =IF(DB15="","",IF(DB15<(lob_RParms!$A$31+$M$4),$DL15,$DL$514)) -> 0 | DN15: =IF(DB15="","",IF(OR(lob_RParms!$A$30=FALSE,$DB15<lob_RParms!$A$31),0,(EXP(-0.25*('lob_Growth&Yield'!J7^(1.8333-1/60*$C$1))))*$O$6*($DB15-lob_RParms!$A$31)*EXP(-($O$7*($DB15-lob_RParms!$A$31))))) -> 0 | DO15: =IF(DB15="","",IF($DB15<(lob_RParms!$A$31+$O$4),$DN15,$DN$514)) -> 0 | DQ15: =IF(DB15="","",(EXP(-0.25*('lob_Growth&Yield'!J7^(1.8333-1/60*$C$1))))) -> 0.9335329928 | DS15: =IF(DB15="","",IF($U$4=TRUE,GetFertilizerResponseAtAge($U$5,$C$1,$U$8,$U$6,$U$7,"HD",$DB15,"RESP")*$DQ15,0)) -> 0 | DT15: 0 | DU15: =IF(DB15="","",IF($U$4=TRUE,GetFertilizerResponseAtAge($U$5,$C$1,$U$8,$U$6,$U$7,"BA",$DB15,"RESP")*$DQ15,0)) -> 0 | DW15: =IF(DB15="","",IF($Y$4=TRUE,GetFertilizerResponseAtAge($Y$5,$C$1,$Y$8,$Y$6,$Y$7,"HD",$DB15,"RESP")*$DQ15,0)) -> 0 | DX15: 0 | DY15: =IF(DB15="","",IF($Y$4=TRUE,GetFertilizerResponseAtAge($Y$5,$C$1,$Y$8,$Y$6,$Y$7,"BA",$DB15,"RESP")*$DQ15,0)) -> 0 | EA15: =IF(DB15="","",IF($AC$4=TRUE,GetFertilizerResponseAtAge($AC$5,$C$1,$AC$8,$AC$6,$AC$7,"HD",$DB15,"RESP")*$DQ15,0)) -> 0 | EB15: 0 | EC15: =IF(DB15="","",IF($AC$4=TRUE,GetFertilizerResponseAtAge($AC$5,$C$1,$AC$8,$AC$6,$AC$7,"BA",$DB15,"RESP")*$DQ15,0)) -> 0 | EE15: =IF(DB15="","",IF($AG$4=TRUE,GetFertilizerResponseAtAge($AG$5,$C$1,$AG$8,$AG$6,$AG$7,"HD",$DB15,"RESP")*$DQ15,0)) -> 0 | EF15: 0 | EG15: =IF(DB15="","",IF($AG$4=TRUE,GetFertilizerResponseAtAge($AG$5,$C$1,$AG$8,$AG$6,$AG$7,"BA",$DB15,"RESP")*$DQ15,0)) -> 0 | EH15: 0 | EI15: 0 | EJ15: 0 | EK15: 0 | EL15: 0 | EM15: 0 | EN15: 0 | EP15: 0 | EQ15: 0 | ER15: 0 | ES15: 0 | ET15: 0 | EU15: 0 | EV15: 0
